Workbook

Sheet Ilmanvaihto
A1: Aputaulukot, joilla voidaan laskea lämpöhäviöiden tasauslaskennassa tarvittavat | G1: Rakennuskohde | H1: RET-pientalo
A2: keskimääräiset poistoilmavirrat ja ilmanvaihdon lämmöntalteenoton (LTO) vuosihyötysuhteet, | G2: Rakennuslupatunnus | H2: Esimerkki
A3: kun rakennuksessa on useita ilmanvaihtokoneita ja niillä erilaisia käyttöaikoja. | G3: Rakennustyyppi | H3: 1-kerroksinen pientalo, ikkunapinta-ala 15 % kerrostasoalasta.
G4: Pääsuunnittelija | H4: Nibbe Niilanen
G5: Laskelman tekijä | H5: Lemmi Pumppu
A6: Taulukko 1. Poistoilman lämmöntalteenottovaatimuksen piiriin kuuluvat lämpimien tilojen ilmanvaihtokoneet | G6: Päiväys | H6: 2017-03-31
A7: Taulukko 2. Poistoilman lämmöntalteenottovaatimuksen piiriin kuulumattomat lämpimien tilojen ilmanvaihtokoneet
A8: Taulukko 3. Poistoilman lämmöntalteenottovaatimuksen piiriin kuuluvat puolilämpimien tilojen ilmanvaihtokoneet | L8: TASAUSLASKENTA-LOMAKKEESEEN
A9: Taulukko 4. Poistoilman lämmöntalteenottovaatimuksen piiriin kuulumattomat puolilämpimien tilojen ilmanvaihtokoneet
K10: Poistoilmavirta, m³ [qv, p] | L10: Ilmanvaihdon LTO:n vuosihyötysuhde, % [ηa] | M10: Ilmanvaihtojärjestelmän ominaissähköteho, kW/(m³/s) | N10: Ilmanvaihtojärjestelmän sähkönkulutus, kWh/a
A11: Taulukko 1. Lämpimät tilat | K11: =SUM(K15:K39) -> 0.07483333333 | L11: =P13/(K11+1E-50) -> 0.670155902 | M11: =N11/8760/(K11+1E-50) -> 1.788418708 | N11: =SUM(N15:N39) -> 1172.38
A12: Poistoilman lämmöntalteenottovaatimuksen | C12: Käyttötapa | D12: Mitoitus- | E12: Mitoitus- | F12: Käyttö- | G12: Käyttöajan | H12: Käyntiaikatekijät | K12: Käyntiajoilla | L12: Ilmanvaihtokoneen | M12: Ilmanvaihtokoneen | N12: Ilmanvaihtokoneen | P12: Apusarake
A13: piiriin kuuluvat ilmanvaihtokoneet | D13: ulkoilmavirta | E13: poistoilmavirta | F13: iImavirta- | G13: keskimääräinen | H13: td | I13: tw | K13: painotettu | L13: LTO:n vuosihyötysuhde, | M13: ominaissähköteho | N13: sähkönkulutus, | P13: =SUM(P15:P39) -> 0.05015
A14: Kone | B14: Palvelualue | D14: m³/s | E14: m³/s | F14: kerroin | G14: poistoilmavirta, m³/s | H14: h/vrk | I14: vrk/vko | K14: poistoilmavirta, m³/s | L14: % [ηa, ivkone] | M14: kW/(m³/s) | N14: kWh/a
A15: PILP | B15: Koko rakennus | C15: Jatk.käyttö | D15: 0.053 | E15: 0.059 | F15: 1 | G15: =F15*E15 -> 0.059 | H15: 24 | I15: 7 | J15: 1 | K15: =G15*H15/24*I15/7*J15 -> 0.059 | L15: 0.85 | M15: 2 | N15: =(D15>E15)*(D15/(E15+1E-50)*M15*K15*8760)+(D15<=E15)*(M15*K15*8760) -> 1033.68 | P15: =K15*L15 -> 0.05015
A16: Huippuimuri | B16: Keittiön liesikupu | C16: Tehostus | E16: 0.08 | F16: 1 | G16: =F16*E16 -> 0.08 | H16: 2 | I16: 7 | J16: 1 | K16: =G16*H16/24*I16/7*J16 -> 0.006666666667 | L16: 0 | M16: 1 | N16: =(D16>E16)*(D16/(E16+1E-50)*M16*K16*8760)+(D16<=E16)*(M16*K16*8760) -> 58.4 | P16: =K16*L16 -> 0
A17: - " - | B17: - " - | C17: Muulloin | E17: 0.01 | F17: 1 | G17: =F17*E17 -> 0.01 | H17: 22 | I17: 7 | J17: 1 | K17: 0.009166666667 | L17: 0 | M17: 1 | N17: 80.3 | P17: 0
G18: 0 | J18: 1 | K18: 0 | N18: 0 | P18: 0
G19: 0 | J19: 1 | K19: 0 | N19: 0 | P19: 0
G20: 0 | J20: 1 | K20: 0 | N20: 0 | P20: 0
G21: 0 | J21: 1 | K21: 0 | N21: 0 | P21: 0
G22: 0 | J22: 1 | K22: 0 | N22: 0 | P22: 0
G23: 0 | J23: 1 | K23: 0 | N23: 0 | P23: 0
G24: 0 | J24: 1 | K24: 0 | N24: 0 | P24: 0
G25: 0 | J25: 1 | K25: 0 | N25: 0 | P25: 0
G26: 0 | J26: 1 | K26: 0 | N26: 0 | P26: 0
G27: 0 | J27: 1 | K27: 0 | N27: 0 | P27: 0
G28: 0 | J28: 1 | K28: 0 | N28: 0 | P28: 0
G29: 0 | J29: 1 | K29: 0 | N29: 0 | P29: 0
G30: 0 | J30: 1 | K30: 0 | N30: 0 | P30: 0
G31: 0 | J31: 1 | K31: 0 | N31: 0 | P31: 0
G32: 0 | J32: 1 | K32: 0 | N32: 0 | P32: 0
G33: 0 | J33: 1 | K33: 0 | N33: 0 | P33: 0
G34: 0 | J34: 1 | K34: 0 | N34: 0 | P34: 0
G35: 0 | J35: 1 | K35: 0 | N35: 0 | P35: 0
G36: 0 | J36: 1 | K36: 0 | N36: 0 | P36: 0
G37: 0 | J37: 1 | K37: 0 | N37: 0 | P37: 0
G38: 0 | J38: 1 | K38: 0 | N38: 0 | P38: 0
G39: 0 | J39: 1 | K39: 0 | N39: 0 | P39: 0
A40: © Ympäristöministeriö, PILP-laskin 2018 (versio maaliskuu 2017)
K42: TASAUSLASKENTA-LOMAKKEESEEN
K44: Poistoilmavirta, m³ [qv, p] | M44: Ilmanvaihtojärjestelmän ominaissähköteho, kW/(m³/s) | N44: Ilmanvaihtojärjestelmän sähkönkulutus, kWh/a
A45: Taulukko 2. Lämpimät tilat | K45: =SUM(K49:K63) -> 0 | M45: =N45/8760/(K45+1E-50) -> 0 | N45: =SUM(N49:N63) -> 0
A46: Poistoilman lämmöntalteenottovaatimuksen | C46: Käyttötapa | D46: Mitoitus- | E46: Mitoitus- | F46: Käyttö- | G46: Käyttöajan | H46: Käyntiaikatekijät | K46: Käyntiajoilla | M46: Ilmanvaihtokoneen | N46: Ilmanvaihtokoneen
A47: piiriin kuulumattomat ilmanvaihtokoneet | D47: ulkoilmavirta | E47: poistoilmavirta | F47: iImavirta- | G47: keskimääräinen | H47: td | I47: tw | K47: painotettu | M47: ominaissähköteho | N47: sähkönkulutus,
A48: Kone | B48: Palvelualue | D48: m³/s | E48: m³/s | F48: kerroin | G48: poistoilmavirta, m³/s | H48: h/vrk | I48: vrk/vko | K48: poistoilmavirta, m³/s | M48: kW/(m³/s) | N48: kWh/a
G49: =F49*E49 -> 0 | J49: 1 | K49: =G49*H49/24*I49/7*J49 -> 0 | N49: =M49*K49*8760 -> 0
G50: =F50*E50 -> 0 | J50: 1 | K50: =G50*H50/24*I50/7*J50 -> 0 | N50: =M50*K50*8760 -> 0
G51: =F51*E51 -> 0 | J51: 1 | K51: =G51*H51/24*I51/7*J51 -> 0 | N51: 0
G52: =F52*E52 -> 0 | J52: 1 | K52: =G52*H52/24*I52/7*J52 -> 0 | N52: 0
G53: =F53*E53 -> 0 | J53: 1 | K53: =G53*H53/24*I53/7*J53 -> 0 | N53: 0
G54: =F54*E54 -> 0 | J54: 1 | K54: =G54*H54/24*I54/7*J54 -> 0 | N54: 0
G55: 0 | J55: 1 | K55: 0 | N55: 0
G56: 0 | J56: 1 | K56: 0 | N56: 0
G57: 0 | J57: 1 | K57: 0 | N57: 0
G58: 0 | J58: 1 | K58: 0 | N58: 0
G59: 0 | J59: 1 | K59: 0 | N59: 0
G60: 0 | J60: 1 | K60: 0 | N60: 0
G61: 0 | J61: 1 | K61: 0 | N61: 0
G62: 0 | J62: 1 | K62: 0 | N62: 0
G63: 0 | J63: 1 | K63: 0 | N63: 0
A64: =A$40 -> © Ympäristöministeriö, PILP-laskin 2018 (versio maaliskuu 2017)
L66: TASAUSLASKENTA-LOMAKKEESEEN
K68: Poistoilmavirta, m³ [qv, p] | L68: Ilmanvaihdon LTO:n vuosihyötysuhde, % [ηa] | M68: Ilmanvaihtojärjestelmän ominaissähköteho, kW/(m³/s) | N68: Ilmanvaihtojärjestelmän sähkönkulutus, kWh/a
A69: Taulukko 3. Puolilämpimät tilat | K69: =SUM(K73:K97) -> 0 | L69: =P71/(K69+1E-50) -> 0 | M69: =N69/8760/(K69+1E-50) -> 0 | N69: =SUM(N73:N97) -> 0
A70: Poistoilman lämmöntalteenottovaatimuksen | C70: Käyttötapa | D70: Mitoitus- | E70: Mitoitus- | F70: Käyttö- | G70: Käyttöajan | H70: Käyntiaikatekijät | K70: Käyntiajoilla | L70: Ilmanvaihtokoneen | M70: Ilmanvaihtokoneen | N70: Ilmanvaihtokoneen | P70: Apusarake
A71: piiriin kuuluvat ilmanvaihtokoneet | D71: ulkoilmavirta | E71: poistoilmavirta | F71: iImavirta- | G71: keskimääräinen | H71: td | I71: tw | K71: painotettu | L71: LTO:n vuosihyötysuhde, | M71: ominaissähköteho | N71: sähkönkulutus, | P71: =SUM(P73:P97) -> 0
A72: Kone | B72: Palvelualue | D72: m³/s | E72: m³/s | F72: kerroin | G72: poistoilmavirta, m³/s | H72: h/vrk | I72: vrk/vko | K72: poistoilmavirta, m³/s | L72: % [ηa, ivkone] | M72: kW/(m³/s) | N72: kWh/a
G73: =F73*E73 -> 0 | J73: 1 | K73: =G73*H73/24*I73/7*J73 -> 0 | N73: =M73*K73*8760 -> 0 | P73: =K73*L73 -> 0
G74: =F74*E74 -> 0 | J74: 1 | K74: =G74*H74/24*I74/7*J74 -> 0 | N74: =M74*K74*8760 -> 0 | P74: 0
G75: 0 | J75: 1 | K75: 0 | N75: =M75*K75*8760 -> 0 | P75: 0
G76: 0 | J76: 1 | K76: 0 | N76: =M76*K76*8760 -> 0 | P76: 0
G77: 0 | J77: 1 | K77: 0 | N77: 0 | P77: 0
G78: 0 | J78: 1 | K78: 0 | N78: 0 | P78: 0
G79: 0 | J79: 1 | K79: 0 | N79: 0 | P79: 0
G80: 0 | J80: 1 | K80: 0 | N80: 0 | P80: 0
G81: 0 | J81: 1 | K81: 0 | N81: 0 | P81: 0
G82: 0 | J82: 1 | K82: 0 | N82: 0 | P82: 0
G83: 0 | J83: 1 | K83: 0 | N83: 0 | P83: 0
G84: 0 | J84: 1 | K84: 0 | N84: 0 | P84: 0
G85: 0 | J85: 1 | K85: 0 | N85: 0 | P85: 0
G86: 0 | J86: 1 | K86: 0 | N86: 0 | P86: 0
G87: 0 | J87: 1 | K87: 0 | N87: 0 | P87: 0
G88: 0 | J88: 1 | K88: 0 | N88: 0 | P88: 0
G89: 0 | J89: 1 | K89: 0 | N89: 0 | P89: 0
G90: 0 | J90: 1 | K90: 0 | N90: 0 | P90: 0
G91: 0 | J91: 1 | K91: 0 | N91: 0 | P91: 0
G92: 0 | J92: 1 | K92: 0 | N92: 0 | P92: 0
G93: 0 | J93: 1 | K93: 0 | N93: 0 | P93: 0
G94: 0 | J94: 1 | K94: 0 | N94: 0 | P94: 0
G95: 0 | J95: 1 | K95: 0 | N95: 0 | P95: 0
G96: 0 | J96: 1 | K96: 0 | N96: 0 | P96: 0
G97: 0 | J97: 1 | K97: 0 | N97: 0 | P97: 0
A98: =A$40 -> © Ympäristöministeriö, PILP-laskin 2018 (versio maaliskuu 2017)
K100: TASAUSLASKENTA-LOMAKKEESEEN
K102: Poistoilmavirta, m³ [qv, p] | M102: Ilmanvaihtojärjestelmän ominaissähköteho, kW/(m³/s) | N102: Ilmanvaihtojärjestelmän sähkönkulutus, kWh/a
A103: Taulukko 4. Puolilämpimät tilat | M103: =N103/8760/(K103+1E-50) -> 0 | N103: =SUM(N107:N121) -> 0
A104: Poistoilman lämmöntalteenottovaatimuksen | C104: Käyttötapa | D104: Mitoitus- | E104: Mitoitus- | F104: Käyttö- | G104: Käyttöajan | H104: Käyntiaikatekijät | K104: Käyntiajoilla | M104: Ilmanvaihtokoneen | N104: Ilmanvaihtokoneen
A105: piiriin kuulumattomat ilmanvaihtokoneet | D105: ulkoilmavirta | E105: poistoilmavirta | F105: iImavirta- | G105: keskimääräinen | H105: td | I105: tw | K105: painotettu | M105: ominaissähköteho | N105: sähkönkulutus,
A106: Kone | B106: Palvelualue | D106: m³/s | E106: m³/s | F106: kerroin | G106: poistoilmavirta, m³/s | H106: h/vrk | I106: vrk/vko | K106: poistoilmavirta, m³/s | M106: kW/(m³/s) | N106: kWh/a
G107: =F107*E107 -> 0 | J107: 1 | K107: =G107*H107/24*I107/7*J107 -> 0 | N107: =M107*K107*8760 -> 0
G108: =F108*E108 -> 0 | J108: 1 | K108: =G108*H108/24*I108/7*J108 -> 0 | N108: =M108*K108*8760 -> 0
G109: =F109*E109 -> 0 | J109: 1 | K109: =G109*H109/24*I109/7*J109 -> 0 | N109: 0
G110: =F110*E110 -> 0 | J110: 1 | K110: =G110*H110/24*I110/7*J110 -> 0 | N110: 0
G111: =F111*E111 -> 0 | J111: 1 | K111: =G111*H111/24*I111/7*J111 -> 0 | N111: 0
G112: =F112*E112 -> 0 | J112: 1 | K112: =G112*H112/24*I112/7*J112 -> 0 | N112: 0
G113: 0 | J113: 1 | K113: 0 | N113: 0
G114: 0 | J114: 1 | K114: 0 | N114: 0
G115: 0 | J115: 1 | K115: 0 | N115: 0
G116: 0 | J116: 1 | K116: 0 | N116: 0
G117: 0 | J117: 1 | K117: 0 | N117: 0
G118: 0 | J118: 1 | K118: 0 | N118: 0
G119: 0 | J119: 1 | K119: 0 | N119: 0
G120: 0 | J120: 1 | K120: 0 | N120: 0
G121: 0 | J121: 1 | K121: 0 | N121: 0
A122: =A$40 -> © Ympäristöministeriö, PILP-laskin 2018 (versio maaliskuu 2017)

Sheet PILP-laskin
A1: Rakennuskohde | B1: =IF(Ilmanvaihto!H1=0,"",Ilmanvaihto!H1) -> RET-pientalo | AB1: 24 | AC1: =C1 -> 0
A2: Rakennuslupatunnus | B2: =IF(Ilmanvaihto!H2=0,"",Ilmanvaihto!H2) -> Esimerkki | AD2: =INDIRECT("i"&$AB$1) -> 0.6 | AF2: =INDIRECT("k"&$AB$1) -> 0 | AH2: nt | AJ2: =INDIRECT("U"&$AB$1) -> 0 | AL2: =INDIRECT("S"&$AB$1) -> 0
A3: Rakennustyyppi | B3: =IF(Ilmanvaihto!H3=0,"",Ilmanvaihto!H3) -> 1-kerroksinen pientalo, ikkunapinta-ala 15 % kerrostasoalasta. | AC3: =INDIRECT("A"&$AB$1) -> 0 | AE3: =INDIRECT("j"&$AB$1) -> 0 | AF3: + | AG3: =INDIRECT("L"&$AB$1) -> 0 | AH3: =INDIRECT("H"&$AB$1) -> 0 | AI3: =INDIRECT("V"&$AB$1) -> 0 | AJ3: - | AK3: =INDIRECT("T"&$AB$1) -> 0 | AM3: =INDIRECT("R"&$AB$1) -> 0
A4: Pääsuunnittelija | B4: =IF(Ilmanvaihto!H4=0,"",Ilmanvaihto!H4) -> Nibbe Niilanen | AC4: =INDIRECT("E"&$AB$1) -> 0 | AH4: =INDIRECT("ac"&$AB$1) -> 0 | AM4: =INDIRECT("F"&$AB$1) -> 0 | AN4: R
A5: Laskelman tekijä | B5: =IF(Ilmanvaihto!H5=0,"",Ilmanvaihto!H5) -> Lemmi Pumppu | AN5: =AM8/AM4 -> 
A6: Päiväys | B6: =IF(Ilmanvaihto!H6=0,"",Ilmanvaihto!H6) -> 2017-03-31 | AD6: =INDIRECT("X"&$AB$1) -> 0 | AF6: =INDIRECT("U"&$AB$1) -> 0 | AJ6: =INDIRECT("N"&$AB$1) -> 0 | AL6: =INDIRECT("P"&$AB$1) -> 0
AC7: =INDIRECT("F"&$AB$1) -> 0 | AF7: - | AH7: LTO | AK7: =INDIRECT("O"&$AB$1) -> 0 | AL7: + | AM7: =INDIRECT("Q"&$AB$1) -> 0
B8: Laskentataulukko, jolla voidaan laskea lämpöhäviöiden tasauslaskentaa varten | AC8: =INDIRECT("Y"&$AB$1) -> 0 | AG8: =INDIRECT("W"&$AB$1) -> 0 | AH8: =(AI3-AG8)/(AI3-AG3) ->  | AI8: =INDIRECT("M"&$AB$1) -> 0 | AM8: =INDIRECT("E"&$AB$1) -> 0
B9: poistoilmalämpöpumpun lämmöntalteenoton vuosihyötysuhde (ηa, PILP). | AH9: np
B10: Tällä voidaan laskea myös PILP:n ja LTO-lämmönsiirtimen yhdistelmä ja | AB10: 24 | AH10: =INDIRECT("AY"&$AB$1) -> 0 | AM10: =INDIRECT("A"&$AB$1) -> 0
B11: pelkkä LTO-lämmönsiirrinratkaisu. | AB11: 57 | AH11: na | AM11: =AM4-AM8 -> 0
D12: Ulkoilmavirta | E12: Poistoilmavirta
A13: Kone | B13: Palvelualue | C13: Käyttötapa | D13: m³/s | E13: m³/s
A14: PILP | B14: Koko rakennus | C14: jatkuva käyttö | D14: 0.053 | E14: 0.059
B16: Rakennuksen tiedot | I16: Oletusarvot
B17: Rakennuksen käyttötarkoitusluokka (1 - 9) | C17: 1
B18: Lämmitetty nettoala | C18: 147 | D18: m²
B19: Ilmanvaihdon käyttöaika vuorokaudessa | C19: 24 | D19: h/vrk | I19: =CHOOSE($C$17,24,24,13,15,24,10,16,24,24) -> 24
B20: Ilmanvaihdon käyttöaika viikossa | C20: 7 | D20: vrk/viikko | I20: =CHOOSE($C$17,7,7,5,6,7,5,7,7,7) -> 7
B21: Rakennuksen vaipan ja vuotoilman ominaislämpöhäviö | C21: 88.2 | D21: W/K | I21: =0.6*C18 -> 88.2
B22: Rakennuksen muu vakiolämmitystarve | C22: 0 | D22: W | I22: 0
B23: Sisäiset lämpökuormat käyttöaikana
B24: Lämpökuorma valaistuksesta | C24: 0.6 | D24: W/m² | I24: =CHOOSE($C$17,0.1*6,0.1*9,0.65*10,19,0.3*11,0.6*14,0.5*10,0.6*7,0.1*9) -> 0.6
B25: Lämpökuorma kuluttajalaitteista | C25: 1.8 | D25: W/m² | I25: =CHOOSE($C$17,0.6*3,0.6*4,0.65*12,1,0.3*4,0.6*8,0.5*0,0.6*9,0.6*4) -> 1.8
B26: Lämpökuorma ihmisistä | C26: 1.2 | D26: W/m² | I26: =CHOOSE($C$17,0.6*2,0.6*3,0.65*5,2,0.3*4,0.6*14,0.5*5,0.6*8,0.6*3) -> 1.2
B27: Sisäiset lämpökuormat yhteensä | C27: =(C24+C25+C26)*C18 -> 529.2 | D27: W
B28: Auringon lämpökuorma
B29: Ikkunoiden tiedot ilmansuunnittain | C29: Pinta-ala, m² | D29: g-arvo | E29: Fläpäisy | J29: g-arvo | K29: Fläpäisy
B30: Pohjoinen | C30: 5 | D30: 0.5 | E30: 0.72 | I30: =INT(0.2*0.15*$C$18/0.9+0.5) -> 5 | J30: 0.5 | K30: 0.72
B31: Koillinen
B32: Itä | C32: 5 | D32: 0.5 | E32: 0.623 | I32: =INT(0.2*0.15*$C$18/0.9+0.5) -> 5 | J32: 0.5 | K32: 0.623
B33: Kaakko
B34: Etelä | C34: 10 | D34: 0.5 | E34: 0.57 | I34: =INT(0.4*0.15*$C$18/0.9+0.5) -> 10 | J34: 0.5 | K34: 0.57
B35: Lounas
B36: Länsi | C36: 5 | D36: 0.5 | E36: 0.623 | I36: =INT(0.2*0.15*$C$18/0.9+0.5) -> 5 | J36: 0.5 | K36: 0.623
B37: Luode
B38: Yhteensä | C38: =SUM(C30:C37) -> 25
B39: Auringon lämpökuorma käyttöaikana keskimäärin | C39: ='Hki-2012'!CN21 -> 340.9474925 | D39: W
B41: Poistoilmalämpöpumpun tuottama lämpöä käytetään käyttöveden lämmittämiseen:
B42: Lämpimän käyttöveden vuotuinen lämmitysenergiankulutus | C42: 35 | D42: kWh/m²/a | I42: =CHOOSE(C17,35,35,6,4,40,11,20,30,35) -> 35
B43: Lämpimän käyttöveden vuotuinen lämpöhäviöenergia | C43: 510 | D43: kWh/a | I43: =INT(I42*C18/10/10)*10 -> 510
B45: Poistoilmalämpöpumpun tiedot:
B46: Poistoilmalämpöpumpun lämpökerroin, COP | C46: 2.5 | I46: 2.5
B47: Poistoilmalämpöpumpun kompressorin sähköteho | C47: 350 | D47: W | I47: =INT(1.2*E14*5*100)*10 -> 350
B49: Ulkoilmavirran suhde poistoilmavirtaan PILP:ssa | C49: =D14/E14 -> 0.8983050847
B50: LTO-lämmönsiirtimen tiedot:
B51: Tuloilman lämpötilasuhde yhtäsuurilla ilmavirroilla | C51: 0.6 | I51: 0.6
B52: Tuloilman lämpötilasuhde | C52: =MIN(1,(C51>=0)*(C51<=1)*(2/(1+C49)*C51)+(C51>1)*(C51<=100)*(2/(1+C49)*C51/100)+(C51<0)*0+(C51>100)*0) -> 0.6321428571
B53: Poistoilman lämpötilasuhde | C53: =MIN(1,C52*C49) -> 0.5678571429
B54: Lämpötilat:
B55: Huoneilman eli poistoilman lämpötila | C55: 21 | D55: °C | I55: 21
B56: Poistoilman minimilämpötila LTO:n jäätymissuojauksessa | C56: 0 | D56: °C | I56: 0
B57: Poistoilman minimilämpötila PILP:n jäätymissuojauksessa | C57: 0 | D57: °C | I57: 0
B58: Tuloilman jälkilämmityksen asetuslämpötila | C58: 15 | D58: °C | I58: 15
B59: Tuloilman jälkilämmitys PILP-varaajasta (1 = kyllä, 0 = ei) | C59: 1 | E59: ='Hki-2012'!$BO$14 -> 2 | I59: 1
B61: Poistoilmalämpöpumpun lämmöntalteenoton vuosihyötysuhde (ηa, PILP)
B62: Säävyöhyke
B63: I Helsinki-Vantaa TRY 2012 testivuosi | C63: =IF(NOW()<C69,IF(ABS('Hki-2012'!FT3)<0.002,'Hki-2012'!HB10,"Laske!!!"),"vanhentunut") -> 0.7210745059
B65: Poistoilmalämpöpumpun kompressorin sähkönkulutus | C65: =IF(NOW()<43100,IF(ABS('Hki-2012'!FT3)<0.002,'Hki-2012'!HD8,"Laske!!!"),"vanhentunut") -> vanhentunut | D65: kWh/lämmityskausi
B67: =Ilmanvaihto!$A$40 -> © Ympäristöministeriö, PILP-laskin 2018 (versio maaliskuu 2017)
B69: Parasta ennen | C69: 2030-12-31

Sheet Hki-2012 (hidden)
A1: Laskentataulukko, älä tuhoa
FS3: iter | FT3: =FX3*GC3+HY3*ID3+KA3*KF3+MC3*MH3 -> -0.0003407331969 | FX3: =(GO14=GP14)*(GO18=GP18) -> 0 | GC3: =GA23-HB23+GD3 -> -4.045432433e-09 | GD3: =SUM(HA24:HC57)-SUM(FZ24:GB57) -> -1.006992534e-08 | HY3: =(IQ14=IR14)*(IQ18=IR18) -> 0 | ID3: =IB23-JD23+IE3 -> 0 | IE3: =SUM(JC24:JE57)-SUM(IA24:IC57) -> 0 | KA3: =(KS14=KT14)*(KS18=KT18) -> 0 | KF3: =KD23-LF23+KG3 -> 0 | KG3: =SUM(LE24:LG57)-SUM(KC24:KE57) -> 0 | MC3: =(MT14=MU14)*(MT18=MU18) -> 1 | MH3: =MF23-NG23+MI3 -> -0.0003407331969 | MI3: =SUM(NF24:NH57)-SUM(ME24:MG57) -> -0.001302496908
BO5: =IF('Hki-2012'!BO14=2,"Lauhdutin varaajassa!","") -> Lauhdutin varaajassa! | FT5: =FX5*GD5+HY5*IE5+KA5*KG5+MC5*MI5 -> 0
BO6: =IF('Hki-2012'!BO14=1,"Lauhdutin tuloilmassa!","") -> 
FS7: Jakso | FT7: 57
BO8: =BO21 -> 3714.854452 | BP8: =BP21 -> 368.2363014 | BQ8: 0 | HD8: =HD12+JF12+LH12+NI12 -> 2197.35715 | HE8: 3296.035725 | HF8: 5493.392876 | HG8: 83318.04523 | HH8: 2443.032525 | HI8: 5473.251821 | HJ8: 15331.62796 | HK8: 9838.235082 | HL8: 23858.31825 | HM8: 20464.80815 | HN8: 3296.035725 | HO8: 2456.0988 | HP8: 8805.573 | HQ8: 5752.134525 | HR8: 3053.438475
CA9: Käyttöajat | CB9: td | CC9: tw | FS9: UILP | FT9: 0
CA10: Ilmanvaihto | CB10: =MAX('PILP-laskin'!C19,1) -> 24 | CC10: =MAX('PILP-laskin'!C20,1) -> 7 | HA10: PILP:n LTO:n vuosihyötysuhde | HB10: =(GP14=1)*(GP18=2)*HS19+(GP14=1)*(GP18=1)*JU19+(GP14=2)*(GP18=1)*LW19+(GP14=2)*(GP18=2)*NX19 -> 0.7210745059
H11: Nämä sarakkeet ovat vain kuvien piirtämistä varten | CA11: Sisäiset kuormat | CB11: =(CB10>0)*(CB10<3)*(CB10)+(CB10>2)*(CB10<24)*(CB10-2)+(CB10=24)*(CB10) -> 24 | CC11: =CC10 -> 7 | GE11: 1. Höyrystin poistoilmassa ennen LTO:a ja lauhdutin tuloilmassa | IG11: 2. Höyrystin jäteilmassa LTO:n jälkeen ja lauhdutin tuloilmassa | KI11: 3. Höyrystin jäteilmassa LTO:n jälkeen ja lauhdutin varaajassa | MJ11: 4. Höyrystin poistoilmassa ennen LTO:a ja lauhdutin varaajassa
AL12: IV-aikataulu | BP12: ='PILP-laskin'!$C$53 -> 0.5678571429 | BU12: 2 | BV12: =SUM(BV13:BV14) -> 2 | CA12: Aurinkokuormat | CB12: =CB10 -> 24 | HD12: =HD21*$FX$3 -> 0 | HE12: 0 | HF12: 0 | HG12: 0 | HH12: 0 | HI12: 0 | HJ12: 0 | HK12: 0 | HL12: 0 | HM12: 0 | HN12: 0 | HO12: 0 | HP12: 0 | HQ12: 0 | HR12: 0 | JF12: =JF21*$HY$3 -> 0 | JG12: 0 | JH12: 0 | JI12: 0 | JJ12: 0 | JK12: 0 | JL12: 0 | JM12: 0 | JN12: 0 | JO12: 0 | JP12: 0 | JQ12: 0 | JR12: 0 | JS12: 0 | JT12: 0 | LH12: =LH21*$KA$3 -> 0 | LI12: 0 | LJ12: 0 | LK12: 0 | LL12: 0 | LM12: 0 | LN12: 0 | LO12: 0 | LP12: 0 | LQ12: 0 | LR12: 0 | LS12: 0 | LT12: 0 | LU12: 0 | LV12: 0 | NI12: =NI21*$MC$3 -> 2197.35715 | NJ12: 3296.035725 | NK12: 5493.392876 | NL12: 83318.04523 | NM12: 2443.032525 | NN12: 5473.251821 | NO12: 15331.62796 | NP12: 9838.235082 | NQ12: 23858.31825 | NR12: 20464.80815 | NS12: 3296.035725 | NT12: 2456.0988 | NU12: 8805.573 | NV12: 5752.134525 | NW12: 3053.438475
BT13: 1. Lauhdutin on tuloilmassa | BU13: 1 | BV13: =BU13*($BU$12=1) -> 0 | GI13: -50 | GJ13: Näistä haetaan rajoitukset ja asetukset | IK13: Näistä haetaan rajoitukset ja asetukset | KM13: Näistä haetaan rajoitukset ja asetukset | MO13: Näistä haetaan rajoitukset ja asetukset
AL14: lkv, D3/2012 | AM14: =AL15*'PILP-laskin'!$C$18/8760*6325 -> 3714.854452 | AN14: LKVvaraaja | AO14: =AN15/8760*6325 -> 368.2363014 | BO14: =(BV12=1)*1+(BV12<>1)*2 -> 2 | BP14: Jos 1, niin lauhdutin on tuloilmassa, jos 2, niin lauhdutin on varaajassa | BT14: 2. Lauhdutin on varaajassa | BU14: 2 | BV14: =BU14*($BU$12=2) -> 2 | FY14: poisto | GA14: =MAX('PILP-laskin'!E14*1000,1E-50) -> 59 | GB14: dm³/s | GJ14: turha? | GO14: 1 | GP14: =$BO$14 -> 2 | GQ14: Jos 1, niin lauhdutin on tuloilmassa, jos 2, niin lauhdutin on varaajassa | IK14: turha? | IQ14: 1 | IR14: =$BO$14 -> 2 | IS14: Jos 1, niin lauhdutin on tuloilmassa, jos 2, niin lauhdutin on varaajassa | KM14: turha? | KS14: 2 | KT14: =$BO$14 -> 2 | KU14: Jos 1, niin lauhdutin on tuloilmassa, jos 2, niin lauhdutin on varaajassa | MO14: turha? | MT14: 2 | MU14: =$BO$14 -> 2 | MV14: Jos 1, niin lauhdutin on tuloilmassa, jos 2, niin lauhdutin on varaajassa
AL15: ='PILP-laskin'!C42 -> 35 | AM15: kWh/m², a | AN15: ='PILP-laskin'!C43 -> 510 | AO15: kWh/a | FY15: tulo | GA15: =MAX('PILP-laskin'!D14*1000,1E-50) -> 53 | GB15: dm³/s | GH15: Tx,min | GI15: Tz,min | GJ15: Ty,max | GK15: Tt,max | GL15: Tt2,min | HG15: =(GV15-HC15) -> 0 | II15: Tj,min | IJ15: Tz,min | IK15: Ty,max | IL15: Tt,max | IM15: Tt2,min | KK15: Tj,min | KL15: Tz,min | KM15: Ty,max | KN15: Tt,max | KO15: Tt2,min | KP15: PILP:llä = 0, ei PILP:llä = 1 | KZ15: =MAX(KQ15+KT15+KY15-KX15-KP15,1.2*$GA$15*($KO$17-KJ15)) ->  | MM15: Tx,min | MN15: Tz,min | MO15: Ty,max | MP15: Tt,max | MQ15: Tt2,min | MR15: PILP:llä = 0, ei PILP:llä = 1
A16: =Ilmanvaihto!$A$40 -> © Ympäristöministeriö, PILP-laskin 2018 (versio maaliskuu 2017) | AL16: =AL15/8.76 -> 3.99543379 | AM16: W/m² | AN16: =AN17/'PILP-laskin'!$C$18 -> 0.3960488305 | AO16: W/m² | BU16: 2 | BV16: =SUM(BV17:BV19) -> 2 | BX16: =(BU16>0)*(BU16<3) -> 1 | GH16: PILP | GI16: LTO | GJ16: LTO | GK16: PILP | GL16: Jälkilämm. | GN16: =1.2*$GA$15*(GJ16-GI16) ->  | GV16: =GM16+GP16+GU16-GT16-GL16 ->  | HG16: =(GP16+GM16+GU16-GL16-GT16-HC16) ->  | HQ16: Höyr | HR16: =HN21 -> 3279.598973 | HS16: =HN21/HP21 -> 0.3724458332 | II16: PILP | IJ16: LTO | IK16: LTO | IL16: PILP | IM16: Jälkilämm. | IX16: =((IT16-IV16+IP16+IW16)>JO16)*(IT16-IV16+IP16+IW16)+((IT16-IV16+IP16+IW16)<JO16)*JO16 -> 0 | IZ16: =MIN(1.2*$GA$14*(IG16-IM16),HW16) ->  | JS16: Höyr | JT16: =JP21 -> 2706.386481 | JU16: =JP21/JR21 -> 0.3073492754 | KK16: PILP | KL16: LTO | KM16: LTO | KN16: PILP | KO16: Jälkilämm. | KP16: Jälkilämmityksen energian lähde | KZ16: =((KV16-KX16+KR16+KY16)>LQ16)*(KV16-KX16+KR16+KY16)+((KV16-KX16+KR16+KY16)<LQ16)*LQ16 -> 0 | LA16: =MIN(JZ16,KZ16) -> 0 | LB16: =MIN(1.2*$GA$14*(KI16-KK16),JY16) ->  | LK16: =(KT16+KQ16+KY16-KP16-KX16-LG16) ->  | LU16: Höyr | LV16: =LR21 -> 2706.386481 | LW16: =LR21/LT21 -> 0.3073492754 | MM16: PILP | MN16: LTO | MO16: LTO | MP16: PILP | MQ16: Jälkilämm. | MR16: Jälkilämmityksen energian lähde | NA16: =((MW16-MY16+MS16+MZ16)>NR16)*(MW16-MY16+MS16+MZ16)+((MW16-MY16+MS16+MZ16)<NR16)*NR16 -> 0 | NB16: =MIN(MB16,NA16) -> 0 | NC16: =MIN(1.2*$GA$14*(MI16-MJ16),MA16) -> 0 | NL16: =(MU16+MR16+MZ16-MQ16-MY16-NH16) ->  | NV16: Höyr | NW16: =NS21 -> 3296.035725 | NX16: =NS21/NU21 -> 0.3743124639
X17: =MAX((Y17-AA17),AB17) -> 1000 | Y17: =1000 -> 1000 | AL17: =AL16*'PILP-laskin'!$C$18 -> 587.3287671 | AM17: W | AN17: =AN15/8.76 -> 58.21917808 | AO17: W | BT17: 1. Höyrystin poistoilmassa LTO:n jälkeen | BU17: 1 | BV17: =BU17*($BU$16=1) -> 0 | GH17: ='PILP-laskin'!$C$57 -> 0 | GI17: =(GC21>0.00001)*'PILP-laskin'!$C$56+(GC21<=0.00001)*$GI$13 -> 0 | GJ17: 50 | GK17: 50 | GL17: =MIN('PILP-laskin'!$C$58,GD21) -> 15 | GN17: =1.2*$GA$15*(GJ17-GI17)*(GH17<10) -> 3180 | GO17: =GM17-GL17-0*GN17 -> -15 | GV17: =((GR17-GT17+GN17+GU17)>HM17)*(GR17-GT17+GN17+GU17)+((GR17-GT17+GN17+GU17)<HM17)*HM17 -> 3180 | GX17: =MIN(1.2*$GA$14*(GD17-GE17),FV17) -> 0 | HC17: =GE21 -> Höyrystin poistoilmassa ennen LTO:a ja lauhdutin tuloilmassa | HM17: =MAX(1.2*$GA$15*($GL$17-GG17)-GL17,0) -> 939 | HQ17: LTO+maa | HR17: =HP21-HQ21 -> 3062.772268 | HS17: =(HP21-HQ21)/HP21 -> 0.3478220291 | II17: ='PILP-laskin'!$C$57 -> 0 | IJ17: =(ID21>0.00001)*'PILP-laskin'!$C$56+(ID21<=0.00001)*$GI$13 -> 0 | IK17: =$GJ$17 -> 50 | IL17: =$GK$17 -> 50 | IM17: =MIN('PILP-laskin'!$C$58,IE21) -> 15 | JE17: =IG21 -> Höyrystin poistoilmassa LTO:n jälkeen ja lauhdutin tuloilmassa | JS17: LTO+maa | JT17: =JR21-JS21 -> 4991.764873 | JU17: =(JR21-JS21)/JR21 -> 0.5668870013 | KK17: ='PILP-laskin'!$C$57 -> 0 | KL17: =(KF21>0.00001)*'PILP-laskin'!$C$56+(KF21<=0.00001)*$GI$13 -> 0 | KM17: =$GJ$17 -> 50 | KN17: =$GK$17 -> 50 | KO17: =MIN('PILP-laskin'!$C$58,KG21) -> 15 | KP17: =('PILP-laskin'!$C$59=0)*1 -> 0 | KZ17: =MAX(KQ17+KT17+KY17-KX17-KP17-$KP$17*KR17,1.2*$GA$15*($KO$17-KJ17)) -> 954 | LA17: =MIN(JZ17,KZ17-$KP$17*KR17) -> 954 | LG17: =KI21 -> Höyrystin poistoilmassa LTO:n jälkeen ja lauhdutin varaajassa | LU17: LTO+maa | LV17: =LT21-LU21 -> 4991.764873 | LW17: =(LT21-LU21)/LT21 -> 0.5668870013 | MM17: ='PILP-laskin'!$C$57 -> 0 | MN17: =(MH21>0.00001)*'PILP-laskin'!$C$56+(MH21<=0.00001)*$GI$13 -> 0 | MO17: =$GJ$17 -> 50 | MP17: =$GK$17 -> 50 | MQ17: =MIN('PILP-laskin'!$C$58,MI21) -> 15 | MR17: =('PILP-laskin'!$C$59=0)*1 -> 0 | NB17: =MIN(MB17,NA17-$MR$17*MS17) -> 0 | NH17: =MJ21 -> Höyrystin poistoilmassa ennen LTO:a ja lauhdutin varaajassa | NV17: LTO+maa | NW17: =NU21-NV21 -> 3053.438475 | NX17: =(NU21-NV21)/NU21 -> 0.346762042
B18: Helsinki TRY 2012 testivuosi | Q18: =O18-AE18*1000/(1.2*$GA$15) -> 0 | X18: =AB18 -> 0 | AL18: =AL17/($CB$10/24*$CC$10/7) -> 587.3287671 | AM18: W | AN18: =AN17 -> 58.21917808 | AO18: W | BO18: =(BV16=1)*1+(BV16<>1)*2 -> 2 | BP18: Jos 1, niin LTO on ennen höyrystintä, jos 2 tai muu, niin sen jälkeen | BT18: 2. Höyrystin poistoilmassa ennen LTO:a tai ilman LTO:a | BU18: 2 | BV18: =BU18*($BU$16=2) -> 2 | GJ18: =MAX(GI18,$GL$17*(GG18<10)) -> 15 | GO18: 2 | GP18: =$BO$18 -> 2 | GQ18: Jos 1, niin LTO on ennen höyrystintä, jos 2 tai muu, niin sen jälkeen | IQ18: 1 | IR18: =$BO$18 -> 2 | IS18: Jos 1, niin LTO on ennen höyrystintä, jos 2 tai muu, niin sen jälkeen | KQ18: =1.2*$GA$14*(KG18-B18)-$KP$17*KR18 ->  | KS18: 1 | KT18: =$BO$18 -> 2 | KU18: Jos 1, niin LTO on ennen höyrystintä, jos 2 tai muu, niin sen jälkeen | MM18: ='PILP-laskin'!$C$57 -> 0 | MN18: ='PILP-laskin'!$C$56 -> 0 | MT18: 2 | MU18: =$BO$18 -> 2 | MV18: Jos 1, niin LTO on ennen höyrystintä, jos 2 tai muu, niin sen jälkeen
C19: =5.3-3 -> 2.3 | X19: =Y19-AA19 -> 0 | AN19: ='PILP-laskin'!C22 -> 0 | AO19: W | BO19: ="BO"&$FT$7 -> BO57 | BP19: ="BP"&$FT$7 -> BP57 | BQ19: ="BQ"&$FT$7 -> BQ57 | CA19: Lämpökuormien laskenta | CN19: ="CN"&$FT$7 -> CN57 | FT19: Lähtötiedot | FZ19: Laskentatiedot | GO19: =GM19-GL19-GN19 -> 0 | GP19: ok | GQ19: ok | GU19: ok | GV19: ="GV"&$FT$7 -> GV57 | HD19: ="HD"&$FT$7 -> HD57 | HE19: ="HE"&$FT$7 -> HE57 | HF19: ="HF"&$FT$7 -> HF57 | HG19: ="HG"&$FT$7 -> HG57 | HH19: ="HH"&$FT$7 -> HH57 | HI19: ="HI"&$FT$7 -> HI57 | HJ19: ="HJ"&$FT$7 -> HJ57 | HK19: ="HK"&$FT$7 -> HK57 | HL19: ="HL"&$FT$7 -> HL57 | HM19: ="HM"&$FT$7 -> HM57 | HN19: ="HN"&$FT$7 -> HN57 | HO19: ="HO"&$FT$7 -> HO57 | HP19: ="HP"&$FT$7 -> HP57 | HQ19: ="HQ"&$FT$7 -> HQ57 | HR19: ="HR"&$FT$7 -> HR57 | HS19: =(HN21+HP21-HQ21)/HP21 -> 0.7202678623 | HU19: Lähtötiedot | IA19: Laskentatiedot | IX19: ="IX"&$FT$7 -> IX57 | JF19: ="JF"&$FT$7 -> JF57 | JG19: ="JG"&$FT$7 -> JG57 | JH19: ="JH"&$FT$7 -> JH57 | JI19: ="JI"&$FT$7 -> JI57 | JJ19: ="JJ"&$FT$7 -> JJ57 | JK19: ="JK"&$FT$7 -> JK57 | JL19: ="JL"&$FT$7 -> JL57 | JM19: ="JM"&$FT$7 -> JM57 | JN19: ="JN"&$FT$7 -> JN57 | JO19: ="JO"&$FT$7 -> JO57 | JP19: ="JP"&$FT$7 -> JP57 | JQ19: ="JQ"&$FT$7 -> JQ57 | JR19: ="JR"&$FT$7 -> JR57 | JS19: ="JS"&$FT$7 -> JS57 | JT19: ="JT"&$FT$7 -> JT57 | JU19: =(JP21+JR21-JS21)/JR21 -> 0.8742362768 | JW19: Lähtötiedot | KC19: Laskentatiedot | KK19: =MAX(KH24,KK17) -> 0 | KQ19: =1.2*$GA$14*(KG19-B19) -> 0 | KZ19: ="KZ"&$FT$7 -> KZ57 | LH19: ="LH"&$FT$7 -> LH57 | LI19: ="LI"&$FT$7 -> LI57 | LJ19: ="LJ"&$FT$7 -> LJ57 | LK19: ="LK"&$FT$7 -> LK57 | LL19: ="LL"&$FT$7 -> LL57 | LM19: ="LM"&$FT$7 -> LM57 | LN19: ="LN"&$FT$7 -> LN57 | LO19: ="LO"&$FT$7 -> LO57 | LP19: ="LP"&$FT$7 -> LP57 | LQ19: ="LQ"&$FT$7 -> LQ57 | LR19: ="LR"&$FT$7 -> LR57 | LS19: ="LS"&$FT$7 -> LS57 | LT19: ="LT"&$FT$7 -> LT57 | LU19: ="LU"&$FT$7 -> LU57 | LV19: ="LV"&$FT$7 -> LV57 | LW19: =(LR21+LT21-LU21)/LT21 -> 0.8742362768 | LY19: Lähtötiedot | LZ19: ="LZ"&$FT$7 -> LZ57 | ME19: Laskentatiedot | NA19: ="NA"&$FT$7 -> NA57 | NI19: ="NI"&$FT$7 -> NI57 | NJ19: ="NJ"&$FT$7 -> NJ57 | NK19: ="NK"&$FT$7 -> NK57 | NL19: ="NL"&$FT$7 -> NL57 | NM19: ="NM"&$FT$7 -> NM57 | NN19: ="NN"&$FT$7 -> NN57 | NO19: ="NO"&$FT$7 -> NO57 | NP19: ="NP"&$FT$7 -> NP57 | NQ19: ="NQ"&$FT$7 -> NQ57 | NR19: ="NR"&$FT$7 -> NR57 | NS19: ="NS"&$FT$7 -> NS57 | NT19: ="NT"&$FT$7 -> NT57 | NU19: ="NU"&$FT$7 -> NU57 | NV19: ="NV"&$FT$7 -> NV57 | NW19: ="NW"&$FT$7 -> NW57 | NX19: =(NS21+NU21-NV21)/NU21 -> 0.7210745059
F20: Vaipan ominais-lämpöhäviö Hvaippa+vuotoilma, W | H20: Vaipan ominais-lämpöhäviö Hvaippa+vuotoilma, W | J20: Tp on poistoilman lämpötila | K20: Tx on poistoilman lämpötila PILP:n höyrystimen jälkeen | L20: Tz on poistoilman lämpötila LTO:n jälkeen | M20: Tu on ulkoilman lämpötila ennen LTO:a | N20: Ty on tuloilman lämpötila LTO:n jälkeen | O20: Tt on tuloilman lämpötila PILP:n lauhduttimen jälkeen | P20: Tt2 on tuloilman lämpötila jälkilämmityksen jälkeen | Q20: Ttkompr on tuloilman lämpötila PILP:n lauhduttimen jälkeen | R20: Lauhduttimen tod. energia | S20: Netto-lämmön-tarve | T20: Tuloilman lämpötila bruttolämmöntarpeen mukaan | U20: Tuloilman lämpötila nettolämmöntarpeen mukaan | V20: Tuloilman jälkilämmitysteho | W20: Muu lämmitys | X20: Netto-lämmön-tarve | Y20: Brutto-lämmön-tarve | Z20: IV-brutto | AA20: hyödynnetyt lämpökuormat | AB20: Qlämmitys, koko lämmönatarve - hyödynnetyt lämpökuormat, joka voidaan kattaa PILP:llä | AC20: Muu lämmitys (LKV, varaaja, muu vakio-lämmön-tarve | AD20: Kompr. tod. teho | AE20: Höyrystimen tod. teho | AF20: Lauhduttimen tod. teho | AG20: LTO:n teho, kW | AH20: PILP:n lauhduttimen ja LTO:n teho, kW | AI20: Käyttöveden lämmitysteho, kW | AJ20: Varaajan lämpöhäviöteho, kW | AK20: Muu lämpöhäviöteho, kW | AL20: Qlkv, käyttöveden lämmityksen nettotehon-tarve | AM20: LKV-varaajan häviöt | AN20: Vakioteho ympäri vuoden, esimerkiksi järjestelmän lämpöhäviö ympäristöön | AP20: Käyttövesi ja sen lämpöhäviö, kW | AQ20: Käyttövesi, sen lämpöhäviö ja muu lämpöhäviö, kW | AR20: PILP:n lauhduttimen, LTO:n ja tuloilman jälkilämmityksen teho, kW | BO20: Qlkv, käyttöveden lämmityksen energia | BP20: LKV-varaajan häviöenergia | BQ20: Vakioenergia ympäri vuoden, esimerkiksi järjestelmän lämpöhäviö ympäristöön | CA20: Läpäisykerroin (g x Fläpäisy) | CB20: ='PILP-laskin'!$D$30*'PILP-laskin'!$E$30 -> 0.36 | CC20: ='PILP-laskin'!$D$31*'PILP-laskin'!$E$31 -> 0 | CD20: ='PILP-laskin'!$D$32*'PILP-laskin'!$E$32 -> 0.3115 | CE20: ='PILP-laskin'!$D$33*'PILP-laskin'!$E$33 -> 0 | CF20: ='PILP-laskin'!$D$34*'PILP-laskin'!$E$34 -> 0.285 | CG20: ='PILP-laskin'!$D$35*'PILP-laskin'!$E$35 -> 0 | CH20: ='PILP-laskin'!$D$36*'PILP-laskin'!$E$36 -> 0.3115 | CI20: ='PILP-laskin'!$D$37*'PILP-laskin'!$E$37 -> 0 | CN20: Aur.kuorma keskimäärin, W | CO20: Lämpö-kuormat yhteensä | FT20: Poistoilma-lämpöpumpun lämpökerroin | FU20: Kompr. maksimiteho, W | FV20: Höyrystimen maksimiteho, W | FW20: Lauhduttimen maksimiteho, W | FY20: Poistoilma-lämpöpumpun lämpökerroin | FZ20: Kompr. teho, W | GA20: Höyrystimen teho, W | GB20: Lauhduttimen teho, W | GC20: Annettu lämpötilahyötysuhde | GD20: Tp on poistoilman lämpötila | GE20: Tx on poistoilman lämpötila PILP:n höyrystimen jälkeen | GF20: Tz on poistoilman lämpötila LTO:n jälkeen | GG20: Tu on ulkoilman lämpötila ennen LTO:a | GH20: Ty on tuloilman lämpötila LTO:n jälkeen | GI20: Tt on tuloilman lämpötila PILP:n lauhduttimen jälkeen | GJ20: Tt2 on tuloilman lämpötila jälkilämmityksen jälkeen | GK20: Tx,min rajoittaa PILP:n höyrystimen jälkeistä lämpötilaa rajoitusarvon ja ulkolämpötilan mukaan. Rajoitusarvo riippuu laitteen ominaisuuksista ja jäätymissuojauksesta. Ulkolämpötilan alle ei voi tasauslaskennassa jäähdyttää, koska ulkoilmalämpöpumpun tuottoa ei lasketa mukaan. Päivitetty TF9=1, niin saa jäähdyttää alle ulkoilman lämpötilan. | GL20: LTO:n teho | GM20: IV:n teho brutto | GN20: Tuloilman jälkilämmitysteho | GO20: IV:n teho netto tiloissa | GP20: Vaipan ominais-lämpöhäviö Hvaippa+vuotoilma, W | GQ20: lämpökuormat | GR20: Lämpöhäviöteho huoneessa (vaippa + ilmanvaihto huoneessa = rakennusosat + vuotoilma + tuloilma tilassa + korvausilma) | GS20: Lämpö-kuormien lämpö-energian hyödyntä-misaste, ηlämpö, kaava (8.13 tai 8.14) | GT20: hyödynnetyt lämpökuormat | GU20: =($AN$21=1)*AN24+($AL$21=1)*AL24+($AM$21=1)*AM24 | GV20: Qlämmitys | GW20: Lauhduttimen lämmön tarpeella rajoitettu teho, W | GX20: Höyrystimen lämmön tarpeella rajoitettu teho, W | GY20: Kompr. raj teho, lauhdutintehon mukaan W | GZ20: Kompr. raj. teho, höyrystintehon mukaan W | HA20: Kompr. tod. teho, W | HB20: Höyrystimen tod. teho, W | HC20: Lauhduttimen tod. teho, W | HD20: Qkompr. | HE20: Qhöyryst. | HF20: Qlauhd. | HG20: Muu kuin PILP-lämmitys | HH20: Tuloilman jälkilämmitys | HI20: hyödynnetyt lämpökuormat | HJ20: Qlämmitys | HK20: Muu kuin PILP-lämmitys | HL20: Brutto-lämmön-tarve | HM20: Tuloilman lämpeneminen LTO:n jälkeen | HN20: Qhöyrystin, jossa ei ole ulkoilmasta otettu lämpöä | HP20: Qilman-vaihto, brutto, lämmön-tarve yhteensä | HQ20: Qilman-vaihto, netto, LTO ja maalämpö vähennetty | HR20: LTO | HU20: Poistoilma-lämpöpumpun lämpökerroin | HV20: Kompr. maksimiteho, W | HW20: Höyrystimen maksimiteho, W | HX20: Lauhduttimen maksimiteho, W | HZ20: Poistoilma-lämpöpumpun lämpökerroin | IA20: Kompr. maksimiteho, W | IB20: Höyrystimen maksimiteho, W | IC20: Lauhduttimen maksimiteho, W | ID20: Annettu lämpötilahyötysuhde | IE20: Tp om poistoilman lämpötila | IF20: Tu on ulkoilman lämpötila ennen LTO:a | IG20: Tz on poistoilman lämpötila LTO:n jälkeen | IH20: Ty on tuloilman lämpötila LTO:n jälkeen | II20: Tj on jäteilman lämpötila PILP:n höyrystimen jälkeen | IJ20: Tt on tuloilman lämpötila PILP:n lauhduttimen jälkeen | IK20: Tt2 on tuloilman lämpötila jälkilämmityksen jälkeen | IN20: LTO:n teho | IO20: IV:n teho brutto | IP20: Tuloilman jälkilämmitysteho | IQ20: IV:n teho netto tiloissa | IR20: Vaipan ominais-lämpöhäviö Hvaippa+vuotoilma, W | IS20: lämpökuormat | IT20: Lämpöhäviöteho huoneessa (vaippa + ilmanvaihto huoneessa = rakennusosat + vuotoilma + tuloilma tilassa + korvausilma) | IU20: Lämpö-kuormien lämpö-energian hyödyntä-misaste, ηlämpö, kaava (8.13 tai 8.14) | IV20: hyödynnetyt lämpökuormat | IW20: =($AN$21=1)*AN24+($AL$21=1)*AL24+($AM$21=1)*AM24 | IX20: Qlämmitys | IY20: Lauhduttimen lämmön tarpeella rajoitettu teho, W | IZ20: Höyrystimen lämmön tarpeella rajoitettu teho, W | JA20: Kompr. raj teho, lauhdutintehon mukaan W | JB20: Kompr. raj. teho, höyrystintehon mukaan W | JC20: Kompr. tod. teho, W | JD20: Höyrystimen tod. teho, W | JE20: Lauhduttimen tod. teho, W | JF20: Qkompr. | JG20: Qhöyryst. | JH20: Qlauhd. | JI20: Muu kuin PILP-lämmitys | JJ20: Tuloilman jälkilämmitys | JK20: hyödynnetyt lämpökuormat | JL20: Qlämmitys | JM20: Muu kuin PILP-lämmitys | JN20: Brutto-lämmön-tarve | JO20: Tuloilman lämpeneminen LTO:n jälkeen | JP20: Qhöyrystin, jossa ei ole ulkoilmasta otettu lämpöä | JR20: Qilman-vaihto, brutto, lämmön-tarve yhteensä | JS20: Qilman-vaihto, netto, LTO ja maalämpö vähennetty | JT20: LTO | JW20: Poistoilma-lämpöpumpun lämpökerroin | JX20: Kompr. maksimiteho, W | JY20: Höyrystimen maksimiteho, W | JZ20: Lauhduttimen maksimiteho, W | KB20: Poistoilma-lämpöpumpun lämpökerroin | KC20: Kompr. maksimiteho, W | KD20: Höyrystimen maksimiteho, W | KE20: Lauhduttimen maksimiteho, W | KF20: Annettu lämpötilahyötysuhde | KG20: Tp om poistoilman lämpötila | KH20: Tu on ulkoilman lämpötila ennen LTO:a | KI20: Tz on poistoilman lämpötila LTO:n jälkeen | KJ20: Ty on tuloilman lämpötila LTO:n jälkeen | KK20: Tj on jäteilman lämpötila PILP:n höyrystimen jälkeen | KL20: Tt on tuloilman lämpötila PILP:n lauhduttimen jälkeen | KM20: Tt2 on tuloilman lämpötila jälkilämmityksen jälkeen | KP20: LTO:n teho | KQ20: IV:n teho brutto | KR20: Tuloilman jälkilämmitysteho | KS20: IV:n teho netto tiloissa | KT20: Vaipan ominais-lämpöhäviö Hvaippa+vuotoilma, W | KU20: lämpökuormat | KV20: Lämpöhäviöteho huoneessa (vaippa + ilmanvaihto huoneessa = rakennusosat + vuotoilma + tuloilma tilassa + korvausilma) | KW20: Lämpö-kuormien lämpö-energian hyödyntä-misaste, ηlämpö, kaava (8.13 tai 8.14) | KX20: hyödynnetyt lämpökuormat | KY20: =($AN$21=1)*AN24+($AL$21=1)*AL24+($AM$21=1)*AM24 | KZ20: Qlämmitys | LA20: Lauhduttimen lämmön tarpeella rajoitettu teho, W | LB20: Höyrystimen lämmön tarpeella rajoitettu teho, W | LC20: Kompr. raj teho, lauhdutintehon mukaan W | LD20: Kompr. raj. teho, höyrystintehon mukaan W | LE20: Kompr. tod. teho, W | LF20: Höyrystimen tod. teho, W | LG20: Lauhduttimen tod. teho, W | LH20: Qkompr. | LI20: Qhöyryst. | LJ20: Qlauhd. | LK20: Muu kuin PILP-lämmitys | LL20: Tuloilman jälkilämmitys | LM20: hyödynnetyt lämpökuormat | LN20: Qlämmitys | LO20: Muu kuin PILP-lämmitys | LP20: Brutto-lämmön-tarve | LQ20: Tuloilman lämpeneminen LTO:n jälkeen | LR20: Qhöyrystin, jossa ei ole ulkoilmasta otettu lämpöä | LT20: Qilman-vaihto, brutto, lämmön-tarve yhteensä | LU20: Qilman-vaihto, netto, LTO ja maalämpö vähennetty | LV20: LTO | LY20: Poistoilma-lämpöpumpun lämpökerroin | LZ20: Kompr. maksimiteho, W | MA20: Höyrystimen maksimiteho, W | MB20: Lauhduttimen maksimiteho, W | MD20: Poistoilma-lämpöpumpun lämpökerroin | ME20: Kompr. maksimiteho, W | MF20: Höyrystimen maksimiteho, W | MG20: Lauhduttimen maksimiteho, W | MH20: Annettu lämpötilahyötysuhde | MI20: Tp om poistoilman lämpötila | MJ20: Tx on poistoilman lämpötila PILP:n höyrystimen jälkeen | MK20: Tz on poistoilman lämpötila LTO:n jälkeen | ML20: Tu on ulkoilman lämpötila ennen LTO:a | MM20: Ty on tuloilman lämpötila LTO:n jälkeen | MN20: Tt on tuloilman lämpötila PILP:n lauhduttimen jälkeen | MO20: Tt2 on tuloilman lämpötila jälkilämmityksen jälkeen | MP20: Tx,min rajoittaa PILP:n höyrystimen jälkeistä lämpötilaa rajoitusarvon ja ulkolämpötilan mukaan. Rajoitusarvo riippuu laitteen ominaisuuksista ja jäätymissuojauksesta. Ulkolämpötilan alle ei voi tasauslaskennassa jäähdyttää, koska ulkoilmalämpöpumpun tuottoa ei lasketa mukaan. | MQ20: LTO:n teho | MR20: IV:n teho brutto | MS20: Tuloilman jälkilämmitysteho | MT20: IV:n teho netto tiloissa | MU20: Vaipan ominais-lämpöhäviö Hvaippa+vuotoilma, W | MV20: lämpökuormat | MW20: Lämpöhäviöteho huoneessa (vaippa + ilmanvaihto huoneessa = rakennusosat + vuotoilma + tuloilma tilassa + korvausilma) | MX20: Lämpö-kuormien lämpö-energian hyödyntä-misaste, ηlämpö, kaava (8.13 tai 8.14) | MY20: hyödynnetyt lämpökuormat | MZ20: =($AN$21=1)*AN24+($AL$21=1)*AL24+($AM$21=1)*AM24 | NA20: Qlämmitys | NB20: Lauhduttimen lämmön tarpeella rajoitettu teho, W | NC20: Höyrystimen lämmön tarpeella rajoitettu teho, W | ND20: Kompr. raj teho, lauhdutintehon mukaan W | NE20: Kompr. raj. teho, höyrystintehon mukaan W | NF20: Kompr. tod. teho, W | NG20: Höyrystimen tod. teho, W | NH20: Lauhduttimen tod. teho, W | NI20: Qkompr. | NJ20: Qhöyryst. | NK20: Qlauhd. | NL20: Muu kuin PILP-lämmitys | NM20: Tuloilman jälkilämmitys | NN20: hyödynnetyt lämpökuormat | NO20: Qlämmitys | NP20: Muu kuin PILP-lämmitys | NQ20: Brutto-lämmön-tarve | NR20: Tuloilman lämpeneminen LTO:n jälkeen | NS20: Qhöyrystin, jossa ei ole ulkoilmasta otettu lämpöä | NT20: Brutto-lämmön-tarve | NU20: Qilman-vaihto, brutto, lämmön-tarve yhteensä | NV20: Qilman-vaihto, netto, LTO ja maalämpö vähennetty | NW20: LTO
C21: =0*0.2 -> 0 | F21: ='PILP-laskin'!C21 -> 88.2 | J21: ='PILP-laskin'!$C$55 -> 21 | K21: =IF(($FX$3=1),GE21,IF(($HY$3=1),IG21,IF(($KA$3=1),KI21,IF(($MC$3=1),MJ21,"Ei järjestelmää")))) -> Höyrystin poistoilmassa ennen LTO:a ja lauhdutin varaajassa | AL21: =1*('PILP-laskin'!C42>0)*(BO14=2) -> 1 | AM21: =1*('PILP-laskin'!C43>0)*(BO14=2) -> 1 | AN21: =1*('PILP-laskin'!C22>0) -> 0 | BO21: =SUM(BO24:INDIRECT(BO19))*AL21 -> 3714.854452 | BP21: =SUM(BP24:INDIRECT(BP19))*AM21 -> 368.2363014 | BQ21: =SUM(BQ24:INDIRECT(BQ19))*AN21 -> 0 | CA21: Ikkunapinta-ala, m² | CB21: ='PILP-laskin'!$C$30 -> 5 | CC21: ='PILP-laskin'!$C$31 -> 0 | CD21: ='PILP-laskin'!$C$32 -> 5 | CE21: ='PILP-laskin'!$C$33 -> 0 | CF21: ='PILP-laskin'!$C$34 -> 10 | CG21: ='PILP-laskin'!$C$35 -> 0 | CH21: ='PILP-laskin'!$C$36 -> 5 | CI21: ='PILP-laskin'!$C$37 -> 0 | CL21: Lämpökuormat | CN21: =CN22/($A$80*(MAX($CB$12,10))/24)*1000 -> 340.9474925 | CO21: Qlämpökuorma | FT21: =MAX('PILP-laskin'!$C$46,1E-50) -> 2.5 | FU21: ='PILP-laskin'!$C$47 -> 350 | GC21: ='PILP-laskin'!$C$53 -> 0.5678571429 | GD21: ='PILP-laskin'!$C$55 -> 21 | GE21: =IF(GC21>0,"Höyrystin poistoilmassa ennen LTO:a ja lauhdutin tuloilmassa","Höyrystin poistoilmassa ja lauhdutin tuloilmassa") -> Höyrystin poistoilmassa ennen LTO:a ja lauhdutin tuloilmassa | GM21: =1.2*$GA$14*(GD21-GG21) -> 1486.8 | GN21: =1.2*$GA$15*(GJ21-GI21) -> 0 | GR21: Qlämpöhäviö | GU21: Qmuu lämmitys | GV21: =SUM(GV24:INDIRECT(GV19)) -> 112838.5932 | GX21: Tp-Tx | HA21: iter | HB21: iter | HC21: iter | HD21: =SUM(HD24:INDIRECT(HD19)) -> 2186.399315 | HE21: =SUM(HE24:INDIRECT(HE19)) -> 3279.598973 | HF21: =SUM(HF24:INDIRECT(HF19)) -> 5465.998288 | HG21: =SUM(HG24:INDIRECT(HG19)) -> 83318.04523 | HH21: =SUM(HH24:INDIRECT(HH19)) -> 36.692 | HI21: =SUM(HI24:INDIRECT(HI19)) -> 5491.312615 | HJ21: =SUM(HJ24:INDIRECT(HJ19)) -> 15304.23337 | HK21: =SUM(HK24:INDIRECT(HK19)) -> 9838.235082 | HL21: =SUM(HL24:INDIRECT(HL19)) -> 23858.31825 | HM21: =SUM(HM24:INDIRECT(HM19)) -> 31552.94795 | HN21: =SUM(HN24:INDIRECT(HN19)) -> 3279.598973 | HO21: =HP21-HR17-HR16 -> 2463.201759 | HP21: =SUM(HP24:INDIRECT(HP19)) -> 8805.573 | HQ21: =SUM(HQ24:INDIRECT(HQ19)) -> 5742.800732 | HR21: =HP21-HQ21 -> 3062.772268 | HU21: =MAX('PILP-laskin'!$C$46,1E-50) -> 2.5 | HV21: ='PILP-laskin'!$C$47 -> 350 | ID21: ='PILP-laskin'!$C$53 -> 0.5678571429 | IE21: ='PILP-laskin'!$C$55 -> 21 | IG21: =IF(ID21>0,"Höyrystin poistoilmassa LTO:n jälkeen ja lauhdutin tuloilmassa","Höyrystin poistoilmassa ja lauhdutin tuloilmassa") -> Höyrystin poistoilmassa LTO:n jälkeen ja lauhdutin tuloilmassa | IO21: =1.2*$GA$14*(IE21-IF21) -> 1486.8 | IP21: =MAX(1.2*$GA$15*($IM$17-IJ21),0) -> 954 | IQ21: =IO21-IN21-IP21 -> 532.8 | IT21: Qlämpöhäviö | IW21: Qmuu lämmitys | IX21: =SUM(IX24:INDIRECT(IX19)) -> 101004.1623 | IZ21: Tp-Tx | JC21: iter | JD21: iter | JE21: iter | JF21: =SUM(JF24:INDIRECT(JF19)) -> 1804.257654 | JG21: =SUM(JG24:INDIRECT(JG19)) -> 2706.386481 | JH21: =SUM(JH24:INDIRECT(JH19)) -> 4510.644136 | JI21: =SUM(JI24:INDIRECT(JI19)) -> 83930.23729 | JJ21: =SUM(JJ24:INDIRECT(JJ19)) -> 151.2521014 | JK21: =SUM(JK24:INDIRECT(JK19)) -> 5423.760863 | JL21: =SUM(JL24:INDIRECT(JL19)) -> 13442.79252 | JM21: =SUM(JM24:INDIRECT(JM19)) -> 8932.148382 | JN21: =SUM(JN24:INDIRECT(JN19)) -> 23858.31825 | JO21: =SUM(JO24:INDIRECT(JO19)) -> 8996.115 | JP21: =SUM(JP24:INDIRECT(JP19)) -> 2706.386481 | JQ21: =JR21-JT17-JT16 -> 1107.421646 | JR21: =SUM(JR24:INDIRECT(JR19)) -> 8805.573 | JS21: =SUM(JS24:INDIRECT(JS19)) -> 3813.808127 | JT21: =JR21-JS21 -> 4991.764873 | JW21: =MAX('PILP-laskin'!$C$46,1E-50) -> 2.5 | JX21: ='PILP-laskin'!$C$47 -> 350 | KF21: ='PILP-laskin'!$C$53 -> 0.5678571429 | KG21: ='PILP-laskin'!$C$55 -> 21 | KI21: =IF(KF21>0,"Höyrystin poistoilmassa LTO:n jälkeen ja lauhdutin varaajassa","Höyrystin poistoilmassa ja lauhdutin varaajassa") -> Höyrystin poistoilmassa LTO:n jälkeen ja lauhdutin varaajassa | KQ21: =1.2*$GA$14*(KG21-KH21) -> 1486.8 | KV21: Qlämpöhäviö | KY21: Qmuu lämmitys | KZ21: =SUM(KZ24:INDIRECT(KZ19)) -> 101004.1623 | LB21: Tp-Tx | LE21: iter | LF21: iter | LG21: iter | LH21: =SUM(LH24:INDIRECT(LH19)) -> 1804.257654 | LI21: =SUM(LI24:INDIRECT(LI19)) -> 2706.386481 | LJ21: =SUM(LJ24:INDIRECT(LJ19)) -> 4510.644136 | LK21: =SUM(LK24:INDIRECT(LK19)) -> 83930.23729 | LL21: =SUM(LL24:INDIRECT(LL19)) -> 685.6588029 | LM21: =SUM(LM24:INDIRECT(LM19)) -> 5423.760863 | LN21: =SUM(LN24:INDIRECT(LN19)) -> 13442.79252 | LO21: =SUM(LO24:INDIRECT(LO19)) -> 8932.148382 | LP21: =SUM(LP24:INDIRECT(LP19)) -> 23858.31825 | LQ21: =SUM(LQ24:INDIRECT(LQ19)) -> 8996.115 | LR21: =SUM(LR24:INDIRECT(LR19)) -> 2706.386481 | LS21: =LT21-LV17-LV16 -> 1107.421646 | LT21: =SUM(LT24:INDIRECT(LT19)) -> 8805.573 | LU21: =SUM(LU24:INDIRECT(LU19)) -> 3813.808127 | LV21: =LT21-LU21 -> 4991.764873 | LY21: =MAX('PILP-laskin'!$C$46,1E-50) -> 2.5 | LZ21: ='PILP-laskin'!$C$47 -> 350 | MH21: ='PILP-laskin'!$C$53 -> 0.5678571429 | MI21: ='PILP-laskin'!$C$55 -> 21 | MJ21: =IF(MH21>0,"Höyrystin poistoilmassa ennen LTO:a ja lauhdutin varaajassa","Höyrystin poistoilmassa ja lauhdutin varaajassa") -> Höyrystin poistoilmassa ennen LTO:a ja lauhdutin varaajassa | MR21: =1.2*$GA$14*(MI21-ML21) -> 1486.8 | MW21: Qlämpöhäviö | MZ21: Qmuu lämmitys | NA21: =SUM(NA24:INDIRECT(NA19)) -> 112930.5213 | NC21: Tp-Tx | NF21: iter | NG21: iter | NH21: iter | NI21: =SUM(NI24:INDIRECT(NI19)) -> 2197.35715 | NJ21: =SUM(NJ24:INDIRECT(NJ19)) -> 3296.035725 | NK21: =SUM(NK24:INDIRECT(NK19)) -> 5493.392876 | NL21: =SUM(NL24:INDIRECT(NL19)) -> 83318.04523 | NM21: =SUM(NM24:INDIRECT(NM19)) -> 2443.032525 | NN21: =SUM(NN24:INDIRECT(NN19)) -> 5473.251821 | NO21: =SUM(NO24:INDIRECT(NO19)) -> 15331.62796 | NP21: =SUM(NP24:INDIRECT(NP19)) -> 9838.235082 | NQ21: =SUM(NQ24:INDIRECT(NQ19)) -> 23858.31825 | NR21: =SUM(NR24:INDIRECT(NR19)) -> 20464.80815 | NS21: =SUM(NS24:INDIRECT(NS19)) -> 3296.035725 | NT21: =NU21-NW17-NW16 -> 2456.0988 | NU21: =SUM(NU24:INDIRECT(NU19)) -> 8805.573 | NV21: =SUM(NV24:INDIRECT(NV19)) -> 5752.134525 | NW21: =NU21-NV21 -> 3053.438475
A22: Pysyvyys | B22: Ulkolämpötila | C22: Ulkoilman lämpötila esilämmityksen jälkeen | D22: Qaur, Wh/m² | E22: Qaur, W/m² | F22: H, W | G22: Jakso | H22: H, kW | J22: Poistoilman lämpötila | K22: Poistoilman lämpötila PILP:n höyrystimen jälkeen | L22: Poistoilman lämpötila LTO:n jälkeen | M22: Ulkoilman lämpötila | N22: Tuloilman lämpötila LTO:n jälkeen | O22: Tuloilman lämpötila PILP:n lauhduttimen jälkeen | P22: Tuloilman lämpötila jälkilämmityksen jälkeen | Q22: Tuloilman lämpötila PILP:n kompressorin jälkeen | R22: PILP:n lauhduttimen teho, kW | S22: Nettolämmöntarve (hyödynnetyt lämpökuormat vähennetty), kW | T22: Tuloilman lämpötila bruttolämmöntarpeen mukaan | U22: Tuloilman lämpötila nettolämmöntarpeen mukaan | V22: Tuloilman jälkilämmitysteho, kW | W22: Muu lämmitys, kW | X22: Nettolämmöntarve (hyödynnetyt lämpökuormat vähennetty), kW | Y22: Bruttolämmöntarve, kW | AC22: Muu lämmitys | AD22: PILP:n kompressorin sähköteho, kW | AE22: PILP:n höyrystimen teho, kW | AF22: PILP:n lauhduttimen teho, kW | AG22: LTO:n teho, kW | AH22: PILP:n lauhduttimen ja LTO:n teho, kW | AI22: Käyttöveden lämmitysteho, kW | AJ22: Varaajan lämpöhäviöteho, kW | AK22: Muu lämpöhäviöteho, kW | AL22: Käyttöveden lämmityksen nettotehontarve, W | AM22: Varaajan lämpöhäviöteho, W | AN22: Muu lämpöhäviöteho (vakioteho koko vuoden), W | AP22: Käyttövesi ja sen lämpöhäviö, kW | AQ22: Käyttövesi, sen lämpöhäviö ja muu lämpöhäviö, kW | AR22: PILP:n lauhduttimen, LTO:n ja tuloilman jälkilämmityksen teho, kW | BO22: Qlkv | BP22: Qjärjestelmä | BQ22: Qvakioenergia | CA22: Auringon lämpökuormat ikkunoiden läpi, W | CB22: P | CC22: Ko | CD22: I | CE22: Ka | CF22: E | CG22: Lo | CH22: L | CI22: Lu | CJ22: Aur.kuorma | CL22: Muu kuorma | CM22: Yhteensä | CN22: =SUM(CN24:INDIRECT(CN19)) -> 2156.49289 | FX22: Jakso | FZ22: paste | GA22: paste | GB22: paste | GC22: ηp | GD22: Tp | GE22: Tx | GF22: Tz | GG22: Tu | GH22: Ty | GI22: Tt | GJ22: Tt2 | GK22: Tx,min | GP22: =$F22 | GQ22: =$CO22 | GU22: =$AO24-$AJ24-$AK24 | GV22: =GR22-GT22+GN22+GU22 ->  | HA22: 0.9 | HG22: =(GP22+GU22+GM22-GL22-GT22-HC22-GN22) ->  | HM22: =MAX(1.2*$GA$15*($IM$17-GD22)-GL22-GA22,0) ->  | HN22: Qhöyrystin4 | HO22: B | HP22: Qilmanvaihto, tarve yhteensä | HQ22: Qilmanvaihto, netto | HR22: Qlämmitys, lisäteho | HU22: ='PILP-laskin'!$C$46+0*(0.0419*EW22+ 2.1194) -> 2.5 | HY22: Jakso | IA22: paste | IB22: paste | IC22: paste | ID22: ηp | IE22: Tp | IF22: Tu | IG22: Tz | IH22: Ty | II22: Tj | IJ22: Tt | IK22: Tt2 | IL22: Tz,min | IM22: Tj,min | IN22: =IJ57-IH57 -> 7.616857592 | IP22: =MAX(1.2*$GA$15*($IM$17-IF22)-IN22-IC22,0) ->  | IQ22: =IO22-IN22 -> -7.616857592 | IR22: =F22 | IS22: =CO22 | IW22: =$AO24-$AJ24-$AK24 | IX22: =IT22-IV22+IP22+IW22 ->  | IY22: =MIN(HX22,IX22) ->  | IZ22: =MIN(1.2*$GA$14*(IG22-II22),HW22) ->  | JA22: =IY22/HZ22 ->  | JB22: =IZ22/(HZ22-1) ->  | JC22: 1 | JI22: =(IR22+IW22+IO22-IN22-IV22-JE22-IP22) ->  | JM22: =JI22/1000*$FX22 ->  | JO22: =MAX(1.2*$GA$15*($IM$17-IF22)-IN22-IC22,0) ->  | JP22: Qhöyrystin4 | JQ22: B | JR22: Qilmanvaihto, tarve yhteensä | JS22: Qilmanvaihto, netto | JT22: Qlämmitys, lisäteho | JW22: ='PILP-laskin'!$C$46+0*(0.0419*GY22+ 2.1194) -> 2.5 | KA22: Jakso | KC22: paste | KD22: paste | KE22: paste | KF22: ηp | KG22: Tp | KH22: Tu | KI22: Tz | KJ22: Ty | KK22: Tj | KL22: Tt | KM22: Tt2 | KN22: Tz,min | KO22: Tj,min | KT22: =F22 | KU22: =CO22 | KY22: =$AO24-$AJ24-$AK24 | KZ22: =KV22-KX22+KR22+KY22 ->  | LE22: 1 | LK22: =(KT22+KY22+KQ22-KP22-KX22-LG22-KR22) ->  | LN22: =KZ22/1000*$KA22 ->  | LO22: =LK22/1000*$FX22 ->  | LQ22: =MAX(1.2*$GA$15*($IM$17-KH22)-KP22-KE22,0) ->  | LR22: Qhöyrystin4 | LS22: B | LT22: Qilmanvaihto, tarve yhteensä | LU22: Qilmanvaihto, netto | LV22: Qlämmitys, lisäteho | LY22: ='PILP-laskin'!$C$46+0*(0.0419*JB22+ 2.1194) ->  | MC22: Jakso | ME22: paste | MF22: paste | MG22: paste | MH22: ηp | MI22: Tp | MJ22: Tx | MK22: Tz | ML22: Tu | MM22: Ty | MN22: Tt | MO22: Tt2 | MP22: Tx,min | MU22: =$F22 | MV22: =$CO22 | MZ22: =$AO24-$AJ24-$AK24 | NA22: =MW22-MY22+MS22+MZ22 ->  | NF22: 1 | NL22: =(MU22+MZ22+MR22-MQ22-MY22-NH22-MS22) ->  | NP22: =NL22/1000*$FX22 ->  | NR22: =MAX(1.2*$GA$15*($IM$17-MI22)-MQ22-MF22,0) ->  | NS22: Qhöyrystin4 | NT22: B | NU22: Qilmanvaihto, tarve yhteensä | NV22: Qilmanvaihto, netto | NW22: Qlämmitys, lisäteho
G23: h | I23: °Ch | K23: Tx, Tj, PILP | L23: Tz, LTO | M23: Ulkoilman lämpötila | N23: Ty, LTO | O23: Tt, PILP | P23: Tt2, LÄM | Q23: Tt, Kompr | R23: kWh | S23: kWh | T23: Tt,brutto | U23: Tt, netto | V23: kW | W23: kW | X23: kW | Y23: kW | Z23: kW | AA23: kW | AB23: kW | AC23: kW | AD23: kW | AE23: kW | AF23: kW | AG23: kW | AH23: kW | AI23: kW | AJ23: kW | AK23: kW | AL23: W | AM23: W | AN23: W | AP23: kW | AQ23: kW | AR23: kW | BO23: kWh | BP23: kWh | BQ23: kWh | CA23: Suuntauksen muuntokerroin (talvikuukaudet) | CB23: 0.5094452774 | CC23: 0.523838081 | CD23: 0.688155922 | CE23: 1.048275862 | CF23: 1.250974513 | CG23: 1.048875562 | CH23: 0.6890554723 | CI23: 0.5247376312 | CJ23: W | CK23: W (käyttöaika) | CM23: W (käyttöaika) | CN23: kWh | CO23: W | FU23: W | FV23: 0 | FW23: W | FX23: h | FZ23: W | GA23: 122735.9929 | GB23: W | GE23: PILP | GF23: LTO | GG23: =$C23 | GH23: LTO | GI23: PILP | GJ23: LÄM | GK23: PILP | GL23: W | GM23: W | GN23: W | GO23: W | GP23: W | GQ23: W | GR23: W | GT23: W | GU23: W | GV23: W | GW23: W | GX23: W | GY23: W | GZ23: W | HA23: W | HB23: =HN21+HQ21+GV21+FT21*FU21+GH17*GI17 -> 122735.9929 | HC23: W | HD23: kWh | HE23: kWh | HF23: kWh | HG23: W | HH23: kWh | HI23: kWh | HJ23: kWh | HK23: kWh | HL23: kWh | HM23: W | HN23: kWh | HP23: kWh | HQ23: kWh | HR23: kWh | HV23: W | HW23: 0 | HX23: W | HY23: h | IA23: W | IB23: 108399.3569 | IC23: W | IF23: =C23 | IG23: LTO | IH23: LTO | II23: PILP | IJ23: PILP | IK23: LÄM | IL23: LTO | IM23: PILP | IN23: W | IO23: W | IP23: W | IQ23: W | IR23: W | IS23: W | IT23: W | IV23: W | IW23: W | IX23: W | IY23: W | IZ23: W | JA23: W | JB23: W | JC23: W | JD23: =JP21+JS21+IX21+HU21*HV21+II17*IJ17 -> 108399.3569 | JE23: W | JF23: kWh | JG23: kWh | JH23: kWh | JI23: W | JJ23: kWh | JK23: kWh | JL23: kWh | JM23: kWh | JN23: kWh | JO23: W | JP23: kWh | JR23: kWh | JS23: kWh | JT23: kWh | JX23: W | JY23: 0 | JZ23: W | KA23: h | KC23: W | KD23: 108399.3569 | KE23: W | KH23: =C23 | KI23: LTO | KJ23: LTO | KK23: PILP | KL23: PILP | KM23: LÄM | KN23: LTO | KO23: PILP | KP23: W | KQ23: W | KR23: W | KS23: W | KT23: W | KU23: W | KV23: W | KX23: W | KY23: W | KZ23: W | LA23: W | LB23: W | LC23: W | LD23: W | LE23: W | LF23: =LR21+LU21+KZ21+JW21*JX21+KK17*KL17 -> 108399.3569 | LG23: W | LH23: kWh | LI23: kWh | LJ23: kWh | LK23: W | LL23: kWh | LM23: kWh | LN23: kWh | LO23: kWh | LP23: kWh | LQ23: W | LR23: kWh | LT23: kWh | LU23: kWh | LV23: kWh | LZ23: W | MA23: 0 | MB23: W | MC23: h | ME23: W | MF23: 122853.6925 | MG23: W | MJ23: PILP | MK23: LTO | ML23: =$C23 | MM23: LTO | MN23: PILP | MO23: LÄM | MP23: PILP | MQ23: W | MR23: W | MS23: W | MT23: W | MU23: W | MV23: W | MW23: W | MY23: W | MZ23: W | NA23: W | NB23: W | NC23: W | ND23: W | NE23: W | NF23: W | NG23: =NS21+NV21+NA21+LY21*LZ21+MM17*MN17 -> 122853.6916 | NH23: W | NI23: kWh | NJ23: kWh | NK23: kWh | NL23: W | NM23: kWh | NN23: kWh | NO23: kWh | NP23: kWh | NQ23: kWh | NR23: W | NS23: kWh | NT23: W | NU23: kWh | NV23: kWh | NW23: kWh
A24: 0 | B24: =B25 -> -20.5 | C24: =MAX($C$21*($C$19-B24)+B24,B24) -> -20.5 | F24: =$F$21*(J24-B24) -> 3660.3 | G24: =(A24-A23)/100*8760 -> 0 | H24: =F24/1000 -> 3.6603 | I24: =G24*(J24-B24) -> 0 | J24: =$FX$3*GD24+$HY$3*IE24+$KA$3*KG24+$MC$3*MI24 -> 21 | K24: =$FX$3*GE24+$HY$3*II24+$KA$3*KK24+$MC$3*MJ24 -> 13.58474576 | L24: =$FX$3*GF24+$HY$3*IG24+$KA$3*KI24+$MC$3*MK24 -> 0 | M24: =$FX$3*GG24+$HY$3*IF24+$KA$3*KH24+$MC$3*ML24 -> -20.5 | N24: =$FX$3*GH24+$HY$3*IH24+$KA$3*KJ24+$MC$3*MM24 -> -5.377358491 | O24: =$FX$3*GI24+$HY$3*IJ24+$KA$3*KL24+$MC$3*MN24 -> -5.377358491 | P24: =$FX$3*GJ24+$HY$3*IK24+$KA$3*KM24+$MC$3*MO24 -> 15 | Q24: =N24+AD24*1000/(1.2*$GA$15) -> 0.1257861635 | R24: =AF24*G24 -> 0 | S24: =X24*G24 -> 0 | T24: =M24+Y24*1000/(1.2*$GA$15) -> 93.40012492 | U24: =M24+X24*1000/(1.2*$GA$15) -> 85.07937021 | V24: =($FX$3*GN24+$HY$3*IP24+$KA$3*KR24+$MC$3*MS24)/(1000) -> 1.296 | W24: =Y24-AG24-AA24-AF24 -> 4.878047945 | X24: =MAX((Y24-AA24),AB24) -> 6.714847945 | Y24: =H24+Z24+AC24 -> 7.244047945 | Z24: =($FX$3*GM24+$HY$3*IO24+$KA$3*KQ24+$MC$3*MR24)/(1000) -> 2.9382 | AA24: =($FX$3*GT24+$HY$3*IV24+$KA$3*KX24+$MC$3*MY24)/(1000) -> 0.5292 | AB24: =($FX$3*GV24+$HY$3*IX24+$KA$3*KZ24+$MC$3*NA24)/(1000) -> 5.753047945 | AC24: =($FX$3*GU24+$HY$3*IW24+$KA$3*KY24+$MC$3*MZ24)/(1000) -> 0.6455479452 | AD24: =($FX$3*HA24+$HY$3*JC24+$KA$3*LE24+$MC$3*NF24)/(1000) -> 0.35 | AE24: =($FX$3*HB24+$HY$3*JD24+$KA$3*LF24+$MC$3*NG24)/(1000) -> 0.525 | AF24: =($FX$3*HC24+$HY$3*JE24+$KA$3*LG24+$MC$3*NH24)/(1000) -> 0.875 | AG24: =($FX$3*GL24+$HY$3*IN24+$KA$3*KP24+$MC$3*MQ24)/(1000) -> 0.9618 | AH24: =AG24+AF24 -> 1.8368 | AI24: =AL24/1000*$AL$21 -> 0.5873287671 | AJ24: =AM24/1000*$AM$21 -> 0.05821917808 | AK24: =AN24/1000*$AN$21 -> 0 | AL24: =$AL$18 -> 587.3287671 | AM24: =$AN$18 -> 58.21917808 | AN24: =$AN$19 -> 0 | AP24: =AI24+AJ24 -> 0.6455479452 | AQ24: =AP24+AK24 -> 0.6455479452 | AR24: =AH24+V24 -> 3.1328 | BO24: =AL24/1000*$G24 -> 0 | BP24: =AM24/1000*$G24 -> 0 | BQ24: 0 | CB24: =CB$23*$E24*CB$21*CB$20 -> 0 | CC24: =CC$23*$E24*CC$21*CC$20 -> 0 | CD24: 0 | CE24: 0 | CF24: 0 | CG24: 0 | CH24: 0 | CI24: 0 | CJ24: =SUM(CB24:CI24) -> 0 | CK24: =CJ24*24/(MAX($CB$12,10)) -> 0 | CL24: ='PILP-laskin'!C27*$CB$11/$CB$10 -> 529.2 | CM24: =CK24+CL24 -> 529.2 | CN24: =CJ24*G24/1000 -> 0 | CO24: =CM24 -> 529.2 | FT24: =FT21 -> 2.5 | FU24: =FU21 -> 350 | FV24: =FU24*(FT24-1+1E-50) -> 525 | FW24: =FT24*FU24 -> 875 | FX24: 0 | FY24: =FT24 -> 2.5 | FZ24: 350 | GA24: 525 | GB24: 875 | GC24: =$GC$21 -> 0.5678571429 | GD24: =MAX($GD$21,GG24) -> 21 | GE24: =MAX(GD24-GA24/(1.2*$GA$14),GK24) -> 13.58474576 | GF24: =MAX(GE24-GC24*(GE24-GG24),$GI$17) -> 0 | GG24: =$C24 -> -20.5 | GH24: =MIN(GG24+$GA$14/$GA$15*(GE24-GF24),$GJ$17) -> -5.377358491 | GI24: =GH24+GB24/(1.2*$GA$15) -> 8.380503145 | GJ24: =MAX(GI24,$GL$17) -> 15 | GK24: =($FT$9=1)*$GH$17+($FT$9=0)*MAX($GH$17,GG24) -> 0 | GL24: =1.2*$GA$14*(GE24-GF24) -> 961.8 | GM24: =1.2*$GA$14*(GD24-B24) -> 2938.2 | GN24: =1.2*$GA$15*(GJ24-GI24) -> 421 | GO24: =GM24-GL24-GN24 -> 1555.4 | GP24: =$F24 -> 3660.3 | GQ24: =$CO24 -> 529.2 | GR24: =GP24+GO24 -> 5215.7 | GS24: =MIN(1/(GQ24/(GR24+1E-50)+1E-50),1) -> 1 | GT24: =GS24*GQ24 -> 529.2 | GU24: =($AN$21=1)*AN24+($AL$21=1)*AL24+($AM$21=1)*AM24 -> 645.5479452 | GV24: =MAX(GM24+GP24+GU24-GT24-GL24,1.2*$GA$15*($GL$17-GH24)) -> 5753.047945 | GW24: =MIN(FW24,GV24) -> 875 | GX24: =MIN(1.2*$GA$14*(GD24-GK24),FV24) -> 525 | GY24: =GW24/FY24 -> 350 | GZ24: =GX24/(FY24-1+1E-50) -> 350 | HA24: =HA$22*MIN(GY24:GZ24)+(1-HA$22)*FZ24 -> 350 | HB24: =HA24*(FY24-1) -> 525 | HC24: =HA24*FY24 -> 875 | HD24: =HA24/1000*$FX24 -> 0 | HE24: =HB24/1000*$FX24 -> 0 | HF24: =HC24/1000*$FX24 -> 0 | HG24: =(GV24-HC24) -> 4878.047945 | HH24: =GN24/1000*$FX24 -> 0 | HI24: =GT24/1000*$FX24 -> 0 | HJ24: =GV24/1000*$FX24 -> 0 | HK24: =(HG24>0)*HG24/1000*$FX24 -> 0 | HL24: =(GP24+GM24+GU24)/1000*$FX24 -> 0 | HM24: =MAX(1.2*$GA$15*(GJ24-GG24)-GL24,0) -> 1296 | HN24: =HB24/1000*$FX24 -> 0 | HP24: =GM24/1000*$FX24 -> 0 | HQ24: =(GM24-GL24)/1000*$FX24 -> 0 | HU24: =$HU$21 -> 2.5 | HV24: =$HV$21 -> 350 | HW24: =HV24*(HU24-1+1E-50) -> 525 | HX24: =HU24*HV24 -> 875 | HY24: 0 | HZ24: =HU24 -> 2.5 | IA24: 0 | IB24: 0 | IC24: 0 | ID24: =$ID$21 -> 0.5678571429 | IE24: =MAX($IE$21,IF24) -> 21 | IF24: =$C24 -> -20.5 | IG24: =MAX(IE24-ID24*(IE24-IF24),IL24) -> 0 | IH24: =IF24+$GA$14/$GA$15*(IE24-IG24) -> 2.877358491 | II24: =MAX(IG24-IA24*(HZ24-1)/(1.2*$GA$14),IM24) -> 0 | IJ24: =IH24+HZ24*IA24/(1.2*$GA$15) -> 2.877358491 | IK24: =MAX(IJ24,$IM$17) -> 15 | IL24: =$IJ$17 -> 0 | IM24: =($FT$9=1)*$II$17+($FT$9=0)*MAX($II$17,IF24) -> 0 | IN24: =1.2*$GA$14*(IE24-IG24) -> 1486.8 | IO24: =1.2*$GA$14*(IE24-B24) -> 2938.2 | IP24: =MAX(1.2*$GA$15*($IM$17-IJ24),0) -> 771 | IQ24: =IO24-IN24-IP24 -> 680.4 | IR24: =$F24 -> 3660.3 | IS24: =$CO24 -> 529.2 | IT24: =IR24+IQ24 -> 4340.7 | IU24: =MIN(1/(IS24/(IT24+1E-50)+1E-50),1) -> 1 | IV24: =IU24*IS24 -> 529.2 | IW24: =($AN$21=1)*AN24+($AL$21=1)*AL24+($AM$21=1)*AM24 -> 645.5479452 | IX24: =MAX(IO24+IR24+IW24-IV24-IN24,1.2*$GA$15*($IM$17-IH24)) -> 5228.047945 | IY24: 875 | IZ24: =MIN(1.2*$GA$14*(IG24-IM24),HW24) -> 0 | JA24: =IY24/HZ24 -> 350 | JB24: =IZ24/(HZ24-1+1E-50) -> 0 | JC24: =JC$22*MIN(JA24:JB24)+(1-JC$22)*IA24 -> 0 | JD24: =JC24*(HZ24-1) -> 0 | JE24: =JC24*HZ24 -> 0 | JF24: =JC24/1000*$HY24 -> 0 | JG24: =JD24/1000*$HY24 -> 0 | JH24: =JE24/1000*$HY24 -> 0 | JI24: =(IX24-JE24) -> 5228.047945 | JJ24: =IP24/1000*$HY24 -> 0 | JK24: =IV24/1000*$HY24 -> 0 | JL24: =IX24/1000*$HY24 -> 0 | JM24: =(JI24>0)*JI24/1000*$HY24 -> 0 | JN24: =(IR24+IO24+IW24)/1000*$HY24 -> 0 | JO24: =MAX(1.2*$GA$15*($IM$17-IF24)-IN24,0) -> 771 | JP24: =JD24/1000*$HY24 -> 0 | JR24: =IO24/1000*$HY24 -> 0 | JS24: =(IO24-IN24)/1000*$HY24 -> 0 | JW24: =$HU$21 -> 2.5 | JX24: =$HV$21 -> 350 | JY24: =JX24*(JW24-1+1E-50) -> 525 | JZ24: =JW24*JX24 -> 875 | KA24: 0 | KB24: =JW24 -> 2.5 | KC24: 0 | KD24: 0 | KE24: 0 | KF24: =$ID$21 -> 0.5678571429 | KG24: =MAX($KG$21,KH24) -> 21 | KH24: =$C24 -> -20.5 | KI24: =MAX(KG24-KF24*(KG24-KH24),KN24) -> 0 | KJ24: =KH24+$GA$14/$GA$15*(KG24-KI24) -> 2.877358491 | KK24: =MAX(KI24-KC24*(KB24-1)/(1.2*$GA$14),KO24) -> 0 | KL24: =KJ24+0*(KJ24+KB24*KC24/(1.2*$GA$15)) -> 2.877358491 | KM24: =MAX(KL24,$IM$17) -> 15 | KN24: =$IJ$17 -> 0 | KO24: =($FT$9=1)*$KK$17+($FT$9=0)*MAX($KK$17,KH24) -> 0 | KP24: =1.2*$GA$14*(KG24-KI24) -> 1486.8 | KQ24: =1.2*$GA$14*(KG24-B24) -> 2938.2 | KR24: =1.2*$GA$15*(KM24-KL24) -> 771 | KS24: =KQ24-KP24-KR24 -> 680.4 | KT24: =$F24 -> 3660.3 | KU24: =$CO24 -> 529.2 | KV24: =KT24+KS24 -> 4340.7 | KW24: =MIN(1/(KU24/(KV24+1E-50)+1E-50),1) -> 1 | KX24: =KW24*KU24 -> 529.2 | KY24: =($AN$21=1)*AN24+($AL$21=1)*AL24+($AM$21=1)*AM24 -> 645.5479452 | KZ24: =MAX(KQ24+KT24+KY24-KX24-KP24,1.2*$GA$15*($KO$17-KJ24)) -> 5228.047945 | LA24: =MIN(JZ24,KZ24-$KP$17*KR24) -> 875 | LB24: =MIN(1.2*$GA$14*(KI24-KO24),JY24) -> 0 | LC24: =LA24/KB24 -> 350 | LD24: =LB24/(KB24-1+1E-50) -> 0 | LE24: =LE$22*MIN(LC24:LD24)+(1-LE$22)*KC24 -> 0 | LF24: =LE24*(KB24-1) -> 0 | LG24: =LE24*KB24 -> 0 | LH24: =LE24/1000*$KA24 -> 0 | LI24: =LF24/1000*$KA24 -> 0 | LJ24: =LG24/1000*$KA24 -> 0 | LK24: =(KZ24-LG24) -> 5228.047945 | LL24: =KR24/1000*$KA24 -> 0 | LM24: =KX24/1000*$KA24 -> 0 | LN24: =KZ24/1000*$KA24 -> 0 | LO24: =(LK24>0)*LK24/1000*$KA24 -> 0 | LP24: =(KT24+KQ24+KY24)/1000*$KA24 -> 0 | LQ24: =MAX(1.2*$GA$15*($KO$17-KH24)-KP24,0) -> 771 | LR24: =LF24/1000*$KA24 -> 0 | LT24: =KQ24/1000*$KA24 -> 0 | LU24: =(KQ24-KP24)/1000*$KA24 -> 0 | LY24: =$LY$21 -> 2.5 | LZ24: =$LZ$21 -> 350 | MA24: =LZ24*(LY24-1+1E-50) -> 525 | MB24: =LY24*LZ24 -> 875 | MC24: 0 | MD24: =LY24 -> 2.5 | ME24: 350 | MF24: 525 | MG24: 875 | MH24: =$MH$21 -> 0.5678571429 | MI24: =MAX($MI$21,ML24) -> 21 | MJ24: =MAX(MI24-MF24/(1.2*$GA$14),MP24) -> 13.58474576 | MK24: =MAX(MJ24-MH24*(MJ24-ML24),$MN$17) -> 0 | ML24: =$C24 -> -20.5 | MM24: =MIN(ML24+$GA$14/$GA$15*(MJ24-MK24),$MO$17) -> -5.377358491 | MN24: =MM24+0*(MM24+MG24/(1.2*$GA$15)) -> -5.377358491 | MO24: =MAX(MN24,$MQ$17) -> 15 | MP24: =($FT$9=1)*$MM$17+($FT$9=0)*MAX($MM$17,ML24) -> 0 | MQ24: =1.2*$GA$14*(MJ24-MK24) -> 961.8 | MR24: =1.2*$GA$14*(MI24-B24) -> 2938.2 | MS24: =1.2*$GA$15*(MO24-MN24) -> 1296 | MT24: =MR24-MQ24-MS24 -> 680.4 | MU24: =$F24 -> 3660.3 | MV24: =$CO24 -> 529.2 | MW24: =MU24+MT24 -> 4340.7 | MX24: =MIN(1/(MV24/(MW24+1E-50)+1E-50),1) -> 1 | MY24: =MX24*MV24 -> 529.2 | MZ24: =($AN$21=1)*AN24+($AL$21=1)*AL24+($AM$21=1)*AM24 -> 645.5479452 | NA24: =MAX(MR24+MU24+MZ24-MY24-MQ24,1.2*$GA$15*($MQ$17-MM24)) -> 5753.047945 | NB24: =MIN(MB24,NA24-$MR$17*MS24) -> 875 | NC24: =MIN(1.2*$GA$14*(MI24-MP24),MA24) -> 525 | ND24: =NB24/MD24 -> 350 | NE24: =NC24/(MD24-1+1E-50) -> 350 | NF24: =NF$22*MIN(ND24:NE24)+(1-NF$22)*ME24 -> 350 | NG24: =NF24*(MD24-1) -> 525 | NH24: =NF24*MD24 -> 875 | NI24: =NF24/1000*$MC24 -> 0 | NJ24: =NG24/1000*$MC24 -> 0 | NK24: =NH24/1000*$MC24 -> 0 | NL24: =(NA24-NH24) -> 4878.047945 | NM24: =MS24/1000*$MC24 -> 0 | NN24: =MY24/1000*$MC24 -> 0 | NO24: =NA24/1000*$MC24 -> 0 | NP24: =(NL24>0)*NL24/1000*$MC24 -> 0 | NQ24: =(MU24+MR24+MZ24)/1000*$MC24 -> 0 | NR24: =MAX(1.2*$GA$15*($MQ$17-ML24)-MQ24,0) -> 1296 | NS24: =NG24/1000*$MC24 -> 0 | NT24: =(MU24+MR24+MZ24) -> 7244.047945 | NU24: =MR24/1000*$MC24 -> 0 | NV24: =(MR24-MQ24)/1000*$MC24 -> 0
A25: 0.0799086758 | B25: -20.5 | C25: =MAX($C$21*($C$19-B25)+B25,B25) -> -20.5 | F25: =$F$21*(J25-B25) -> 3660.3 | G25: =(A25-A24)/100*8760 -> 7 | H25: =F25/1000 -> 3.6603 | I25: =G25*(J25-B25) -> 290.5 | J25: =$FX$3*GD25+$HY$3*IE25+$KA$3*KG25+$MC$3*MI25 -> 21 | K25: =$FX$3*GE25+$HY$3*II25+$KA$3*KK25+$MC$3*MJ25 -> 13.58474576 | L25: =$FX$3*GF25+$HY$3*IG25+$KA$3*KI25+$MC$3*MK25 -> 0 | M25: =$FX$3*GG25+$HY$3*IF25+$KA$3*KH25+$MC$3*ML25 -> -20.5 | N25: =$FX$3*GH25+$HY$3*IH25+$KA$3*KJ25+$MC$3*MM25 -> -5.377358491 | O25: =$FX$3*GI25+$HY$3*IJ25+$KA$3*KL25+$MC$3*MN25 -> -5.377358491 | P25: =$FX$3*GJ25+$HY$3*IK25+$KA$3*KM25+$MC$3*MO25 -> 15 | Q25: =N25+AD25*1000/(1.2*$GA$15) -> 0.1257861635 | R25: =AF25*G25 -> 6.125 | S25: =X25*G25 -> 47.00393562 | T25: =M25+Y25*1000/(1.2*$GA$15) -> 93.40012492 | U25: =M25+X25*1000/(1.2*$GA$15) -> 85.07937021 | V25: =($FX$3*GN25+$HY$3*IP25+$KA$3*KR25+$MC$3*MS25)/(1000) -> 1.296 | W25: =Y25-AG25-AA25-AF25 -> 4.878047945 | X25: =MAX((Y25-AA25),AB25) -> 6.714847945 | Y25: =H25+Z25+AC25 -> 7.244047945 | Z25: =($FX$3*GM25+$HY$3*IO25+$KA$3*KQ25+$MC$3*MR25)/(1000) -> 2.9382 | AA25: =($FX$3*GT25+$HY$3*IV25+$KA$3*KX25+$MC$3*MY25)/(1000) -> 0.5292 | AB25: 5.753047945 | AC25: 0.6455479452 | AD25: 0.35 | AE25: 0.525 | AF25: 0.875 | AG25: =($FX$3*GL25+$HY$3*IN25+$KA$3*KP25+$MC$3*MQ25)/(1000) -> 0.9618 | AH25: =AG25+AF25 -> 1.8368 | AI25: =AL25/1000*$AL$21 -> 0.5873287671 | AJ25: =AM25/1000*$AM$21 -> 0.05821917808 | AK25: =AN25/1000*$AN$21 -> 0 | AL25: =$AL$18 -> 587.3287671 | AM25: =$AN$18 -> 58.21917808 | AN25: =$AN$19 -> 0 | AP25: =AI25+AJ25 -> 0.6455479452 | AQ25: =AP25+AK25 -> 0.6455479452 | AR25: =AH25+V25 -> 3.1328 | BO25: =AL25/1000*$G25 -> 4.11130137 | BP25: =AM25/1000*$G25 -> 0.4075342466 | BQ25: =AN25/1000*$G25 -> 0 | CB25: =CB$23*$E25*CB$21*CB$20 -> 0 | CC25: 0 | CD25: 0 | CE25: 0 | CF25: 0 | CG25: 0 | CH25: 0 | CI25: 0 | CJ25: =SUM(CB25:CI25) -> 0 | CK25: =CJ25*24/(MAX($CB$12,10)) -> 0 | CL25: =CL24 -> 529.2 | CM25: =CK25+CL25 -> 529.2 | CN25: =CJ25*G25/1000 -> 0 | CO25: =CM25 -> 529.2 | FT25: =FT24 -> 2.5 | FU25: =FU24 -> 350 | FV25: 525 | FW25: =FT25*FU25 -> 875 | FX25: 7 | FY25: =FT25 -> 2.5 | FZ25: 350 | GA25: 525 | GB25: 875 | GC25: =GC24 -> 0.5678571429 | GD25: =MAX($GD$21,GG25) -> 21 | GE25: =MAX(GD25-GA25/(1.2*$GA$14),GK25) -> 13.58474576 | GF25: 0 | GG25: =$C25 -> -20.5 | GH25: =MIN(GG25+$GA$14/$GA$15*(GE25-GF25),$GJ$17) -> -5.377358491 | GI25: =GH25+GB25/(1.2*$GA$15) -> 8.380503145 | GJ25: =MAX(GI25,$GL$17) -> 15 | GK25: =($FT$9=1)*$GH$17+($FT$9=0)*MAX($GH$17,GG25) -> 0 | GL25: =1.2*$GA$14*(GE25-GF25) -> 961.8 | GM25: =1.2*$GA$14*(GD25-B25) -> 2938.2 | GN25: =1.2*$GA$15*(GJ25-GI25) -> 421 | GO25: =GM25-GL25-GN25 -> 1555.4 | GP25: =$F25 -> 3660.3 | GQ25: =$CO25 -> 529.2 | GR25: =GP25+GO25 -> 5215.7 | GS25: =MIN(1/(GQ25/(GR25+1E-50)+1E-50),1) -> 1 | GT25: =GS25*GQ25 -> 529.2 | GU25: =($AN$21=1)*AN25+($AL$21=1)*AL25+($AM$21=1)*AM25 -> 645.5479452 | GV25: =MAX(GM25+GP25+GU25-GT25-GL25,1.2*$GA$15*($GL$17-GH25)) -> 5753.047945 | GW25: =MIN(FW25,GV25) -> 875 | GX25: =MIN(1.2*$GA$14*(GD25-GK25),FV25) -> 525 | GY25: 350 | GZ25: =GX25/(FY25-1+1E-50) -> 350 | HA25: =HA$22*MIN(GY25:GZ25)+(1-HA$22)*FZ25 -> 350 | HB25: 525 | HC25: 875 | HD25: 2.45 | HE25: =HB25/1000*$FX25 -> 3.675 | HF25: 6.125 | HG25: =(GV25-HC25) -> 4878.047945 | HH25: =GN25/1000*$FX25 -> 2.947 | HI25: =GT25/1000*$FX25 -> 3.7044 | HJ25: =GV25/1000*$FX25 -> 40.27133562 | HK25: =(HG25>0)*HG25/1000*$FX25 -> 34.14633562 | HL25: =(GP25+GM25+GU25)/1000*$FX25 -> 50.70833562 | HM25: =MAX(1.2*$GA$15*(GJ25-GG25)-GL25,0) -> 1296 | HN25: =HB25/1000*$FX25 -> 3.675 | HP25: =GM25/1000*$FX25 -> 20.5674 | HQ25: =(GM25-GL25)/1000*$FX25 -> 13.8348 | HU25: =HU24 -> 2.5 | HV25: =HV24 -> 350 | HW25: 525 | HX25: 875 | HY25: 7 | HZ25: =HU25 -> 2.5 | IA25: 0 | IB25: 0 | IC25: 0 | ID25: =ID24 -> 0.5678571429 | IE25: =MAX($IE$21,IF25) -> 21 | IF25: =$C25 -> -20.5 | IG25: =MAX(IE25-ID25*(IE25-IF25),IL25) -> 0 | IH25: =IF25+$GA$14/$GA$15*(IE25-IG25) -> 2.877358491 | II25: =MAX(IG25-IA25*(HZ25-1)/(1.2*$GA$14),IM25) -> 0 | IJ25: =IH25+HZ25*IA25/(1.2*$GA$15) -> 2.877358491 | IK25: =MAX(IJ25,$IM$17) -> 15 | IL25: =IL24 -> 0 | IM25: =($FT$9=1)*$II$17+($FT$9=0)*MAX($II$17,IF25) -> 0 | IN25: =1.2*$GA$14*(IE25-IG25) -> 1486.8 | IO25: =1.2*$GA$14*(IE25-B25) -> 2938.2 | IP25: 771 | IQ25: 680.4 | IR25: =$F25 -> 3660.3 | IS25: =$CO25 -> 529.2 | IT25: =IR25+IQ25 -> 4340.7 | IU25: =MIN(1/(IS25/(IT25+1E-50)+1E-50),1) -> 1 | IV25: =IU25*IS25 -> 529.2 | IW25: =($AN$21=1)*AN25+($AL$21=1)*AL25+($AM$21=1)*AM25 -> 645.5479452 | IX25: =MAX(IO25+IR25+IW25-IV25-IN25,1.2*$GA$15*($IM$17-IH25)) -> 5228.047945 | IY25: 875 | IZ25: =MIN(1.2*$GA$14*(IG25-IM25),HW25) -> 0 | JA25: =IY25/HZ25 -> 350 | JB25: =IZ25/(HZ25-1+1E-50) -> 0 | JC25: =JC$22*MIN(JA25:JB25)+(1-JC$22)*IA25 -> 0 | JD25: =JC25*(HZ25-1) -> 0 | JE25: =JC25*HZ25 -> 0 | JF25: =JC25/1000*$HY25 -> 0 | JG25: =JD25/1000*$HY25 -> 0 | JH25: =JE25/1000*$HY25 -> 0 | JI25: =(IX25-JE25) -> 5228.047945 | JJ25: =IP25/1000*$HY25 -> 5.397 | JK25: =IV25/1000*$HY25 -> 3.7044 | JL25: =IX25/1000*$HY25 -> 36.59633562 | JM25: =(JI25>0)*JI25/1000*$HY25 -> 36.59633562 | JN25: =(IR25+IO25+IW25)/1000*$HY25 -> 50.70833562 | JO25: =MAX(1.2*$GA$15*($IM$17-IF25)-IN25,0) -> 771 | JP25: =JD25/1000*$HY25 -> 0 | JR25: =IO25/1000*$HY25 -> 20.5674 | JS25: =(IO25-IN25)/1000*$HY25 -> 10.1598 | JW25: =JW24 -> 2.5 | JX25: =JX24 -> 350 | JY25: 525 | JZ25: 875 | KA25: 7 | KB25: =JW25 -> 2.5 | KC25: 0 | KD25: 0 | KE25: 0 | KF25: =KF24 -> 0.5678571429 | KG25: =MAX($KG$21,KH25) -> 21 | KH25: =$C25 -> -20.5 | KI25: =MAX(KG25-KF25*(KG25-KH25),KN25) -> 0 | KJ25: =KH25+$GA$14/$GA$15*(KG25-KI25) -> 2.877358491 | KK25: =MAX(KI25-KC25*(KB25-1)/(1.2*$GA$14),KO25) -> 0 | KL25: =KJ25+0*(KJ25+KB25*KC25/(1.2*$GA$15)) -> 2.877358491 | KM25: =MAX(KL25,$IM$17) -> 15 | KN25: =KN24 -> 0 | KO25: =($FT$9=1)*$KK$17+($FT$9=0)*MAX($KK$17,KH25) -> 0 | KP25: =1.2*$GA$14*(KG25-KI25) -> 1486.8 | KQ25: 2938.2 | KR25: =1.2*$GA$15*(KM25-KL25) -> 771 | KS25: =KQ25-KP25-KR25 -> 680.4 | KT25: =$F25 -> 3660.3 | KU25: =$CO25 -> 529.2 | KV25: =KT25+KS25 -> 4340.7 | KW25: =MIN(1/(KU25/(KV25+1E-50)+1E-50),1) -> 1 | KX25: =KW25*KU25 -> 529.2 | KY25: =($AN$21=1)*AN25+($AL$21=1)*AL25+($AM$21=1)*AM25 -> 645.5479452 | KZ25: 5228.047945 | LA25: =MIN(JZ25,KZ25-$KP$17*KR25) -> 875 | LB25: =MIN(1.2*$GA$14*(KI25-KO25),JY25) -> 0 | LC25: =LA25/KB25 -> 350 | LD25: =LB25/(KB25-1+1E-50) -> 0 | LE25: =LE$22*MIN(LC25:LD25)+(1-LE$22)*KC25 -> 0 | LF25: =LE25*(KB25-1) -> 0 | LG25: =LE25*KB25 -> 0 | LH25: =LE25/1000*$KA25 -> 0 | LI25: =LF25/1000*$KA25 -> 0 | LJ25: =LG25/1000*$KA25 -> 0 | LK25: =(KZ25-LG25) -> 5228.047945 | LL25: =KR25/1000*$KA25 -> 5.397 | LM25: =KX25/1000*$KA25 -> 3.7044 | LN25: =KZ25/1000*$KA25 -> 36.59633562 | LO25: =(LK25>0)*LK25/1000*$KA25 -> 36.59633562 | LP25: =(KT25+KQ25+KY25)/1000*$KA25 -> 50.70833562 | LQ25: =MAX(1.2*$GA$15*($KO$17-KH25)-KP25,0) -> 771 | LR25: =LF25/1000*$KA25 -> 0 | LT25: =KQ25/1000*$KA25 -> 20.5674 | LU25: =(KQ25-KP25)/1000*$KA25 -> 10.1598 | LY25: =LY24 -> 2.5 | LZ25: =LZ24 -> 350 | MA25: 525 | MB25: 875 | MC25: 7 | MD25: =LY25 -> 2.5 | ME25: 350 | MF25: 525 | MG25: 875 | MH25: =MH24 -> 0.5678571429 | MI25: =MAX($MI$21,ML25) -> 21 | MJ25: =MAX(MI25-MF25/(1.2*$GA$14),MP25) -> 13.58474576 | MK25: =MAX(MJ25-MH25*(MJ25-ML25),$MN$17) -> 0 | ML25: =$C25 -> -20.5 | MM25: =MIN(ML25+$GA$14/$GA$15*(MJ25-MK25),$MO$17) -> -5.377358491 | MN25: =MM25+0*(MM25+MG25/(1.2*$GA$15)) -> -5.377358491 | MO25: =MAX(MN25,$MQ$17) -> 15 | MP25: =($FT$9=1)*$MM$17+($FT$9=0)*MAX($MM$17,ML25) -> 0 | MQ25: 961.8 | MR25: =1.2*$GA$14*(MI25-B25) -> 2938.2 | MS25: =1.2*$GA$15*(MO25-MN25) -> 1296 | MT25: =MR25-MQ25-MS25 -> 680.4 | MU25: =$F25 -> 3660.3 | MV25: =$CO25 -> 529.2 | MW25: =MU25+MT25 -> 4340.7 | MX25: =MIN(1/(MV25/(MW25+1E-50)+1E-50),1) -> 1 | MY25: =MX25*MV25 -> 529.2 | MZ25: =($AN$21=1)*AN25+($AL$21=1)*AL25+($AM$21=1)*AM25 -> 645.5479452 | NA25: =MAX(MR25+MU25+MZ25-MY25-MQ25,1.2*$GA$15*($MQ$17-MM25)) -> 5753.047945 | NB25: =MIN(MB25,NA25-$MR$17*MS25) -> 875 | NC25: =MIN(1.2*$GA$14*(MI25-MP25),MA25) -> 525 | ND25: 350 | NE25: =NC25/(MD25-1+1E-50) -> 350 | NF25: =NF$22*MIN(ND25:NE25)+(1-NF$22)*ME25 -> 350 | NG25: 525 | NH25: 875 | NI25: =NF25/1000*$MC25 -> 2.45 | NJ25: =NG25/1000*$MC25 -> 3.675 | NK25: =NH25/1000*$MC25 -> 6.125 | NL25: =(NA25-NH25) -> 4878.047945 | NM25: =MS25/1000*$MC25 -> 9.072 | NN25: =MY25/1000*$MC25 -> 3.7044 | NO25: =NA25/1000*$MC25 -> 40.27133562 | NP25: =(NL25>0)*NL25/1000*$MC25 -> 34.14633562 | NQ25: =(MU25+MR25+MZ25)/1000*$MC25 -> 50.70833562 | NR25: =MAX(1.2*$GA$15*($MQ$17-ML25)-MQ25,0) -> 1296 | NS25: =NG25/1000*$MC25 -> 3.675 | NT25: =(MU25+MR25+MZ25) -> 7244.047945 | NU25: =MR25/1000*$MC25 -> 20.5674 | NV25: =(MR25-MQ25)/1000*$MC25 -> 13.8348
A26: 0.3310502283 | B26: -19.5 | C26: =MAX($C$21*($C$19-B26)+B26,B26) -> -19.5 | D26: 16.6 | E26: =D26/((A26-A25)/100*8760) -> 0.7545454545 | F26: 3572.1 | G26: =(A26-A25)/100*8760 -> 22 | H26: 3.5721 | I26: 891 | J26: 21 | K26: 13.58474576 | L26: 0 | M26: -19.5 | N26: -4.377358491 | O26: -4.377358491 | P26: 15 | Q26: 1.125786164 | R26: 19.25 | S26: 144.1186419 | T26: 91.90012492 | U26: 83.50074461 | V26: 1.2324 | W26: 4.714047357 | X26: 6.550847357 | Y26: 7.085047945 | Z26: 2.8674 | AA26: 0.5342005882 | AB26: 5.589047357 | AC26: 0.6455479452 | AD26: 0.35 | AE26: 0.525 | AF26: 0.875 | AG26: 0.9618 | AH26: 1.8368 | AI26: 0.5873287671 | AJ26: 0.05821917808 | AK26: 0 | AL26: 587.3287671 | AM26: 58.21917808 | AN26: 0 | AP26: 0.6455479452 | AQ26: 0.6455479452 | AR26: 3.0692 | BO26: 12.92123288 | BP26: 1.280821918 | BQ26: 0 | CB26: 0.6919193131 | CC26: 0 | CD26: 0.8087239676 | CE26: 0 | CF26: 2.690163827 | CG26: 0 | CH26: 0.8097811231 | CI26: 0 | CJ26: 5.000588231 | CK26: 5.000588231 | CL26: =CL25 -> 529.2 | CM26: 534.2005882 | CN26: 0.1100129411 | CO26: 534.2005882 | FT26: =FT25 -> 2.5 | FU26: =FU25 -> 350 | FV26: 525 | FW26: 875 | FX26: 22 | FY26: 2.5 | FZ26: 350 | GA26: 525 | GB26: 875 | GC26: =GC25 -> 0.5678571429 | GD26: 21 | GE26: 13.58474576 | GF26: 0 | GG26: -19.5 | GH26: -4.377358491 | GI26: 9.380503145 | GJ26: 15 | GK26: 0 | GL26: 961.8 | GM26: 2867.4 | GN26: 357.4 | GO26: 1548.2 | GP26: 3572.1 | GQ26: 534.2005882 | GR26: 5120.3 | GS26: 1 | GT26: 534.2005882 | GU26: 645.5479452 | GV26: 5589.047357 | GW26: 875 | GX26: =MIN(1.2*$GA$14*(GD26-GK26),FV26) -> 525 | GY26: 350 | GZ26: 350 | HA26: 350 | HB26: 525 | HC26: 875 | HD26: 7.7 | HE26: 11.55 | HF26: 19.25 | HG26: 4714.047357 | HH26: 7.8628 | HI26: 11.75241294 | HJ26: 122.9590419 | HK26: 103.7090419 | HL26: 155.8710548 | HM26: 1232.4 | HN26: 11.55 | HP26: 63.0828 | HQ26: 41.9232 | HU26: =HU25 -> 2.5 | HV26: 350 | HW26: 525 | HX26: 875 | HY26: 22 | HZ26: 2.5 | IA26: 0 | IB26: 0 | IC26: 0 | ID26: =ID25 -> 0.5678571429 | IE26: 21 | IF26: -19.5 | IG26: 0 | IH26: 3.877358491 | II26: 0 | IJ26: 3.877358491 | IK26: 15 | IL26: =IL25 -> 0 | IM26: 0 | IN26: 1486.8 | IO26: 2867.4 | IP26: 707.4 | IQ26: 673.2 | IR26: 3572.1 | IS26: 534.2005882 | IT26: 4245.3 | IU26: 1 | IV26: 534.2005882 | IW26: 645.5479452 | IX26: 5064.047357 | IY26: 875 | IZ26: 0 | JA26: 350 | JB26: 0 | JC26: 0 | JD26: 0 | JE26: 0 | JF26: 0 | JG26: 0 | JH26: 0 | JI26: 5064.047357 | JJ26: 15.5628 | JK26: 11.75241294 | JL26: 111.4090419 | JM26: 111.4090419 | JN26: 155.8710548 | JO26: 707.4 | JP26: 0 | JR26: 63.0828 | JS26: 30.3732 | JW26: =JW25 -> 2.5 | JX26: 350 | JY26: 525 | JZ26: 875 | KA26: 22 | KB26: 2.5 | KC26: 0 | KD26: 0 | KE26: 0 | KF26: =KF25 -> 0.5678571429 | KG26: 21 | KH26: -19.5 | KI26: 0 | KJ26: 3.877358491 | KK26: 0 | KL26: 3.877358491 | KM26: 15 | KN26: =KN25 -> 0 | KO26: 0 | KP26: 1486.8 | KQ26: 2867.4 | KR26: 707.4 | KS26: 673.2 | KT26: 3572.1 | KU26: 534.2005882 | KV26: 4245.3 | KW26: 1 | KX26: 534.2005882 | KY26: 645.5479452 | KZ26: 5064.047357 | LA26: 875 | LB26: 0 | LC26: 350 | LD26: 0 | LE26: 0 | LF26: 0 | LG26: 0 | LH26: 0 | LI26: 0 | LJ26: 0 | LK26: 5064.047357 | LL26: 15.5628 | LM26: 11.75241294 | LN26: 111.4090419 | LO26: 111.4090419 | LP26: 155.8710548 | LQ26: 707.4 | LR26: 0 | LT26: 63.0828 | LU26: 30.3732 | LY26: =LY25 -> 2.5 | LZ26: 350 | MA26: 525 | MB26: 875 | MC26: 22 | MD26: 2.5 | ME26: 350 | MF26: 525 | MG26: 875 | MH26: =MH25 -> 0.5678571429 | MI26: 21 | MJ26: 13.58474576 | MK26: 0 | ML26: -19.5 | MM26: -4.377358491 | MN26: -4.377358491 | MO26: 15 | MP26: 0 | MQ26: 961.8 | MR26: 2867.4 | MS26: 1232.4 | MT26: 673.2 | MU26: 3572.1 | MV26: 534.2005882 | MW26: 4245.3 | MX26: 1 | MY26: 534.2005882 | MZ26: 645.5479452 | NA26: 5589.047357 | NB26: 875 | NC26: 525 | ND26: 350 | NE26: 350 | NF26: 350 | NG26: 525 | NH26: 875 | NI26: 7.7 | NJ26: 11.55 | NK26: 19.25 | NL26: 4714.047357 | NM26: 27.1128 | NN26: 11.75241294 | NO26: 122.9590419 | NP26: 103.7090419 | NQ26: 155.8710548 | NR26: 1232.4 | NS26: 11.55 | NT26: 7085.047945 | NU26: 63.0828 | NV26: 41.9232
A27: 0.5593607306 | B27: -18.5 | C27: -18.5 | D27: 233.6 | E27: 11.68 | F27: 3483.9 | G27: =(A27-A26)/100*8760 -> 20 | H27: 3.4839 | I27: 790 | J27: 21 | K27: 13.58474576 | L27: 0 | M27: -18.5 | N27: -3.377358491 | O27: -3.377358491 | P27: 15 | Q27: 2.125786164 | R27: 17.5 | S27: 126.388825 | T27: 90.40012492 | U27: 80.86228379 | V27: 1.1688 | W27: 4.482641249 | X27: 6.319441249 | Y27: 6.926047945 | Z27: 2.7966 | AA27: 0.6066066959 | AB27: 5.357641249 | AC27: 0.6455479452 | AD27: 0.35 | AE27: 0.525 | AF27: 0.875 | AG27: 0.9618 | AH27: 1.8368 | AI27: 0.5873287671 | AJ27: 0.05821917808 | AK27: 0 | AL27: 587.3287671 | AM27: 58.21917808 | AN27: 0 | AP27: 0.6455479452 | AQ27: 0.6455479452 | AR27: 3.0056 | BO27: 11.74657534 | BP27: 1.164383562 | BQ27: 0 | CB27: 10.71057751 | CC27: 0 | CD27: 12.51865727 | CE27: 0 | CF27: 41.64243958 | CG27: 0 | CH27: 12.53502153 | CI27: 0 | CJ27: =SUM(CB27:CI27) -> 77.40669589 | CK27: 77.40669589 | CL27: 529.2 | CM27: 606.6066959 | CN27: =CJ27*G27/1000 -> 1.548133918 | CO27: 606.6066959 | FT27: 2.5 | FU27: 350 | FV27: 525 | FW27: 875 | FX27: 20 | FY27: 2.5 | FZ27: 350 | GA27: 525 | GB27: 875 | GC27: 0.5678571429 | GD27: 21 | GE27: 13.58474576 | GF27: 0 | GG27: -18.5 | GH27: -3.377358491 | GI27: 10.38050314 | GJ27: 15 | GK27: 0 | GL27: 961.8 | GM27: 2796.6 | GN27: 293.8 | GO27: 1541 | GP27: 3483.9 | GQ27: 606.6066959 | GR27: 5024.9 | GS27: 1 | GT27: 606.6066959 | GU27: 645.5479452 | GV27: 5357.641249 | GW27: 875 | GX27: 525 | GY27: 350 | GZ27: 350 | HA27: 350 | HB27: 525 | HC27: 875 | HD27: 7 | HE27: 10.5 | HF27: 17.5 | HG27: 4482.641249 | HH27: 5.876 | HI27: 12.13213392 | HJ27: 107.152825 | HK27: 89.65282499 | HL27: 138.5209589 | HM27: 1168.8 | HN27: 10.5 | HP27: 55.932 | HQ27: 36.696 | HU27: 2.5 | HV27: 350 | HW27: 525 | HX27: 875 | HY27: 20 | HZ27: 2.5 | IA27: 0 | IB27: 0 | IC27: 0 | ID27: 0.5678571429 | IE27: 21 | IF27: -18.5 | IG27: 0 | IH27: 4.877358491 | II27: 0 | IJ27: 4.877358491 | IK27: 15 | IL27: 0 | IM27: 0 | IN27: 1486.8 | IO27: 2796.6 | IP27: 643.8 | IQ27: 666 | IR27: 3483.9 | IS27: 606.6066959 | IT27: 4149.9 | IU27: 1 | IV27: 606.6066959 | IW27: 645.5479452 | IX27: 4832.641249 | IY27: 875 | IZ27: 0 | JA27: 350 | JB27: 0 | JC27: 0 | JD27: 0 | JE27: 0 | JF27: 0 | JG27: 0 | JH27: 0 | JI27: 4832.641249 | JJ27: 12.876 | JK27: 12.13213392 | JL27: 96.65282499 | JM27: 96.65282499 | JN27: 138.5209589 | JO27: 643.8 | JP27: 0 | JR27: 55.932 | JS27: 26.196 | JW27: =JW26 -> 2.5 | JX27: 350 | JY27: 525 | JZ27: 875 | KA27: 20 | KB27: 2.5 | KC27: 0 | KD27: 0 | KE27: 0 | KF27: =KF26 -> 0.5678571429 | KG27: 21 | KH27: -18.5 | KI27: 0 | KJ27: 4.877358491 | KK27: 0 | KL27: 4.877358491 | KM27: 15 | KN27: 0 | KO27: 0 | KP27: 1486.8 | KQ27: 2796.6 | KR27: 643.8 | KS27: 666 | KT27: 3483.9 | KU27: 606.6066959 | KV27: 4149.9 | KW27: 1 | KX27: 606.6066959 | KY27: 645.5479452 | KZ27: 4832.641249 | LA27: 875 | LB27: 0 | LC27: 350 | LD27: 0 | LE27: 0 | LF27: 0 | LG27: 0 | LH27: 0 | LI27: 0 | LJ27: 0 | LK27: 4832.641249 | LL27: 12.876 | LM27: 12.13213392 | LN27: 96.65282499 | LO27: 96.65282499 | LP27: 138.5209589 | LQ27: 643.8 | LR27: 0 | LT27: 55.932 | LU27: 26.196 | LY27: 2.5 | LZ27: 350 | MA27: 525 | MB27: 875 | MC27: 20 | MD27: 2.5 | ME27: 350 | MF27: 525 | MG27: 875 | MH27: 0.5678571429 | MI27: 21 | MJ27: 13.58474576 | MK27: 0 | ML27: -18.5 | MM27: -3.377358491 | MN27: -3.377358491 | MO27: 15 | MP27: 0 | MQ27: 961.8 | MR27: 2796.6 | MS27: 1168.8 | MT27: 666 | MU27: 3483.9 | MV27: 606.6066959 | MW27: 4149.9 | MX27: 1 | MY27: 606.6066959 | MZ27: 645.5479452 | NA27: 5357.641249 | NB27: 875 | NC27: 525 | ND27: 350 | NE27: 350 | NF27: 350 | NG27: 525 | NH27: 875 | NI27: 7 | NJ27: 10.5 | NK27: 17.5 | NL27: 4482.641249 | NM27: 23.376 | NN27: 12.13213392 | NO27: 107.152825 | NP27: 89.65282499 | NQ27: 138.5209589 | NR27: 1168.8 | NS27: 10.5 | NT27: 6926.047945 | NU27: 55.932 | NV27: 36.696
A28: 0.8333333333 | B28: -17.5 | C28: -17.5 | D28: 606.2 | E28: 25.25833333 | F28: 3395.7 | G28: =(A28-A27)/100*8760 -> 24 | H28: 3.3957 | I28: 924 | J28: 21 | K28: 13.58474576 | L28: 0 | M28: -17.5 | N28: -2.377358491 | O28: -2.377358491 | P28: 15 | Q28: 3.125786164 | R28: 21 | S28: 145.6908901 | T28: 88.90012492 | U28: 77.9473861 | V28: 1.1052 | W28: 4.233653756 | X28: 6.070453756 | Y28: 6.767047945 | Z28: 2.7258 | AA28: 0.696594189 | AB28: 5.108653756 | AC28: 0.6455479452 | AD28: 0.35 | AE28: 0.525 | AF28: 0.875 | AG28: 0.9618 | AH28: 1.8368 | AI28: 0.5873287671 | AJ28: 0.05821917808 | AK28: 0 | AL28: 587.3287671 | AM28: 58.21917808 | AN28: 0 | AP28: 0.6455479452 | AQ28: 0.6455479452 | AR28: 2.942 | BO28: 14.09589041 | BP28: 1.397260274 | BQ28: 0 | CB28: 23.16192954 | CC28: 0 | CD28: 27.07195362 | CE28: 0 | CF28: 90.05296402 | CG28: 0 | CH28: 27.10734179 | CI28: 0 | CJ28: 167.394189 | CK28: 167.394189 | CL28: 529.2 | CM28: 696.594189 | CN28: =CJ28*G28/1000 -> 4.017460535 | CO28: 696.594189 | FT28: 2.5 | FU28: 350 | FV28: 525 | FW28: 875 | FX28: 24 | FY28: 2.5 | FZ28: 350 | GA28: 525 | GB28: 875 | GC28: 0.5678571429 | GD28: 21 | GE28: 13.58474576 | GF28: 0 | GG28: -17.5 | GH28: -2.377358491 | GI28: 11.38050314 | GJ28: 15 | GK28: 0 | GL28: 961.8 | GM28: 2725.8 | GN28: 230.2 | GO28: 1533.8 | GP28: 3395.7 | GQ28: 696.594189 | GR28: 4929.5 | GS28: 1 | GT28: 696.594189 | GU28: 645.5479452 | GV28: 5108.653756 | GW28: 875 | GX28: 525 | GY28: 350 | GZ28: 350 | HA28: 350 | HB28: 525 | HC28: 875 | HD28: 8.4 | HE28: 12.6 | HF28: 21 | HG28: 4233.653756 | HH28: 5.5248 | HI28: 16.71826054 | HJ28: 122.6076901 | HK28: 101.6076901 | HL28: 162.4091507 | HM28: 1105.2 | HN28: 12.6 | HP28: 65.4192 | HQ28: 42.336 | HU28: 2.5 | HV28: 350 | HW28: 525 | HX28: 875 | HY28: 24 | HZ28: 2.5 | IA28: 0 | IB28: 0 | IC28: 0 | ID28: 0.5678571429 | IE28: 21 | IF28: -17.5 | IG28: 0 | IH28: 5.877358491 | II28: 0 | IJ28: 5.877358491 | IK28: 15 | IL28: 0 | IM28: 0 | IN28: 1486.8 | IO28: 2725.8 | IP28: 580.2 | IQ28: 658.8 | IR28: 3395.7 | IS28: 696.594189 | IT28: 4054.5 | IU28: 1 | IV28: 696.594189 | IW28: 645.5479452 | IX28: 4583.653756 | IY28: 875 | IZ28: 0 | JA28: 350 | JB28: 0 | JC28: 0 | JD28: 0 | JE28: 0 | JF28: 0 | JG28: 0 | JH28: 0 | JI28: 4583.653756 | JJ28: 13.9248 | JK28: 16.71826054 | JL28: 110.0076901 | JM28: 110.0076901 | JN28: 162.4091507 | JO28: 580.2 | JP28: 0 | JR28: 65.4192 | JS28: 29.736 | JW28: =JW27 -> 2.5 | JX28: 350 | JY28: 525 | JZ28: 875 | KA28: 24 | KB28: 2.5 | KC28: 0 | KD28: 0 | KE28: 0 | KF28: =KF27 -> 0.5678571429 | KG28: 21 | KH28: -17.5 | KI28: 0 | KJ28: 5.877358491 | KK28: 0 | KL28: 5.877358491 | KM28: 15 | KN28: 0 | KO28: 0 | KP28: 1486.8 | KQ28: 2725.8 | KR28: 580.2 | KS28: 658.8 | KT28: 3395.7 | KU28: 696.594189 | KV28: 4054.5 | KW28: 1 | KX28: 696.594189 | KY28: 645.5479452 | KZ28: 4583.653756 | LA28: 875 | LB28: 0 | LC28: 350 | LD28: 0 | LE28: 0 | LF28: 0 | LG28: 0 | LH28: 0 | LI28: 0 | LJ28: 0 | LK28: 4583.653756 | LL28: 13.9248 | LM28: 16.71826054 | LN28: 110.0076901 | LO28: 110.0076901 | LP28: 162.4091507 | LQ28: 580.2 | LR28: 0 | LT28: 65.4192 | LU28: 29.736 | LY28: 2.5 | LZ28: 350 | MA28: 525 | MB28: 875 | MC28: 24 | MD28: 2.5 | ME28: 350 | MF28: 525 | MG28: 875 | MH28: 0.5678571429 | MI28: 21 | MJ28: 13.58474576 | MK28: 0 | ML28: -17.5 | MM28: -2.377358491 | MN28: -2.377358491 | MO28: 15 | MP28: 0 | MQ28: 961.8 | MR28: 2725.8 | MS28: 1105.2 | MT28: 658.8 | MU28: 3395.7 | MV28: 696.594189 | MW28: 4054.5 | MX28: 1 | MY28: 696.594189 | MZ28: 645.5479452 | NA28: 5108.653756 | NB28: 875 | NC28: 525 | ND28: 350 | NE28: 350 | NF28: 350 | NG28: 525 | NH28: 875 | NI28: 8.4 | NJ28: 12.6 | NK28: 21 | NL28: 4233.653756 | NM28: 26.5248 | NN28: 16.71826054 | NO28: 122.6076901 | NP28: 101.6076901 | NQ28: 162.4091507 | NR28: 1105.2 | NS28: 12.6 | NT28: 6767.047945 | NU28: 65.4192 | NV28: 42.336
A29: 1.198630137 | B29: -16.5 | C29: -16.5 | D29: 1735 | E29: 54.21875 | F29: =$F$21*(J29-B29) -> 3307.5 | G29: 32 | H29: 3.3075 | I29: 1200 | J29: 21 | K29: 13.58474576 | L29: 0 | M29: -16.5 | N29: -1.377358491 | O29: -1.377358491 | P29: 15 | Q29: 4.125786164 | R29: 28 | S29: 183.0247937 | T29: 87.40012492 | U29: 73.42963528 | V29: 1.0416 | W29: 3.882724804 | X29: 5.719524804 | Y29: 6.608047945 | Z29: 2.655 | AA29: 0.8885231415 | AB29: 4.757724804 | AC29: 0.6455479452 | AD29: 0.35 | AE29: 0.525 | AF29: 0.875 | AG29: 0.9618 | AH29: 1.8368 | AI29: 0.5873287671 | AJ29: 0.05821917808 | AK29: 0 | AL29: 587.3287671 | AM29: 58.21917808 | AN29: 0 | AP29: 0.6455479452 | AQ29: 0.6455479452 | AR29: 2.8784 | BO29: 18.79452055 | BP29: 1.863013699 | BQ29: 0 | CB29: 49.71867504 | CC29: 0 | CD29: 58.1118107 | CE29: 0 | CF29: 193.3048819 | CG29: 0 | CH29: 58.18777385 | CI29: 0 | CJ29: 359.3231415 | CK29: 359.3231415 | CL29: 529.2 | CM29: 888.5231415 | CN29: =CJ29*G29/1000 -> 11.49834053 | CO29: 888.5231415 | FT29: 2.5 | FU29: 350 | FV29: 525 | FW29: 875 | FX29: 32 | FY29: 2.5 | FZ29: 350 | GA29: 525 | GB29: 875 | GC29: 0.5678571429 | GD29: 21 | GE29: 13.58474576 | GF29: 0 | GG29: -16.5 | GH29: -1.377358491 | GI29: 12.38050314 | GJ29: 15 | GK29: 0 | GL29: 961.8 | GM29: 2655 | GN29: 166.6 | GO29: 1526.6 | GP29: 3307.5 | GQ29: 888.5231415 | GR29: 4834.1 | GS29: 1 | GT29: 888.5231415 | GU29: 645.5479452 | GV29: 4757.724804 | GW29: 875 | GX29: 525 | GY29: 350 | GZ29: 350 | HA29: 350 | HB29: 525 | HC29: 875 | HD29: 11.2 | HE29: 16.8 | HF29: 28 | HG29: 3882.724804 | HH29: 5.3312 | HI29: 28.43274053 | HJ29: 152.2471937 | HK29: 124.2471937 | HL29: 211.4575342 | HM29: 1041.6 | HN29: 16.8 | HP29: 84.96 | HQ29: 54.1824 | HU29: 2.5 | HV29: 350 | HW29: 525 | HX29: 875 | HY29: 32 | HZ29: 2.5 | IA29: 0 | IB29: 0 | IC29: 0 | ID29: 0.5678571429 | IE29: 21 | IF29: -16.5 | IG29: 0 | IH29: 6.877358491 | II29: 0 | IJ29: 6.877358491 | IK29: 15 | IL29: 0 | IM29: 0 | IN29: 1486.8 | IO29: 2655 | IP29: 516.6 | IQ29: 651.6 | IR29: 3307.5 | IS29: 888.5231415 | IT29: 3959.1 | IU29: 1 | IV29: 888.5231415 | IW29: 645.5479452 | IX29: 4232.724804 | IY29: 875 | IZ29: 0 | JA29: 350 | JB29: 0 | JC29: 0 | JD29: 0 | JE29: 0 | JF29: 0 | JG29: 0 | JH29: 0 | JI29: 4232.724804 | JJ29: 16.5312 | JK29: 28.43274053 | JL29: 135.4471937 | JM29: 135.4471937 | JN29: 211.4575342 | JO29: 516.6 | JP29: 0 | JR29: 84.96 | JS29: 37.3824 | JW29: =JW28 -> 2.5 | JX29: 350 | JY29: 525 | JZ29: 875 | KA29: 32 | KB29: 2.5 | KC29: 0 | KD29: 0 | KE29: 0 | KF29: =KF28 -> 0.5678571429 | KG29: 21 | KH29: -16.5 | KI29: 0 | KJ29: 6.877358491 | KK29: 0 | KL29: 6.877358491 | KM29: 15 | KN29: 0 | KO29: 0 | KP29: 1486.8 | KQ29: 2655 | KR29: 516.6 | KS29: 651.6 | KT29: 3307.5 | KU29: 888.5231415 | KV29: 3959.1 | KW29: 1 | KX29: 888.5231415 | KY29: 645.5479452 | KZ29: 4232.724804 | LA29: 875 | LB29: 0 | LC29: 350 | LD29: 0 | LE29: 0 | LF29: 0 | LG29: 0 | LH29: 0 | LI29: 0 | LJ29: 0 | LK29: 4232.724804 | LL29: 16.5312 | LM29: 28.43274053 | LN29: 135.4471937 | LO29: 135.4471937 | LP29: 211.4575342 | LQ29: 516.6 | LR29: 0 | LT29: 84.96 | LU29: 37.3824 | LY29: 2.5 | LZ29: 350 | MA29: 525 | MB29: 875 | MC29: 32 | MD29: 2.5 | ME29: 350 | MF29: 525 | MG29: 875 | MH29: 0.5678571429 | MI29: 21 | MJ29: 13.58474576 | MK29: 0 | ML29: -16.5 | MM29: -1.377358491 | MN29: -1.377358491 | MO29: 15 | MP29: 0 | MQ29: 961.8 | MR29: 2655 | MS29: 1041.6 | MT29: 651.6 | MU29: 3307.5 | MV29: 888.5231415 | MW29: 3959.1 | MX29: 1 | MY29: 888.5231415 | MZ29: 645.5479452 | NA29: 4757.724804 | NB29: 875 | NC29: 525 | ND29: 350 | NE29: 350 | NF29: 350 | NG29: 525 | NH29: 875 | NI29: 11.2 | NJ29: 16.8 | NK29: 28 | NL29: 3882.724804 | NM29: 33.3312 | NN29: 28.43274053 | NO29: 152.2471937 | NP29: 124.2471937 | NQ29: 211.4575342 | NR29: 1041.6 | NS29: 16.8 | NT29: 6608.047945 | NU29: 84.96 | NV29: 54.1824
A30: 1.872146119 | B30: -15.5 | C30: -15.5 | D30: 2486.7 | E30: 42.14745763 | F30: 3219.3 | G30: 59 | H30: 3.2193 | I30: 2153.5 | J30: 21 | K30: 13.58474576 | L30: 0 | M30: -15.5 | N30: -0.3773584906 | O30: -0.3773584906 | P30: 15 | Q30: 5.125786164 | R30: 51.625 | S30: 332.7909576 | T30: 85.90012492 | U30: 73.18749538 | V30: 0.978 | W30: 3.803724706 | X30: 5.640524706 | Y30: 6.449047945 | Z30: 2.5842 | AA30: 0.8085232393 | AB30: 4.678724706 | AC30: 0.6455479452 | AD30: 0.35 | AE30: 0.525 | AF30: 0.875 | AG30: 0.9618 | AH30: 1.8368 | AI30: 0.5873287671 | AJ30: 0.05821917808 | AK30: 0 | AL30: 587.3287671 | AM30: 58.21917808 | AN30: 0 | AP30: 0.6455479452 | AQ30: 0.6455479452 | AR30: 2.8148 | BO30: 34.65239726 | BP30: 3.434931507 | BQ30: 0 | CB30: 38.64928183 | CC30: 0 | CD30: 45.17376514 | CE30: 0 | CF30: 150.2673765 | CG30: 0 | CH30: 45.23281582 | CI30: 0 | CJ30: 279.3232393 | CK30: 279.3232393 | CL30: 529.2 | CM30: 808.5232393 | CN30: 16.48007112 | CO30: 808.5232393 | FT30: 2.5 | FU30: 350 | FV30: 525 | FW30: 875 | FX30: 59 | FY30: 2.5 | FZ30: 350 | GA30: 525 | GB30: 875 | GC30: 0.5678571429 | GD30: 21 | GE30: 13.58474576 | GF30: 0 | GG30: -15.5 | GH30: -0.3773584906 | GI30: 13.38050314 | GJ30: 15 | GK30: 0 | GL30: 961.8 | GM30: 2584.2 | GN30: 103 | GO30: 1519.4 | GP30: 3219.3 | GQ30: 808.5232393 | GR30: 4738.7 | GS30: 1 | GT30: 808.5232393 | GU30: 645.5479452 | GV30: 4678.724706 | GW30: 875 | GX30: 525 | GY30: 350 | GZ30: 350 | HA30: 350 | HB30: 525 | HC30: 875 | HD30: 20.65 | HE30: 30.975 | HF30: 51.625 | HG30: 3803.724706 | HH30: 6.077 | HI30: 47.70287112 | HJ30: 276.0447576 | HK30: 224.4197576 | HL30: 380.4938288 | HM30: 978 | HN30: 30.975 | HP30: 152.4678 | HQ30: 95.7216 | HU30: 2.5 | HV30: 350 | HW30: 525 | HX30: 875 | HY30: 59 | HZ30: 2.5 | IA30: 12.89571429 | IB30: 19.34357143 | IC30: 32.23928571 | ID30: 0.5678571429 | IE30: 21 | IF30: -15.5 | IG30: 0.2732142857 | IH30: 7.573214286 | II30: 0 | IJ30: 8.080121294 | IK30: 15 | IL30: 0 | IM30: 0 | IN30: 1467.456429 | IO30: 2584.2 | IP30: 440.1042857 | IQ30: 676.6392857 | IR30: 3219.3 | IS30: 808.5232393 | IT30: 3895.939286 | IU30: 1 | IV30: 808.5232393 | IW30: 645.5479452 | IX30: 4173.068277 | IY30: 875 | IZ30: 19.34357143 | JA30: 350 | JB30: 12.89571429 | JC30: 12.89571429 | JD30: 19.34357143 | JE30: 32.23928571 | JF30: 0.7608471429 | JG30: 1.141270714 | JH30: 1.902117857 | JI30: 4140.828992 | JJ30: 25.96615286 | JK30: 47.70287112 | JL30: 246.2110284 | JM30: 244.3089105 | JN30: 380.4938288 | JO30: 472.3435714 | JP30: 1.141270714 | JR30: 152.4678 | JS30: 65.88787071 | JW30: =JW29 -> 2.5 | JX30: 350 | JY30: 525 | JZ30: 875 | KA30: 59 | KB30: 2.5 | KC30: 12.89571429 | KD30: 19.34357143 | KE30: 32.23928571 | KF30: =KF29 -> 0.5678571429 | KG30: 21 | KH30: -15.5 | KI30: 0.2732142857 | KJ30: 7.573214286 | KK30: 0 | KL30: 7.573214286 | KM30: 15 | KN30: 0 | KO30: 0 | KP30: 1467.456429 | KQ30: 2584.2 | KR30: 472.3435714 | KS30: 644.4 | KT30: 3219.3 | KU30: 808.5232393 | KV30: 3863.7 | KW30: 1 | KX30: 808.5232393 | KY30: 645.5479452 | KZ30: 4173.068277 | LA30: 875 | LB30: 19.34357143 | LC30: 350 | LD30: 12.89571429 | LE30: 12.89571429 | LF30: 19.34357143 | LG30: 32.23928571 | LH30: 0.7608471429 | LI30: 1.141270714 | LJ30: 1.902117857 | LK30: 4140.828992 | LL30: 27.86827071 | LM30: 47.70287112 | LN30: 246.2110284 | LO30: 244.3089105 | LP30: 380.4938288 | LQ30: 472.3435714 | LR30: 1.141270714 | LT30: 152.4678 | LU30: 65.88787071 | LY30: 2.5 | LZ30: 350 | MA30: 525 | MB30: 875 | MC30: 59 | MD30: 2.5 | ME30: 350 | MF30: 525 | MG30: 875 | MH30: 0.5678571429 | MI30: 21 | MJ30: 13.58474576 | MK30: 0 | ML30: -15.5 | MM30: -0.3773584906 | MN30: -0.3773584906 | MO30: 15 | MP30: 0 | MQ30: 961.8 | MR30: 2584.2 | MS30: 978 | MT30: 644.4 | MU30: 3219.3 | MV30: 808.5232393 | MW30: 3863.7 | MX30: 1 | MY30: 808.5232393 | MZ30: 645.5479452 | NA30: 4678.724706 | NB30: 875 | NC30: 525 | ND30: 350 | NE30: 350 | NF30: 350 | NG30: 525 | NH30: 875 | NI30: 20.65 | NJ30: 30.975 | NK30: 51.625 | NL30: 3803.724706 | NM30: 57.702 | NN30: 47.70287112 | NO30: 276.0447576 | NP30: 224.4197576 | NQ30: 380.4938288 | NR30: 978 | NS30: 30.975 | NT30: 6449.047945 | NU30: 152.4678 | NV30: 95.7216
A31: 2.762557078 | B31: -14.5 | C31: -14.5 | D31: 686.5 | E31: 8.801282051 | F31: 3131.1 | G31: 78 | H31: 3.1311 | I31: 2769 | J31: 21 | K31: 13.58474576 | L31: 0 | M31: -14.5 | N31: 0.6226415094 | O31: 0.6226415094 | P31: 15 | Q31: 6.125786164 | R31: 68.25 | S31: 444.7965082 | T31: 84.40012492 | U31: 75.1622537 | V31: 0.9144 | W31: 3.865719335 | X31: 5.702519335 | Y31: 6.290047945 | Z31: 2.5134 | AA31: 0.5875286099 | AB31: 4.740719335 | AC31: 0.6455479452 | AD31: 0.35 | AE31: 0.525 | AF31: 0.875 | AG31: 0.9618 | AH31: 1.8368 | AI31: 0.5873287671 | AJ31: 0.05821917808 | AK31: 0 | AL31: 587.3287671 | AM31: 58.21917808 | AN31: 0 | AP31: 0.6455479452 | AQ31: 0.6455479452 | AR31: 2.7512 | BO31: 45.81164384 | BP31: 4.54109589 | BQ31: 0 | CB31: 8.070788836 | CC31: 0 | CD31: 9.433239174 | CE31: 0 | CF31: 31.37901165 | CG31: 0 | CH31: 9.445570205 | CI31: 0 | CJ31: 58.32860986 | CK31: 58.32860986 | CL31: 529.2 | CM31: 587.5286099 | CN31: 4.549631569 | CO31: 587.5286099 | FT31: 2.5 | FU31: 350 | FV31: 525 | FW31: 875 | FX31: 78 | FY31: 2.5 | FZ31: 350 | GA31: 525 | GB31: 875 | GC31: 0.5678571429 | GD31: 21 | GE31: 13.58474576 | GF31: 0 | GG31: -14.5 | GH31: 0.6226415094 | GI31: 14.38050314 | GJ31: 15 | GK31: 0 | GL31: 961.8 | GM31: 2513.4 | GN31: 39.4 | GO31: 1512.2 | GP31: 3131.1 | GQ31: 587.5286099 | GR31: 4643.3 | GS31: 1 | GT31: 587.5286099 | GU31: 645.5479452 | GV31: 4740.719335 | GW31: 875 | GX31: 525 | GY31: 350 | GZ31: 350 | HA31: 350 | HB31: 525 | HC31: 875 | HD31: 27.3 | HE31: 40.95 | HF31: 68.25 | HG31: 3865.719335 | HH31: 3.0732 | HI31: 45.82723157 | HJ31: 369.7761082 | HK31: 301.5261082 | HL31: 490.6237397 | HM31: 914.4 | HN31: 40.95 | HP31: 196.0452 | HQ31: 121.0248 | HU31: 2.5 | HV31: 350 | HW31: 525 | HX31: 875 | HY31: 78 | HZ31: 2.5 | IA31: 39.69857143 | IB31: 59.54785714 | IC31: 99.24642857 | ID31: 0.5678571429 | IE31: 21 | IF31: -14.5 | IG31: 0.8410714286 | IH31: 7.941071429 | II31: 1.110223025e-16 | IJ31: 9.501549865 | IK31: 15 | IL31: 0 | IM31: 0 | IN31: 1427.252143 | IO31: 2513.4 | IP31: 349.7014286 | IQ31: 736.4464286 | IR31: 3131.1 | IS31: 587.5286099 | IT31: 3867.546429 | IU31: 1 | IV31: 587.5286099 | IW31: 645.5479452 | IX31: 4275.267192 | IY31: 875 | IZ31: 59.54785714 | JA31: 350 | JB31: 39.69857143 | JC31: 39.69857143 | JD31: 59.54785714 | JE31: 99.24642857 | JF31: 3.096488571 | JG31: 4.644732857 | JH31: 7.741221429 | JI31: 4176.020764 | JJ31: 27.27671143 | JK31: 45.82723157 | JL31: 333.470841 | JM31: 325.7296196 | JN31: 490.6237397 | JO31: 448.9478571 | JP31: 4.644732857 | JR31: 196.0452 | JS31: 84.71953286 | JW31: =JW30 -> 2.5 | JX31: 350 | JY31: 525 | JZ31: 875 | KA31: 78 | KB31: 2.5 | KC31: 39.69857143 | KD31: 59.54785714 | KE31: 99.24642857 | KF31: =KF30 -> 0.5678571429 | KG31: 21 | KH31: -14.5 | KI31: 0.8410714286 | KJ31: 7.941071429 | KK31: 1.110223025e-16 | KL31: 7.941071429 | KM31: 15 | KN31: 0 | KO31: 0 | KP31: 1427.252143 | KQ31: 2513.4 | KR31: 448.9478571 | KS31: 637.2 | KT31: 3131.1 | KU31: 587.5286099 | KV31: 3768.3 | KW31: 1 | KX31: 587.5286099 | KY31: 645.5479452 | KZ31: 4275.267192 | LA31: 875 | LB31: 59.54785714 | LC31: 350 | LD31: 39.69857143 | LE31: 39.69857143 | LF31: 59.54785714 | LG31: 99.24642857 | LH31: 3.096488571 | LI31: 4.644732857 | LJ31: 7.741221429 | LK31: 4176.020764 | LL31: 35.01793286 | LM31: 45.82723157 | LN31: 333.470841 | LO31: 325.7296196 | LP31: 490.6237397 | LQ31: 448.9478571 | LR31: 4.644732857 | LT31: 196.0452 | LU31: 84.71953286 | LY31: 2.5 | LZ31: 350 | MA31: 525 | MB31: 875 | MC31: 78 | MD31: 2.5 | ME31: 350 | MF31: 525 | MG31: 875 | MH31: 0.5678571429 | MI31: 21 | MJ31: 13.58474576 | MK31: 0 | ML31: -14.5 | MM31: 0.6226415094 | MN31: 0.6226415094 | MO31: 15 | MP31: 0 | MQ31: 961.8 | MR31: 2513.4 | MS31: 914.4 | MT31: 637.2 | MU31: 3131.1 | MV31: 587.5286099 | MW31: 3768.3 | MX31: 1 | MY31: 587.5286099 | MZ31: 645.5479452 | NA31: 4740.719335 | NB31: 875 | NC31: 525 | ND31: 350 | NE31: 350 | NF31: 350 | NG31: 525 | NH31: 875 | NI31: 27.3 | NJ31: 40.95 | NK31: 68.25 | NL31: 3865.719335 | NM31: 71.3232 | NN31: 45.82723157 | NO31: 369.7761082 | NP31: 301.5261082 | NQ31: 490.6237397 | NR31: 914.4 | NS31: 40.95 | NT31: 6290.047945 | NU31: 196.0452 | NV31: 121.0248
A32: 3.550228311 | B32: -13.5 | C32: -13.5 | D32: 983.2 | E32: 14.24927536 | F32: 3042.9 | G32: 69 | H32: 3.0429 | I32: 2380.5 | J32: 21 | K32: 13.58474576 | L32: 0 | M32: -13.5 | N32: 1.622641509 | O32: 1.622641509 | P32: 15 | Q32: 7.125786164 | R32: 60.375 | S32: 380.011561 | T32: 82.90012492 | U32: 73.09455861 | V32: 0.8508 | W32: 3.670613928 | X32: 5.507413928 | Y32: 6.131047945 | Z32: 2.4426 | AA32: 0.6236340175 | AB32: 4.545613928 | AC32: 0.6455479452 | AD32: 0.35 | AE32: 0.525 | AF32: 0.875 | AG32: 0.9618 | AH32: 1.8368 | AI32: 0.5873287671 | AJ32: 0.05821917808 | AK32: 0 | AL32: 587.3287671 | AM32: 58.21917808 | AN32: 0 | AP32: 0.6455479452 | AQ32: 0.6455479452 | AR32: 2.6876 | BO32: 40.52568493 | BP32: 4.017123288 | BQ32: 0 | CB32: 13.06660687 | CC32: 0 | CD32: 15.27241392 | CE32: 0 | CF32: 50.80261886 | CG32: 0 | CH32: 15.29237786 | CI32: 0 | CJ32: 94.43401752 | CK32: 94.43401752 | CL32: 529.2 | CM32: 623.6340175 | CN32: 6.515947209 | CO32: 623.6340175 | FT32: 2.5 | FU32: 350 | FV32: 525 | FW32: 875 | FX32: 69 | FY32: 2.5 | FZ32: 350 | GA32: 525 | GB32: 875 | GC32: 0.5678571429 | GD32: 21 | GE32: 13.58474576 | GF32: 0 | GG32: -13.5 | GH32: 1.622641509 | GI32: 15.38050314 | GJ32: 15.38050314 | GK32: 0 | GL32: 961.8 | GM32: 2442.6 | GN32: 0 | GO32: 1480.8 | GP32: 3042.9 | GQ32: 623.6340175 | GR32: 4523.7 | GS32: 1 | GT32: 623.6340175 | GU32: 645.5479452 | GV32: 4545.613928 | GW32: 875 | GX32: 525 | GY32: 350 | GZ32: 350 | HA32: 350 | HB32: 525 | HC32: 875 | HD32: 24.15 | HE32: 36.225 | HF32: 60.375 | HG32: 3670.613928 | HH32: 0 | HI32: 43.03074721 | HJ32: 313.647361 | HK32: 253.272361 | HL32: 423.0423082 | HM32: 875 | HN32: 36.225 | HP32: 168.5394 | HQ32: 102.1752 | HU32: 2.5 | HV32: 350 | HW32: 525 | HX32: 875 | HY32: 69 | HZ32: 2.5 | IA32: 66.50142857 | IB32: 99.75214286 | IC32: 166.2535714 | ID32: 0.5678571429 | IE32: 21 | IF32: -13.5 | IG32: 1.408928571 | IH32: 8.308928571 | II32: 0 | IJ32: 10.92297844 | IK32: 15 | IL32: 0 | IM32: 0 | IN32: 1387.047857 | IO32: 2442.6 | IP32: 259.2985714 | IQ32: 796.2535714 | IR32: 3042.9 | IS32: 623.6340175 | IT32: 3839.153571 | IU32: 1 | IV32: 623.6340175 | IW32: 645.5479452 | IX32: 4120.366071 | IY32: 875 | IZ32: 99.75214286 | JA32: 350 | JB32: 66.50142857 | JC32: 66.50142857 | JD32: 99.75214286 | JE32: 166.2535714 | JF32: 4.588598571 | JG32: 6.882897857 | JH32: 11.47149643 | JI32: 3954.112499 | JJ32: 17.89160143 | JK32: 43.03074721 | JL32: 284.3052589 | JM32: 272.8337624 | JN32: 423.0423082 | JO32: 425.5521429 | JP32: 6.882897857 | JR32: 168.5394 | JS32: 72.83309786 | JW32: =JW31 -> 2.5 | JX32: 350 | JY32: 525 | JZ32: 875 | KA32: 69 | KB32: 2.5 | KC32: 66.50142857 | KD32: 99.75214286 | KE32: 166.2535714 | KF32: =KF31 -> 0.5678571429 | KG32: 21 | KH32: -13.5 | KI32: 1.408928571 | KJ32: 8.308928571 | KK32: 0 | KL32: 8.308928571 | KM32: 15 | KN32: 0 | KO32: 0 | KP32: 1387.047857 | KQ32: 2442.6 | KR32: 425.5521429 | KS32: 630 | KT32: 3042.9 | KU32: 623.6340175 | KV32: 3672.9 | KW32: 1 | KX32: 623.6340175 | KY32: 645.5479452 | KZ32: 4120.366071 | LA32: 875 | LB32: 99.75214286 | LC32: 350 | LD32: 66.50142857 | LE32: 66.50142857 | LF32: 99.75214286 | LG32: 166.2535714 | LH32: 4.588598571 | LI32: 6.882897857 | LJ32: 11.47149643 | LK32: 3954.112499 | LL32: 29.36309786 | LM32: 43.03074721 | LN32: 284.3052589 | LO32: 272.8337624 | LP32: 423.0423082 | LQ32: 425.5521429 | LR32: 6.882897857 | LT32: 168.5394 | LU32: 72.83309786 | LY32: 2.5 | LZ32: 350 | MA32: 525 | MB32: 875 | MC32: 69 | MD32: 2.5 | ME32: 350 | MF32: 525 | MG32: 875 | MH32: 0.5678571429 | MI32: 21 | MJ32: 13.58474576 | MK32: 0 | ML32: -13.5 | MM32: 1.622641509 | MN32: 1.622641509 | MO32: 15 | MP32: 0 | MQ32: 961.8 | MR32: 2442.6 | MS32: 850.8 | MT32: 630 | MU32: 3042.9 | MV32: 623.6340175 | MW32: 3672.9 | MX32: 1 | MY32: 623.6340175 | MZ32: 645.5479452 | NA32: 4545.613928 | NB32: 875 | NC32: 525 | ND32: 350 | NE32: 350 | NF32: 350 | NG32: 525 | NH32: 875 | NI32: 24.15 | NJ32: 36.225 | NK32: 60.375 | NL32: 3670.613928 | NM32: 58.7052 | NN32: 43.03074721 | NO32: 313.647361 | NP32: 253.272361 | NQ32: 423.0423082 | NR32: 850.8 | NS32: 36.225 | NT32: 6131.047945 | NU32: 168.5394 | NV32: 102.1752
A33: 4.349315068 | B33: -12.5 | C33: -12.5 | D33: 1307.5 | E33: 18.67857143 | F33: 2954.7 | G33: 70 | H33: 2.9547 | I33: 2345 | J33: 21 | K33: 13.58474576 | L33: 0 | M33: -12.5 | N33: 2.622641509 | O33: 2.622641509 | P33: 15 | Q33: 8.125786164 | R33: 61.25 | S33: 372.3341802 | T33: 81.40012492 | U33: 71.13301443 | V33: 0.7872 | W33: 3.482259718 | X33: 5.319059718 | Y33: 5.972047945 | Z33: 2.3718 | AA33: 0.6529882276 | AB33: 4.357259718 | AC33: 0.6455479452 | AD33: 0.35 | AE33: 0.525 | AF33: 0.875 | AG33: 0.9618 | AH33: 1.8368 | AI33: 0.5873287671 | AJ33: 0.05821917808 | AK33: 0 | AL33: 587.3287671 | AM33: 58.21917808 | AN33: 0 | AP33: 0.6455479452 | AQ33: 0.6455479452 | AR33: 2.624 | BO33: 41.1130137 | BP33: 4.075342466 | BQ33: 0 | CB33: 17.128278 | CC33: 0 | CD33: 20.01974606 | CE33: 0 | CF33: 66.59428786 | CG33: 0 | CH33: 20.04591567 | CI33: 0 | CJ33: 123.7882276 | CK33: 123.7882276 | CL33: 529.2 | CM33: 652.9882276 | CN33: 8.665175931 | CO33: 652.9882276 | FT33: 2.5 | FU33: 350 | FV33: 525 | FW33: 875 | FX33: 70 | FY33: 2.5 | FZ33: 350 | GA33: 525 | GB33: 875 | GC33: 0.5678571429 | GD33: 21 | GE33: 13.58474576 | GF33: 0 | GG33: -12.5 | GH33: 2.622641509 | GI33: 16.38050314 | GJ33: 16.38050314 | GK33: 0 | GL33: 961.8 | GM33: 2371.8 | GN33: 0 | GO33: 1410 | GP33: 2954.7 | GQ33: 652.9882276 | GR33: 4364.7 | GS33: 1 | GT33: 652.9882276 | GU33: 645.5479452 | GV33: 4357.259718 | GW33: 875 | GX33: 525 | GY33: 350 | GZ33: 350 | HA33: 350 | HB33: 525 | HC33: 875 | HD33: 24.5 | HE33: 36.75 | HF33: 61.25 | HG33: 3482.259718 | HH33: 0 | HI33: 45.70917593 | HJ33: 305.0081802 | HK33: 243.7581802 | HL33: 418.0433562 | HM33: 875 | HN33: 36.75 | HP33: 166.026 | HQ33: 98.7 | HU33: 2.5 | HV33: 350 | HW33: 525 | HX33: 875 | HY33: 70 | HZ33: 2.5 | IA33: 93.30428571 | IB33: 139.9564286 | IC33: 233.2607143 | ID33: 0.5678571429 | IE33: 21 | IF33: -12.5 | IG33: 1.976785714 | IH33: 8.676785714 | II33: 2.220446049e-16 | IJ33: 12.34440701 | IK33: 15 | IL33: 0 | IM33: 0 | IN33: 1346.843571 | IO33: 2371.8 | IP33: 168.8957143 | IQ33: 856.0607143 | IR33: 2954.7 | IS33: 652.9882276 | IT33: 3810.760714 | IU33: 1 | IV33: 652.9882276 | IW33: 645.5479452 | IX33: 3972.216146 | IY33: 875 | IZ33: 139.9564286 | JA33: 350 | JB33: 93.30428571 | JC33: 93.30428571 | JD33: 139.9564286 | JE33: 233.2607143 | JF33: 6.5313 | JG33: 9.79695 | JH33: 16.32825 | JI33: 3738.955432 | JJ33: 11.8227 | JK33: 45.70917593 | JL33: 278.0551302 | JM33: 261.7268802 | JN33: 418.0433562 | JO33: 402.1564286 | JP33: 9.79695 | JR33: 166.026 | JS33: 71.74695 | JW33: =JW32 -> 2.5 | JX33: 350 | JY33: 525 | JZ33: 875 | KA33: 70 | KB33: 2.5 | KC33: 93.30428571 | KD33: 139.9564286 | KE33: 233.2607143 | KF33: =KF32 -> 0.5678571429 | KG33: 21 | KH33: -12.5 | KI33: 1.976785714 | KJ33: 8.676785714 | KK33: 2.220446049e-16 | KL33: 8.676785714 | KM33: 15 | KN33: 0 | KO33: 0 | KP33: 1346.843571 | KQ33: 2371.8 | KR33: 402.1564286 | KS33: 622.8 | KT33: 2954.7 | KU33: 652.9882276 | KV33: 3577.5 | KW33: 1 | KX33: 652.9882276 | KY33: 645.5479452 | KZ33: 3972.216146 | LA33: 875 | LB33: 139.9564286 | LC33: 350 | LD33: 93.30428571 | LE33: 93.30428571 | LF33: 139.9564286 | LG33: 233.2607143 | LH33: 6.5313 | LI33: 9.79695 | LJ33: 16.32825 | LK33: 3738.955432 | LL33: 28.15095 | LM33: 45.70917593 | LN33: 278.0551302 | LO33: 261.7268802 | LP33: 418.0433562 | LQ33: 402.1564286 | LR33: 9.79695 | LT33: 166.026 | LU33: 71.74695 | LY33: 2.5 | LZ33: 350 | MA33: 525 | MB33: 875 | MC33: 70 | MD33: 2.5 | ME33: 350 | MF33: 525 | MG33: 875 | MH33: 0.5678571429 | MI33: 21 | MJ33: 13.58474576 | MK33: 0 | ML33: -12.5 | MM33: 2.622641509 | MN33: 2.622641509 | MO33: 15 | MP33: 0 | MQ33: 961.8 | MR33: 2371.8 | MS33: 787.2 | MT33: 622.8 | MU33: 2954.7 | MV33: 652.9882276 | MW33: 3577.5 | MX33: 1 | MY33: 652.9882276 | MZ33: 645.5479452 | NA33: 4357.259718 | NB33: 875 | NC33: 525 | ND33: 350 | NE33: 350 | NF33: 350 | NG33: 525 | NH33: 875 | NI33: 24.5 | NJ33: 36.75 | NK33: 61.25 | NL33: 3482.259718 | NM33: 55.104 | NN33: 45.70917593 | NO33: 305.0081802 | NP33: 243.7581802 | NQ33: 418.0433562 | NR33: 787.2 | NS33: 36.75 | NT33: 5972.047945 | NU33: 166.026 | NV33: 98.7
A34: 4.931506849 | B34: -11.5 | C34: -11.5 | D34: 765.7 | E34: 15.01372549 | F34: 2866.5 | G34: 51 | H34: 2.8665 | I34: 1657.5 | J34: 21 | K34: 13.58474576 | L34: 0 | M34: -11.5 | N34: 3.622641509 | O34: 3.622641509 | P34: 15 | Q34: 9.125786164 | R34: 44.625 | S34: 264.4017326 | T34: 79.90012492 | U34: 70.01490092 | V34: 0.7236 | W34: 3.347547698 | X34: 5.184347698 | Y34: 5.813047945 | Z34: 2.301 | AA34: 0.6287002469 | AB34: 4.222547698 | AC34: 0.6455479452 | AD34: 0.35 | AE34: 0.525 | AF34: 0.875 | AG34: 0.9618 | AH34: 1.8368 | AI34: 0.5873287671 | AJ34: 0.05821917808 | AK34: 0 | AL34: 587.3287671 | AM34: 58.21917808 | AN34: 0 | AP34: 0.6455479452 | AQ34: 0.6455479452 | AR34: 2.5604 | BO34: 29.95376712 | BP34: 2.969178082 | BQ34: 0 | CB34: 13.76760878 | CC34: 0 | CD34: 16.09175375 | CE34: 0 | CF34: 53.5280956 | CG34: 0 | CH34: 16.11278872 | CI34: 0 | CJ34: 99.50024685 | CK34: 99.50024685 | CL34: 529.2 | CM34: 628.7002469 | CN34: 5.074512589 | CO34: 628.7002469 | FT34: 2.5 | FU34: 350 | FV34: 525 | FW34: 875 | FX34: 51 | FY34: 2.5 | FZ34: 350 | GA34: 525 | GB34: 875 | GC34: 0.5678571429 | GD34: 21 | GE34: 13.58474576 | GF34: 0 | GG34: -11.5 | GH34: 3.622641509 | GI34: 17.38050314 | GJ34: 17.38050314 | GK34: 0 | GL34: 961.8 | GM34: 2301 | GN34: 0 | GO34: 1339.2 | GP34: 2866.5 | GQ34: 628.7002469 | GR34: 4205.7 | GS34: 1 | GT34: 628.7002469 | GU34: 645.5479452 | GV34: 4222.547698 | GW34: 875 | GX34: 525 | GY34: 350 | GZ34: 350 | HA34: 350 | HB34: 525 | HC34: 875 | HD34: 17.85 | HE34: 26.775 | HF34: 44.625 | HG34: 3347.547698 | HH34: 0 | HI34: 32.06371259 | HJ34: 215.3499326 | HK34: 170.7249326 | HL34: 296.4654452 | HM34: 875 | HN34: 26.775 | HP34: 117.351 | HQ34: 68.2992 | HU34: 2.5 | HV34: 350 | HW34: 525 | HX34: 875 | HY34: 51 | HZ34: 2.5 | IA34: 120.1071429 | IB34: 180.1607143 | IC34: 300.2678571 | ID34: 0.5678571429 | IE34: 21 | IF34: -11.5 | IG34: 2.544642857 | IH34: 9.044642857 | II34: 0 | IJ34: 13.76583558 | IK34: 15 | IL34: 0 | IM34: 0 | IN34: 1306.639286 | IO34: 2301 | IP34: 78.49285714 | IQ34: 915.8678571 | IR34: 2866.5 | IS34: 628.7002469 | IT34: 3782.367857 | IU34: 1 | IV34: 628.7002469 | IW34: 645.5479452 | IX34: 3877.708413 | IY34: 875 | IZ34: 180.1607143 | JA34: 350 | JB34: 120.1071429 | JC34: 120.1071429 | JD34: 180.1607143 | JE34: 300.2678571 | JF34: 6.125464286 | JG34: 9.188196429 | JH34: 15.31366071 | JI34: 3577.440555 | JJ34: 4.003135714 | JK34: 32.06371259 | JL34: 197.763129 | JM34: 182.4494683 | JN34: 296.4654452 | JO34: 378.7607143 | JP34: 9.188196429 | JR34: 117.351 | JS34: 50.71239643 | JW34: =JW33 -> 2.5 | JX34: 350 | JY34: 525 | JZ34: 875 | KA34: 51 | KB34: 2.5 | KC34: 120.1071429 | KD34: 180.1607143 | KE34: 300.2678571 | KF34: =KF33 -> 0.5678571429 | KG34: 21 | KH34: -11.5 | KI34: 2.544642857 | KJ34: 9.044642857 | KK34: 0 | KL34: 9.044642857 | KM34: 15 | KN34: 0 | KO34: 0 | KP34: 1306.639286 | KQ34: 2301 | KR34: 378.7607143 | KS34: 615.6 | KT34: 2866.5 | KU34: 628.7002469 | KV34: 3482.1 | KW34: 1 | KX34: 628.7002469 | KY34: 645.5479452 | KZ34: 3877.708413 | LA34: 875 | LB34: 180.1607143 | LC34: 350 | LD34: 120.1071429 | LE34: 120.1071429 | LF34: 180.1607143 | LG34: 300.2678571 | LH34: 6.125464286 | LI34: 9.188196429 | LJ34: 15.31366071 | LK34: 3577.440555 | LL34: 19.31679643 | LM34: 32.06371259 | LN34: 197.763129 | LO34: 182.4494683 | LP34: 296.4654452 | LQ34: 378.7607143 | LR34: 9.188196429 | LT34: 117.351 | LU34: 50.71239643 | LY34: 2.5 | LZ34: 350 | MA34: 525 | MB34: 875 | MC34: 51 | MD34: 2.5 | ME34: 350 | MF34: 525 | MG34: 875 | MH34: 0.5678571429 | MI34: 21 | MJ34: 13.58474576 | MK34: 0 | ML34: -11.5 | MM34: 3.622641509 | MN34: 3.622641509 | MO34: 15 | MP34: 0 | MQ34: 961.8 | MR34: 2301 | MS34: 723.6 | MT34: 615.6 | MU34: 2866.5 | MV34: 628.7002469 | MW34: 3482.1 | MX34: 1 | MY34: 628.7002469 | MZ34: 645.5479452 | NA34: 4222.547698 | NB34: 875 | NC34: 525 | ND34: 350 | NE34: 350 | NF34: 350 | NG34: 525 | NH34: 875 | NI34: 17.85 | NJ34: 26.775 | NK34: 44.625 | NL34: 3347.547698 | NM34: 36.9036 | NN34: 32.06371259 | NO34: 215.3499326 | NP34: 170.7249326 | NQ34: 296.4654452 | NR34: 723.6 | NS34: 26.775 | NT34: 5813.047945 | NU34: 117.351 | NV34: 68.2992
A35: 5.445205479 | B35: -10.5 | C35: -10.5 | D35: 1332.5 | E35: 29.61111111 | F35: 2778.3 | G35: 45 | H35: 2.7783 | I35: 1417.5 | J35: 21 | K35: 13.58474576 | L35: 0 | M35: -10.5 | N35: 4.622641509 | O35: 4.622641509 | P35: 15 | Q35: 10.12578616 | R35: 39.375 | S35: 221.7872995 | T35: 78.40012492 | U35: 66.99381533 | V35: 0.66 | W35: 3.091806655 | X35: 4.928606655 | Y35: 5.654047945 | Z35: 2.2302 | AA35: 0.7254412905 | AB35: 3.966806655 | AC35: 0.6455479452 | AD35: 0.35 | AE35: 0.525 | AF35: 0.875 | AG35: 0.9618 | AH35: 1.8368 | AI35: 0.5873287671 | AJ35: 0.05821917808 | AK35: 0 | AL35: 587.3287671 | AM35: 58.21917808 | AN35: 0 | AP35: 0.6455479452 | AQ35: 0.6455479452 | AR35: 2.4968 | BO35: 26.42979452 | BP35: 2.619863014 | BQ35: 0 | CB35: 27.15343328 | CC35: 0 | CD35: 31.73727324 | CE35: 0 | CF35: =CF$23*$E35*CF$21*CF$20 -> 105.5718241 | CG35: 0 | CH35: 31.77875987 | CI35: 0 | CJ35: 196.2412905 | CK35: 196.2412905 | CL35: 529.2 | CM35: 725.4412905 | CN35: 8.830858072 | CO35: 725.4412905 | FT35: 2.5 | FU35: 350 | FV35: 525 | FW35: 875 | FX35: 45 | FY35: 2.5 | FZ35: 350 | GA35: 525 | GB35: 875 | GC35: 0.5678571429 | GD35: 21 | GE35: 13.58474576 | GF35: 0 | GG35: -10.5 | GH35: 4.622641509 | GI35: 18.38050314 | GJ35: 18.38050314 | GK35: 0 | GL35: 961.8 | GM35: 2230.2 | GN35: 0 | GO35: 1268.4 | GP35: 2778.3 | GQ35: 725.4412905 | GR35: 4046.7 | GS35: 1 | GT35: 725.4412905 | GU35: 645.5479452 | GV35: 3966.806655 | GW35: 875 | GX35: 525 | GY35: 350 | GZ35: 350 | HA35: 350 | HB35: 525 | HC35: 875 | HD35: 15.75 | HE35: 23.625 | HF35: 39.375 | HG35: 3091.806655 | HH35: 0 | HI35: 32.64485807 | HJ35: 178.5062995 | HK35: 139.1312995 | HL35: 254.4321575 | HM35: 875 | HN35: 23.625 | HP35: 100.359 | HQ35: 57.078 | HU35: 2.5 | HV35: 350 | HW35: 525 | HX35: 875 | HY35: 45 | HZ35: 2.5 | IA35: 146.91 | IB35: 220.365 | IC35: 367.275 | ID35: 0.5678571429 | IE35: 21 | IF35: -10.5 | IG35: 3.1125 | IH35: 9.4125 | II35: 0 | IJ35: 15.18726415 | IK35: 15.18726415 | IL35: 0 | IM35: 0 | IN35: 1266.435 | IO35: 2230.2 | IP35: 0 | IQ35: 963.765 | IR35: 2778.3 | IS35: 725.4412905 | IT35: 3742.065 | IU35: 1 | IV35: 725.4412905 | IW35: 645.5479452 | IX35: 3662.171655 | IY35: 875 | IZ35: 220.365 | JA35: 350 | JB35: 146.91 | JC35: 146.91 | JD35: 220.365 | JE35: 367.275 | JF35: 6.61095 | JG35: 9.916425 | JH35: 16.527375 | JI35: 3294.896655 | JJ35: 0 | JK35: 32.64485807 | JL35: 164.7977245 | JM35: 148.2703495 | JN35: 254.4321575 | JO35: 355.365 | JP35: 9.916425 | JR35: 100.359 | JS35: 43.369425 | JW35: =JW34 -> 2.5 | JX35: 350 | JY35: 525 | JZ35: 875 | KA35: 45 | KB35: 2.5 | KC35: 146.91 | KD35: 220.365 | KE35: 367.275 | KF35: =KF34 -> 0.5678571429 | KG35: 21 | KH35: -10.5 | KI35: 3.1125 | KJ35: 9.4125 | KK35: 0 | KL35: 9.4125 | KM35: 15 | KN35: 0 | KO35: 0 | KP35: 1266.435 | KQ35: 2230.2 | KR35: 355.365 | KS35: 608.4 | KT35: 2778.3 | KU35: 725.4412905 | KV35: 3386.7 | KW35: 1 | KX35: 725.4412905 | KY35: 645.5479452 | KZ35: 3662.171655 | LA35: 875 | LB35: 220.365 | LC35: 350 | LD35: 146.91 | LE35: 146.91 | LF35: 220.365 | LG35: 367.275 | LH35: 6.61095 | LI35: 9.916425 | LJ35: 16.527375 | LK35: 3294.896655 | LL35: 15.991425 | LM35: 32.64485807 | LN35: 164.7977245 | LO35: 148.2703495 | LP35: 254.4321575 | LQ35: 355.365 | LR35: 9.916425 | LT35: 100.359 | LU35: 43.369425 | LY35: 2.5 | LZ35: 350 | MA35: 525 | MB35: 875 | MC35: 45 | MD35: 2.5 | ME35: 350 | MF35: 525 | MG35: 875 | MH35: 0.5678571429 | MI35: 21 | MJ35: 13.58474576 | MK35: 0 | ML35: -10.5 | MM35: 4.622641509 | MN35: 4.622641509 | MO35: 15 | MP35: 0 | MQ35: 961.8 | MR35: 2230.2 | MS35: 660 | MT35: 608.4 | MU35: 2778.3 | MV35: 725.4412905 | MW35: 3386.7 | MX35: 1 | MY35: 725.4412905 | MZ35: 645.5479452 | NA35: 3966.806655 | NB35: 875 | NC35: 525 | ND35: 350 | NE35: 350 | NF35: 350 | NG35: 525 | NH35: 875 | NI35: 15.75 | NJ35: 23.625 | NK35: 39.375 | NL35: 3091.806655 | NM35: 29.7 | NN35: 32.64485807 | NO35: 178.5062995 | NP35: 139.1312995 | NQ35: 254.4321575 | NR35: 660 | NS35: 23.625 | NT35: 5654.047945 | NU35: 100.359 | NV35: 57.078
A36: 6.050228311 | B36: -9.5 | C36: -9.5 | D36: 1350.2 | E36: 25.4754717 | F36: 2690.1 | G36: 53 | H36: 2.6901 | I36: 1616.5 | J36: 21 | K36: 13.58474576 | L36: 0.4759079903 | M36: -9.5 | N36: 5.092857143 | O36: 5.092857143 | P36: 15 | Q36: 10.5960018 | R36: 46.375 | S36: 254.2417801 | T36: 76.90012492 | U36: 65.92475972 | V36: 0.6300942857 | W36: 2.993909004 | X36: 4.797014718 | Y36: 5.495047945 | Z36: 2.1594 | AA36: 0.6980332269 | AB36: 3.868909004 | AC36: 0.6455479452 | AD36: 0.35 | AE36: 0.525 | AF36: 0.875 | AG36: 0.9281057143 | AH36: 1.803105714 | AI36: 0.5873287671 | AJ36: 0.05821917808 | AK36: 0 | AL36: 587.3287671 | AM36: 58.21917808 | AN36: 0 | AP36: 0.6455479452 | AQ36: 0.6455479452 | AR36: 2.4332 | BO36: 31.12842466 | BP36: 3.085616438 | BQ36: 0 | CB36: 23.36104574 | CC36: 0 | CD36: 27.30468313 | CE36: 0 | CF36: 90.82712251 | CG36: 0 | CH36: 27.34037553 | CI36: 0 | CJ36: 168.8332269 | CK36: 168.8332269 | CL36: 529.2 | CM36: 698.0332269 | CN36: 8.948161027 | CO36: 698.0332269 | FT36: 2.5 | FU36: 350 | FV36: 525 | FW36: 875 | FX36: 53 | FY36: 2.5 | FZ36: 350 | GA36: 525 | GB36: 875 | GC36: 0.5678571429 | GD36: 21 | GE36: 13.58474576 | GF36: 0.4759079903 | GG36: -9.5 | GH36: 5.092857143 | GI36: 18.85071878 | GJ36: 18.85071878 | GK36: 0 | GL36: 928.1057143 | GM36: 2159.4 | GN36: 0 | GO36: 1231.294286 | GP36: 2690.1 | GQ36: 698.0332269 | GR36: 3921.394286 | GS36: 1 | GT36: 698.0332269 | GU36: 645.5479452 | GV36: 3868.909004 | GW36: 875 | GX36: 525 | GY36: 350 | GZ36: 350 | HA36: 350 | HB36: 525 | HC36: 875 | HD36: 18.55 | HE36: 27.825 | HF36: 46.375 | HG36: 2993.909004 | HH36: 0 | HI36: 36.99576103 | HJ36: 205.0521772 | HK36: 158.6771772 | HL36: 291.2375411 | HM36: 875 | HN36: 27.825 | HP36: 114.4482 | HQ36: 65.25859714 | HU36: 2.5 | HV36: 350 | HW36: 525 | HX36: 875 | HY36: 53 | HZ36: 2.5 | IA36: 173.7128571 | IB36: 260.5692857 | IC36: 434.2821429 | ID36: 0.5678571429 | IE36: 21 | IF36: -9.5 | IG36: 3.680357143 | IH36: 9.780357143 | II36: 4.440892099e-16 | IJ36: 16.60869272 | IK36: 16.60869272 | IL36: 0 | IM36: 0 | IN36: 1226.230714 | IO36: 2159.4 | IP36: 0 | IQ36: 933.1692857 | IR36: 2690.1 | IS36: 698.0332269 | IT36: 3623.269286 | IU36: 1 | IV36: 698.0332269 | IW36: 645.5479452 | IX36: 3570.784004 | IY36: 875 | IZ36: 260.5692857 | JA36: 350 | JB36: 173.7128571 | JC36: 173.7128571 | JD36: 260.5692857 | JE36: 434.2821429 | JF36: 9.206781429 | JG36: 13.81017214 | JH36: 23.01695357 | JI36: 3136.501861 | JJ36: 0 | JK36: 36.99576103 | JL36: 189.2515522 | JM36: 166.2345986 | JN36: 291.2375411 | JO36: 331.9692857 | JP36: 13.81017214 | JR36: 114.4482 | JS36: 49.45797214 | JW36: =JW35 -> 2.5 | JX36: 350 | JY36: 525 | JZ36: 875 | KA36: 53 | KB36: 2.5 | KC36: 173.7128571 | KD36: 260.5692857 | KE36: 434.2821429 | KF36: =KF35 -> 0.5678571429 | KG36: 21 | KH36: -9.5 | KI36: 3.680357143 | KJ36: 9.780357143 | KK36: 4.440892099e-16 | KL36: 9.780357143 | KM36: 15 | KN36: 0 | KO36: 0 | KP36: 1226.230714 | KQ36: 2159.4 | KR36: 331.9692857 | KS36: 601.2 | KT36: 2690.1 | KU36: 698.0332269 | KV36: 3291.3 | KW36: 1 | KX36: 698.0332269 | KY36: 645.5479452 | KZ36: 3570.784004 | LA36: 875 | LB36: 260.5692857 | LC36: 350 | LD36: 173.7128571 | LE36: 173.7128571 | LF36: 260.5692857 | LG36: 434.2821429 | LH36: 9.206781429 | LI36: 13.81017214 | LJ36: 23.01695357 | LK36: 3136.501861 | LL36: 17.59437214 | LM36: 36.99576103 | LN36: 189.2515522 | LO36: 166.2345986 | LP36: 291.2375411 | LQ36: 331.9692857 | LR36: 13.81017214 | LT36: 114.4482 | LU36: 49.45797214 | LY36: 2.5 | LZ36: 350 | MA36: 525 | MB36: 875 | MC36: 53 | MD36: 2.5 | ME36: 350 | MF36: 525 | MG36: 875 | MH36: 0.5678571429 | MI36: 21 | MJ36: 13.58474576 | MK36: 0.4759079903 | ML36: -9.5 | MM36: 5.092857143 | MN36: 5.092857143 | MO36: 15 | MP36: 0 | MQ36: 928.1057143 | MR36: 2159.4 | MS36: 630.0942857 | MT36: 601.2 | MU36: 2690.1 | MV36: 698.0332269 | MW36: 3291.3 | MX36: 1 | MY36: 698.0332269 | MZ36: 645.5479452 | NA36: 3868.909004 | NB36: 875 | NC36: 525 | ND36: 350 | NE36: 350 | NF36: 350 | NG36: 525 | NH36: 875 | NI36: 18.55 | NJ36: 27.825 | NK36: 46.375 | NL36: 2993.909004 | NM36: 33.39499714 | NN36: 36.99576103 | NO36: 205.0521772 | NP36: 158.6771772 | NQ36: 291.2375411 | NR36: 630.0942857 | NS36: 27.825 | NT36: 5495.047945 | NU36: 114.4482 | NV36: 65.25859714
A37: 7.03196347 | B37: -8.5 | C37: -8.5 | D37: 1307.5 | E37: 15.20348837 | F37: 2601.9 | G37: 86 | H37: 2.6019 | I37: 2537 | J37: 21 | K37: 13.58474576 | L37: 1.043765133 | M37: -8.5 | N37: 5.460714286 | O37: 5.460714286 | P37: 15 | Q37: 10.96385894 | R37: 75.25 | S37: 404.7237474 | T37: 75.40012492 | U37: 65.49512713 | V37: 0.6066985714 | W37: 2.943188657 | X37: 4.706090086 | Y37: 5.336047945 | Z37: 2.0886 | AA37: 0.6299578597 | AB37: 3.818188657 | AC37: 0.6455479452 | AD37: 0.35 | AE37: 0.525 | AF37: 0.875 | AG37: 0.8879014286 | AH37: 1.762901429 | AI37: 0.5873287671 | AJ37: 0.05821917808 | AK37: 0 | AL37: 587.3287671 | AM37: 58.21917808 | AN37: 0 | AP37: 0.6455479452 | AQ37: 0.6455479452 | AR37: 2.3696 | BO37: 50.51027397 | BP37: 5.006849315 | BQ37: 0 | CB37: 13.94162163 | CC37: 0 | CD37: 16.29514215 | CE37: 0 | CF37: 54.20465291 | CG37: 0 | CH37: 16.31644298 | CI37: 0 | CJ37: 100.7578597 | CK37: 100.7578597 | CL37: 529.2 | CM37: 629.9578597 | CN37: 8.665175931 | CO37: 629.9578597 | FT37: 2.5 | FU37: 350 | FV37: 525 | FW37: 875 | FX37: 86 | FY37: 2.5 | FZ37: 350 | GA37: 525 | GB37: 875 | GC37: 0.5678571429 | GD37: 21 | GE37: 13.58474576 | GF37: 1.043765133 | GG37: -8.5 | GH37: 5.460714286 | GI37: 19.21857592 | GJ37: 19.21857592 | GK37: 0 | GL37: 887.9014286 | GM37: 2088.6 | GN37: 0 | GO37: 1200.698571 | GP37: 2601.9 | GQ37: 629.9578597 | GR37: 3802.598571 | GS37: 1 | GT37: 629.9578597 | GU37: 645.5479452 | GV37: 3818.188657 | GW37: 875 | GX37: 525 | GY37: 350 | GZ37: 350 | HA37: 350 | HB37: 525 | HC37: 875 | HD37: 30.1 | HE37: 45.15 | HF37: 75.25 | HG37: 2943.188657 | HH37: 0 | HI37: 54.17637593 | HJ37: 328.3642245 | HK37: 253.1142245 | HL37: 458.9001233 | HM37: 875 | HN37: 45.15 | HP37: 179.6196 | HQ37: 103.2600771 | HU37: 2.5 | HV37: 350 | HW37: 525 | HX37: 875 | HY37: 86 | HZ37: 2.5 | IA37: 200.5157143 | IB37: 300.7735714 | IC37: 501.2892857 | ID37: 0.5678571429 | IE37: 21 | IF37: -8.5 | IG37: 4.248214286 | IH37: 10.14821429 | II37: 0 | IJ37: 18.03012129 | IK37: 18.03012129 | IL37: 0 | IM37: 0 | IN37: 1186.026429 | IO37: 2088.6 | IP37: 0 | IQ37: 902.5735714 | IR37: 2601.9 | IS37: 629.9578597 | IT37: 3504.473571 | IU37: 1 | IV37: 629.9578597 | IW37: 645.5479452 | IX37: 3520.063657 | IY37: 875 | IZ37: 300.7735714 | JA37: 350 | JB37: 200.5157143 | JC37: 200.5157143 | JD37: 300.7735714 | JE37: 501.2892857 | JF37: 17.24435143 | JG37: 25.86652714 | JH37: 43.11087857 | JI37: 3018.774371 | JJ37: 0 | JK37: 54.17637593 | JL37: 302.7254745 | JM37: 259.6145959 | JN37: 458.9001233 | JO37: 308.5735714 | JP37: 25.86652714 | JR37: 179.6196 | JS37: 77.62132714 | JW37: =JW36 -> 2.5 | JX37: 350 | JY37: 525 | JZ37: 875 | KA37: 86 | KB37: 2.5 | KC37: 200.5157143 | KD37: 300.7735714 | KE37: 501.2892857 | KF37: =KF36 -> 0.5678571429 | KG37: 21 | KH37: -8.5 | KI37: 4.248214286 | KJ37: 10.14821429 | KK37: 0 | KL37: 10.14821429 | KM37: 15 | KN37: 0 | KO37: 0 | KP37: 1186.026429 | KQ37: 2088.6 | KR37: 308.5735714 | KS37: 594 | KT37: 2601.9 | KU37: 629.9578597 | KV37: 3195.9 | KW37: 1 | KX37: 629.9578597 | KY37: 645.5479452 | KZ37: 3520.063657 | LA37: 875 | LB37: 300.7735714 | LC37: 350 | LD37: 200.5157143 | LE37: 200.5157143 | LF37: 300.7735714 | LG37: 501.2892857 | LH37: 17.24435143 | LI37: 25.86652714 | LJ37: 43.11087857 | LK37: 3018.774371 | LL37: 26.53732714 | LM37: 54.17637593 | LN37: 302.7254745 | LO37: 259.6145959 | LP37: 458.9001233 | LQ37: 308.5735714 | LR37: 25.86652714 | LT37: 179.6196 | LU37: 77.62132714 | LY37: 2.5 | LZ37: 350 | MA37: 525 | MB37: 875 | MC37: 86 | MD37: 2.5 | ME37: 350 | MF37: 525 | MG37: 875 | MH37: 0.5678571429 | MI37: 21 | MJ37: 13.58474576 | MK37: 1.043765133 | ML37: -8.5 | MM37: 5.460714286 | MN37: 5.460714286 | MO37: 15 | MP37: 0 | MQ37: 887.9014286 | MR37: 2088.6 | MS37: 606.6985714 | MT37: 594 | MU37: 2601.9 | MV37: 629.9578597 | MW37: 3195.9 | MX37: 1 | MY37: 629.9578597 | MZ37: 645.5479452 | NA37: 3818.188657 | NB37: 875 | NC37: 525 | ND37: 350 | NE37: 350 | NF37: 350 | NG37: 525 | NH37: 875 | NI37: 30.1 | NJ37: 45.15 | NK37: 75.25 | NL37: 2943.188657 | NM37: 52.17607714 | NN37: 54.17637593 | NO37: 328.3642245 | NP37: 253.1142245 | NQ37: 458.9001233 | NR37: 606.6985714 | NS37: 45.15 | NT37: 5336.047945 | NU37: 179.6196 | NV37: 103.2600771
A38: 8.45890411 | B38: -7.5 | C38: -7.5 | D38: 3076.1 | E38: 24.6088 | F38: 2513.7 | G38: 125 | H38: 2.5137 | I38: 3562.5 | J38: 21 | K38: 13.58474576 | L38: 1.611622276 | M38: -7.5 | N38: 5.828571429 | O38: 5.828571429 | P38: 15 | Q38: 11.33171608 | R38: 109.375 | S38: 560.5947999 | T38: 73.90012492 | U38: 63.01506917 | V38: 0.5833028571 | W38: 2.762061256 | X38: 4.484758399 | Y38: 5.177047945 | Z38: 2.0178 | AA38: 0.6922895461 | AB38: 3.637061256 | AC38: 0.6455479452 | AD38: 0.35 | AE38: 0.525 | AF38: 0.875 | AG38: 0.8476971429 | AH38: 1.722697143 | AI38: 0.5873287671 | AJ38: 0.05821917808 | AK38: 0 | AL38: 587.3287671 | AM38: 58.21917808 | AN38: 0 | AP38: 0.6455479452 | AQ38: 0.6455479452 | AR38: 2.306 | BO38: 73.41609589 | BP38: 7.27739726 | BQ38: 0 | CB38: 22.56630649 | CC38: 0 | CD38: 26.37578194 | CE38: 0 | CF38: 87.73719753 | CG38: 0 | CH38: 26.41026009 | CI38: 0 | CJ38: 163.0895461 | CK38: 163.0895461 | CL38: 529.2 | CM38: 692.2895461 | CN38: 20.38619326 | CO38: 692.2895461 | FT38: 2.5 | FU38: 350 | FV38: 525 | FW38: 875 | FX38: 125 | FY38: 2.5 | FZ38: 350 | GA38: 525 | GB38: 875 | GC38: 0.5678571429 | GD38: 21 | GE38: 13.58474576 | GF38: 1.611622276 | GG38: -7.5 | GH38: 5.828571429 | GI38: 19.58643306 | GJ38: 19.58643306 | GK38: 0 | GL38: 847.6971429 | GM38: 2017.8 | GN38: 0 | GO38: 1170.102857 | GP38: 2513.7 | GQ38: 692.2895461 | GR38: 3683.802857 | GS38: 1 | GT38: 692.2895461 | GU38: 645.5479452 | GV38: 3637.061256 | GW38: 875 | GX38: 525 | GY38: 350 | GZ38: 350 | HA38: 350 | HB38: 525 | HC38: 875 | HD38: 43.75 | HE38: 65.625 | HF38: 109.375 | HG38: 2762.061256 | HH38: 0 | HI38: 86.53619326 | HJ38: 454.632657 | HK38: 345.257657 | HL38: 647.1309932 | HM38: 875 | HN38: 65.625 | HP38: 252.225 | HQ38: 146.2628571 | HU38: 2.5 | HV38: 350 | HW38: 525 | HX38: 875 | HY38: 125 | HZ38: 2.5 | IA38: 227.3185714 | IB38: 340.9778571 | IC38: 568.2964286 | ID38: 0.5678571429 | IE38: 21 | IF38: -7.5 | IG38: 4.816071429 | IH38: 10.51607143 | II38: 0 | IJ38: 19.45154987 | IK38: 19.45154987 | IL38: 0 | IM38: 0 | IN38: 1145.822143 | IO38: 2017.8 | IP38: 0 | IQ38: 871.9778571 | IR38: 2513.7 | IS38: 692.2895461 | IT38: 3385.677857 | IU38: 1 | IV38: 692.2895461 | IW38: 645.5479452 | IX38: 3338.936256 | IY38: 875 | IZ38: 340.9778571 | JA38: 350 | JB38: 227.3185714 | JC38: 227.3185714 | JD38: 340.9778571 | JE38: 568.2964286 | JF38: 28.41482143 | JG38: 42.62223214 | JH38: 71.03705357 | JI38: 2770.639828 | JJ38: 0 | JK38: 86.53619326 | JL38: 417.367032 | JM38: 346.3299785 | JN38: 647.1309932 | JO38: 285.1778571 | JP38: 42.62223214 | JR38: 252.225 | JS38: 108.9972321 | JW38: =JW37 -> 2.5 | JX38: 350 | JY38: 525 | JZ38: 875 | KA38: 125 | KB38: 2.5 | KC38: 227.3185714 | KD38: 340.9778571 | KE38: 568.2964286 | KF38: =KF37 -> 0.5678571429 | KG38: 21 | KH38: -7.5 | KI38: 4.816071429 | KJ38: 10.51607143 | KK38: 0 | KL38: 10.51607143 | KM38: 15 | KN38: 0 | KO38: 0 | KP38: 1145.822143 | KQ38: 2017.8 | KR38: 285.1778571 | KS38: 586.8 | KT38: 2513.7 | KU38: 692.2895461 | KV38: 3100.5 | KW38: 1 | KX38: 692.2895461 | KY38: 645.5479452 | KZ38: 3338.936256 | LA38: 875 | LB38: 340.9778571 | LC38: 350 | LD38: 227.3185714 | LE38: 227.3185714 | LF38: 340.9778571 | LG38: 568.2964286 | LH38: 28.41482143 | LI38: 42.62223214 | LJ38: 71.03705357 | LK38: 2770.639828 | LL38: 35.64723214 | LM38: 86.53619326 | LN38: 417.367032 | LO38: 346.3299785 | LP38: 647.1309932 | LQ38: 285.1778571 | LR38: 42.62223214 | LT38: 252.225 | LU38: 108.9972321 | LY38: 2.5 | LZ38: 350 | MA38: 525 | MB38: 875 | MC38: 125 | MD38: 2.5 | ME38: 350 | MF38: 525 | MG38: 875 | MH38: 0.5678571429 | MI38: 21 | MJ38: 13.58474576 | MK38: 1.611622276 | ML38: -7.5 | MM38: 5.828571429 | MN38: 5.828571429 | MO38: 15 | MP38: 0 | MQ38: 847.6971429 | MR38: 2017.8 | MS38: 583.3028571 | MT38: 586.8 | MU38: 2513.7 | MV38: 692.2895461 | MW38: 3100.5 | MX38: 1 | MY38: 692.2895461 | MZ38: 645.5479452 | NA38: 3637.061256 | NB38: 875 | NC38: 525 | ND38: 350 | NE38: 350 | NF38: 350 | NG38: 525 | NH38: 875 | NI38: 43.75 | NJ38: 65.625 | NK38: 109.375 | NL38: 2762.061256 | NM38: 72.91285714 | NN38: 86.53619326 | NO38: 454.632657 | NP38: 345.257657 | NQ38: 647.1309932 | NR38: 583.3028571 | NS38: 65.625 | NT38: 5177.047945 | NU38: 252.225 | NV38: 146.2628571
A39: 10.11415525 | B39: -6.5 | C39: -6.5 | D39: 4849.1 | E39: 33.44206897 | F39: 2425.5 | G39: 145 | H39: 2.4255 | I39: 3987.5 | J39: 21 | K39: 13.58474576 | L39: 2.179479419 | M39: -6.5 | N39: 6.196428571 | O39: 6.196428571 | P39: 15 | Q39: 11.69957323 | R39: 126.875 | S39: 618.7465814 | T39: 72.40012492 | U39: 60.59461954 | V39: 0.5599071429 | W39: 2.584724946 | X39: 4.267217803 | Y39: 5.018047945 | Z39: 1.947 | AA39: 0.7508301423 | AB39: 3.459724946 | AC39: 0.6455479452 | AD39: 0.35 | AE39: 0.525 | AF39: 0.875 | AG39: 0.8074928571 | AH39: 1.682492857 | AI39: 0.5873287671 | AJ39: 0.05821917808 | AK39: 0 | AL39: 587.3287671 | AM39: 58.21917808 | AN39: 0 | AP39: 0.6455479452 | AQ39: 0.6455479452 | AR39: 2.2424 | BO39: 85.16267123 | BP39: 8.441780822 | BQ39: 0 | CB39: 30.66642738 | CC39: 0 | CD39: 35.84330478 | CE39: 0 | CF39: 119.2302514 | CG39: 0 | CH39: 35.89015877 | CI39: 0 | CJ39: 221.6301423 | CK39: 221.6301423 | CL39: 529.2 | CM39: 750.8301423 | CN39: 32.13637064 | CO39: 750.8301423 | FT39: 2.5 | FU39: 350 | FV39: 525 | FW39: 875 | FX39: 145 | FY39: 2.5 | FZ39: 350 | GA39: 525 | GB39: 875 | GC39: 0.5678571429 | GD39: 21 | GE39: 13.58474576 | GF39: 2.179479419 | GG39: -6.5 | GH39: 6.196428571 | GI39: 19.95429021 | GJ39: 19.95429021 | GK39: 0 | GL39: 807.4928571 | GM39: 1947 | GN39: 0 | GO39: 1139.507143 | GP39: 2425.5 | GQ39: 750.8301423 | GR39: 3565.007143 | GS39: 1 | GT39: 750.8301423 | GU39: 645.5479452 | GV39: 3459.724946 | GW39: 875 | GX39: 525 | GY39: 350 | GZ39: 350 | HA39: 350 | HB39: 525 | HC39: 875 | HD39: 50.75 | HE39: 76.125 | HF39: 126.875 | HG39: 2584.724946 | HH39: 0 | HI39: 108.8703706 | HJ39: 501.6601171 | HK39: 374.7851171 | HL39: 727.6169521 | HM39: 875 | HN39: 76.125 | HP39: 282.315 | HQ39: 165.2285357 | HU39: 2.5 | HV39: 350 | HW39: 525 | HX39: 875 | HY39: 145 | HZ39: 2.5 | IA39: 254.1214286 | IB39: 381.1821429 | IC39: 635.3035714 | ID39: 0.5678571429 | IE39: 21 | IF39: -6.5 | IG39: 5.383928571 | IH39: 10.88392857 | II39: 0 | IJ39: 20.87297844 | IK39: 20.87297844 | IL39: 0 | IM39: 0 | IN39: 1105.617857 | IO39: 1947 | IP39: 0 | IQ39: 841.3821429 | IR39: 2425.5 | IS39: 750.8301423 | IT39: 3266.882143 | IU39: 1 | IV39: 750.8301423 | IW39: 645.5479452 | IX39: 3161.599946 | IY39: 875 | IZ39: 381.1821429 | JA39: 350 | JB39: 254.1214286 | JC39: 254.1214286 | JD39: 381.1821429 | JE39: 635.3035714 | JF39: 36.84760714 | JG39: 55.27141071 | JH39: 92.11901786 | JI39: 2526.296374 | JJ39: 0 | JK39: 108.8703706 | JL39: 458.4319921 | JM39: 366.3129743 | JN39: 727.6169521 | JO39: 261.7821429 | JP39: 55.27141071 | JR39: 282.315 | JS39: 122.0004107 | JW39: =JW38 -> 2.5 | JX39: 350 | JY39: 525 | JZ39: 875 | KA39: 145 | KB39: 2.5 | KC39: 254.1214286 | KD39: 381.1821429 | KE39: 635.3035714 | KF39: =KF38 -> 0.5678571429 | KG39: 21 | KH39: -6.5 | KI39: 5.383928571 | KJ39: 10.88392857 | KK39: 0 | KL39: 10.88392857 | KM39: 15 | KN39: 0 | KO39: 0 | KP39: 1105.617857 | KQ39: 1947 | KR39: 261.7821429 | KS39: 579.6 | KT39: 2425.5 | KU39: 750.8301423 | KV39: 3005.1 | KW39: 1 | KX39: 750.8301423 | KY39: 645.5479452 | KZ39: 3161.599946 | LA39: 875 | LB39: 381.1821429 | LC39: 350 | LD39: 254.1214286 | LE39: 254.1214286 | LF39: 381.1821429 | LG39: 635.3035714 | LH39: 36.84760714 | LI39: 55.27141071 | LJ39: 92.11901786 | LK39: 2526.296374 | LL39: 37.95841071 | LM39: 108.8703706 | LN39: 458.4319921 | LO39: 366.3129743 | LP39: 727.6169521 | LQ39: 261.7821429 | LR39: 55.27141071 | LT39: 282.315 | LU39: 122.0004107 | LY39: 2.5 | LZ39: 350 | MA39: 525 | MB39: 875 | MC39: 145 | MD39: 2.5 | ME39: 350 | MF39: 525 | MG39: 875 | MH39: 0.5678571429 | MI39: 21 | MJ39: 13.58474576 | MK39: 2.179479419 | ML39: -6.5 | MM39: 6.196428571 | MN39: 6.196428571 | MO39: 15 | MP39: 0 | MQ39: 807.4928571 | MR39: 1947 | MS39: 559.9071429 | MT39: 579.6 | MU39: 2425.5 | MV39: 750.8301423 | MW39: 3005.1 | MX39: 1 | MY39: 750.8301423 | MZ39: 645.5479452 | NA39: 3459.724946 | NB39: 875 | NC39: 525 | ND39: 350 | NE39: 350 | NF39: 350 | NG39: 525 | NH39: 875 | NI39: 50.75 | NJ39: 76.125 | NK39: 126.875 | NL39: 2584.724946 | NM39: 81.18653571 | NN39: 108.8703706 | NO39: 501.6601171 | NP39: 374.7851171 | NQ39: 727.6169521 | NR39: 559.9071429 | NS39: 76.125 | NT39: 5018.047945 | NU39: 282.315 | NV39: 165.2285357
A40: 11.99771689 | B40: -5.5 | C40: -5.5 | D40: 5187.6 | E40: 31.44 | F40: 2337.3 | G40: 165 | H40: 2.3373 | I40: 4372.5 | J40: 21 | K40: 13.58474576 | L40: 2.747336562 | M40: -5.5 | N40: 6.564285714 | O40: 6.564285714 | P40: 15 | Q40: 12.06743037 | R40: 144.375 | S40: 680.0452041 | T40: 70.90012492 | U40: 59.30324034 | V40: 0.5365114286 | W40: 2.479197514 | X40: 4.121486086 | Y40: 4.859047945 | Z40: 1.8762 | AA40: 0.7375618595 | AB40: 3.354197514 | AC40: 0.6455479452 | AD40: 0.35 | AE40: 0.525 | AF40: 0.875 | AG40: 0.7672885714 | AH40: 1.642288571 | AI40: 0.5873287671 | AJ40: 0.05821917808 | AK40: 0 | AL40: 587.3287671 | AM40: 58.21917808 | AN40: 0 | AP40: 0.6455479452 | AQ40: 0.6455479452 | AR40: 2.1788 | BO40: 96.90924658 | BP40: 9.606164384 | BQ40: 0 | CB40: 28.83052714 | CC40: 0 | CD40: 33.69748156 | CE40: 0 | CF40: 112.0923202 | CG40: 0 | CH40: 33.74153055 | CI40: 0 | CJ40: 208.3618595 | CK40: 208.3618595 | CL40: 529.2 | CM40: 737.5618595 | CN40: 34.37970682 | CO40: 737.5618595 | FT40: 2.5 | FU40: 350 | FV40: 525 | FW40: 875 | FX40: 165 | FY40: 2.5 | FZ40: 350 | GA40: 525 | GB40: 875 | GC40: 0.5678571429 | GD40: 21 | GE40: 13.58474576 | GF40: 2.747336562 | GG40: -5.5 | GH40: 6.564285714 | GI40: 20.32214735 | GJ40: 20.32214735 | GK40: 0 | GL40: 767.2885714 | GM40: 1876.2 | GN40: 0 | GO40: 1108.911429 | GP40: 2337.3 | GQ40: 737.5618595 | GR40: 3446.211429 | GS40: 1 | GT40: 737.5618595 | GU40: 645.5479452 | GV40: 3354.197514 | GW40: 875 | GX40: 525 | GY40: 350 | GZ40: 350 | HA40: 350 | HB40: 525 | HC40: 875 | HD40: 57.75 | HE40: 86.625 | HF40: 144.375 | HG40: 2479.197514 | HH40: 0 | HI40: 121.6977068 | HJ40: 553.4425899 | HK40: 409.0675899 | HL40: 801.742911 | HM40: 875 | HN40: 86.625 | HP40: 309.573 | HQ40: 182.9703857 | HU40: 2.5 | HV40: 350 | HW40: 525 | HX40: 875 | HY40: 165 | HZ40: 2.5 | IA40: 280.9242857 | IB40: 421.3864286 | IC40: 702.3107143 | ID40: 0.5678571429 | IE40: 21 | IF40: -5.5 | IG40: 5.951785714 | IH40: 11.25178571 | II40: 0 | IJ40: 22.29440701 | IK40: 22.29440701 | IL40: 0 | IM40: 0 | IN40: 1065.413571 | IO40: 1876.2 | IP40: 0 | IQ40: 810.7864286 | IR40: 2337.3 | IS40: 737.5618595 | IT40: 3148.086429 | IU40: 1 | IV40: 737.5618595 | IW40: 645.5479452 | IX40: 3056.072514 | IY40: 875 | IZ40: 421.3864286 | JA40: 350 | JB40: 280.9242857 | JC40: 280.9242857 | JD40: 421.3864286 | JE40: 702.3107143 | JF40: 46.35250714 | JG40: 69.52876071 | JH40: 115.8812679 | JI40: 2353.7618 | JJ40: 0 | JK40: 121.6977068 | JL40: 504.2519649 | JM40: 388.370697 | JN40: 801.742911 | JO40: 238.3864286 | JP40: 69.52876071 | JR40: 309.573 | JS40: 133.7797607 | JW40: =JW39 -> 2.5 | JX40: 350 | JY40: 525 | JZ40: 875 | KA40: 165 | KB40: 2.5 | KC40: 280.9242857 | KD40: 421.3864286 | KE40: 702.3107143 | KF40: =KF39 -> 0.5678571429 | KG40: 21 | KH40: -5.5 | KI40: 5.951785714 | KJ40: 11.25178571 | KK40: 0 | KL40: 11.25178571 | KM40: 15 | KN40: 0 | KO40: 0 | KP40: 1065.413571 | KQ40: 1876.2 | KR40: 238.3864286 | KS40: 572.4 | KT40: 2337.3 | KU40: 737.5618595 | KV40: 2909.7 | KW40: 1 | KX40: 737.5618595 | KY40: 645.5479452 | KZ40: 3056.072514 | LA40: 875 | LB40: 421.3864286 | LC40: 350 | LD40: 280.9242857 | LE40: 280.9242857 | LF40: 421.3864286 | LG40: 702.3107143 | LH40: 46.35250714 | LI40: 69.52876071 | LJ40: 115.8812679 | LK40: 2353.7618 | LL40: 39.33376071 | LM40: 121.6977068 | LN40: 504.2519649 | LO40: 388.370697 | LP40: 801.742911 | LQ40: 238.3864286 | LR40: 69.52876071 | LT40: 309.573 | LU40: 133.7797607 | LY40: 2.5 | LZ40: 350 | MA40: 525 | MB40: 875 | MC40: 165 | MD40: 2.5 | ME40: 350 | MF40: 525 | MG40: 875 | MH40: 0.5678571429 | MI40: 21 | MJ40: 13.58474576 | MK40: 2.747336562 | ML40: -5.5 | MM40: 6.564285714 | MN40: 6.564285714 | MO40: 15 | MP40: 0 | MQ40: 767.2885714 | MR40: 1876.2 | MS40: 536.5114286 | MT40: 572.4 | MU40: 2337.3 | MV40: 737.5618595 | MW40: 2909.7 | MX40: 1 | MY40: 737.5618595 | MZ40: 645.5479452 | NA40: 3354.197514 | NB40: 875 | NC40: 525 | ND40: 350 | NE40: 350 | NF40: 350 | NG40: 525 | NH40: 875 | NI40: 57.75 | NJ40: 86.625 | NK40: 144.375 | NL40: 2479.197514 | NM40: 88.52438571 | NN40: 121.6977068 | NO40: 553.4425899 | NP40: 409.0675899 | NQ40: 801.742911 | NR40: 536.5114286 | NS40: 86.625 | NT40: 4859.047945 | NU40: 309.573 | NV40: 182.9703857
A41: 14.12100457 | B41: -4.5 | C41: -4.5 | D41: 4777.5 | E41: 25.68548387 | F41: 2249.1 | G41: 186 | H41: 2.2491 | I41: 4743 | J41: 21 | K41: 13.58474576 | L41: 3.315193705 | M41: -4.5 | N41: 6.932142857 | O41: 6.932142857 | P41: 15 | Q41: 12.43528751 | R41: 162.75 | S41: 744.1158608 | T41: 69.40012492 | U41: 58.40287591 | V41: 0.5131157143 | W41: 2.398538622 | X41: 4.000622908 | Y41: 4.700047945 | Z41: 1.8054 | AA41: 0.6994250376 | AB41: 3.273538622 | AC41: 0.6455479452 | AD41: 0.35 | AE41: 0.525 | AF41: 0.875 | AG41: 0.7270842857 | AH41: 1.602084286 | AI41: 0.5873287671 | AJ41: 0.05821917808 | AK41: 0 | AL41: 587.3287671 | AM41: 58.21917808 | AN41: 0 | AP41: 0.6455479452 | AQ41: 0.6455479452 | AR41: 2.1152 | BO41: 109.2431507 | BP41: 10.82876712 | BQ41: 0 | CB41: 23.55362722 | CC41: 0 | CD41: 27.52977478 | CE41: 0 | CF41: 91.57587416 | CG41: 0 | CH41: 27.56576141 | CI41: 0 | CJ41: 170.2250376 | CK41: 170.2250376 | CL41: 529.2 | CM41: 699.4250376 | CN41: 31.66185699 | CO41: 699.4250376 | FT41: 2.5 | FU41: 350 | FV41: 525 | FW41: 875 | FX41: 186 | FY41: 2.5 | FZ41: 350 | GA41: 525 | GB41: 875 | GC41: 0.5678571429 | GD41: 21 | GE41: 13.58474576 | GF41: 3.315193705 | GG41: -4.5 | GH41: 6.932142857 | GI41: 20.69000449 | GJ41: 20.69000449 | GK41: 0 | GL41: 727.0842857 | GM41: 1805.4 | GN41: 0 | GO41: 1078.315714 | GP41: 2249.1 | GQ41: 699.4250376 | GR41: 3327.415714 | GS41: 1 | GT41: 699.4250376 | GU41: 645.5479452 | GV41: 3273.538622 | GW41: 875 | GX41: 525 | GY41: 350 | GZ41: 350 | HA41: 350 | HB41: 525 | HC41: 875 | HD41: 65.1 | HE41: 97.65 | HF41: 162.75 | HG41: 2398.538622 | HH41: 0 | HI41: 130.093057 | HJ41: 608.8781837 | HK41: 446.1281837 | HL41: 874.2089178 | HM41: 875 | HN41: 97.65 | HP41: 335.8044 | HQ41: 200.5667229 | HU41: 2.5 | HV41: 350 | HW41: 525 | HX41: 875 | HY41: 186 | HZ41: 2.5 | IA41: 307.7271429 | IB41: 461.5907143 | IC41: 769.3178571 | ID41: 0.5678571429 | IE41: 21 | IF41: -4.5 | IG41: 6.519642857 | IH41: 11.61964286 | II41: 0 | IJ41: 23.71583558 | IK41: 23.71583558 | IL41: 0 | IM41: 0 | IN41: 1025.209286 | IO41: 1805.4 | IP41: 0 | IQ41: =IO41-IN41-IP41 -> 780.1907143 | IR41: 2249.1 | IS41: 699.4250376 | IT41: 3029.290714 | IU41: 1 | IV41: 699.4250376 | IW41: 645.5479452 | IX41: 2975.413622 | IY41: 875 | IZ41: 461.5907143 | JA41: 350 | JB41: 307.7271429 | JC41: 307.7271429 | JD41: 461.5907143 | JE41: 769.3178571 | JF41: 57.23724857 | JG41: 85.85587286 | JH41: 143.0931214 | JI41: 2206.095765 | JJ41: 0 | JK41: 130.093057 | JL41: 553.4269337 | JM41: 410.3338122 | JN41: 874.2089178 | JO41: 214.9907143 | JP41: 85.85587286 | JR41: 335.8044 | JS41: 145.1154729 | JW41: =JW40 -> 2.5 | JX41: 350 | JY41: 525 | JZ41: 875 | KA41: 186 | KB41: 2.5 | KC41: 307.7271429 | KD41: 461.5907143 | KE41: 769.3178571 | KF41: =KF40 -> 0.5678571429 | KG41: 21 | KH41: -4.5 | KI41: 6.519642857 | KJ41: 11.61964286 | KK41: 0 | KL41: 11.61964286 | KM41: 15 | KN41: 0 | KO41: 0 | KP41: 1025.209286 | KQ41: 1805.4 | KR41: 214.9907143 | KS41: 565.2 | KT41: 2249.1 | KU41: 699.4250376 | KV41: 2814.3 | KW41: 1 | KX41: 699.4250376 | KY41: 645.5479452 | KZ41: 2975.413622 | LA41: 875 | LB41: 461.5907143 | LC41: 350 | LD41: 307.7271429 | LE41: 307.7271429 | LF41: 461.5907143 | LG41: 769.3178571 | LH41: 57.23724857 | LI41: 85.85587286 | LJ41: 143.0931214 | LK41: 2206.095765 | LL41: 39.98827286 | LM41: 130.093057 | LN41: 553.4269337 | LO41: 410.3338122 | LP41: 874.2089178 | LQ41: 214.9907143 | LR41: 85.85587286 | LT41: 335.8044 | LU41: 145.1154729 | LY41: 2.5 | LZ41: 350 | MA41: 525 | MB41: 875 | MC41: 186 | MD41: 2.5 | ME41: 350 | MF41: 525 | MG41: 875 | MH41: 0.5678571429 | MI41: 21 | MJ41: 13.58474576 | MK41: 3.315193705 | ML41: -4.5 | MM41: 6.932142857 | MN41: 6.932142857 | MO41: 15 | MP41: 0 | MQ41: 727.0842857 | MR41: 1805.4 | MS41: 513.1157143 | MT41: 565.2 | MU41: 2249.1 | MV41: 699.4250376 | MW41: 2814.3 | MX41: 1 | MY41: 699.4250376 | MZ41: 645.5479452 | NA41: 3273.538622 | NB41: 875 | NC41: 525 | ND41: 350 | NE41: 350 | NF41: 350 | NG41: 525 | NH41: 875 | NI41: 65.1 | NJ41: 97.65 | NK41: 162.75 | NL41: 2398.538622 | NM41: 95.43952286 | NN41: 130.093057 | NO41: 608.8781837 | NP41: 446.1281837 | NQ41: 874.2089178 | NR41: 513.1157143 | NS41: 97.65 | NT41: 4700.047945 | NU41: 335.8044 | NV41: 200.5667229
A42: 16.28995434 | B42: -3.5 | C42: -3.5 | D42: 5603.8 | E42: 29.49368421 | F42: 2160.9 | G42: 190 | H42: 2.1609 | I42: 4655 | J42: 21 | K42: 13.58474576 | L42: 3.883050847 | M42: -3.5 | N42: 7.3 | O42: 7.3 | P42: 15 | Q42: 12.80314465 | R42: 166.25 | S42: 725.1131265 | T42: 67.90012492 | U42: 56.50605151 | V42: 0.48972 | W42: 2.254504876 | X42: 3.816384876 | Y42: 4.541047945 | Z42: 1.7346 | AA42: 0.7246630689 | AB42: 3.129504876 | AC42: 0.6455479452 | AD42: 0.35 | AE42: 0.525 | AF42: 0.875 | AG42: 0.68688 | AH42: 1.56188 | AI42: 0.5873287671 | AJ42: 0.05821917808 | AK42: 0 | AL42: 587.3287671 | AM42: 58.21917808 | AN42: 0 | AP42: 0.6455479452 | AQ42: 0.6455479452 | AR42: 2.0516 | BO42: 111.5924658 | BP42: 11.06164384 | BQ42: 0 | CB42: 27.04575264 | CC42: 0 | CD42: 31.61141475 | CE42: 0 | CF42: 105.1531646 | CG42: 0 | CH42: 31.65273686 | CI42: 0 | CJ42: 195.4630689 | CK42: 195.4630689 | CL42: 529.2 | CM42: 724.6630689 | CN42: 37.13798309 | CO42: 724.6630689 | FT42: 2.5 | FU42: 350 | FV42: 525 | FW42: 875 | FX42: 190 | FY42: 2.5 | FZ42: 350 | GA42: 525 | GB42: 875 | GC42: 0.5678571429 | GD42: 21 | GE42: 13.58474576 | GF42: 3.883050847 | GG42: -3.5 | GH42: 7.3 | GI42: 21.05786164 | GJ42: 21.05786164 | GK42: 0 | GL42: 686.88 | GM42: 1734.6 | GN42: 0 | GO42: 1047.72 | GP42: 2160.9 | GQ42: 724.6630689 | GR42: 3208.62 | GS42: 1 | GT42: 724.6630689 | GU42: 645.5479452 | GV42: 3129.504876 | GW42: 875 | GX42: 525 | GY42: 350 | GZ42: 350 | HA42: 350 | HB42: 525 | HC42: 875 | HD42: 66.5 | HE42: 99.75 | HF42: 166.25 | HG42: 2254.504876 | HH42: 0 | HI42: 137.6859831 | HJ42: 594.6059265 | HK42: 428.3559265 | HL42: 862.7991096 | HM42: 875 | HN42: 99.75 | HP42: 329.574 | HQ42: 199.0668 | HU42: =HU41 -> 2.5 | HV42: 350 | HW42: 525 | HX42: 875 | HY42: 190 | HZ42: 2.5 | IA42: 334.53 | IB42: 501.795 | IC42: 836.325 | ID42: =ID41 -> 0.5678571429 | IE42: 21 | IF42: -3.5 | IG42: 7.0875 | IH42: 11.9875 | II42: 0 | IJ42: 25.13726415 | IK42: 25.13726415 | IL42: 0 | IM42: 0 | IN42: 985.005 | IO42: 1734.6 | IP42: 0 | IQ42: 749.595 | IR42: 2160.9 | IS42: 724.6630689 | IT42: 2910.495 | IU42: 1 | IV42: 724.6630689 | IW42: 645.5479452 | IX42: 2831.379876 | IY42: 875 | IZ42: 501.795 | JA42: 350 | JB42: 334.53 | JC42: 334.53 | JD42: 501.795 | JE42: 836.325 | JF42: 63.5607 | JG42: 95.34105 | JH42: 158.90175 | JI42: 1995.054876 | JJ42: 0 | JK42: 137.6859831 | JL42: 537.9621765 | JM42: 379.0604265 | JN42: 862.7991096 | JO42: 191.595 | JP42: 95.34105 | JR42: 329.574 | JS42: 142.42305 | JW42: =JW41 -> 2.5 | JX42: 350 | JY42: 525 | JZ42: 875 | KA42: 190 | KB42: 2.5 | KC42: 334.53 | KD42: 501.795 | KE42: 836.325 | KF42: =KF41 -> 0.5678571429 | KG42: 21 | KH42: -3.5 | KI42: 7.0875 | KJ42: 11.9875 | KK42: 0 | KL42: 11.9875 | KM42: 15 | KN42: 0 | KO42: 0 | KP42: 985.005 | KQ42: 1734.6 | KR42: 191.595 | KS42: 558 | KT42: 2160.9 | KU42: 724.6630689 | KV42: 2718.9 | KW42: 1 | KX42: 724.6630689 | KY42: 645.5479452 | KZ42: 2831.379876 | LA42: 875 | LB42: 501.795 | LC42: 350 | LD42: 334.53 | LE42: 334.53 | LF42: 501.795 | LG42: 836.325 | LH42: 63.5607 | LI42: 95.34105 | LJ42: 158.90175 | LK42: 1995.054876 | LL42: 36.40305 | LM42: 137.6859831 | LN42: 537.9621765 | LO42: 379.0604265 | LP42: 862.7991096 | LQ42: 191.595 | LR42: 95.34105 | LT42: 329.574 | LU42: 142.42305 | LY42: =LY41 -> 2.5 | LZ42: 350 | MA42: 525 | MB42: 875 | MC42: 190 | MD42: 2.5 | ME42: 350 | MF42: 525 | MG42: 875 | MH42: =MH41 -> 0.5678571429 | MI42: 21 | MJ42: 13.58474576 | MK42: 3.883050847 | ML42: -3.5 | MM42: 7.3 | MN42: 7.3 | MO42: 15 | MP42: 0 | MQ42: 686.88 | MR42: 1734.6 | MS42: 489.72 | MT42: 558 | MU42: 2160.9 | MV42: 724.6630689 | MW42: 2718.9 | MX42: 1 | MY42: 724.6630689 | MZ42: 645.5479452 | NA42: 3129.504876 | NB42: 875 | NC42: 525 | ND42: 350 | NE42: 350 | NF42: 350 | NG42: 525 | NH42: 875 | NI42: 66.5 | NJ42: 99.75 | NK42: 166.25 | NL42: 2254.504876 | NM42: 93.0468 | NN42: 137.6859831 | NO42: 594.6059265 | NP42: 428.3559265 | NQ42: 862.7991096 | NR42: 489.72 | NS42: 99.75 | NT42: 4541.047945 | NU42: 329.574 | NV42: 199.0668
A43: 18.75570776 | B43: -2.5 | C43: -2.5 | D43: 4354.8 | E43: 20.16111111 | F43: 2072.7 | G43: 216 | H43: 2.0727 | I43: 5076 | J43: 21 | K43: 13.58474576 | L43: 4.45090799 | M43: -2.5 | N43: 7.667857143 | O43: 7.667857143 | P43: 15 | Q43: 13.1710018 | R43: 189 | S43: 803.3546528 | T43: 66.40012492 | U43: 55.97852993 | V43: 0.4663242857 | W43: 2.197558789 | X43: 3.719234504 | Y43: 4.382047945 | Z43: 1.6638 | AA43: 0.6628134415 | AB43: 3.072558789 | AC43: 0.6455479452 | AD43: 0.35 | AE43: 0.525 | AF43: 0.875 | AG43: 0.6466757143 | AH43: 1.521675714 | AI43: 0.5873287671 | AJ43: 0.05821917808 | AK43: 0 | AL43: 587.3287671 | AM43: 58.21917808 | AN43: 0 | AP43: 0.6455479452 | AQ43: 0.6455479452 | AR43: 1.988 | BO43: 126.8630137 | BP43: 12.57534247 | BQ43: 0 | CB43: 18.48776912 | CC43: 0 | CD43: 21.60873632 | CE43: 0 | CF43: 71.87995302 | CG43: 0 | CH43: 21.63698303 | CI43: 0 | CJ43: 133.6134415 | CK43: 133.6134415 | CL43: 529.2 | CM43: 662.8134415 | CN43: 28.86050336 | CO43: 662.8134415 | FT43: 2.5 | FU43: 350 | FV43: 525 | FW43: 875 | FX43: 216 | FY43: 2.5 | FZ43: 350 | GA43: 525 | GB43: 875 | GC43: 0.5678571429 | GD43: 21 | GE43: 13.58474576 | GF43: 4.45090799 | GG43: -2.5 | GH43: 7.667857143 | GI43: 21.42571878 | GJ43: 21.42571878 | GK43: 0 | GL43: 646.6757143 | GM43: 1663.8 | GN43: 0 | GO43: 1017.124286 | GP43: 2072.7 | GQ43: 662.8134415 | GR43: 3089.824286 | GS43: 1 | GT43: 662.8134415 | GU43: 645.5479452 | GV43: 3072.558789 | GW43: 875 | GX43: 525 | GY43: 350 | GZ43: 350 | HA43: 350 | HB43: 525 | HC43: 875 | HD43: 75.6 | HE43: 113.4 | HF43: 189 | HG43: 2197.558789 | HH43: 0 | HI43: 143.1677034 | HJ43: 663.6726985 | HK43: 474.6726985 | HL43: 946.5223562 | HM43: 875 | HN43: 113.4 | HP43: 359.3808 | HQ43: 219.6988457 | HU43: 2.5 | HV43: 350 | HW43: 525 | HX43: 875 | HY43: 216 | HZ43: 2.5 | IA43: 350 | IB43: 525 | IC43: 875 | ID43: 0.5678571429 | IE43: 21 | IF43: -2.5 | IG43: 7.655357143 | IH43: 12.35535714 | II43: 0.2401029056 | IJ43: 26.11321878 | IK43: 26.11321878 | IL43: 0 | IM43: 0 | IN43: 944.8007143 | IO43: 1663.8 | IP43: 0 | IQ43: 718.9992857 | IR43: 2072.7 | IS43: 662.8134415 | IT43: 2791.699286 | IU43: 1 | IV43: 662.8134415 | IW43: 645.5479452 | IX43: 2774.433789 | IY43: 875 | IZ43: 525 | JA43: 350 | JB43: 350 | JC43: 350 | JD43: 525 | JE43: 875 | JF43: 75.6 | JG43: 113.4 | JH43: 189 | JI43: 1899.433789 | JJ43: 0 | JK43: 143.1677034 | JL43: 599.2776985 | JM43: 410.2776985 | JN43: 946.5223562 | JO43: 168.1992857 | JP43: 113.4 | JR43: 359.3808 | JS43: 155.3038457 | JW43: =JW42 -> 2.5 | JX43: 350 | JY43: 525 | JZ43: 875 | KA43: 216 | KB43: 2.5 | KC43: 350 | KD43: 525 | KE43: 875 | KF43: =KF42 -> 0.5678571429 | KG43: 21 | KH43: -2.5 | KI43: 7.655357143 | KJ43: 12.35535714 | KK43: 0.2401029056 | KL43: 12.35535714 | KM43: 15 | KN43: 0 | KO43: 0 | KP43: 944.8007143 | KQ43: 1663.8 | KR43: 168.1992857 | KS43: 550.8 | KT43: 2072.7 | KU43: 662.8134415 | KV43: 2623.5 | KW43: 1 | KX43: 662.8134415 | KY43: 645.5479452 | KZ43: 2774.433789 | LA43: 875 | LB43: 525 | LC43: 350 | LD43: 350 | LE43: 350 | LF43: 525 | LG43: 875 | LH43: 75.6 | LI43: 113.4 | LJ43: 189 | LK43: 1899.433789 | LL43: 36.33104571 | LM43: 143.1677034 | LN43: 599.2776985 | LO43: 410.2776985 | LP43: 946.5223562 | LQ43: 168.1992857 | LR43: 113.4 | LT43: 359.3808 | LU43: 155.3038457 | LY43: 2.5 | LZ43: 350 | MA43: 525 | MB43: 875 | MC43: 216 | MD43: 2.5 | ME43: 350 | MF43: 525 | MG43: 875 | MH43: 0.5678571429 | MI43: 21 | MJ43: 13.58474576 | MK43: 4.45090799 | ML43: -2.5 | MM43: 7.667857143 | MN43: 7.667857143 | MO43: 15 | MP43: 0 | MQ43: 646.6757143 | MR43: 1663.8 | MS43: 466.3242857 | MT43: 550.8 | MU43: 2072.7 | MV43: 662.8134415 | MW43: 2623.5 | MX43: 1 | MY43: 662.8134415 | MZ43: 645.5479452 | NA43: 3072.558789 | NB43: 875 | NC43: 525 | ND43: 350 | NE43: 350 | NF43: 350 | NG43: 525 | NH43: 875 | NI43: 75.6 | NJ43: 113.4 | NK43: 189 | NL43: 2197.558789 | NM43: 100.7260457 | NN43: 143.1677034 | NO43: 663.6726985 | NP43: 474.6726985 | NQ43: 946.5223562 | NR43: 466.3242857 | NS43: 113.4 | NT43: 4382.047945 | NU43: 359.3808 | NV43: 219.6988457
A44: 21.44977169 | B44: -1.5 | C44: -1.5 | D44: 7134.1 | E44: 30.22923729 | F44: 1984.5 | G44: 236 | H44: 1.9845 | I44: 5310 | J44: 21 | K44: 13.58474576 | L44: 5.018765133 | M44: -1.5 | N44: 8.035714286 | O44: 8.035714286 | P44: 15 | Q44: 13.53885894 | R44: 206.5 | S44: 824.4683968 | T44: 64.90012492 | U44: 53.42940497 | V44: 0.4429285714 | W44: 2.012038727 | X44: 3.493510156 | Y44: 4.223047945 | Z44: 1.593 | AA44: 0.7295377892 | AB44: 2.887038727 | AC44: 0.6455479452 | AD44: 0.35 | AE44: 0.525 | AF44: 0.875 | AG44: 0.6064714286 | AH44: 1.481471429 | AI44: 0.5873287671 | AJ44: 0.05821917808 | AK44: 0 | AL44: 587.3287671 | AM44: 58.21917808 | AN44: 0 | AP44: 0.6455479452 | AQ44: 0.6455479452 | AR44: 1.9244 | BO44: 138.609589 | BP44: 13.73972603 | BQ44: 0 | CB44: 27.72025591 | CC44: 0 | CD44: 32.39978264 | CE44: 0 | CF44: 107.7756154 | CG44: 0 | CH44: 32.44213529 | CI44: 0 | CJ44: 200.3377892 | CK44: 200.3377892 | CL44: 529.2 | CM44: =CK44+CL44 -> 729.5377892 | CN44: 47.27971825 | CO44: 729.5377892 | FT44: 2.5 | FU44: 350 | FV44: 525 | FW44: 875 | FX44: 236 | FY44: 2.5 | FZ44: 350 | GA44: 525 | GB44: 875 | GC44: 0.5678571429 | GD44: 21 | GE44: 13.58474576 | GF44: 5.018765133 | GG44: -1.5 | GH44: 8.035714286 | GI44: 21.79357592 | GJ44: 21.79357592 | GK44: 0 | GL44: 606.4714286 | GM44: 1593 | GN44: 0 | GO44: 986.5285714 | GP44: 1984.5 | GQ44: 729.5377892 | GR44: 2971.028571 | GS44: 1 | GT44: 729.5377892 | GU44: 645.5479452 | GV44: 2887.038727 | GW44: 875 | GX44: 525 | GY44: 350 | GZ44: 350 | HA44: 350 | HB44: 525 | HC44: 875 | HD44: 82.6 | HE44: 123.9 | HF44: 206.5 | HG44: 2012.038727 | HH44: 0 | HI44: 172.1709183 | HJ44: 681.3411397 | HK44: 474.8411397 | HL44: 996.6393151 | HM44: 875 | HN44: 123.9 | HP44: 375.948 | HQ44: 232.8207429 | HU44: 2.5 | HV44: 350 | HW44: 525 | HX44: 875 | HY44: 236 | HZ44: 2.5 | IA44: 350 | IB44: 525 | IC44: 875 | ID44: 0.5678571429 | IE44: 21 | IF44: -1.5 | IG44: 8.223214286 | IH44: 12.72321429 | II44: 0.8079600484 | IJ44: 26.48107592 | IK44: 26.48107592 | IL44: 0 | IM44: 0 | IN44: 904.5964286 | IO44: 1593 | IP44: 0 | IQ44: 688.4035714 | IR44: 1984.5 | IS44: 729.5377892 | IT44: 2672.903571 | IU44: 1 | IV44: 729.5377892 | IW44: 645.5479452 | IX44: 2588.913727 | IY44: 875 | IZ44: 525 | JA44: 350 | JB44: 350 | JC44: 350 | JD44: 525 | JE44: 875 | JF44: 82.6 | JG44: 123.9 | JH44: 206.5 | JI44: 1713.913727 | JJ44: 0 | JK44: 172.1709183 | JL44: 610.9836397 | JM44: 404.4836397 | JN44: 996.6393151 | JO44: 144.8035714 | JP44: 123.9 | JR44: 375.948 | JS44: 162.4632429 | JW44: =JW43 -> 2.5 | JX44: 350 | JY44: 525 | JZ44: 875 | KA44: 236 | KB44: 2.5 | KC44: 350 | KD44: 525 | KE44: 875 | KF44: =KF43 -> 0.5678571429 | KG44: 21 | KH44: -1.5 | KI44: 8.223214286 | KJ44: 12.72321429 | KK44: 0.8079600484 | KL44: 12.72321429 | KM44: 15 | KN44: 0 | KO44: 0 | KP44: 904.5964286 | KQ44: 1593 | KR44: 144.8035714 | KS44: 543.6 | KT44: 1984.5 | KU44: 729.5377892 | KV44: 2528.1 | KW44: 1 | KX44: 729.5377892 | KY44: 645.5479452 | KZ44: 2588.913727 | LA44: 875 | LB44: 525 | LC44: 350 | LD44: 350 | LE44: 350 | LF44: 525 | LG44: 875 | LH44: 82.6 | LI44: 123.9 | LJ44: 206.5 | LK44: 1713.913727 | LL44: 34.17364286 | LM44: 172.1709183 | LN44: 610.9836397 | LO44: 404.4836397 | LP44: 996.6393151 | LQ44: 144.8035714 | LR44: 123.9 | LT44: 375.948 | LU44: 162.4632429 | LY44: 2.5 | LZ44: 350 | MA44: 525 | MB44: 875 | MC44: 236 | MD44: 2.5 | ME44: 350 | MF44: 525 | MG44: 875 | MH44: 0.5678571429 | MI44: 21 | MJ44: 13.58474576 | MK44: 5.018765133 | ML44: -1.5 | MM44: 8.035714286 | MN44: 8.035714286 | MO44: 15 | MP44: 0 | MQ44: 606.4714286 | MR44: 1593 | MS44: 442.9285714 | MT44: 543.6 | MU44: 1984.5 | MV44: 729.5377892 | MW44: 2528.1 | MX44: 1 | MY44: 729.5377892 | MZ44: 645.5479452 | NA44: 2887.038727 | NB44: 875 | NC44: 525 | ND44: 350 | NE44: 350 | NF44: 350 | NG44: 525 | NH44: 875 | NI44: 82.6 | NJ44: 123.9 | NK44: 206.5 | NL44: 2012.038727 | NM44: 104.5311429 | NN44: 172.1709183 | NO44: 681.3411397 | NP44: 474.8411397 | NQ44: 996.6393151 | NR44: 442.9285714 | NS44: 123.9 | NT44: 4223.047945 | NU44: 375.948 | NV44: 232.8207429
A45: 25.03424658 | B45: -0.5 | C45: -0.5 | D45: 9875.6 | E45: 31.45095541 | F45: 1896.3 | G45: 314 | H45: 1.8963 | I45: 6751 | J45: 21 | K45: 13.58474576 | L45: 5.586622276 | M45: -0.5 | N45: 8.403571429 | O45: 8.403571429 | P45: 15 | Q45: 13.90671608 | R45: 274.75 | S45: 1044.493833 | T45: 63.40012492 | U45: 51.80209876 | V45: 0.4195328571 | W45: 1.885146338 | X45: 3.326413481 | Y45: 4.064047945 | Z45: 1.5222 | AA45: 0.7376344641 | AB45: 2.760146338 | AC45: 0.6455479452 | AD45: 0.35 | AE45: 0.525 | AF45: 0.875 | AG45: 0.5662671429 | AH45: 1.441267143 | AI45: 0.5873287671 | AJ45: 0.05821917808 | AK45: 0 | AL45: 587.3287671 | AM45: 58.21917808 | AN45: 0 | AP45: 0.6455479452 | AQ45: 0.6455479452 | AR45: 1.8608 | BO45: 184.4212329 | BP45: 18.28082192 | BQ45: 0 | CB45: 28.84057327 | CC45: 0 | CD45: 33.7092236 | CE45: 0 | CF45: 112.1313793 | CG45: 0 | CH45: 33.75328795 | CI45: 0 | CJ45: 208.4344641 | CK45: 208.4344641 | CL45: 529.2 | CM45: 737.6344641 | CN45: 65.44842174 | CO45: 737.6344641 | FT45: 2.5 | FU45: 350 | FV45: 525 | FW45: 875 | FX45: 314 | FY45: 2.5 | FZ45: 350 | GA45: 525 | GB45: 875 | GC45: 0.5678571429 | GD45: 21 | GE45: 13.58474576 | GF45: 5.586622276 | GG45: -0.5 | GH45: 8.403571429 | GI45: 22.16143306 | GJ45: 22.16143306 | GK45: 0 | GL45: 566.2671429 | GM45: 1522.2 | GN45: 0 | GO45: 955.9328571 | GP45: 1896.3 | GQ45: 737.6344641 | GR45: 2852.232857 | GS45: 1 | GT45: 737.6344641 | GU45: 645.5479452 | GV45: 2760.146338 | GW45: 875 | GX45: 525 | GY45: 350 | GZ45: 350 | HA45: 350 | HB45: 525 | HC45: 875 | HD45: 109.9 | HE45: 164.85 | HF45: 274.75 | HG45: 1885.146338 | HH45: 0 | HI45: 231.6172217 | HJ45: 866.6859502 | HK45: 591.9359502 | HL45: 1276.111055 | HM45: 875 | HN45: 164.85 | HP45: 477.9708 | HQ45: 300.1629171 | HU45: 2.5 | HV45: 350 | HW45: 525 | HX45: 875 | HY45: 314 | HZ45: 2.5 | IA45: 350 | IB45: 525 | IC45: 875 | ID45: 0.5678571429 | IE45: 21 | IF45: -0.5 | IG45: 8.791071429 | IH45: 13.09107143 | II45: 1.375817191 | IJ45: 26.84893306 | IK45: 26.84893306 | IL45: 0 | IM45: 0 | IN45: 864.3921429 | IO45: 1522.2 | IP45: 0 | IQ45: 657.8078571 | IR45: 1896.3 | IS45: 737.6344641 | IT45: 2554.107857 | IU45: 1 | IV45: 737.6344641 | IW45: 645.5479452 | IX45: 2462.021338 | IY45: 875 | IZ45: 525 | JA45: 350 | JB45: 350 | JC45: 350 | JD45: 525 | JE45: 875 | JF45: 109.9 | JG45: 164.85 | JH45: 274.75 | JI45: 1587.021338 | JJ45: 0 | JK45: 231.6172217 | JL45: 773.0747002 | JM45: 498.3247002 | JN45: 1276.111055 | JO45: 121.4078571 | JP45: 164.85 | JR45: 477.9708 | JS45: 206.5516671 | JW45: =JW44 -> 2.5 | JX45: 350 | JY45: 525 | JZ45: 875 | KA45: 314 | KB45: 2.5 | KC45: 350 | KD45: 525 | KE45: 875 | KF45: =KF44 -> 0.5678571429 | KG45: 21 | KH45: -0.5 | KI45: 8.791071429 | KJ45: 13.09107143 | KK45: 1.375817191 | KL45: 13.09107143 | KM45: 15 | KN45: 0 | KO45: 0 | KP45: 864.3921429 | KQ45: 1522.2 | KR45: 121.4078571 | KS45: 536.4 | KT45: 1896.3 | KU45: 737.6344641 | KV45: 2432.7 | KW45: 1 | KX45: 737.6344641 | KY45: 645.5479452 | KZ45: 2462.021338 | LA45: 875 | LB45: 525 | LC45: 350 | LD45: 350 | LE45: 350 | LF45: 525 | LG45: 875 | LH45: 109.9 | LI45: 164.85 | LJ45: 274.75 | LK45: 1587.021338 | LL45: 38.12206714 | LM45: 231.6172217 | LN45: 773.0747002 | LO45: 498.3247002 | LP45: 1276.111055 | LQ45: 121.4078571 | LR45: 164.85 | LT45: 477.9708 | LU45: 206.5516671 | LY45: 2.5 | LZ45: 350 | MA45: 525 | MB45: 875 | MC45: 314 | MD45: 2.5 | ME45: 350 | MF45: 525 | MG45: 875 | MH45: 0.5678571429 | MI45: 21 | MJ45: 13.58474576 | MK45: 5.586622276 | ML45: -0.5 | MM45: 8.403571429 | MN45: 8.403571429 | MO45: 15 | MP45: 0 | MQ45: 566.2671429 | MR45: 1522.2 | MS45: 419.5328571 | MT45: 536.4 | MU45: 1896.3 | MV45: 737.6344641 | MW45: 2432.7 | MX45: 1 | MY45: 737.6344641 | MZ45: 645.5479452 | NA45: 2760.146338 | NB45: 875 | NC45: 525 | ND45: 350 | NE45: 350 | NF45: 350 | NG45: 525 | NH45: 875 | NI45: 109.9 | NJ45: 164.85 | NK45: 274.75 | NL45: 1885.146338 | NM45: 131.7333171 | NN45: 231.6172217 | NO45: 866.6859502 | NP45: 591.9359502 | NQ45: 1276.111055 | NR45: 419.5328571 | NS45: 164.85 | NT45: 4064.047945 | NU45: 477.9708 | NV45: 300.1629171
A46: 31.24429224 | B46: 0.5 | C46: 0.5 | D46: 15520.9 | E46: 28.53106618 | F46: 1808.1 | G46: 544 | H46: 1.8081 | I46: 11152 | J46: 21 | K46: 13.58474576 | L46: 6.154479419 | M46: 0.5 | N46: 8.771428571 | O46: 8.771428571 | P46: 15 | Q46: 14.27457323 | R46: 476 | S46: 1733.599845 | T46: 61.90012492 | U46: 50.60635882 | V46: 0.3961371429 | W46: 1.785701564 | X46: 3.186764421 | Y46: 3.905047945 | Z46: 1.4514 | AA46: 0.7182835242 | AB46: 2.660701564 | AC46: 0.6455479452 | AD46: 0.35 | AE46: 0.525 | AF46: 0.875 | AG46: 0.5260628571 | AH46: 1.401062857 | AI46: 0.5873287671 | AJ46: 0.05821917808 | AK46: 0 | AL46: 587.3287671 | AM46: 58.21917808 | AN46: 0 | AP46: 0.6455479452 | AQ46: 0.6455479452 | AR46: 1.7972 | BO46: 319.5068493 | BP46: 31.67123288 | BQ46: 0 | CB46: 26.16303046 | CC46: 0 | CD46: 30.579678 | CE46: 0 | CF46: 101.7211643 | CG46: 0 | CH46: 30.61965144 | CI46: 0 | CJ46: 189.0835242 | CK46: 189.0835242 | CL46: 529.2 | CM46: 718.2835242 | CN46: 102.8614372 | CO46: 718.2835242 | FT46: 2.5 | FU46: 350 | FV46: 525 | FW46: 875 | FX46: 544 | FY46: 2.5 | FZ46: 350 | GA46: 525 | GB46: 875 | GC46: 0.5678571429 | GD46: 21 | GE46: 13.58474576 | GF46: 6.154479419 | GG46: 0.5 | GH46: 8.771428571 | GI46: 22.52929021 | GJ46: 22.52929021 | GK46: 0.5 | GL46: 526.0628571 | GM46: 1451.4 | GN46: 0 | GO46: 925.3371429 | GP46: 1808.1 | GQ46: 718.2835242 | GR46: 2733.437143 | GS46: 1 | GT46: 718.2835242 | GU46: 645.5479452 | GV46: 2660.701564 | GW46: 875 | GX46: 525 | GY46: 350 | GZ46: 350 | HA46: 350 | HB46: 525 | HC46: 875 | HD46: 190.4 | HE46: 285.6 | HF46: 476 | HG46: 1785.701564 | HH46: 0 | HI46: 390.7462372 | HJ46: 1447.421651 | HK46: 971.4216507 | HL46: 2124.346082 | HM46: 875 | HN46: 285.6 | HP46: 789.5616 | HQ46: 503.3834057 | HU46: 2.5 | HV46: 350 | HW46: 525 | HX46: 875 | HY46: 544 | HZ46: 2.5 | IA46: 350 | IB46: 525 | IC46: 875 | ID46: 0.5678571429 | IE46: 21 | IF46: 0.5 | IG46: 9.358928571 | IH46: 13.45892857 | II46: 1.943674334 | IJ46: 27.21679021 | IK46: 27.21679021 | IL46: 0 | IM46: 0.5 | IN46: 824.1878571 | IO46: 1451.4 | IP46: 0 | IQ46: 627.2121429 | IR46: 1808.1 | IS46: 718.2835242 | IT46: 2435.312143 | IU46: 1 | IV46: 718.2835242 | IW46: 645.5479452 | IX46: 2362.576564 | IY46: 875 | IZ46: 525 | JA46: 350 | JB46: 350 | JC46: 350 | JD46: 525 | JE46: 875 | JF46: 190.4 | JG46: 285.6 | JH46: 476 | JI46: 1487.576564 | JJ46: 0 | JK46: 390.7462372 | JL46: 1285.241651 | JM46: 809.2416507 | JN46: 2124.346082 | JO46: 98.01214286 | JP46: 285.6 | JR46: 789.5616 | JS46: 341.2034057 | JW46: =JW45 -> 2.5 | JX46: 350 | JY46: 525 | JZ46: 875 | KA46: 544 | KB46: 2.5 | KC46: 350 | KD46: 525 | KE46: 875 | KF46: =KF45 -> 0.5678571429 | KG46: 21 | KH46: 0.5 | KI46: 9.358928571 | KJ46: 13.45892857 | KK46: 1.943674334 | KL46: 13.45892857 | KM46: 15 | KN46: 0 | KO46: 0.5 | KP46: 824.1878571 | KQ46: 1451.4 | KR46: 98.01214286 | KS46: 529.2 | KT46: 1808.1 | KU46: 718.2835242 | KV46: 2337.3 | KW46: 1 | KX46: 718.2835242 | KY46: 645.5479452 | KZ46: 2362.576564 | LA46: 875 | LB46: 525 | LC46: 350 | LD46: 350 | LE46: 350 | LF46: 525 | LG46: 875 | LH46: 190.4 | LI46: 285.6 | LJ46: 476 | LK46: 1487.576564 | LL46: 53.31860571 | LM46: 390.7462372 | LN46: 1285.241651 | LO46: 809.2416507 | LP46: 2124.346082 | LQ46: 98.01214286 | LR46: 285.6 | LT46: 789.5616 | LU46: 341.2034057 | LY46: 2.5 | LZ46: 350 | MA46: 525 | MB46: 875 | MC46: 544 | MD46: 2.5 | ME46: 350 | MF46: 525 | MG46: 875 | MH46: 0.5678571429 | MI46: 21 | MJ46: 13.58474576 | MK46: 6.154479419 | ML46: 0.5 | MM46: 8.771428571 | MN46: 8.771428571 | MO46: 15 | MP46: 0.5 | MQ46: 526.0628571 | MR46: 1451.4 | MS46: 396.1371429 | MT46: 529.2 | MU46: 1808.1 | MV46: 718.2835242 | MW46: 2337.3 | MX46: 1 | MY46: 718.2835242 | MZ46: 645.5479452 | NA46: 2660.701564 | NB46: 875 | NC46: 525 | ND46: 350 | NE46: 350 | NF46: 350 | NG46: 525 | NH46: 875 | NI46: 190.4 | NJ46: 285.6 | NK46: 476 | NL46: 1785.701564 | NM46: 215.4986057 | NN46: 390.7462372 | NO46: 1447.421651 | NP46: 971.4216507 | NQ46: 2124.346082 | NR46: 396.1371429 | NS46: 285.6 | NT46: 3905.047945 | NU46: 789.5616 | NV46: 503.3834057
A47: 36.80365297 | B47: 1.5 | C47: 1.5 | D47: 16252.9 | E47: 33.37351129 | F47: 1719.9 | G47: 487 | H47: 1.7199 | I47: 9496.5 | J47: 21 | K47: 13.58474576 | L47: 6.722336562 | M47: 1.5 | N47: 9.139285714 | O47: 9.139285714 | P47: 15 | Q47: 14.64243037 | R47: 426.125 | S47: 1458.892339 | T47: 60.40012492 | U47: 48.60176343 | V47: 0.3727414286 | W47: 1.634813583 | X47: 2.995672154 | Y47: 3.746047945 | Z47: 1.3806 | AA47: 0.7503757911 | AB47: 2.509813583 | AC47: 0.6455479452 | AD47: 0.35 | AE47: 0.525 | AF47: 0.875 | AG47: 0.4858585714 | AH47: 1.360858571 | AI47: 0.5873287671 | AJ47: 0.05821917808 | AK47: 0 | AL47: 587.3287671 | AM47: 58.21917808 | AN47: 0 | AP47: 0.6455479452 | AQ47: 0.6455479452 | AR47: 1.7336 | BO47: 286.0291096 | BP47: 28.35273973 | BQ47: 0 | CB47: 30.60355989 | CC47: 0 | CD47: 35.76982447 | CE47: 0 | CF47: 118.9858243 | CG47: 0 | CH47: 35.81658241 | CI47: 0 | CJ47: 221.1757911 | CK47: 221.1757911 | CL47: 529.2 | CM47: 750.3757911 | CN47: 107.7126102 | CO47: 750.3757911 | FT47: 2.5 | FU47: 350 | FV47: 525 | FW47: 875 | FX47: 487 | FY47: 2.5 | FZ47: 350 | GA47: 525 | GB47: 875 | GC47: 0.5678571429 | GD47: 21 | GE47: 13.58474576 | GF47: 6.722336562 | GG47: 1.5 | GH47: 9.139285714 | GI47: 22.89714735 | GJ47: 22.89714735 | GK47: 1.5 | GL47: 485.8585714 | GM47: 1380.6 | GN47: 0 | GO47: 894.7414286 | GP47: 1719.9 | GQ47: 750.3757911 | GR47: 2614.641429 | GS47: 1 | GT47: 750.3757911 | GU47: 645.5479452 | GV47: 2509.813583 | GW47: 875 | GX47: 525 | GY47: 350 | GZ47: 350 | HA47: 350 | HB47: 525 | HC47: 875 | HD47: 170.45 | HE47: 255.675 | HF47: 426.125 | HG47: 1634.813583 | HH47: 0 | HI47: 365.4330102 | HJ47: 1222.279215 | HK47: 796.1542148 | HL47: 1824.325349 | HM47: 875 | HN47: 255.675 | HP47: 672.3522 | HQ47: 435.7390757 | HU47: 2.5 | HV47: 350 | HW47: 525 | HX47: 875 | HY47: 487 | HZ47: 2.5 | IA47: 350 | IB47: 525 | IC47: 875 | ID47: 0.5678571429 | IE47: 21 | IF47: 1.5 | IG47: 9.926785714 | IH47: 13.82678571 | II47: 2.511531477 | IJ47: 27.58464735 | IK47: 27.58464735 | IL47: 0 | IM47: 1.5 | IN47: 783.9835714 | IO47: 1380.6 | IP47: 0 | IQ47: 596.6164286 | IR47: 1719.9 | IS47: 750.3757911 | IT47: 2316.516429 | IU47: 1 | IV47: 750.3757911 | IW47: 645.5479452 | IX47: 2211.688583 | IY47: 875 | IZ47: 525 | JA47: 350 | JB47: 350 | JC47: 350 | JD47: 525 | JE47: 875 | JF47: 170.45 | JG47: 255.675 | JH47: 426.125 | JI47: 1336.688583 | JJ47: 0 | JK47: 365.4330102 | JL47: 1077.09234 | JM47: 650.9673398 | JN47: 1824.325349 | JO47: 74.61642857 | JP47: 255.675 | JR47: 672.3522 | JS47: 290.5522007 | JW47: =JW46 -> 2.5 | JX47: 350 | JY47: 525 | JZ47: 875 | KA47: 487 | KB47: 2.5 | KC47: 350 | KD47: 525 | KE47: 875 | KF47: =KF46 -> 0.5678571429 | KG47: 21 | KH47: 1.5 | KI47: 9.926785714 | KJ47: 13.82678571 | KK47: 2.511531477 | KL47: 13.82678571 | KM47: 15 | KN47: 0 | KO47: 1.5 | KP47: 783.9835714 | KQ47: 1380.6 | KR47: 74.61642857 | KS47: 522 | KT47: 1719.9 | KU47: 750.3757911 | KV47: 2241.9 | KW47: 1 | KX47: 750.3757911 | KY47: 645.5479452 | KZ47: 2211.688583 | LA47: 875 | LB47: 525 | LC47: 350 | LD47: 350 | LE47: 350 | LF47: 525 | LG47: 875 | LH47: 170.45 | LI47: 255.675 | LJ47: 426.125 | LK47: 1336.688583 | LL47: 36.33820071 | LM47: 365.4330102 | LN47: 1077.09234 | LO47: 650.9673398 | LP47: 1824.325349 | LQ47: 74.61642857 | LR47: 255.675 | LT47: 672.3522 | LU47: 290.5522007 | LY47: 2.5 | LZ47: 350 | MA47: 525 | MB47: 875 | MC47: 487 | MD47: 2.5 | ME47: 350 | MF47: 525 | MG47: 875 | MH47: 0.5678571429 | MI47: 21 | MJ47: 13.58474576 | MK47: 6.722336562 | ML47: 1.5 | MM47: 9.139285714 | MN47: 9.139285714 | MO47: 15 | MP47: 1.5 | MQ47: 485.8585714 | MR47: 1380.6 | MS47: 372.7414286 | MT47: 522 | MU47: 1719.9 | MV47: 750.3757911 | MW47: 2241.9 | MX47: 1 | MY47: 750.3757911 | MZ47: 645.5479452 | NA47: 2509.813583 | NB47: 875 | NC47: 525 | ND47: 350 | NE47: 350 | NF47: 350 | NG47: 525 | NH47: 875 | NI47: 170.45 | NJ47: 255.675 | NK47: 426.125 | NL47: 1634.813583 | NM47: 181.5250757 | NN47: 365.4330102 | NO47: 1222.279215 | NP47: 796.1542148 | NQ47: 1824.325349 | NR47: 372.7414286 | NS47: 255.675 | NT47: 3746.047945 | NU47: 672.3522 | NV47: 435.7390757
A48: 41.97488584 | B48: 2.5 | C48: 2.5 | D48: 22113 | E48: 48.81456954 | F48: 1631.7 | G48: 453 | H48: 1.6317 | I48: 8380.5 | J48: 21 | K48: 13.58474576 | L48: 7.290193705 | M48: 2.5 | N48: 9.507142857 | O48: 9.507142857 | P48: 15 | Q48: 15.01028751 | R48: 396.375 | S48: 1238.655953 | T48: 58.90012492 | U48: 45.49276495 | V48: 0.3493457143 | W48: 1.413685565 | X48: 2.734339851 | Y48: 3.587047945 | Z48: 1.3098 | AA48: 0.8527080941 | AB48: 2.288685565 | AC48: 0.6455479452 | AD48: 0.35 | AE48: 0.525 | AF48: 0.875 | AG48: 0.4456542857 | AH48: 1.320654286 | AI48: 0.5873287671 | AJ48: 0.05821917808 | AK48: 0 | AL48: 587.3287671 | AM48: 58.21917808 | AN48: 0 | AP48: 0.6455479452 | AQ48: 0.6455479452 | AR48: 1.67 | BO48: 266.0599315 | BP48: 26.37328767 | BQ48: 0 | CB48: 44.76303345 | CC48: 0 | CD48: 52.31959468 | CE48: 0 | CF48: 174.0374797 | CG48: 0 | CH48: 52.38798631 | CI48: 0 | CJ48: 323.5080941 | CK48: 323.5080941 | CL48: 529.2 | CM48: 852.7080941 | CN48: 146.5491666 | CO48: 852.7080941 | FT48: 2.5 | FU48: 350 | FV48: 525 | FW48: 875 | FX48: 453 | FY48: 2.5 | FZ48: 350 | GA48: 525 | GB48: 875 | GC48: 0.5678571429 | GD48: 21 | GE48: 13.58474576 | GF48: 7.290193705 | GG48: 2.5 | GH48: 9.507142857 | GI48: 23.26500449 | GJ48: 23.26500449 | GK48: 2.5 | GL48: 445.6542857 | GM48: 1309.8 | GN48: 0 | GO48: 864.1457143 | GP48: 1631.7 | GQ48: 852.7080941 | GR48: 2495.845714 | GS48: 1 | GT48: 852.7080941 | GU48: 645.5479452 | GV48: 2288.685565 | GW48: 875 | GX48: 525 | GY48: 350 | GZ48: 350 | HA48: 350 | HB48: 525 | HC48: 875 | HD48: 158.55 | HE48: 237.825 | HF48: 396.375 | HG48: 1413.685565 | HH48: 0 | HI48: 386.2767666 | HJ48: 1036.774561 | HK48: 640.3995611 | HL48: 1624.932719 | HM48: 875 | HN48: 237.825 | HP48: 593.3394 | HQ48: 391.4580086 | HU48: 2.5 | HV48: 350 | HW48: 525 | HX48: 875 | HY48: 453 | HZ48: 2.5 | IA48: 350 | IB48: 525 | IC48: 875 | ID48: 0.5678571429 | IE48: 21 | IF48: 2.5 | IG48: 10.49464286 | IH48: 14.19464286 | II48: 3.07938862 | IJ48: 27.95250449 | IK48: 27.95250449 | IL48: 0 | IM48: 2.5 | IN48: 743.7792857 | IO48: 1309.8 | IP48: 0 | IQ48: 566.0207143 | IR48: 1631.7 | IS48: 852.7080941 | IT48: 2197.720714 | IU48: 1 | IV48: 852.7080941 | IW48: 645.5479452 | IX48: 1990.560565 | IY48: 875 | IZ48: 525 | JA48: 350 | JB48: 350 | JC48: 350 | JD48: 525 | JE48: 875 | JF48: 158.55 | JG48: 237.825 | JH48: 396.375 | JI48: 1115.560565 | JJ48: 0 | JK48: 386.2767666 | JL48: 901.7239361 | JM48: 505.3489361 | JN48: 1624.932719 | JO48: 51.22071429 | JP48: 237.825 | JR48: 593.3394 | JS48: 256.4073836 | JW48: =JW47 -> 2.5 | JX48: 350 | JY48: 525 | JZ48: 875 | KA48: 453 | KB48: 2.5 | KC48: 350 | KD48: 525 | KE48: 875 | KF48: =KF47 -> 0.5678571429 | KG48: 21 | KH48: 2.5 | KI48: 10.49464286 | KJ48: 14.19464286 | KK48: 3.07938862 | KL48: 14.19464286 | KM48: 15 | KN48: 0 | KO48: 2.5 | KP48: 743.7792857 | KQ48: 1309.8 | KR48: 51.22071429 | KS48: 514.8 | KT48: 1631.7 | KU48: 852.7080941 | KV48: 2146.5 | KW48: 1 | KX48: 852.7080941 | KY48: 645.5479452 | KZ48: 1990.560565 | LA48: 875 | LB48: 525 | LC48: 350 | LD48: 350 | LE48: 350 | LF48: 525 | LG48: 875 | LH48: 158.55 | LI48: 237.825 | LJ48: 396.375 | LK48: 1115.560565 | LL48: 23.20298357 | LM48: 386.2767666 | LN48: 901.7239361 | LO48: 505.3489361 | LP48: 1624.932719 | LQ48: 51.22071429 | LR48: 237.825 | LT48: 593.3394 | LU48: 256.4073836 | LY48: 2.5 | LZ48: 350 | MA48: 525 | MB48: 875 | MC48: 453 | MD48: 2.5 | ME48: 350 | MF48: 525 | MG48: 875 | MH48: 0.5678571429 | MI48: 21 | MJ48: 13.58474576 | MK48: 7.290193705 | ML48: 2.5 | MM48: 9.507142857 | MN48: 9.507142857 | MO48: 15 | MP48: 2.5 | MQ48: 445.6542857 | MR48: 1309.8 | MS48: 349.3457143 | MT48: 514.8 | MU48: 1631.7 | MV48: 852.7080941 | MW48: 2146.5 | MX48: 1 | MY48: 852.7080941 | MZ48: 645.5479452 | NA48: 2288.685565 | NB48: 875 | NC48: 525 | ND48: 350 | NE48: 350 | NF48: 350 | NG48: 525 | NH48: 875 | NI48: 158.55 | NJ48: 237.825 | NK48: 396.375 | NL48: 1413.685565 | NM48: 158.2536086 | NN48: 386.2767666 | NO48: 1036.774561 | NP48: 640.3995611 | NQ48: 1624.932719 | NR48: 349.3457143 | NS48: 237.825 | NT48: 3587.047945 | NU48: 593.3394 | NV48: 391.4580086
A49: 45.85616438 | B49: 3.5 | C49: 3.5 | D49: 18565 | E49: 54.60294118 | F49: 1543.5 | G49: 340 | H49: 1.5435 | I49: 5950 | J49: 21 | K49: 13.58474576 | L49: 7.858050847 | M49: 3.5 | N49: 9.875 | O49: 9.875 | P49: 15 | Q49: 15.37814465 | R49: 297.5 | S49: 862.5727441 | T49: 57.40012492 | U49: 43.38960156 | V49: 0.32595 | W49: 1.256528659 | X49: 2.536978659 | Y49: 3.428047945 | Z49: 1.239 | AA49: 0.8910692862 | AB49: 2.131528659 | AC49: 0.6455479452 | AD49: 0.35 | AE49: 0.525 | AF49: 0.875 | AG49: 0.40545 | AH49: 1.28045 | AI49: 0.5873287671 | AJ49: 0.05821917808 | AK49: 0 | AL49: 587.3287671 | AM49: 58.21917808 | AN49: 0 | AP49: 0.6455479452 | AQ49: 0.6455479452 | AR49: 1.6064 | BO49: 199.6917808 | BP49: 19.79452055 | BQ49: 0 | CB49: 50.07097892 | CC49: 0 | CD49: 58.52358789 | CE49: 0 | CF49: 194.67463 | CG49: 0 | CH49: 58.60008932 | CI49: 0 | CJ49: 361.8692862 | CK49: 361.8692862 | CL49: 529.2 | CM49: 891.0692862 | CN49: 123.0355573 | CO49: 891.0692862 | FT49: 2.5 | FU49: 350 | FV49: 525 | FW49: 875 | FX49: 340 | FY49: 2.5 | FZ49: 350 | GA49: 525 | GB49: 875 | GC49: 0.5678571429 | GD49: 21 | GE49: 13.58474576 | GF49: 7.858050847 | GG49: 3.5 | GH49: 9.875 | GI49: 23.63286164 | GJ49: 23.63286164 | GK49: 3.5 | GL49: 405.45 | GM49: 1239 | GN49: 0 | GO49: 833.55 | GP49: 1543.5 | GQ49: 891.0692862 | GR49: 2377.05 | GS49: 1 | GT49: 891.0692862 | GU49: 645.5479452 | GV49: 2131.528659 | GW49: 875 | GX49: 525 | GY49: 350 | GZ49: 350 | HA49: 350 | HB49: 525 | HC49: 875 | HD49: 119 | HE49: 178.5 | HF49: 297.5 | HG49: 1256.528659 | HH49: 0 | HI49: 302.9635573 | HJ49: 724.7197441 | HK49: 427.2197441 | HL49: 1165.536301 | HM49: 875 | HN49: 178.5 | HP49: 421.26 | HQ49: 283.407 | HU49: 2.5 | HV49: 350 | HW49: 525 | HX49: 875 | HY49: 340 | HZ49: 2.5 | IA49: 350 | IB49: 525 | IC49: 875 | ID49: 0.5678571429 | IE49: 21 | IF49: 3.5 | IG49: 11.0625 | IH49: 14.5625 | II49: 3.647245763 | IJ49: 28.32036164 | IK49: 28.32036164 | IL49: 0 | IM49: 3.5 | IN49: 703.575 | IO49: 1239 | IP49: 0 | IQ49: 535.425 | IR49: 1543.5 | IS49: 891.0692862 | IT49: 2078.925 | IU49: 1 | IV49: 891.0692862 | IW49: 645.5479452 | IX49: 1833.403659 | IY49: 875 | IZ49: 525 | JA49: 350 | JB49: 350 | JC49: 350 | JD49: 525 | JE49: 875 | JF49: 119 | JG49: 178.5 | JH49: 297.5 | JI49: 958.403659 | JJ49: 0 | JK49: 302.9635573 | JL49: 623.3572441 | JM49: 325.8572441 | JN49: 1165.536301 | JO49: 27.825 | JP49: 178.5 | JR49: 421.26 | JS49: 182.0445 | JW49: =JW48 -> 2.5 | JX49: 350 | JY49: 525 | JZ49: 875 | KA49: 340 | KB49: 2.5 | KC49: 350 | KD49: 525 | KE49: 875 | KF49: =KF48 -> 0.5678571429 | KG49: 21 | KH49: 3.5 | KI49: 11.0625 | KJ49: 14.5625 | KK49: 3.647245763 | KL49: 14.5625 | KM49: 15 | KN49: 0 | KO49: 3.5 | KP49: 703.575 | KQ49: 1239 | KR49: 27.825 | KS49: 507.6 | KT49: 1543.5 | KU49: 891.0692862 | KV49: 2051.1 | KW49: 1 | KX49: 891.0692862 | KY49: 645.5479452 | KZ49: 1833.403659 | LA49: 875 | LB49: 525 | LC49: 350 | LD49: 350 | LE49: 350 | LF49: 525 | LG49: 875 | LH49: 119 | LI49: 178.5 | LJ49: 297.5 | LK49: 958.403659 | LL49: 9.4605 | LM49: 302.9635573 | LN49: 623.3572441 | LO49: 325.8572441 | LP49: 1165.536301 | LQ49: 27.825 | LR49: 178.5 | LT49: 421.26 | LU49: 182.0445 | LY49: 2.5 | LZ49: 350 | MA49: 525 | MB49: 875 | MC49: 340 | MD49: 2.5 | ME49: 350 | MF49: 525 | MG49: 875 | MH49: 0.5678571429 | MI49: 21 | MJ49: 13.58474576 | MK49: 7.858050847 | ML49: 3.5 | MM49: 9.875 | MN49: 9.875 | MO49: 15 | MP49: 3.5 | MQ49: 405.45 | MR49: 1239 | MS49: 325.95 | MT49: 507.6 | MU49: 1543.5 | MV49: 891.0692862 | MW49: 2051.1 | MX49: 1 | MY49: 891.0692862 | MZ49: 645.5479452 | NA49: 2131.528659 | NB49: 875 | NC49: 525 | ND49: 350 | NE49: 350 | NF49: 350 | NG49: 525 | NH49: 875 | NI49: 119 | NJ49: 178.5 | NK49: 297.5 | NL49: 1256.528659 | NM49: 110.823 | NN49: 302.9635573 | NO49: 724.7197441 | NP49: 427.2197441 | NQ49: 1165.536301 | NR49: 325.95 | NS49: 178.5 | NT49: 3428.047945 | NU49: 421.26 | NV49: 283.407
A50: 49.07534247 | B50: 4.5 | C50: 4.5 | D50: 18897 | E50: 67.0106383 | F50: 1455.3 | G50: 282 | H50: 1.4553 | I50: 4653 | J50: 21 | K50: 13.58474576 | L50: 8.42590799 | M50: 4.5 | N50: 10.24285714 | O50: 10.24285714 | P50: 15 | Q50: 15.7460018 | R50: 246.75 | S50: 647.4013044 | T50: 55.90012492 | U50: 40.59668721 | V50: 0.3025542857 | W50: 1.055503592 | X50: 2.295749306 | Y50: 3.269047945 | Z50: 1.1682 | AA50: 0.9732986387 | AB50: 1.930503592 | AC50: 0.6455479452 | AD50: 0.35 | AE50: 0.525 | AF50: 0.875 | AG50: 0.3652457143 | AH50: 1.240245714 | AI50: 0.5873287671 | AJ50: 0.05821917808 | AK50: 0 | AL50: 587.3287671 | AM50: 58.21917808 | AN50: 0 | AP50: 0.6455479452 | AQ50: 0.6455479452 | AR50: 1.5428 | BO50: 165.6267123 | BP50: 16.41780822 | BQ50: 0 | CB50: 61.44885578 | CC50: 0 | CD50: 71.82219301 | CE50: 0 | CF50: 238.9115117 | CG50: 0 | CH50: 71.91607823 | CI50: 0 | CJ50: 444.0986387 | CK50: 444.0986387 | CL50: 529.2 | CM50: 973.2986387 | CN50: 125.2358161 | CO50: 973.2986387 | FT50: 2.5 | FU50: 350 | FV50: 525 | FW50: 875 | FX50: 282 | FY50: 2.5 | FZ50: 350 | GA50: 525 | GB50: 875 | GC50: 0.5678571429 | GD50: 21 | GE50: 13.58474576 | GF50: 8.42590799 | GG50: 4.5 | GH50: 10.24285714 | GI50: 24.00071878 | GJ50: 24.00071878 | GK50: 4.5 | GL50: 365.2457143 | GM50: 1168.2 | GN50: 0 | GO50: 802.9542857 | GP50: 1455.3 | GQ50: 973.2986387 | GR50: 2258.254286 | GS50: 1 | GT50: 973.2986387 | GU50: 645.5479452 | GV50: 1930.503592 | GW50: 875 | GX50: 525 | GY50: 350 | GZ50: 350 | HA50: 350 | HB50: 525 | HC50: 875 | HD50: 98.7 | HE50: 148.05 | HF50: 246.75 | HG50: 1055.503592 | HH50: 0 | HI50: 274.4702161 | HJ50: 544.402013 | HK50: 297.652013 | HL50: 921.8715205 | HM50: 875 | HN50: 148.05 | HP50: 329.4324 | HQ50: 226.4331086 | HU50: 2.5 | HV50: 350 | HW50: 525 | HX50: 875 | HY50: 282 | HZ50: 2.5 | IA50: 336.5528571 | IB50: 504.8292857 | IC50: 841.3821429 | ID50: 0.5678571429 | IE50: 21 | IF50: 4.5 | IG50: 11.63035714 | IH50: 14.93035714 | II50: 4.5 | IJ50: 28.15963612 | IK50: 28.15963612 | IL50: 0 | IM50: 4.5 | IN50: 663.3707143 | IO50: 1168.2 | IP50: 0 | IQ50: 504.8292857 | IR50: 1455.3 | IS50: 973.2986387 | IT50: 1960.129286 | IU50: 1 | IV50: 973.2986387 | IW50: 645.5479452 | IX50: 1632.378592 | IY50: 875 | IZ50: 504.8292857 | JA50: 350 | JB50: 336.5528571 | JC50: 336.5528571 | JD50: 504.8292857 | JE50: 841.3821429 | JF50: 94.90790571 | JG50: 142.3618586 | JH50: 237.2697643 | JI50: 790.9964493 | JJ50: 0 | JK50: 274.4702161 | JL50: 460.330763 | JM50: 223.0609987 | JN50: 921.8715205 | JO50: 4.429285714 | JP50: 142.3618586 | JR50: 329.4324 | JS50: 142.3618586 | JW50: =JW49 -> 2.5 | JX50: 350 | JY50: 525 | JZ50: 875 | KA50: 282 | KB50: 2.5 | KC50: 336.5528571 | KD50: 504.8292857 | KE50: 841.3821429 | KF50: =KF49 -> 0.5678571429 | KG50: 21 | KH50: 4.5 | KI50: 11.63035714 | KJ50: 14.93035714 | KK50: 4.5 | KL50: 14.93035714 | KM50: 15 | KN50: 0 | KO50: 4.5 | KP50: 663.3707143 | KQ50: 1168.2 | KR50: 4.429285714 | KS50: 500.4 | KT50: 1455.3 | KU50: 973.2986387 | KV50: 1955.7 | KW50: 1 | KX50: 973.2986387 | KY50: 645.5479452 | KZ50: 1632.378592 | LA50: 875 | LB50: 504.8292857 | LC50: 350 | LD50: 336.5528571 | LE50: 336.5528571 | LF50: 504.8292857 | LG50: 841.3821429 | LH50: 94.90790571 | LI50: 142.3618586 | LJ50: 237.2697643 | LK50: 790.9964493 | LL50: 1.249058571 | LM50: 274.4702161 | LN50: 460.330763 | LO50: 223.0609987 | LP50: 921.8715205 | LQ50: 4.429285714 | LR50: 142.3618586 | LT50: 329.4324 | LU50: 142.3618586 | LY50: 2.5 | LZ50: 350 | MA50: 525 | MB50: 875 | MC50: 282 | MD50: 2.5 | ME50: 350 | MF50: 525 | MG50: 875 | MH50: 0.5678571429 | MI50: 21 | MJ50: 13.58474576 | MK50: 8.42590799 | ML50: 4.5 | MM50: 10.24285714 | MN50: 10.24285714 | MO50: 15 | MP50: 4.5 | MQ50: 365.2457143 | MR50: 1168.2 | MS50: 302.5542857 | MT50: 500.4 | MU50: 1455.3 | MV50: 973.2986387 | MW50: 1955.7 | MX50: 1 | MY50: 973.2986387 | MZ50: 645.5479452 | NA50: 1930.503592 | NB50: 875 | NC50: 525 | ND50: 350 | NE50: 350 | NF50: 350 | NG50: 525 | NH50: 875 | NI50: 98.7 | NJ50: 148.05 | NK50: 246.75 | NL50: 1055.503592 | NM50: 85.32030857 | NN50: 274.4702161 | NO50: 544.402013 | NP50: 297.652013 | NQ50: 921.8715205 | NR50: 302.5542857 | NS50: 148.05 | NT50: 3269.047945 | NU50: 329.4324 | NV50: 226.4331086
A51: 52.3630137 | B51: 5.5 | C51: 5.5 | D51: 21386.3 | E51: 74.25798611 | F51: 1367.1 | G51: 288 | H51: 1.3671 | I51: 4464 | J51: 21 | K51: 13.58474576 | L51: 8.993765133 | M51: 5.5 | N51: 10.61071429 | O51: 10.61071429 | P51: 15 | Q51: 16.11385894 | R51: 252 | S51: 601.55109 | T51: 54.40012492 | U51: 38.3414947 | V51: 0.2791585714 | W51: 0.8886776341 | X51: 2.088719063 | Y51: 3.110047945 | Z51: 1.0974 | AA51: 1.021328883 | AB51: 1.763677634 | AC51: 0.6455479452 | AD51: 0.35 | AE51: 0.525 | AF51: 0.875 | AG51: 0.3250414286 | AH51: 1.200041429 | AI51: 0.5873287671 | AJ51: 0.05821917808 | AK51: 0 | AL51: 587.3287671 | AM51: 58.21917808 | AN51: 0 | AP51: 0.6455479452 | AQ51: 0.6455479452 | AR51: 1.4792 | BO51: 169.1506849 | BP51: 16.76712329 | BQ51: 0 | CB51: 68.0946846 | CC51: 0 | CD51: 79.58992104 | CE51: 0 | CF51: 264.7503168 | CG51: 0 | CH51: 79.69396016 | CI51: 0 | CJ51: 492.1288826 | CK51: 492.1288826 | CL51: 529.2 | CM51: 1021.328883 | CN51: 141.7331182 | CO51: 1021.328883 | FT51: 2.5 | FU51: 350 | FV51: 525 | FW51: 875 | FX51: 288 | FY51: 2.5 | FZ51: 350 | GA51: 525 | GB51: 875 | GC51: 0.5678571429 | GD51: 21 | GE51: 13.58474576 | GF51: 8.993765133 | GG51: 5.5 | GH51: 10.61071429 | GI51: 24.36857592 | GJ51: 24.36857592 | GK51: 5.5 | GL51: 325.0414286 | GM51: 1097.4 | GN51: 0 | GO51: 772.3585714 | GP51: 1367.1 | GQ51: 1021.328883 | GR51: 2139.458571 | GS51: 1 | GT51: 1021.328883 | GU51: 645.5479452 | GV51: 1763.677634 | GW51: 875 | GX51: 525 | GY51: 350 | GZ51: 350 | HA51: 350 | HB51: 525 | HC51: 875 | HD51: 100.8 | HE51: 151.2 | HF51: 252 | HG51: 888.6776341 | HH51: 0 | HI51: 294.1427182 | HJ51: 507.9391586 | HK51: 255.9391586 | HL51: 895.6938082 | HM51: 875 | HN51: 151.2 | HP51: 316.0512 | HQ51: 222.4392686 | HU51: 2.5 | HV51: 350 | HW51: 525 | HX51: 875 | HY51: 288 | HZ51: 2.5 | IA51: 316.1557143 | IB51: 474.2335714 | IC51: 790.3892857 | ID51: 0.5678571429 | IE51: 21 | IF51: 5.5 | IG51: 12.19821429 | IH51: 15.29821429 | II51: 5.5 | IJ51: 27.72571878 | IK51: 27.72571878 | IL51: 0 | IM51: 5.5 | IN51: 623.1664286 | IO51: 1097.4 | IP51: 0 | IQ51: 474.2335714 | IR51: 1367.1 | IS51: 1021.328883 | IT51: 1841.333571 | IU51: 1 | IV51: 1021.328883 | IW51: 645.5479452 | IX51: 1465.552634 | IY51: 875 | IZ51: 474.2335714 | JA51: 350 | JB51: 316.1557143 | JC51: 316.1557143 | JD51: 474.2335714 | JE51: 790.3892857 | JF51: 91.05284571 | JG51: 136.5792686 | JH51: 227.6321143 | JI51: 675.1633483 | JJ51: 0 | JK51: 294.1427182 | JL51: 422.0791586 | JM51: 194.4470443 | JN51: 895.6938082 | JO51: 0 | JP51: 136.5792686 | JR51: 316.0512 | JS51: 136.5792686 | JW51: =JW50 -> 2.5 | JX51: 350 | JY51: 525 | JZ51: 875 | KA51: 288 | KB51: 2.5 | KC51: 316.1557143 | KD51: 474.2335714 | KE51: 790.3892857 | KF51: =KF50 -> 0.5678571429 | KG51: 21 | KH51: 5.5 | KI51: 12.19821429 | KJ51: 15.29821429 | KK51: 5.5 | KL51: 15.29821429 | KM51: 15.29821429 | KN51: 0 | KO51: 5.5 | KP51: 623.1664286 | KQ51: 1097.4 | KR51: 0 | KS51: 474.2335714 | KT51: 1367.1 | KU51: 1021.328883 | KV51: 1841.333571 | KW51: 1 | KX51: 1021.328883 | KY51: 645.5479452 | KZ51: 1465.552634 | LA51: 875 | LB51: 474.2335714 | LC51: 350 | LD51: 316.1557143 | LE51: 316.1557143 | LF51: 474.2335714 | LG51: 790.3892857 | LH51: 91.05284571 | LI51: 136.5792686 | LJ51: 227.6321143 | LK51: 675.1633483 | LL51: 0 | LM51: 294.1427182 | LN51: 422.0791586 | LO51: 194.4470443 | LP51: 895.6938082 | LQ51: 0 | LR51: 136.5792686 | LT51: 316.0512 | LU51: 136.5792686 | LY51: 2.5 | LZ51: 350 | MA51: 525 | MB51: 875 | MC51: 288 | MD51: 2.5 | ME51: 350 | MF51: 525 | MG51: 875 | MH51: 0.5678571429 | MI51: 21 | MJ51: 13.58474576 | MK51: 8.993765133 | ML51: 5.5 | MM51: 10.61071429 | MN51: 10.61071429 | MO51: 15 | MP51: 5.5 | MQ51: 325.0414286 | MR51: 1097.4 | MS51: 279.1585714 | MT51: 493.2 | MU51: 1367.1 | MV51: 1021.328883 | MW51: 1860.3 | MX51: 1 | MY51: 1021.328883 | MZ51: 645.5479452 | NA51: 1763.677634 | NB51: 875 | NC51: 525 | ND51: 350 | NE51: 350 | NF51: 350 | NG51: 525 | NH51: 875 | NI51: 100.8 | NJ51: 151.2 | NK51: 252 | NL51: 888.6776341 | NM51: 80.39766857 | NN51: 294.1427182 | NO51: 507.9391586 | NP51: 255.9391586 | NQ51: 895.6938082 | NR51: 279.1585714 | NS51: 151.2 | NT51: 3110.047945 | NU51: 316.0512 | NV51: 222.4392686
A52: 55.70776256 | B52: 6.5 | C52: 6.5 | D52: 13825.6 | E52: 47.18634812 | F52: 1278.9 | G52: 293 | H52: 1.2789 | I52: 4248.5 | J52: 21 | K52: 13.58474576 | L52: 9.561622276 | M52: 6.5 | N52: 10.97857143 | O52: 10.97857143 | P52: 15 | Q52: 16.48171608 | R52: 256.375 | S52: 617.9752481 | T52: 52.90012492 | U52: 39.66242987 | V52: 0.2557628571 | W52: 0.9492933966 | X52: 2.109130539 | Y52: 2.951047945 | Z52: 1.0266 | AA52: 0.8419174058 | AB52: 1.824293397 | AC52: 0.6455479452 | AD52: 0.35 | AE52: 0.525 | AF52: 0.875 | AG52: 0.2848371429 | AH52: 1.159837143 | AI52: 0.5873287671 | AJ52: 0.05821917808 | AK52: 0 | AL52: 587.3287671 | AM52: 58.21917808 | AN52: 0 | AP52: 0.6455479452 | AQ52: 0.6455479452 | AR52: 1.4156 | BO52: 172.0873288 | BP52: 17.05821918 | BQ52: 0 | CB52: 43.26995197 | CC52: 0 | CD52: 50.57446233 | CE52: 0 | CF52: 168.2324187 | CG52: 0 | CH52: 50.64057274 | CI52: 0 | CJ52: 312.7174058 | CK52: 312.7174058 | CL52: 529.2 | CM52: 841.9174058 | CN52: 91.62619989 | CO52: 841.9174058 | FT52: 2.5 | FU52: 350 | FV52: 525 | FW52: 875 | FX52: 293 | FY52: 2.5 | FZ52: 350 | GA52: 525 | GB52: 875 | GC52: 0.5678571429 | GD52: 21 | GE52: 13.58474576 | GF52: 9.561622276 | GG52: 6.5 | GH52: 10.97857143 | GI52: 24.73643306 | GJ52: 24.73643306 | GK52: 6.5 | GL52: 284.8371429 | GM52: 1026.6 | GN52: 0 | GO52: 741.7628571 | GP52: 1278.9 | GQ52: 841.9174058 | GR52: 2020.662857 | GS52: 1 | GT52: 841.9174058 | GU52: 645.5479452 | GV52: 1824.293397 | GW52: 875 | GX52: 525 | GY52: 350 | GZ52: 350 | HA52: 350 | HB52: 525 | HC52: 875 | HD52: 102.55 | HE52: 153.825 | HF52: 256.375 | HG52: 949.2933966 | HH52: 0 | HI52: 246.6817999 | HJ52: 534.5179652 | HK52: 278.1429652 | HL52: 864.6570479 | HM52: 875 | HN52: 153.825 | HP52: 300.7938 | HQ52: 217.3365171 | HU52: 2.5 | HV52: 350 | HW52: 525 | HX52: 875 | HY52: 293 | HZ52: 2.5 | IA52: 295.7585714 | IB52: 443.6378571 | IC52: 739.3964286 | ID52: 0.5678571429 | IE52: 21 | IF52: 6.5 | IG52: 12.76607143 | IH52: 15.66607143 | II52: 6.5 | IJ52: 27.29180144 | IK52: 27.29180144 | IL52: 0 | IM52: 6.5 | IN52: 582.9621429 | IO52: 1026.6 | IP52: 0 | IQ52: 443.6378571 | IR52: 1278.9 | IS52: 841.9174058 | IT52: 1722.537857 | IU52: 1 | IV52: 841.9174058 | IW52: 645.5479452 | IX52: 1526.168397 | IY52: 875 | IZ52: 443.6378571 | JA52: 350 | JB52: 295.7585714 | JC52: 295.7585714 | JD52: 443.6378571 | JE52: 739.3964286 | JF52: 86.65726143 | JG52: 129.9858921 | JH52: 216.6431536 | JI52: 786.771968 | JJ52: 0 | JK52: 246.6817999 | JL52: 447.1673402 | JM52: 230.5241866 | JN52: 864.6570479 | JO52: 0 | JP52: 129.9858921 | JR52: 300.7938 | JS52: 129.9858921 | JW52: =JW51 -> 2.5 | JX52: 350 | JY52: 525 | JZ52: 875 | KA52: 293 | KB52: 2.5 | KC52: 295.7585714 | KD52: 443.6378571 | KE52: 739.3964286 | KF52: =KF51 -> 0.5678571429 | KG52: 21 | KH52: 6.5 | KI52: 12.76607143 | KJ52: 15.66607143 | KK52: 6.5 | KL52: 15.66607143 | KM52: 15.66607143 | KN52: 0 | KO52: 6.5 | KP52: 582.9621429 | KQ52: 1026.6 | KR52: 0 | KS52: 443.6378571 | KT52: 1278.9 | KU52: 841.9174058 | KV52: 1722.537857 | KW52: 1 | KX52: 841.9174058 | KY52: 645.5479452 | KZ52: 1526.168397 | LA52: 875 | LB52: 443.6378571 | LC52: 350 | LD52: 295.7585714 | LE52: 295.7585714 | LF52: 443.6378571 | LG52: 739.3964286 | LH52: 86.65726143 | LI52: 129.9858921 | LJ52: 216.6431536 | LK52: 786.771968 | LL52: 0 | LM52: 246.6817999 | LN52: 447.1673402 | LO52: 230.5241866 | LP52: 864.6570479 | LQ52: 0 | LR52: 129.9858921 | LT52: 300.7938 | LU52: 129.9858921 | LY52: 2.5 | LZ52: 350 | MA52: 525 | MB52: 875 | MC52: 293 | MD52: 2.5 | ME52: 350 | MF52: 525 | MG52: 875 | MH52: 0.5678571429 | MI52: 21 | MJ52: 13.58474576 | MK52: 9.561622276 | ML52: 6.5 | MM52: 10.97857143 | MN52: 10.97857143 | MO52: 15 | MP52: 6.5 | MQ52: 284.8371429 | MR52: 1026.6 | MS52: 255.7628571 | MT52: 486 | MU52: 1278.9 | MV52: 841.9174058 | MW52: 1764.9 | MX52: 1 | MY52: 841.9174058 | MZ52: 645.5479452 | NA52: 1824.293397 | NB52: 875 | NC52: 525 | ND52: 350 | NE52: 350 | NF52: 350 | NG52: 525 | NH52: 875 | NI52: 102.55 | NJ52: 153.825 | NK52: 256.375 | NL52: 949.2933966 | NM52: 74.93851714 | NN52: 246.6817999 | NO52: 534.5179652 | NP52: 278.1429652 | NQ52: 864.6570479 | NR52: 255.7628571 | NS52: 153.825 | NT52: 2951.047945 | NU52: 300.7938 | NV52: 217.3365171
A53: 59.00684932 | B53: 7.5 | C53: 7.5 | D53: 21106.5 | E53: 73.03287197 | F53: 1190.7 | G53: 289 | H53: 1.1907 | I53: 3901.5 | J53: 21 | K53: 13.58474576 | L53: 10.12947942 | M53: 7.5 | N53: 11.34642857 | O53: 11.34642857 | P53: 15 | Q53: 16.84957323 | R53: 252.875 | S53: 514.0842525 | T53: 51.40012492 | U53: 35.46915478 | V53: 0.2323671429 | W53: 0.6592053868 | X53: 1.778838244 | Y53: =H53+Z53+AC53 -> 2.792047945 | Z53: 0.9558 | AA53: 1.013209701 | AB53: 1.534205387 | AC53: 0.6455479452 | AD53: 0.35 | AE53: 0.525 | AF53: 0.875 | AG53: 0.2446328571 | AH53: 1.119632857 | AI53: 0.5873287671 | AJ53: 0.05821917808 | AK53: 0 | AL53: 587.3287671 | AM53: 58.21917808 | AN53: 0 | AP53: 0.6455479452 | AQ53: 0.6455479452 | AR53: 1.352 | BO53: 169.7380137 | BP53: 16.82534247 | BQ53: 0 | CB53: 66.97125309 | CC53: 0 | CD53: 78.27684022 | CE53: 0 | CF53: 260.3824451 | CG53: 0 | CH53: 78.37916289 | CI53: 0 | CJ53: 484.0097013 | CK53: 484.0097013 | CL53: 529.2 | CM53: 1013.209701 | CN53: 139.8788037 | CO53: 1013.209701 | FT53: 2.5 | FU53: 350 | FV53: 525 | FW53: 875 | FX53: 289 | FY53: 2.5 | FZ53: 350 | GA53: 525 | GB53: 875 | GC53: 0.5678571429 | GD53: 21 | GE53: 13.58474576 | GF53: 10.12947942 | GG53: 7.5 | GH53: 11.34642857 | GI53: 25.10429021 | GJ53: 25.10429021 | GK53: 7.5 | GL53: 244.6328571 | GM53: 955.8 | GN53: 0 | GO53: 711.1671429 | GP53: 1190.7 | GQ53: 1013.209701 | GR53: 1901.867143 | GS53: 1 | GT53: 1013.209701 | GU53: 645.5479452 | GV53: 1534.205387 | GW53: 875 | GX53: 525 | GY53: 350 | GZ53: 350 | HA53: 350 | HB53: 525 | HC53: 875 | HD53: 101.15 | HE53: 151.725 | HF53: 252.875 | HG53: 659.2053868 | HH53: 0 | HI53: 292.8176037 | HJ53: 443.3853568 | HK53: 190.5103568 | HL53: 806.9018562 | HM53: 875 | HN53: 151.725 | HP53: 276.2262 | HQ53: 205.5273043 | HU53: 2.5 | HV53: 350 | HW53: 525 | HX53: 875 | HY53: 289 | HZ53: 2.5 | IA53: 275.3614286 | IB53: 413.0421429 | IC53: 688.4035714 | ID53: 0.5678571429 | IE53: 21 | IF53: 7.5 | IG53: 13.33392857 | IH53: 16.03392857 | II53: 7.5 | IJ53: 26.8578841 | IK53: 26.8578841 | IL53: 0 | IM53: 7.5 | IN53: 542.7578571 | IO53: 955.8 | IP53: 0 | IQ53: 413.0421429 | IR53: 1190.7 | IS53: 1013.209701 | IT53: 1603.742143 | IU53: 1 | IV53: 1013.209701 | IW53: 645.5479452 | IX53: 1236.080387 | IY53: 875 | IZ53: 413.0421429 | JA53: 350 | JB53: 275.3614286 | JC53: 275.3614286 | JD53: 413.0421429 | JE53: 688.4035714 | JF53: 79.57945286 | JG53: 119.3691793 | JH53: 198.9486321 | JI53: 547.6768154 | JJ53: 0 | JK53: 292.8176037 | JL53: 357.2272318 | JM53: 158.2785996 | JN53: 806.9018562 | JO53: 0 | JP53: 119.3691793 | JR53: 276.2262 | JS53: 119.3691793 | JW53: =JW52 -> 2.5 | JX53: 350 | JY53: 525 | JZ53: 875 | KA53: 289 | KB53: 2.5 | KC53: 275.3614286 | KD53: 413.0421429 | KE53: 688.4035714 | KF53: =KF52 -> 0.5678571429 | KG53: 21 | KH53: 7.5 | KI53: 13.33392857 | KJ53: 16.03392857 | KK53: 7.5 | KL53: 16.03392857 | KM53: 16.03392857 | KN53: 0 | KO53: 7.5 | KP53: 542.7578571 | KQ53: 955.8 | KR53: 0 | KS53: 413.0421429 | KT53: 1190.7 | KU53: 1013.209701 | KV53: 1603.742143 | KW53: 1 | KX53: 1013.209701 | KY53: 645.5479452 | KZ53: 1236.080387 | LA53: 875 | LB53: 413.0421429 | LC53: 350 | LD53: 275.3614286 | LE53: 275.3614286 | LF53: 413.0421429 | LG53: 688.4035714 | LH53: 79.57945286 | LI53: 119.3691793 | LJ53: 198.9486321 | LK53: 547.6768154 | LL53: 0 | LM53: 292.8176037 | LN53: 357.2272318 | LO53: 158.2785996 | LP53: 806.9018562 | LQ53: 0 | LR53: 119.3691793 | LT53: 276.2262 | LU53: 119.3691793 | LY53: 2.5 | LZ53: 350 | MA53: 525 | MB53: 875 | MC53: 289 | MD53: 2.5 | ME53: 350 | MF53: 525 | MG53: 875 | MH53: 0.5678571429 | MI53: 21 | MJ53: 13.58474576 | MK53: 10.12947942 | ML53: 7.5 | MM53: 11.34642857 | MN53: 11.34642857 | MO53: 15 | MP53: 7.5 | MQ53: 244.6328571 | MR53: 955.8 | MS53: 232.3671429 | MT53: 478.8 | MU53: 1190.7 | MV53: 1013.209701 | MW53: 1669.5 | MX53: 1 | MY53: 1013.209701 | MZ53: 645.5479452 | NA53: 1534.205387 | NB53: 875 | NC53: 525 | ND53: 350 | NE53: 350 | NF53: 350 | NG53: 525 | NH53: 875 | NI53: 101.15 | NJ53: 151.725 | NK53: 252.875 | NL53: 659.2053868 | NM53: 67.15410429 | NN53: 292.8176037 | NO53: 443.3853568 | NP53: 190.5103568 | NQ53: =(MU53+MR53+MZ53)/1000*$MC53 -> 806.9018562 | NR53: 232.3671429 | NS53: 151.725 | NT53: 2792.047945 | NU53: 276.2262 | NV53: 205.5273043
A54: 62.23744292 | B54: 8.5 | C54: 8.5 | D54: 21390.6 | E54: 75.58515901 | F54: 1102.5 | G54: 283 | H54: 1.1025 | I54: 3537.5 | J54: 21 | K54: 13.58474576 | L54: 10.69733656 | M54: 8.5 | N54: 11.71428571 | O54: 11.71428571 | P54: 15 | Q54: 17.21743037 | R54: 247.625 | S54: 453.627353 | T54: 49.90012492 | U54: 33.70319982 | V54: 0.2089714286 | W54: 0.5234949373 | X54: 1.602923509 | Y54: 2.633047945 | Z54: 0.885 | AA54: 1.030124436 | AB54: 1.398494937 | AC54: 0.6455479452 | AD54: 0.35 | AE54: 0.525 | AF54: 0.875 | AG54: 0.2044285714 | AH54: 1.079428571 | AI54: 0.5873287671 | AJ54: 0.05821917808 | AK54: 0 | AL54: 587.3287671 | AM54: 58.21917808 | AN54: 0 | AP54: 0.6455479452 | AQ54: 0.6455479452 | AR54: 1.2884 | BO54: 166.2140411 | BP54: 16.4760274 | BQ54: 0 | CB54: 69.31170413 | CC54: 0 | CD54: 81.01238874 | CE54: 0 | CF54: 269.4820563 | CG54: 0 | CH54: 81.11828728 | CI54: 0 | CJ54: 500.9244364 | CK54: 500.9244364 | CL54: 529.2 | CM54: 1030.124436 | CN54: 141.7616155 | CO54: 1030.124436 | FT54: 2.5 | FU54: 350 | FV54: 525 | FW54: 875 | FX54: 283 | FY54: 2.5 | FZ54: 350 | GA54: 525 | GB54: 875 | GC54: 0.5678571429 | GD54: 21 | GE54: 13.58474576 | GF54: 10.69733656 | GG54: 8.5 | GH54: 11.71428571 | GI54: 25.47214735 | GJ54: 25.47214735 | GK54: 8.5 | GL54: 204.4285714 | GM54: 885 | GN54: 0 | GO54: 680.5714286 | GP54: 1102.5 | GQ54: 1030.124436 | GR54: 1783.071429 | GS54: 1 | GT54: 1030.124436 | GU54: 645.5479452 | GV54: 1398.494937 | GW54: 875 | GX54: 525 | GY54: 350 | GZ54: 350 | HA54: 350 | HB54: 525 | HC54: 875 | HD54: 99.05 | HE54: 148.575 | HF54: 247.625 | HG54: 523.4949373 | HH54: 0 | HI54: 291.5252155 | HJ54: 395.7740673 | HK54: 148.1490673 | HL54: 745.1525685 | HM54: 875 | HN54: 148.575 | HP54: 250.455 | HQ54: 192.6017143 | HU54: 2.5 | HV54: 350 | HW54: 525 | HX54: 875 | HY54: 283 | HZ54: 2.5 | IA54: 254.9642857 | IB54: 382.4464286 | IC54: 637.4107143 | ID54: 0.5678571429 | IE54: 21 | IF54: 8.5 | IG54: 13.90178571 | IH54: 16.40178571 | II54: 8.5 | IJ54: 26.42396676 | IK54: 26.42396676 | IL54: 0 | IM54: 8.5 | IN54: 502.5535714 | IO54: 885 | IP54: 0 | IQ54: 382.4464286 | IR54: 1102.5 | IS54: 1030.124436 | IT54: 1484.946429 | IU54: 1 | IV54: 1030.124436 | IW54: 645.5479452 | IX54: 1100.369937 | IY54: 875 | IZ54: 382.4464286 | JA54: 350 | JB54: 254.9642857 | JC54: 254.9642857 | JD54: 382.4464286 | JE54: 637.4107143 | JF54: 72.15489286 | JG54: 108.2323393 | JH54: 180.3872321 | JI54: 462.9592231 | JJ54: 0 | JK54: 291.5252155 | JL54: 311.4046923 | JM54: 131.0174601 | JN54: 745.1525685 | JO54: 0 | JP54: 108.2323393 | JR54: 250.455 | JS54: 108.2323393 | JW54: =JW53 -> 2.5 | JX54: 350 | JY54: 525 | JZ54: 875 | KA54: 283 | KB54: 2.5 | KC54: 254.9642857 | KD54: 382.4464286 | KE54: 637.4107143 | KF54: =KF53 -> 0.5678571429 | KG54: 21 | KH54: 8.5 | KI54: 13.90178571 | KJ54: 16.40178571 | KK54: 8.5 | KL54: 16.40178571 | KM54: 16.40178571 | KN54: 0 | KO54: 8.5 | KP54: 502.5535714 | KQ54: 885 | KR54: 0 | KS54: 382.4464286 | KT54: 1102.5 | KU54: 1030.124436 | KV54: 1484.946429 | KW54: 1 | KX54: 1030.124436 | KY54: 645.5479452 | KZ54: 1100.369937 | LA54: 875 | LB54: 382.4464286 | LC54: 350 | LD54: 254.9642857 | LE54: 254.9642857 | LF54: 382.4464286 | LG54: 637.4107143 | LH54: 72.15489286 | LI54: 108.2323393 | LJ54: 180.3872321 | LK54: 462.9592231 | LL54: 0 | LM54: 291.5252155 | LN54: 311.4046923 | LO54: 131.0174601 | LP54: 745.1525685 | LQ54: 0 | LR54: 108.2323393 | LT54: 250.455 | LU54: 108.2323393 | LY54: 2.5 | LZ54: 350 | MA54: 525 | MB54: 875 | MC54: 283 | MD54: 2.5 | ME54: 350 | MF54: 525 | MG54: 875 | MH54: 0.5678571429 | MI54: 21 | MJ54: 13.58474576 | MK54: 10.69733656 | ML54: 8.5 | MM54: 11.71428571 | MN54: 11.71428571 | MO54: 15 | MP54: 8.5 | MQ54: 204.4285714 | MR54: 885 | MS54: 208.9714286 | MT54: 471.6 | MU54: 1102.5 | MV54: 1030.124436 | MW54: 1574.1 | MX54: 1 | MY54: 1030.124436 | MZ54: 645.5479452 | NA54: 1398.494937 | NB54: 875 | NC54: 525 | ND54: 350 | NE54: 350 | NF54: 350 | NG54: 525 | NH54: 875 | NI54: 99.05 | NJ54: 148.575 | NK54: 247.625 | NL54: 523.4949373 | NM54: 59.13891429 | NN54: 291.5252155 | NO54: 395.7740673 | NP54: 148.1490673 | NQ54: =(MU54+MR54+MZ54)/1000*$MC54 -> 745.1525685 | NR54: 208.9714286 | NS54: 148.575 | NT54: =(MU54+MR54+MZ54) -> 2633.047945 | NU54: 250.455 | NV54: 192.6017143
A55: 65.55936073 | B55: 9.5 | C55: 9.5 | D55: 28883.2 | E55: 99.25498282 | F55: 1014.3 | G55: 291 | H55: 1.0143 | I55: 3346.5 | J55: 21 | K55: 13.58474576 | L55: 11.2651937 | M55: 9.5 | N55: 12.08214286 | O55: 12.08214286 | P55: 15 | Q55: 17.58528751 | R55: 254.625 | S55: 374.5335364 | T55: 48.40012492 | U55: 29.73674255 | V55: 0.1855757143 | W55: 0.2478325404 | X55: 1.287056826 | Y55: 2.474047945 | Z55: 0.8142 | AA55: 1.186991119 | AB55: 1.12283254 | AC55: 0.6455479452 | AD55: 0.35 | AE55: 0.525 | AF55: 0.875 | AG55: 0.1642242857 | AH55: 1.039224286 | AI55: 0.5873287671 | AJ55: 0.05821917808 | AK55: 0 | AL55: 587.3287671 | AM55: 58.21917808 | AN55: 0 | AP55: 0.6455479452 | AQ55: 0.6455479452 | AR55: 1.2248 | BO55: 170.9126712 | BP55: 16.94178082 | BQ55: 0 | CB55: 91.01696805 | CC55: 0 | CD55: 106.3817733 | CE55: 0 | CF55: 353.8715432 | CG55: 0 | CH55: 106.5208345 | CI55: 0 | CJ55: 657.7911191 | CK55: 657.7911191 | CL55: 529.2 | CM55: 1186.991119 | CN55: 191.4172156 | CO55: 1186.991119 | FT55: 2.5 | FU55: 350 | FV55: 525 | FW55: 875 | FX55: 291 | FY55: 2.5 | FZ55: 350 | GA55: 525 | GB55: 875 | GC55: 0.5678571429 | GD55: 21 | GE55: 13.58474576 | GF55: 11.2651937 | GG55: 9.5 | GH55: 12.08214286 | GI55: 25.84000449 | GJ55: 25.84000449 | GK55: 9.5 | GL55: 164.2242857 | GM55: 814.2 | GN55: 0 | GO55: 649.9757143 | GP55: 1014.3 | GQ55: 1186.991119 | GR55: 1664.275714 | GS55: 1 | GT55: 1186.991119 | GU55: 645.5479452 | GV55: 1122.83254 | GW55: 875 | GX55: 525 | GY55: 350 | GZ55: 350 | HA55: 350 | HB55: 525 | HC55: 875 | HD55: 101.85 | HE55: 152.775 | HF55: 254.625 | HG55: 247.8325404 | HH55: 0 | HI55: 345.4144156 | HJ55: 326.7442693 | HK55: 72.11926926 | HL55: 719.9479521 | HM55: 875 | HN55: 152.775 | HP55: 236.9322 | HQ55: 189.1429329 | HU55: 2.5 | HV55: 350 | HW55: 525 | HX55: 875 | HY55: 291 | HZ55: 2.5 | IA55: 234.5671429 | IB55: 351.8507143 | IC55: 586.4178571 | ID55: 0.5678571429 | IE55: 21 | IF55: 9.5 | IG55: 14.46964286 | IH55: 16.76964286 | II55: 9.5 | IJ55: 25.99004942 | IK55: 25.99004942 | IL55: 0 | IM55: 9.5 | IN55: 462.3492857 | IO55: 814.2 | IP55: 0 | IQ55: 351.8507143 | IR55: 1014.3 | IS55: 1186.991119 | IT55: 1366.150714 | IU55: 1 | IV55: 1186.991119 | IW55: 645.5479452 | IX55: 824.7075404 | IY55: 824.7075404 | IZ55: 351.8507143 | JA55: =IY55/HZ55 -> 329.8830162 | JB55: 234.5671429 | JC55: 234.5671429 | JD55: 351.8507143 | JE55: 586.4178571 | JF55: 68.25903857 | JG55: 102.3885579 | JH55: 170.6475964 | JI55: 238.2896833 | JJ55: 0 | JK55: 345.4144156 | JL55: 239.9898943 | JM55: 69.34229783 | JN55: 719.9479521 | JO55: 0 | JP55: 102.3885579 | JR55: 236.9322 | JS55: 102.3885579 | JW55: =JW54 -> 2.5 | JX55: 350 | JY55: 525 | JZ55: 875 | KA55: 291 | KB55: 2.5 | KC55: 234.5671429 | KD55: 351.8507143 | KE55: 586.4178571 | KF55: =KF54 -> 0.5678571429 | KG55: 21 | KH55: 9.5 | KI55: 14.46964286 | KJ55: 16.76964286 | KK55: 9.5 | KL55: 16.76964286 | KM55: 16.76964286 | KN55: 0 | KO55: 9.5 | KP55: 462.3492857 | KQ55: 814.2 | KR55: 0 | KS55: 351.8507143 | KT55: 1014.3 | KU55: 1186.991119 | KV55: 1366.150714 | KW55: 1 | KX55: 1186.991119 | KY55: 645.5479452 | KZ55: 824.7075404 | LA55: 824.7075404 | LB55: 351.8507143 | LC55: 329.8830162 | LD55: 234.5671429 | LE55: 234.5671429 | LF55: 351.8507143 | LG55: 586.4178571 | LH55: 68.25903857 | LI55: 102.3885579 | LJ55: 170.6475964 | LK55: 238.2896833 | LL55: 0 | LM55: 345.4144156 | LN55: 239.9898943 | LO55: 69.34229783 | LP55: 719.9479521 | LQ55: 0 | LR55: 102.3885579 | LT55: 236.9322 | LU55: 102.3885579 | LY55: 2.5 | LZ55: 350 | MA55: 525 | MB55: 875 | MC55: 291 | MD55: 2.5 | ME55: 350 | MF55: 525 | MG55: 875 | MH55: 0.5678571429 | MI55: 21 | MJ55: 13.58474576 | MK55: 11.2651937 | ML55: 9.5 | MM55: 12.08214286 | MN55: 12.08214286 | MO55: 15 | MP55: 9.5 | MQ55: 164.2242857 | MR55: 814.2 | MS55: 185.5757143 | MT55: 464.4 | MU55: 1014.3 | MV55: 1186.991119 | MW55: 1478.7 | MX55: 1 | MY55: 1186.991119 | MZ55: 645.5479452 | NA55: 1122.83254 | NB55: 875 | NC55: 525 | ND55: 350 | NE55: 350 | NF55: 350 | NG55: 525 | NH55: 875 | NI55: 101.85 | NJ55: 152.775 | NK55: 254.625 | NL55: 247.8325404 | NM55: 54.00253286 | NN55: 345.4144156 | NO55: 326.7442693 | NP55: 72.11926926 | NQ55: 719.9479521 | NR55: 185.5757143 | NS55: 152.775 | NT55: =(MU55+MR55+MZ55) -> 2474.047945 | NU55: 236.9322 | NV55: 189.1429329
A56: 68.80136986 | B56: 10.5 | C56: =MAX($C$21*($C$19-B56)+B56,B56) -> 10.5 | D56: 31078.1 | E56: 109.4299296 | F56: 926.1 | G56: 284 | H56: 0.9261 | I56: 2982 | J56: 21 | K56: 13.58474576 | L56: 11.83305085 | M56: 10.5 | N56: 12.45 | O56: 12.45 | P56: 15 | Q56: 17.95314465 | R56: 248.5 | S56: 301.2173716 | T56: 46.90012492 | U56: 27.1764866 | V56: 0.16218 | W56: 0.06160454792 | X56: 1.060624548 | Y56: 2.315047945 | Z56: =($FX$3*GM56+$HY$3*IO56+$KA$3*KQ56+$MC$3*MR56)/(1000) -> 0.7434 | AA56: =($FX$3*GT56+$HY$3*IV56+$KA$3*KX56+$MC$3*MY56)/(1000) -> 1.254423397 | AB56: =($FX$3*GV56+$HY$3*IX56+$KA$3*KZ56+$MC$3*NA56)/(1000) -> 0.9366045479 | AC56: =($FX$3*GU56+$HY$3*IW56+$KA$3*KY56+$MC$3*MZ56)/(1000) -> 0.6455479452 | AD56: =($FX$3*HA56+$HY$3*JC56+$KA$3*LE56+$MC$3*NF56)/(1000) -> 0.35 | AE56: =($FX$3*HB56+$HY$3*JD56+$KA$3*LF56+$MC$3*NG56)/(1000) -> 0.525 | AF56: =($FX$3*HC56+$HY$3*JE56+$KA$3*LG56+$MC$3*NH56)/(1000) -> 0.875 | AG56: 0.12402 | AH56: 0.99902 | AI56: 0.5873287671 | AJ56: 0.05821917808 | AK56: 0 | AL56: 587.3287671 | AM56: 58.21917808 | AN56: 0 | AP56: 0.6455479452 | AQ56: 0.6455479452 | AR56: 1.1612 | BO56: 166.8013699 | BP56: 16.53424658 | BQ56: 0 | CB56: 100.3474095 | CC56: 0 | CD56: 117.2873102 | CE56: 0 | CF56: 390.1480506 | CG56: 0 | CH56: 117.440627 | CI56: 0 | CJ56: 725.2233973 | CK56: 725.2233973 | CL56: 529.2 | CM56: 1254.423397 | CN56: 205.9634448 | CO56: 1254.423397 | FT56: 2.5 | FU56: 350 | FV56: 525 | FW56: 875 | FX56: 284 | FY56: 2.5 | FZ56: 350 | GA56: 525 | GB56: 875 | GC56: 0.5678571429 | GD56: 21 | GE56: 13.58474576 | GF56: 11.83305085 | GG56: 10.5 | GH56: 12.45 | GI56: 26.20786164 | GJ56: 26.20786164 | GK56: 10.5 | GL56: 124.02 | GM56: 743.4 | GN56: 0 | GO56: 619.38 | GP56: 926.1 | GQ56: 1254.423397 | GR56: 1545.48 | GS56: 1 | GT56: 1254.423397 | GU56: 645.5479452 | GV56: 936.6045479 | GW56: 875 | GX56: 525 | GY56: 350 | GZ56: 350 | HA56: 350 | HB56: 525 | HC56: 875 | HD56: 99.4 | HE56: 149.1 | HF56: 248.5 | HG56: 61.60454792 | HH56: 0 | HI56: 356.2562448 | HJ56: 265.9956916 | HK56: 17.49569161 | HL56: 657.4736164 | HM56: 875 | HN56: 149.1 | HP56: 211.1256 | HQ56: 175.90392 | HU56: 2.5 | HV56: 350 | HW56: 525 | HX56: 875 | HY56: 284 | HZ56: 2.5 | IA56: 214.17 | IB56: 321.255 | IC56: 535.425 | ID56: 0.5678571429 | IE56: 21 | IF56: 10.5 | IG56: 15.0375 | IH56: =IF56+$GA$14/$GA$15*(IE56-IG56) -> 17.1375 | II56: 10.5 | IJ56: =IH56+HZ56*IA56/(1.2*$GA$15) -> 25.55613208 | IK56: 25.55613208 | IL56: 0 | IM56: 10.5 | IN56: 422.145 | IO56: 743.4 | IP56: 0 | IQ56: 321.255 | IR56: 926.1 | IS56: 1254.423397 | IT56: =IR56+IQ56 -> 1247.355 | IU56: 0.9943652221 | IV56: 1247.355 | IW56: 645.5479452 | IX56: 645.5479452 | IY56: 645.5479452 | IZ56: 321.255 | JA56: 258.2191781 | JB56: 214.17 | JC56: 214.17 | JD56: 321.255 | JE56: 535.425 | JF56: 60.82428 | JG56: 91.23642 | JH56: 152.0607 | JI56: 110.1229452 | JJ56: 0 | JK56: 354.24882 | JL56: 183.3356164 | JM56: 31.27491644 | JN56: 657.4736164 | JO56: 0 | JP56: 91.23642 | JR56: 211.1256 | JS56: 91.23642 | JW56: =JW55 -> 2.5 | JX56: 350 | JY56: 525 | JZ56: 875 | KA56: 284 | KB56: 2.5 | KC56: 214.17 | KD56: 321.255 | KE56: 535.425 | KF56: =KF55 -> 0.5678571429 | KG56: 21 | KH56: 10.5 | KI56: 15.0375 | KJ56: 17.1375 | KK56: 10.5 | KL56: 17.1375 | KM56: 17.1375 | KN56: 0 | KO56: 10.5 | KP56: 422.145 | KQ56: 743.4 | KR56: 0 | KS56: 321.255 | KT56: 926.1 | KU56: 1254.423397 | KV56: 1247.355 | KW56: 0.9943652221 | KX56: 1247.355 | KY56: 645.5479452 | KZ56: 645.5479452 | LA56: 645.5479452 | LB56: 321.255 | LC56: 258.2191781 | LD56: 214.17 | LE56: 214.17 | LF56: 321.255 | LG56: 535.425 | LH56: 60.82428 | LI56: 91.23642 | LJ56: 152.0607 | LK56: 110.1229452 | LL56: 0 | LM56: 354.24882 | LN56: 183.3356164 | LO56: 31.27491644 | LP56: 657.4736164 | LQ56: 0 | LR56: 91.23642 | LT56: 211.1256 | LU56: 91.23642 | LY56: 2.5 | LZ56: 350 | MA56: 525 | MB56: 875 | MC56: 284 | MD56: 2.5 | ME56: 350 | MF56: 525 | MG56: 875 | MH56: 0.5678571429 | MI56: 21 | MJ56: 13.58474576 | MK56: 11.83305085 | ML56: 10.5 | MM56: 12.45 | MN56: 12.45 | MO56: 15 | MP56: 10.5 | MQ56: 124.02 | MR56: 743.4 | MS56: 162.18 | MT56: 457.2 | MU56: 926.1 | MV56: 1254.423397 | MW56: 1383.3 | MX56: 1 | MY56: 1254.423397 | MZ56: 645.5479452 | NA56: 936.6045479 | NB56: 875 | NC56: 525 | ND56: 350 | NE56: 350 | NF56: 350 | NG56: 525 | NH56: 875 | NI56: 99.4 | NJ56: 149.1 | NK56: 248.5 | NL56: 61.60454792 | NM56: 46.05912 | NN56: 356.2562448 | NO56: 265.9956916 | NP56: 17.49569161 | NQ56: 657.4736164 | NR56: 162.18 | NS56: 149.1 | NT56: 2315.047945 | NU56: 211.1256 | NV56: 175.90392
A57: 72.20319635 | B57: 11.5 | C57: 11.5 | D57: 38707.2 | E57: 129.8899329 | F57: 837.9 | G57: 298 | H57: 0.8379 | I57: 2831 | J57: 21 | K57: 14.75019708 | L57: 12.90454945 | M57: 11.5 | N57: 13.55458887 | O57: 13.55458887 | P57: 15 | Q57: 18.19280329 | R57: 219.7678757 | S57: 258.7080877 | T57: 45.40012492 | U57: 25.15012492 | V57: 0.0919281479 | W57: =Y57-AG57-AA57-AF57 -> 0 | X57: 0.8681479452 | Y57: 2.156047945 | Z57: 0.6726 | AA57: 1.2879 | AB57: 0.7374760931 | AC57: 0.6455479452 | AD57: 0.2949904372 | AE57: 0.4424856559 | AF57: 0.7374760931 | AG57: 0.1306718521 | AH57: 0.8681479452 | AI57: 0.5873287671 | AJ57: 0.05821917808 | AK57: 0 | AL57: 587.3287671 | AM57: 58.21917808 | AN57: 0 | AP57: 0.6455479452 | AQ57: 0.6455479452 | AR57: 0.9600760931 | BO57: 175.0239726 | BP57: 17.34931507 | BQ57: 0 | CB57: 119.1092632 | CC57: 0 | CD57: 139.2164001 | CE57: 0 | CF57: 463.0936372 | CG57: 0 | CH57: 139.3983823 | CI57: 0 | CJ57: 860.8176827 | CK57: 860.8176827 | CL57: 529.2 | CM57: 1390.017683 | CN57: 256.5236695 | CO57: 1390.017683 | FT57: 2.5 | FU57: 350 | FV57: 525 | FW57: 875 | FX57: 298 | FY57: 2.5 | FZ57: 258.2191781 | GA57: 387.3287671 | GB57: 645.5479452 | GC57: 0.5678571429 | GD57: 21 | GE57: 15.5292547 | GF57: 13.24121364 | GG57: 11.5 | GH57: 14.04706458 | GI57: 24.1971895 | GJ57: 24.1971895 | GK57: 11.5 | GL57: 161.9933072 | GM57: 672.6 | GN57: 0 | GO57: 510.6066928 | GP57: 837.9 | GQ57: 1390.017683 | GR57: 1348.506693 | GS57: 0.9701363583 | GT57: =GS57*GQ57 -> 1348.506693 | GU57: 645.5479452 | GV57: 645.5479452 | GW57: 645.5479452 | GX57: 525 | GY57: =GW57/FY57 -> 258.2191781 | GZ57: 350 | HA57: 258.2191781 | HB57: 387.3287671 | HC57: 645.5479452 | HD57: 76.94931507 | HE57: 115.4239726 | HF57: 192.3732877 | HG57: -5.595666153e-10 | HH57: 0 | HI57: 401.8549944 | HJ57: 192.3732877 | HK57: 0 | HL57: 642.5022877 | HM57: 645.5479452 | HN57: 115.4239726 | HP57: 200.4348 | HQ57: 152.1607944 | HU57: 2.5 | HV57: 350 | HW57: 525 | HX57: 875 | HY57: 298 | HZ57: 2.5 | IA57: 193.7728571 | IB57: 290.6592857 | IC57: 484.4321429 | ID57: 0.5678571429 | IE57: 21 | IF57: 11.5 | IG57: 15.60535714 | IH57: 17.50535714 | II57: 11.5 | IJ57: 25.12221473 | IK57: 25.12221473 | IL57: 0 | IM57: 11.5 | IN57: 381.9407143 | IO57: 672.6 | IP57: 0 | IQ57: 290.6592857 | IR57: 837.9 | IS57: 1390.017683 | IT57: 1128.559286 | IU57: 0.8119028267 | IV57: 1128.559286 | IW57: 645.5479452 | IX57: 645.5479452 | IY57: 645.5479452 | IZ57: 290.6592857 | JA57: 258.2191781 | JB57: 193.7728571 | JC57: 193.7728571 | JD57: 290.6592857 | JE57: 484.4321429 | JF57: 57.74431143 | JG57: 86.61646714 | JH57: 144.3607786 | JI57: 161.1158023 | JJ57: 0 | JK57: 336.3106671 | JL57: 192.3732877 | JM57: 48.0125091 | JN57: 642.5022877 | JO57: 0 | JP57: 86.61646714 | JR57: 200.4348 | JS57: 86.61646714 | JW57: =JW56 -> 2.5 | JX57: 350 | JY57: 525 | JZ57: 875 | KA57: 298 | KB57: 2.5 | KC57: 193.7728571 | KD57: 290.6592857 | KE57: 484.4321429 | KF57: =KF56 -> 0.5678571429 | KG57: 21 | KH57: 11.5 | KI57: 15.60535714 | KJ57: 17.50535714 | KK57: 11.5 | KL57: 17.50535714 | KM57: 17.50535714 | KN57: 0 | KO57: 11.5 | KP57: 381.9407143 | KQ57: 672.6 | KR57: 0 | KS57: 290.6592857 | KT57: 837.9 | KU57: 1390.017683 | KV57: 1128.559286 | KW57: 0.8119028267 | KX57: 1128.559286 | KY57: 645.5479452 | KZ57: 645.5479452 | LA57: 645.5479452 | LB57: 290.6592857 | LC57: 258.2191781 | LD57: 193.7728571 | LE57: 193.7728571 | LF57: 290.6592857 | LG57: 484.4321429 | LH57: 57.74431143 | LI57: 86.61646714 | LJ57: 144.3607786 | LK57: 161.1158023 | LL57: 0 | LM57: 336.3106671 | LN57: 192.3732877 | LO57: 48.0125091 | LP57: 642.5022877 | LQ57: 0 | LR57: 86.61646714 | LT57: 200.4348 | LU57: 86.61646714 | LY57: 2.5 | LZ57: 350 | MA57: 525 | MB57: 875 | MC57: 298 | MD57: 2.5 | ME57: 294.9906977 | MF57: 442.4860466 | MG57: 737.4767444 | MH57: 0.5678571429 | MI57: 21 | MJ57: 14.75019708 | MK57: =MAX(MJ57-MH57*(MJ57-ML57),$MN$17) -> 12.90454945 | ML57: 11.5 | MM57: =MIN(ML57+$GA$14/$GA$15*(MJ57-MK57),$MO$17) -> 13.55458887 | MN57: 13.55458887 | MO57: 15 | MP57: 11.5 | MQ57: 130.6718521 | MR57: 672.6 | MS57: 91.9281479 | MT57: 450 | MU57: 837.9 | MV57: 1390.017683 | MW57: 1287.9 | MX57: 0.9265349758 | MY57: 1287.9 | MZ57: 645.5479452 | NA57: 737.4760931 | NB57: 737.4760931 | NC57: 525 | ND57: 294.9904372 | NE57: 350 | NF57: 294.9904372 | NG57: 442.4856559 | NH57: 737.4760931 | NI57: 87.9071503 | NJ57: 131.8607254 | NK57: 219.7678757 | NL57: 0 | NM57: 27.39458807 | NN57: 383.7942 | NO57: 219.7678757 | NP57: 0 | NQ57: 642.5022877 | NR57: 91.9281479 | NS57: 131.8607254 | NT57: 2156.047945 | NU57: 200.4348 | NV57: 161.4945881
A58: 75.52511416 | B58: 12.5 | C58: 12.5 | D58: 38216 | E58: =D58/((A58-A57)/100*8760) -> 131.3264605 | F58: =$F$21*(J58-B58) -> 749.7 | G58: =(A58-A57)/100*8760 -> 291 | H58: 0.7497 | I58: 2473.5 | J58: 21 | K58: 15.05092761 | L58: 13.60236515 | M58: 12.5 | N58: 14.11255067 | O58: 14.11255067 | P58: 15 | Q58: 18.52758037 | R58: 204.2790093 | S58: 234.1234521 | T58: 43.90012492 | U58: 25.15012492 | V58: 0.05644177754 | W58: 0 | X58: 0.8045479452 | Y58: 1.997047945 | Z58: 0.6018 | AA58: 1.1925 | AB58: 0.7019897227 | AC58: 0.6455479452 | AD58: 0.2807958891 | AE58: 0.4211938336 | AF58: 0.7019897227 | AG58: 0.1025582225 | AH58: 0.8045479452 | AI58: 0.5873287671 | AJ58: 0.05821917808 | AK58: 0 | AL58: 587.3287671 | AM58: 58.21917808 | AN58: 0 | AP58: 0.6455479452 | AQ58: 0.6455479452 | AR58: 0.8609897227 | BO58: =AL58/1000*$G58 -> 170.9126712 | BP58: =AM58/1000*$G58 -> 16.94178082 | BQ58: =AN58/1000*$G58 -> 0 | CB58: 120.4265612 | CC58: 0 | CD58: 140.7560744 | CE58: 0 | CF58: 468.2152565 | CG58: 0 | CH58: 140.9400693 | CI58: 0 | CJ58: =SUM(CB58:CI58) -> 870.3379614 | CK58: =CJ58*24/(MAX($CB$12,10)) -> 870.3379614 | CL58: 529.2 | CM58: =CK58+CL58 -> 1399.537961 | CN58: =CJ58*G58/1000 -> 253.2683468 | CO58: =CM58 -> 1399.537961 | FT58: 2.5 | FU58: 350 | FV58: =FU58*(FT58-1+1E-50) -> 525 | FW58: =FT58*FU58 -> 875 | FX58: 299 | FY58: =FT58 -> 2.5 | FZ58: 258.2191781 | GA58: 387.3287671 | GB58: 645.5479452 | GC58: 0.5678571429 | GD58: 21 | GE58: =MAX(GD58-GA58/(1.2*$GA$14),GK58) -> 15.5292547 | GF58: =MAX(GE58-GC58*(GE58-GG58),$GI$17) -> 13.80907078 | GG58: 12.5 | GH58: =MIN(GG58+$GA$14/$GA$15*(GE58-GF58),$GJ$17) -> 14.41492172 | GI58: =GH58+GB58/(1.2*$GA$15) -> 24.56504665 | GJ58: 24.56504665 | GK58: 12.5 | GL58: =1.2*$GA$14*(GE58-GF58) -> 121.7890215 | GM58: 601.8 | GN58: 0 | GO58: 480.0109785 | GP58: 749.7 | GQ58: 1399.537961 | GR58: =GP58+GO58 -> 1229.710978 | GS58: =MIN(1/(GQ58/(GR58+1E-50)+1E-50),1) -> 0.878654965 | GT58: =GS58*GQ58 -> 1229.710978 | GU58: =($AN$21=1)*AN58+($AL$21=1)*AL58+($AM$21=1)*AM58 -> 645.5479452 | GV58: 645.5479452 | GW58: =MIN(FW58,GV58) -> 645.5479452 | GX58: 525 | GY58: =GW58/FY58 -> 258.2191781 | GZ58: 350 | HA58: 258.2191781 | HB58: =HA58*(FY58-1) -> 387.3287671 | HC58: =HA58*FY58 -> 645.5479452 | HD58: =HA58/1000*$FX58 -> 77.20753425 | HE58: =HB58/1000*$FX58 -> 115.8113014 | HF58: =HC58/1000*$FX58 -> 193.0188356 | HG58: -2.294200385e-10 | HH58: =GN58/1000*$FX58 -> 0 | HI58: =GT58/1000*$FX58 -> 367.6835826 | HJ58: =GV58/1000*$FX58 -> 193.0188356 | HK58: 0 | HL58: 597.1173356 | HM58: 645.5479452 | HN58: =HB58/1000*$FX58 -> 115.8113014 | HP58: =GM58/1000*$FX58 -> 179.9382 | HQ58: =(GM58-GL58)/1000*$FX58 -> 143.5232826 | HU58: =HU57 -> 2.5 | HV58: 350 | HW58: =HV58*(HU58-1+1E-50) -> 525 | HX58: =HU58*HV58 -> 875 | HY58: 299 | HZ58: =HU58 -> 2.5 | IA58: 173.3757143 | IB58: 260.0635714 | IC58: 433.4392857 | ID58: =ID57 -> 0.5678571429 | IE58: 21 | IF58: 12.5 | IG58: =MAX(IE58-ID58*(IE58-IF58),IL58) -> 16.17321429 | IH58: =IF58+$GA$14/$GA$15*(IE58-IG58) -> 17.87321429 | II58: =MAX(IG58-IA58*(HZ58-1)/(1.2*$GA$14),IM58) -> 12.5 | IJ58: =IH58+HZ58*IA58/(1.2*$GA$15) -> 24.68829739 | IK58: =MAX(IJ58,$IM$17) -> 24.68829739 | IL58: 0 | IM58: 12.5 | IN58: =1.2*$GA$14*(IE58-IG58) -> 341.7364286 | IO58: 601.8 | IP58: 0 | IQ58: 260.0635714 | IR58: 749.7 | IS58: 1399.537961 | IT58: =IR58+IQ58 -> 1009.763571 | IU58: =MIN(1/(IS58/(IT58+1E-50)+1E-50),1) -> 0.7214978081 | IV58: =IU58*IS58 -> 1009.763571 | IW58: =($AN$21=1)*AN58+($AL$21=1)*AL58+($AM$21=1)*AM58 -> 645.5479452 | IX58: 645.5479452 | IY58: 645.5479452 | IZ58: 260.0635714 | JA58: =IY58/HZ58 -> 258.2191781 | JB58: 173.3757143 | JC58: 173.3757143 | JD58: =JC58*(HZ58-1) -> 260.0635714 | JE58: =JC58*HZ58 -> 433.4392857 | JF58: =JC58/1000*$HY58 -> 51.83933857 | JG58: =JD58/1000*$HY58 -> 77.75900786 | JH58: =JE58/1000*$HY58 -> 129.5983464 | JI58: 212.1086595 | JJ58: =IP58/1000*$HY58 -> 0 | JK58: =IV58/1000*$HY58 -> 301.9193079 | JL58: =IX58/1000*$HY58 -> 193.0188356 | JM58: 63.42048919 | JN58: 597.1173356 | JO58: 0 | JP58: =JD58/1000*$HY58 -> 77.75900786 | JR58: =IO58/1000*$HY58 -> 179.9382 | JS58: =(IO58-IN58)/1000*$HY58 -> 77.75900786 | JW58: =JW57 -> 2.5 | JX58: 350 | JY58: =JX58*(JW58-1+1E-50) -> 525 | JZ58: =JW58*JX58 -> 875 | KA58: 299 | KB58: =JW58 -> 2.5 | KC58: 173.3757143 | KD58: 260.0635714 | KE58: 433.4392857 | KF58: =KF57 -> 0.5678571429 | KG58: 21 | KH58: 12.5 | KI58: =MAX(KG58-KF58*(KG58-KH58),KN58) -> 16.17321429 | KJ58: =KH58+$GA$14/$GA$15*(KG58-KI58) -> 17.87321429 | KK58: =MAX(KI58-KC58*(KB58-1)/(1.2*$GA$14),KO58) -> 12.5 | KL58: =KJ58+0*(KJ58+KB58*KC58/(1.2*$GA$15)) -> 17.87321429 | KM58: =MAX(KL58,$IM$17) -> 17.87321429 | KN58: 0 | KO58: 12.5 | KP58: =1.2*$GA$14*(KG58-KI58) -> 341.7364286 | KQ58: 601.8 | KR58: =1.2*$GA$15*(KM58-KL58) -> 0 | KS58: =KQ58-KP58-KR58 -> 260.0635714 | KT58: 749.7 | KU58: 1399.537961 | KV58: =KT58+KS58 -> 1009.763571 | KW58: =MIN(1/(KU58/(KV58+1E-50)+1E-50),1) -> 0.7214978081 | KX58: =KW58*KU58 -> 1009.763571 | KY58: =($AN$21=1)*AN58+($AL$21=1)*AL58+($AM$21=1)*AM58 -> 645.5479452 | KZ58: 645.5479452 | LA58: 645.5479452 | LB58: 260.0635714 | LC58: =LA58/KB58 -> 258.2191781 | LD58: 173.3757143 | LE58: 173.3757143 | LF58: =LE58*(KB58-1) -> 260.0635714 | LG58: =LE58*KB58 -> 433.4392857 | LH58: =LE58/1000*$KA58 -> 51.83933857 | LI58: =LF58/1000*$KA58 -> 77.75900786 | LJ58: =LG58/1000*$KA58 -> 129.5983464 | LK58: 212.1086595 | LL58: =KR58/1000*$KA58 -> 0 | LM58: =KX58/1000*$KA58 -> 301.9193079 | LN58: =KZ58/1000*$KA58 -> 193.0188356 | LO58: 63.42048919 | LP58: 597.1173356 | LQ58: 0 | LR58: =LF58/1000*$KA58 -> 77.75900786 | LT58: =KQ58/1000*$KA58 -> 179.9382 | LU58: =(KQ58-KP58)/1000*$KA58 -> 77.75900786 | LY58: =LY57 -> 2.5 | LZ58: 350 | MA58: =LZ58*(LY58-1+1E-50) -> 525 | MB58: =LY58*LZ58 -> 875 | MC58: 299 | MD58: =LY58 -> 2.5 | ME58: 280.7962168 | MF58: 421.1943252 | MG58: 701.990542 | MH58: =MH57 -> 0.5678571429 | MI58: 21 | MJ58: =MAX(MI58-MF58/(1.2*$GA$14),MP58) -> 15.05092761 | MK58: =MAX(MJ58-MH58*(MJ58-ML58),$MN$17) -> 13.60236515 | ML58: 12.5 | MM58: =MIN(ML58+$GA$14/$GA$15*(MJ58-MK58),$MO$17) -> 14.11255067 | MN58: =MM58+0*(MM58+MG58/(1.2*$GA$15)) -> 14.11255067 | MO58: =MAX(MN58,$MQ$17) -> 15 | MP58: 12.5 | MQ58: =1.2*$GA$14*(MJ58-MK58) -> 102.5582225 | MR58: 601.8 | MS58: =1.2*$GA$15*(MO58-MN58) -> 56.44177754 | MT58: =MR58-MQ58-MS58 -> 442.8 | MU58: 749.7 | MV58: 1399.537961 | MW58: =MU58+MT58 -> 1192.5 | MX58: =MIN(1/(MV58/(MW58+1E-50)+1E-50),1) -> 0.8520669199 | MY58: =MX58*MV58 -> 1192.5 | MZ58: =($AN$21=1)*AN58+($AL$21=1)*AL58+($AM$21=1)*AM58 -> 645.5479452 | NA58: 701.9897227 | NB58: 701.9897227 | NC58: 525 | ND58: =NB58/MD58 -> 280.7958891 | NE58: 350 | NF58: 280.7958891 | NG58: =NF58*(MD58-1) -> 421.1938336 | NH58: =NF58*MD58 -> 701.9897227 | NI58: =NF58/1000*$MC58 -> 83.95797084 | NJ58: =NG58/1000*$MC58 -> 125.9369563 | NK58: =NH58/1000*$MC58 -> 209.8949271 | NL58: 0 | NM58: =MS58/1000*$MC58 -> 16.87609148 | NN58: =MY58/1000*$MC58 -> 356.5575 | NO58: =NA58/1000*$MC58 -> 209.8949271 | NP58: 0 | NQ58: 597.1173356 | NR58: 56.44177754 | NS58: =NG58/1000*$MC58 -> 125.9369563 | NT58: 1997.047945 | NU58: =MR58/1000*$MC58 -> 179.9382 | NV58: =(MR58-MQ58)/1000*$MC58 -> 149.2732915
A59: 79.10958904 | B59: 13.5 | C59: 13.5 | D59: 47382.7 | E59: 150.9003185 | F59: 661.5 | G59: 314 | H59: 0.6615 | I59: 2355 | J59: 21 | K59: 15.35165814 | L59: 14.30018084 | M59: 13.5 | N59: 14.67051247 | O59: 14.67051247 | P59: 15 | Q59: 18.86235745 | R59: 209.2820526 | S59: 232.6576548 | T59: 42.40012492 | U59: 25.15012492 | V59: 0.02095540718 | W59: 0 | X59: 0.7409479452 | Y59: 1.838047945 | Z59: 0.531 | AA59: 1.0971 | AB59: 0.6665033524 | AC59: 0.6455479452 | AD59: 0.266601341 | AE59: 0.3999020114 | AF59: 0.6665033524 | AG59: 0.07444459282 | AH59: 0.7409479452 | AI59: 0.5873287671 | AJ59: 0.05821917808 | AK59: 0 | AL59: 587.3287671 | AM59: 58.21917808 | AN59: 0 | AP59: 0.6455479452 | AQ59: 0.6455479452 | AR59: 0.7619033524 | BO59: 184.4212329 | BP59: 18.28082192 | BQ59: 0 | CB59: =CB$23*$E59*CB$21*CB$20 -> 138.3758183 | CC59: 0 | CD59: 161.7353912 | CE59: 0 | CF59: 538.0014893 | CG59: 0 | CH59: 161.94681 | CI59: 0 | CJ59: 1000.059509 | CK59: 1000.059509 | CL59: 529.2 | CM59: 1529.259509 | CN59: 314.0186857 | CO59: 1529.259509 | FT59: 2.5 | FU59: 350 | FV59: 525 | FW59: 875 | FX59: 300 | FY59: 2.5 | FZ59: 258.2191781 | GA59: 387.3287671 | GB59: 645.5479452 | GC59: 0.5678571429 | GD59: 21 | GE59: 15.5292547 | GF59: 14.37692792 | GG59: 13.5 | GH59: 14.78277886 | GI59: 24.93290379 | GJ59: 24.93290379 | GK59: 13.5 | GL59: 81.58473581 | GM59: 531 | GN59: 0 | GO59: 449.4152642 | GP59: 661.5 | GQ59: 1529.259509 | GR59: 1110.915264 | GS59: 0.7264399913 | GT59: 1110.915264 | GU59: 645.5479452 | GV59: 645.5479452 | GW59: 645.5479452 | GX59: 525 | GY59: 258.2191781 | GZ59: 350 | HA59: 258.2191781 | HB59: 387.3287671 | HC59: 645.5479452 | HD59: 77.46575342 | HE59: 116.1986301 | HF59: 193.6643836 | HG59: -2.294200385e-10 | HH59: 0 | HI59: 333.2745793 | HJ59: 193.6643836 | HK59: 0 | HL59: 551.4143836 | HM59: 645.5479452 | HN59: 116.1986301 | HP59: 159.3 | HQ59: 134.8245793 | HU59: =HU58 -> 2.5 | HV59: 350 | HW59: 525 | HX59: 875 | HY59: 300 | HZ59: 2.5 | IA59: 152.9785714 | IB59: 229.4678571 | IC59: 382.4464286 | ID59: =ID58 -> 0.5678571429 | IE59: 21 | IF59: 13.5 | IG59: 16.74107143 | IH59: 18.24107143 | II59: 13.5 | IJ59: 24.25438005 | IK59: 24.25438005 | IL59: 0 | IM59: 13.5 | IN59: 301.5321429 | IO59: 531 | IP59: 0 | IQ59: 229.4678571 | IR59: 661.5 | IS59: 1529.259509 | IT59: 890.9678571 | IU59: 0.582613907 | IV59: 890.9678571 | IW59: 645.5479452 | IX59: 645.5479452 | IY59: 645.5479452 | IZ59: 229.4678571 | JA59: 258.2191781 | JB59: 152.9785714 | JC59: 152.9785714 | JD59: 229.4678571 | JE59: 382.4464286 | JF59: 45.89357143 | JG59: 68.84035714 | JH59: 114.7339286 | JI59: 263.1015166 | JJ59: 0 | JK59: 267.2903571 | JL59: 193.6643836 | JM59: 78.93045499 | JN59: 551.4143836 | JO59: 0 | JP59: 68.84035714 | JR59: 159.3 | JS59: 68.84035714 | JW59: =JW58 -> 2.5 | JX59: 350 | JY59: 525 | JZ59: 875 | KA59: 300 | KB59: 2.5 | KC59: 152.9785714 | KD59: 229.4678571 | KE59: 382.4464286 | KF59: =KF58 -> 0.5678571429 | KG59: 21 | KH59: 13.5 | KI59: 16.74107143 | KJ59: 18.24107143 | KK59: 13.5 | KL59: 18.24107143 | KM59: 18.24107143 | KN59: 0 | KO59: 13.5 | KP59: 301.5321429 | KQ59: 531 | KR59: 0 | KS59: 229.4678571 | KT59: 661.5 | KU59: 1529.259509 | KV59: 890.9678571 | KW59: 0.582613907 | KX59: 890.9678571 | KY59: 645.5479452 | KZ59: 645.5479452 | LA59: 645.5479452 | LB59: 229.4678571 | LC59: 258.2191781 | LD59: 152.9785714 | LE59: 152.9785714 | LF59: 229.4678571 | LG59: 382.4464286 | LH59: 45.89357143 | LI59: 68.84035714 | LJ59: 114.7339286 | LK59: 263.1015166 | LL59: 0 | LM59: 267.2903571 | LN59: 193.6643836 | LO59: 78.93045499 | LP59: 551.4143836 | LQ59: 0 | LR59: 68.84035714 | LT59: 159.3 | LU59: 68.84035714 | LY59: =LY58 -> 2.5 | LZ59: 350 | MA59: 525 | MB59: 875 | MC59: 300 | MD59: 2.5 | ME59: 266.6017359 | MF59: 399.9026038 | MG59: 666.5043397 | MH59: =MH58 -> 0.5678571429 | MI59: 21 | MJ59: 15.35165814 | MK59: 14.30018084 | ML59: 13.5 | MM59: 14.67051247 | MN59: 14.67051247 | MO59: 15 | MP59: 13.5 | MQ59: 74.44459282 | MR59: 531 | MS59: 20.95540718 | MT59: 435.6 | MU59: 661.5 | MV59: 1529.259509 | MW59: 1097.1 | MX59: 0.7174060346 | MY59: 1097.1 | MZ59: 645.5479452 | NA59: 666.5033524 | NB59: 666.5033524 | NC59: 525 | ND59: 266.601341 | NE59: 350 | NF59: 266.601341 | NG59: 399.9020114 | NH59: 666.5033524 | NI59: 79.98040229 | NJ59: 119.9706034 | NK59: 199.9510057 | NL59: 0 | NM59: 6.286622153 | NN59: 329.13 | NO59: 199.9510057 | NP59: 0 | NQ59: 551.4143836 | NR59: 20.95540718 | NS59: 119.9706034 | NT59: 1838.047945 | NU59: 159.3 | NV59: 136.9666222
A60: 82.65981735 | B60: 14.5 | C60: 14.5 | D60: 54085.3 | E60: 173.907717 | F60: 573.3 | G60: 311 | H60: 0.5733 | I60: 2021.5 | J60: 21 | K60: 15.5292547 | L60: 14.94478507 | M60: 14.5 | N60: 15.15063601 | O60: 15.15063601 | P60: 15.15063601 | Q60: 19.21068598 | R60: 200.765411 | S60: 213.6347309 | T60: 40.90012492 | U60: 25.30076093 | V60: 0 | W60: 0 | X60: 0.6869283953 | Y60: 1.679047945 | Z60: 0.4602 | AA60: 0.9921195499 | AB60: 0.6455479452 | AC60: 0.6455479452 | AD60: 0.2582191781 | AE60: 0.3873287671 | AF60: 0.6455479452 | AG60: 0.0413804501 | AH60: 0.6869283953 | AI60: 0.5873287671 | AJ60: 0.05821917808 | AK60: 0 | AL60: 587.3287671 | AM60: 58.21917808 | AN60: 0 | AP60: 0.6455479452 | AQ60: 0.6455479452 | AR60: 0.6869283953 | BO60: 182.6592466 | BP60: 18.10616438 | BQ60: 0 | CB60: 159.4736373 | CC60: 0 | CD60: 186.3947865 | CE60: 0 | CF60: 620.0292465 | CG60: 0 | CH60: 186.6384398 | CI60: 0 | CJ60: 1152.53611 | CK60: 1152.53611 | CL60: 529.2 | CM60: 1681.73611 | CN60: 358.4387303 | CO60: 1681.73611 | FT60: 2.5 | FU60: 350 | FV60: 525 | FW60: 875 | FX60: 301 | FY60: 2.5 | FZ60: 258.2191781 | GA60: 387.3287671 | GB60: 645.5479452 | GC60: 0.5678571429 | GD60: 21 | GE60: 15.5292547 | GF60: 14.94478507 | GG60: 14.5 | GH60: 15.15063601 | GI60: 25.30076093 | GJ60: 25.30076093 | GK60: 14.5 | GL60: 41.3804501 | GM60: 460.2 | GN60: 0 | GO60: 418.8195499 | GP60: 573.3 | GQ60: 1681.73611 | GR60: 992.1195499 | GS60: 0.5899377102 | GT60: 992.1195499 | GU60: 645.5479452 | GV60: 645.5479452 | GW60: 645.5479452 | GX60: 460.2 | GY60: 258.2191781 | GZ60: 306.8 | HA60: 258.2191781 | HB60: 387.3287671 | HC60: 645.5479452 | HD60: 77.7239726 | HE60: 116.5859589 | HF60: 194.3099315 | HG60: -2.294200385e-10 | HH60: 0 | HI60: 298.6279845 | HJ60: 194.3099315 | HK60: 0 | HL60: 505.3934315 | HM60: =MAX(1.2*$GA$15*(GJ60-GG60)-GL60,0) -> 645.5479452 | HN60: 116.5859589 | HP60: 138.5202 | HQ60: 126.0646845 | HU60: =HU59 -> 2.5 | HV60: 350 | HW60: 525 | HX60: 875 | HY60: 301 | HZ60: 2.5 | IA60: 132.5814286 | IB60: 198.8721429 | IC60: 331.4535714 | ID60: =ID59 -> 0.5678571429 | IE60: 21 | IF60: 14.5 | IG60: 17.30892857 | IH60: 18.60892857 | II60: 14.5 | IJ60: 23.82046271 | IK60: 23.82046271 | IL60: 0 | IM60: 14.5 | IN60: 261.3278571 | IO60: 460.2 | IP60: 0 | IQ60: 198.8721429 | IR60: 573.3 | IS60: 1681.73611 | IT60: 772.1721429 | IU60: 0.4591517886 | IV60: 772.1721429 | IW60: 645.5479452 | IX60: 645.5479452 | IY60: 645.5479452 | IZ60: 198.8721429 | JA60: 258.2191781 | JB60: 132.5814286 | JC60: 132.5814286 | JD60: 198.8721429 | JE60: 331.4535714 | JF60: 39.90701 | JG60: 59.860515 | JH60: 99.767525 | JI60: 314.0943738 | JJ60: 0 | JK60: 232.423815 | JL60: 194.3099315 | JM60: 94.54240651 | JN60: 505.3934315 | JO60: 0 | JP60: 59.860515 | JR60: 138.5202 | JS60: 59.860515 | JW60: =JW59 -> 2.5 | JX60: 350 | JY60: 525 | JZ60: 875 | KA60: 301 | KB60: 2.5 | KC60: 132.5814286 | KD60: 198.8721429 | KE60: 331.4535714 | KF60: =KF59 -> 0.5678571429 | KG60: 21 | KH60: 14.5 | KI60: 17.30892857 | KJ60: 18.60892857 | KK60: 14.5 | KL60: 18.60892857 | KM60: 18.60892857 | KN60: 0 | KO60: 14.5 | KP60: 261.3278571 | KQ60: 460.2 | KR60: 0 | KS60: 198.8721429 | KT60: 573.3 | KU60: 1681.73611 | KV60: 772.1721429 | KW60: 0.4591517886 | KX60: 772.1721429 | KY60: 645.5479452 | KZ60: 645.5479452 | LA60: 645.5479452 | LB60: 198.8721429 | LC60: 258.2191781 | LD60: 132.5814286 | LE60: 132.5814286 | LF60: 198.8721429 | LG60: 331.4535714 | LH60: 39.90701 | LI60: 59.860515 | LJ60: 99.767525 | LK60: 314.0943738 | LL60: 0 | LM60: 232.423815 | LN60: 194.3099315 | LO60: 94.54240651 | LP60: 505.3934315 | LQ60: 0 | LR60: 59.860515 | LT60: 138.5202 | LU60: 59.860515 | LY60: =LY59 -> 2.5 | LZ60: 350 | MA60: 525 | MB60: 875 | MC60: 301 | MD60: 2.5 | ME60: 258.2191781 | MF60: 387.3287671 | MG60: 645.5479452 | MH60: =MH59 -> 0.5678571429 | MI60: 21 | MJ60: 15.5292547 | MK60: 14.94478507 | ML60: 14.5 | MM60: 15.15063601 | MN60: 15.15063601 | MO60: 15.15063601 | MP60: 14.5 | MQ60: 41.3804501 | MR60: 460.2 | MS60: 0 | MT60: 418.8195499 | MU60: 573.3 | MV60: 1681.73611 | MW60: 992.1195499 | MX60: 0.5899377102 | MY60: 992.1195499 | MZ60: 645.5479452 | NA60: 645.5479452 | NB60: 645.5479452 | NC60: 460.2 | ND60: 258.2191781 | NE60: 306.8 | NF60: 258.2191781 | NG60: 387.3287671 | NH60: 645.5479452 | NI60: 77.7239726 | NJ60: 116.5859589 | NK60: 194.3099315 | NL60: 0 | NM60: 0 | NN60: 298.6279845 | NO60: 194.3099315 | NP60: 0 | NQ60: 505.3934315 | NR60: 0 | NS60: 116.5859589 | NT60: 1679.047945 | NU60: 138.5202 | NV60: 126.0646845
A61: 85.94748858 | B61: 15.5 | C61: 15.5 | D61: 57081.2 | E61: 198.1986111 | F61: 485.1 | G61: 288 | H61: 0.4851 | I61: 1584 | J61: 21 | K61: 15.5292547 | L61: 15.51264221 | M61: 15.5 | N61: 15.51849315 | O61: 15.51849315 | P61: 15.51849315 | Q61: 19.57854312 | R61: 185.9178082 | S61: 186.2565436 | T61: 39.40012492 | U61: 25.66861808 | V61: 0 | W61: 0 | X61: 0.6467241096 | Y61: 1.520047945 | Z61: 0.3894 | AA61: 0.8733238356 | AB61: 0.6455479452 | AC61: 0.6455479452 | AD61: 0.2582191781 | AE61: 0.3873287671 | AF61: 0.6455479452 | AG61: 0.001176164384 | AH61: 0.6467241096 | AI61: 0.5873287671 | AJ61: 0.05821917808 | AK61: 0 | AL61: 587.3287671 | AM61: 58.21917808 | AN61: 0 | AP61: 0.6455479452 | AQ61: 0.6455479452 | AR61: 0.6467241096 | BO61: 169.1506849 | BP61: 16.76712329 | BQ61: 0 | CB61: 181.7484235 | CC61: 0 | CD61: 212.429836 | CE61: 0 | CF61: 706.6330212 | CG61: 0 | CH61: 212.707522 | CI61: 0 | CJ61: 1313.518803 | CK61: 1313.518803 | CL61: 529.2 | CM61: 1842.718803 | CN61: 378.2934152 | CO61: 1842.718803 | FT61: 2.5 | FU61: 350 | FV61: 525 | FW61: 875 | FX61: 302 | FY61: 2.5 | FZ61: 258.2191781 | GA61: 387.3287671 | GB61: 645.5479452 | GC61: 0.5678571429 | GD61: 21 | GE61: 15.5292547 | GF61: 15.51264221 | GG61: 15.5 | GH61: 15.51849315 | GI61: 25.66861808 | GJ61: 25.66861808 | GK61: 15.5 | GL61: 1.176164383 | GM61: 389.4 | GN61: 0 | GO61: 388.2238356 | GP61: 485.1 | GQ61: 1842.718803 | GR61: 873.3238356 | GS61: 0.4739322323 | GT61: 873.3238356 | GU61: 645.5479452 | GV61: 645.5479452 | GW61: 645.5479452 | GX61: 389.4 | GY61: 258.2191781 | GZ61: 259.6 | HA61: 258.2191781 | HB61: 387.3287671 | HC61: 645.5479452 | HD61: 77.98219178 | HE61: 116.9732877 | HF61: 194.9554795 | HG61: -2.294200385e-10 | HH61: 0 | HI61: 263.7437984 | HJ61: 194.9554795 | HK61: 0 | HL61: 459.0544795 | HM61: 645.5479452 | HN61: 116.9732877 | HP61: 117.5988 | HQ61: 117.2435984 | HU61: =HU60 -> 2.5 | HV61: 350 | HW61: 525 | HX61: 875 | HY61: 302 | HZ61: 2.5 | IA61: 112.1842857 | IB61: 168.2764286 | IC61: 280.4607143 | ID61: =ID60 -> 0.5678571429 | IE61: 21 | IF61: 15.5 | IG61: 17.87678571 | IH61: 18.97678571 | II61: 15.5 | IJ61: 23.38654537 | IK61: 23.38654537 | IL61: 0 | IM61: 15.5 | IN61: 221.1235714 | IO61: 389.4 | IP61: 0 | IQ61: 168.2764286 | IR61: 485.1 | IS61: 1842.718803 | IT61: 653.3764286 | IU61: 0.3545719659 | IV61: 653.3764286 | IW61: 645.5479452 | IX61: 645.5479452 | IY61: 645.5479452 | IZ61: 168.2764286 | JA61: 258.2191781 | JB61: 112.1842857 | JC61: 112.1842857 | JD61: 168.2764286 | JE61: 280.4607143 | JF61: 33.87965429 | JG61: 50.81948143 | JH61: 84.69913571 | JI61: 365.0872309 | JJ61: 0 | JK61: 197.3196814 | JL61: 194.9554795 | JM61: 110.2563437 | JN61: 459.0544795 | JO61: 0 | JP61: 50.81948143 | JR61: 117.5988 | JS61: 50.81948143 | JW61: =JW60 -> 2.5 | JX61: 350 | JY61: 525 | JZ61: 875 | KA61: 302 | KB61: 2.5 | KC61: 112.1842857 | KD61: 168.2764286 | KE61: 280.4607143 | KF61: =KF60 -> 0.5678571429 | KG61: 21 | KH61: 15.5 | KI61: 17.87678571 | KJ61: 18.97678571 | KK61: 15.5 | KL61: 18.97678571 | KM61: 18.97678571 | KN61: 0 | KO61: 15.5 | KP61: 221.1235714 | KQ61: 389.4 | KR61: 0 | KS61: 168.2764286 | KT61: 485.1 | KU61: 1842.718803 | KV61: 653.3764286 | KW61: 0.3545719659 | KX61: 653.3764286 | KY61: 645.5479452 | KZ61: 645.5479452 | LA61: 645.5479452 | LB61: 168.2764286 | LC61: 258.2191781 | LD61: 112.1842857 | LE61: 112.1842857 | LF61: 168.2764286 | LG61: 280.4607143 | LH61: 33.87965429 | LI61: 50.81948143 | LJ61: 84.69913571 | LK61: 365.0872309 | LL61: 0 | LM61: 197.3196814 | LN61: 194.9554795 | LO61: 110.2563437 | LP61: 459.0544795 | LQ61: 0 | LR61: 50.81948143 | LT61: 117.5988 | LU61: 50.81948143 | LY61: =LY60 -> 2.5 | LZ61: 350 | MA61: 525 | MB61: 875 | MC61: 302 | MD61: 2.5 | ME61: 258.2191781 | MF61: 387.3287671 | MG61: 645.5479452 | MH61: =MH60 -> 0.5678571429 | MI61: 21 | MJ61: 15.5292547 | MK61: 15.51264221 | ML61: 15.5 | MM61: 15.51849315 | MN61: 15.51849315 | MO61: 15.51849315 | MP61: 15.5 | MQ61: 1.176164384 | MR61: 389.4 | MS61: 0 | MT61: 388.2238356 | MU61: 485.1 | MV61: 1842.718803 | MW61: 873.3238356 | MX61: 0.4739322323 | MY61: 873.3238356 | MZ61: 645.5479452 | NA61: 645.5479452 | NB61: 645.5479452 | NC61: 389.4 | ND61: 258.2191781 | NE61: 259.6 | NF61: 258.2191781 | NG61: 387.3287671 | NH61: 645.5479452 | NI61: 77.98219178 | NJ61: 116.9732877 | NK61: 194.9554795 | NL61: 0 | NM61: 0 | NN61: 263.7437984 | NO61: 194.9554795 | NP61: 0 | NQ61: 459.0544795 | NR61: 0 | NS61: 116.9732877 | NT61: 1520.047945 | NU61: 117.5988 | NV61: 117.2435984
A62: 89.29223744 | B62: 16.5 | C62: 16.5 | D62: 70692.7 | E62: 241.2720137 | F62: 396.9 | G62: 293 | H62: 0.3969 | I62: 1318.5 | J62: 21 | K62: 16.5 | L62: 16.5 | M62: 16.5 | N62: 16.5 | O62: 16.5 | P62: 16.5 | Q62: 19.83962264 | R62: 155.583 | S62: 189.1455479 | T62: 37.90012492 | U62: 26.65012492 | V62: 0 | W62: 0.1145479452 | X62: 0.6455479452 | Y62: 1.361047945 | Z62: 0.3186 | AA62: 0.7155 | AB62: 0.6455479452 | AC62: 0.6455479452 | AD62: 0.2124 | AE62: 0.3186 | AF62: 0.531 | AG62: 0 | AH62: 0.531 | AI62: 0.5873287671 | AJ62: 0.05821917808 | AK62: 0 | AL62: 587.3287671 | AM62: 58.21917808 | AN62: 0 | AP62: 0.6455479452 | AQ62: 0.6455479452 | AR62: 0.531 | BO62: 172.0873288 | BP62: 17.05821918 | BQ62: 0 | CB62: 221.2467982 | CC62: 0 | CD62: 258.5960315 | CE62: 0 | CF62: 860.2016482 | CG62: 0 | CH62: 258.9340655 | CI62: 0 | CJ62: 1598.978543 | CK62: 1598.978543 | CL62: 529.2 | CM62: 2128.178543 | CN62: 468.5007132 | CO62: 2128.178543 | FT62: 2.5 | FU62: 350 | FV62: 525 | FW62: 875 | FX62: 303 | FY62: 2.5 | FZ62: 212.4 | GA62: 318.6 | GB62: 531 | GC62: 0.5678571429 | GD62: 21 | GE62: 16.5 | GF62: 16.5 | GG62: 16.5 | GH62: 16.5 | GI62: 24.8490566 | GJ62: 24.8490566 | GK62: 16.5 | GL62: 0 | GM62: 318.6 | GN62: 0 | GO62: 318.6 | GP62: 396.9 | GQ62: 2128.178543 | GR62: 715.5 | GS62: 0.3362029949 | GT62: 715.5 | GU62: 645.5479452 | GV62: 645.5479452 | GW62: 645.5479452 | GX62: 318.6 | GY62: 258.2191781 | GZ62: 212.4 | HA62: 212.4 | HB62: 318.6 | HC62: 531 | HD62: 64.3572 | HE62: 96.5358 | HF62: 160.893 | HG62: 114.5479452 | HH62: 0 | HI62: 216.7965 | HJ62: 195.6010274 | HK62: 34.7080274 | HL62: 412.3975274 | HM62: 531 | HN62: 96.5358 | HP62: 96.5358 | HQ62: 96.5358 | HU62: =HU61 -> 2.5 | HV62: 350 | HW62: 525 | HX62: 875 | HY62: 303 | HZ62: 2.5 | IA62: 91.78714286 | IB62: 137.6807143 | IC62: 229.4678571 | ID62: =ID61 -> 0.5678571429 | IE62: 21 | IF62: 16.5 | IG62: 18.44464286 | IH62: 19.34464286 | II62: 16.5 | IJ62: 22.95262803 | IK62: 22.95262803 | IL62: 0 | IM62: 16.5 | IN62: 180.9192857 | IO62: 318.6 | IP62: 0 | IQ62: 137.6807143 | IR62: 396.9 | IS62: 2128.178543 | IT62: 534.5807143 | IU62: 0.2511916662 | IV62: 534.5807143 | IW62: 645.5479452 | IX62: 645.5479452 | IY62: 645.5479452 | IZ62: 137.6807143 | JA62: 258.2191781 | JB62: 91.78714286 | JC62: 91.78714286 | JD62: 137.6807143 | JE62: 229.4678571 | JF62: 27.81150429 | JG62: 41.71725643 | JH62: 69.52876071 | JI62: 416.0800881 | JJ62: 0 | JK62: 161.9779564 | JL62: 195.6010274 | JM62: 126.0722667 | JN62: 412.3975274 | JO62: 0 | JP62: 41.71725643 | JR62: 96.5358 | JS62: 41.71725643 | JW62: =JW61 -> 2.5 | JX62: 350 | JY62: 525 | JZ62: 875 | KA62: 303 | KB62: 2.5 | KC62: 91.78714286 | KD62: 137.6807143 | KE62: 229.4678571 | KF62: =KF61 -> 0.5678571429 | KG62: 21 | KH62: 16.5 | KI62: 18.44464286 | KJ62: 19.34464286 | KK62: 16.5 | KL62: 19.34464286 | KM62: 19.34464286 | KN62: 0 | KO62: 16.5 | KP62: 180.9192857 | KQ62: 318.6 | KR62: 0 | KS62: 137.6807143 | KT62: 396.9 | KU62: 2128.178543 | KV62: 534.5807143 | KW62: 0.2511916662 | KX62: 534.5807143 | KY62: 645.5479452 | KZ62: 645.5479452 | LA62: 645.5479452 | LB62: 137.6807143 | LC62: 258.2191781 | LD62: 91.78714286 | LE62: 91.78714286 | LF62: 137.6807143 | LG62: 229.4678571 | LH62: 27.81150429 | LI62: 41.71725643 | LJ62: 69.52876071 | LK62: 416.0800881 | LL62: 0 | LM62: 161.9779564 | LN62: 195.6010274 | LO62: 126.0722667 | LP62: 412.3975274 | LQ62: 0 | LR62: 41.71725643 | LT62: 96.5358 | LU62: 41.71725643 | LY62: =LY61 -> 2.5 | LZ62: 350 | MA62: 525 | MB62: 875 | MC62: 303 | MD62: 2.5 | ME62: 212.4 | MF62: 318.6 | MG62: 531 | MH62: =MH61 -> 0.5678571429 | MI62: 21 | MJ62: 16.5 | MK62: 16.5 | ML62: 16.5 | MM62: 16.5 | MN62: 16.5 | MO62: 16.5 | MP62: 16.5 | MQ62: 0 | MR62: 318.6 | MS62: 0 | MT62: 318.6 | MU62: 396.9 | MV62: 2128.178543 | MW62: 715.5 | MX62: 0.3362029949 | MY62: 715.5 | MZ62: 645.5479452 | NA62: 645.5479452 | NB62: 645.5479452 | NC62: 318.6 | ND62: 258.2191781 | NE62: 212.4 | NF62: 212.4 | NG62: 318.6 | NH62: 531 | NI62: 64.3572 | NJ62: 96.5358 | NK62: 160.893 | NL62: 114.5479452 | NM62: 0 | NN62: 216.7965 | NO62: 195.6010274 | NP62: 34.7080274 | NQ62: 412.3975274 | NR62: 0 | NS62: 96.5358 | NT62: 1361.047945 | NU62: 96.5358 | NV62: 96.5358
A63: 91.76940639 | B63: 17.5 | C63: 17.5 | D63: 47382.7 | E63: 218.3534562 | F63: 308.7 | G63: 217 | H63: 0.3087 | I63: 759.5 | J63: 21 | K63: 17.5 | L63: 17.5 | M63: 17.5 | N63: 17.5 | O63: 17.5 | P63: 17.5 | Q63: 20.09748428 | R63: 89.621 | S63: 140.0839041 | T63: 36.40012492 | U63: 27.65012492 | V63: 0 | W63: 0.2325479452 | X63: 0.6455479452 | Y63: 1.202047945 | Z63: 0.2478 | AA63: 0.5565 | AB63: 0.6455479452 | AC63: 0.6455479452 | AD63: 0.1652 | AE63: 0.2478 | AF63: 0.413 | AG63: 0 | AH63: 0.413 | AI63: 0.5873287671 | AJ63: 0.05821917808 | AK63: 0 | AL63: 587.3287671 | AM63: 58.21917808 | AN63: 0 | AP63: 0.6455479452 | AQ63: 0.6455479452 | AR63: 0.413 | BO63: 127.4503425 | BP63: 12.63356164 | BQ63: 0 | CB63: 200.2304467 | CC63: 0 | CD63: 234.0318564 | CE63: 0 | CF63: 778.4906342 | CG63: 0 | CH63: 234.3377804 | CI63: 0 | CJ63: 1447.090718 | CK63: 1447.090718 | CL63: 529.2 | CM63: 1976.290718 | CN63: 314.0186857 | CO63: 1976.290718 | FT63: 2.5 | FU63: 350 | FV63: 525 | FW63: 875 | FX63: 304 | FY63: 2.5 | FZ63: 165.2 | GA63: 247.8 | GB63: 413 | GC63: 0.5678571429 | GD63: 21 | GE63: 17.5 | GF63: 17.5 | GG63: 17.5 | GH63: 17.5 | GI63: 23.99371069 | GJ63: 23.99371069 | GK63: 17.5 | GL63: 0 | GM63: 247.8 | GN63: 0 | GO63: 247.8 | GP63: 308.7 | GQ63: 1976.290718 | GR63: 556.5 | GS63: 0.2815881262 | GT63: 556.5 | GU63: 645.5479452 | GV63: 645.5479452 | GW63: 645.5479452 | GX63: 247.8 | GY63: 258.2191781 | GZ63: 165.2 | HA63: 165.2 | HB63: 247.8 | HC63: 413 | HD63: 50.2208 | HE63: 75.3312 | HF63: 125.552 | HG63: 232.5479452 | HH63: 0 | HI63: 169.176 | HJ63: 196.2465753 | HK63: 70.69457534 | HL63: 365.4225753 | HM63: 413 | HN63: 75.3312 | HP63: 75.3312 | HQ63: 75.3312 | HU63: =HU62 -> 2.5 | HV63: 350 | HW63: 525 | HX63: 875 | HY63: 304 | HZ63: 2.5 | IA63: 71.39 | IB63: 107.085 | IC63: 178.475 | ID63: =ID62 -> 0.5678571429 | IE63: 21 | IF63: 17.5 | IG63: 19.0125 | IH63: 19.7125 | II63: 17.5 | IJ63: 22.51871069 | IK63: 22.51871069 | IL63: 0 | IM63: 17.5 | IN63: 140.715 | IO63: 247.8 | IP63: 0 | IQ63: 107.085 | IR63: 308.7 | IS63: 1976.290718 | IT63: 415.785 | IU63: 0.2103865571 | IV63: 415.785 | IW63: 645.5479452 | IX63: 645.5479452 | IY63: 645.5479452 | IZ63: 107.085 | JA63: 258.2191781 | JB63: 71.39 | JC63: 71.39 | JD63: 107.085 | JE63: 178.475 | JF63: 21.70256 | JG63: 32.55384 | JH63: 54.2564 | JI63: 467.0729452 | JJ63: 0 | JK63: 126.39864 | JL63: 196.2465753 | JM63: 141.9901753 | JN63: 365.4225753 | JO63: 0 | JP63: 32.55384 | JR63: 75.3312 | JS63: 32.55384 | JW63: =JW62 -> 2.5 | JX63: 350 | JY63: 525 | JZ63: 875 | KA63: 304 | KB63: 2.5 | KC63: 71.39 | KD63: 107.085 | KE63: 178.475 | KF63: =KF62 -> 0.5678571429 | KG63: 21 | KH63: 17.5 | KI63: 19.0125 | KJ63: 19.7125 | KK63: 17.5 | KL63: 19.7125 | KM63: 19.7125 | KN63: 0 | KO63: 17.5 | KP63: 140.715 | KQ63: 247.8 | KR63: 0 | KS63: 107.085 | KT63: 308.7 | KU63: 1976.290718 | KV63: 415.785 | KW63: 0.2103865571 | KX63: 415.785 | KY63: 645.5479452 | KZ63: 645.5479452 | LA63: 645.5479452 | LB63: 107.085 | LC63: 258.2191781 | LD63: 71.39 | LE63: 71.39 | LF63: 107.085 | LG63: 178.475 | LH63: 21.70256 | LI63: 32.55384 | LJ63: 54.2564 | LK63: 467.0729452 | LL63: 0 | LM63: 126.39864 | LN63: 196.2465753 | LO63: 141.9901753 | LP63: 365.4225753 | LQ63: 0 | LR63: 32.55384 | LT63: 75.3312 | LU63: 32.55384 | LY63: =LY62 -> 2.5 | LZ63: 350 | MA63: 525 | MB63: 875 | MC63: 304 | MD63: 2.5 | ME63: 165.2 | MF63: 247.8 | MG63: 413 | MH63: =MH62 -> 0.5678571429 | MI63: 21 | MJ63: 17.5 | MK63: 17.5 | ML63: 17.5 | MM63: 17.5 | MN63: 17.5 | MO63: 17.5 | MP63: 17.5 | MQ63: 0 | MR63: 247.8 | MS63: 0 | MT63: 247.8 | MU63: 308.7 | MV63: 1976.290718 | MW63: 556.5 | MX63: 0.2815881262 | MY63: 556.5 | MZ63: 645.5479452 | NA63: 645.5479452 | NB63: 645.5479452 | NC63: 247.8 | ND63: 258.2191781 | NE63: 165.2 | NF63: 165.2 | NG63: 247.8 | NH63: 413 | NI63: 50.2208 | NJ63: 75.3312 | NK63: 125.552 | NL63: 232.5479452 | NM63: 0 | NN63: 169.176 | NO63: 196.2465753 | NP63: 70.69457534 | NQ63: 365.4225753 | NR63: 0 | NS63: 75.3312 | NT63: 1202.047945 | NU63: 75.3312 | NV63: 75.3312
A64: 93.66438356 | B64: 18.5 | C64: 18.5 | D64: 57830.3 | E64: 348.3753012 | F64: 220.5 | G64: 166 | H64: 0.2205 | I64: 415 | J64: 21 | K64: 18.5 | L64: 18.5 | M64: 18.5 | N64: 18.5 | O64: 18.5 | P64: 18.5 | Q64: 20.35534591 | R64: 48.97 | S64: 107.1609589 | T64: 34.90012492 | U64: 28.65012492 | V64: 0 | W64: 0.3505479452 | X64: 0.6455479452 | Y64: 1.043047945 | Z64: 0.177 | AA64: 0.3975 | AB64: 0.6455479452 | AC64: 0.6455479452 | AD64: 0.118 | AE64: 0.177 | AF64: 0.295 | AG64: 0 | AH64: 0.295 | AI64: 0.5873287671 | AJ64: 0.05821917808 | AK64: 0 | AL64: 587.3287671 | AM64: 58.21917808 | AN64: 0 | AP64: 0.6455479452 | AQ64: 0.6455479452 | AR64: 0.295 | BO64: 97.49657534 | BP64: 9.664383562 | BQ64: 0 | CB64: 319.4606735 | CC64: 0 | CD64: 373.3896402 | CE64: 0 | CF64: 1242.054575 | CG64: 0 | CH64: 373.8777312 | CI64: 0 | CJ64: 2308.78262 | CK64: 2308.78262 | CL64: 529.2 | CM64: 2837.98262 | CN64: 383.2579148 | CO64: 2837.98262 | FT64: 2.5 | FU64: 350 | FV64: 525 | FW64: 875 | FX64: 305 | FY64: 2.5 | FZ64: 118 | GA64: 177 | GB64: 295 | GC64: 0.5678571429 | GD64: 21 | GE64: 18.5 | GF64: 18.5 | GG64: 18.5 | GH64: 18.5 | GI64: 23.13836478 | GJ64: 23.13836478 | GK64: 18.5 | GL64: 0 | GM64: 177 | GN64: 0 | GO64: 177 | GP64: 220.5 | GQ64: 2837.98262 | GR64: 397.5 | GS64: 0.1400642827 | GT64: 397.5 | GU64: 645.5479452 | GV64: 645.5479452 | GW64: 645.5479452 | GX64: 177 | GY64: 258.2191781 | GZ64: 118 | HA64: 118 | HB64: 177 | HC64: 295 | HD64: 35.99 | HE64: 53.985 | HF64: 89.975 | HG64: 350.5479452 | HH64: 0 | HI64: 121.2375 | HJ64: 196.8921233 | HK64: 106.9171233 | HL64: 318.1296233 | HM64: 295 | HN64: 53.985 | HP64: 53.985 | HQ64: 53.985 | HU64: =HU63 -> 2.5 | HV64: 350 | HW64: 525 | HX64: 875 | HY64: 305 | HZ64: 2.5 | IA64: 50.99285714 | IB64: 76.48928571 | IC64: 127.4821429 | ID64: =ID63 -> 0.5678571429 | IE64: 21 | IF64: 18.5 | IG64: 19.58035714 | IH64: 20.08035714 | II64: 18.5 | IJ64: 22.08479335 | IK64: 22.08479335 | IL64: 0 | IM64: 18.5 | IN64: 100.5107143 | IO64: 177 | IP64: 0 | IQ64: 76.48928571 | IR64: 220.5 | IS64: 2837.98262 | IT64: 296.9892857 | IU64: 0.1046480284 | IV64: 296.9892857 | IW64: 645.5479452 | IX64: 645.5479452 | IY64: 645.5479452 | IZ64: 76.48928571 | JA64: 258.2191781 | JB64: 50.99285714 | JC64: 50.99285714 | JD64: 76.48928571 | JE64: 127.4821429 | JF64: 15.55282143 | JG64: 23.32923214 | JH64: 38.88205357 | JI64: 518.0658023 | JJ64: 0 | JK64: 90.58173214 | JL64: 196.8921233 | JM64: 158.0100697 | JN64: 318.1296233 | JO64: 0 | JP64: 23.32923214 | JR64: 53.985 | JS64: 23.32923214 | JW64: =JW63 -> 2.5 | JX64: 350 | JY64: 525 | JZ64: 875 | KA64: 305 | KB64: 2.5 | KC64: 50.99285714 | KD64: 76.48928571 | KE64: 127.4821429 | KF64: =KF63 -> 0.5678571429 | KG64: 21 | KH64: 18.5 | KI64: 19.58035714 | KJ64: 20.08035714 | KK64: 18.5 | KL64: 20.08035714 | KM64: 20.08035714 | KN64: 0 | KO64: 18.5 | KP64: 100.5107143 | KQ64: 177 | KR64: 0 | KS64: 76.48928571 | KT64: 220.5 | KU64: 2837.98262 | KV64: 296.9892857 | KW64: 0.1046480284 | KX64: 296.9892857 | KY64: 645.5479452 | KZ64: 645.5479452 | LA64: 645.5479452 | LB64: 76.48928571 | LC64: 258.2191781 | LD64: 50.99285714 | LE64: 50.99285714 | LF64: 76.48928571 | LG64: 127.4821429 | LH64: 15.55282143 | LI64: 23.32923214 | LJ64: 38.88205357 | LK64: 518.0658023 | LL64: 0 | LM64: 90.58173214 | LN64: 196.8921233 | LO64: 158.0100697 | LP64: 318.1296233 | LQ64: 0 | LR64: 23.32923214 | LT64: 53.985 | LU64: 23.32923214 | LY64: =LY63 -> 2.5 | LZ64: 350 | MA64: 525 | MB64: 875 | MC64: 305 | MD64: 2.5 | ME64: 118 | MF64: 177 | MG64: 295 | MH64: =MH63 -> 0.5678571429 | MI64: 21 | MJ64: 18.5 | MK64: 18.5 | ML64: 18.5 | MM64: 18.5 | MN64: 18.5 | MO64: 18.5 | MP64: 18.5 | MQ64: 0 | MR64: 177 | MS64: 0 | MT64: 177 | MU64: 220.5 | MV64: 2837.98262 | MW64: 397.5 | MX64: 0.1400642827 | MY64: 397.5 | MZ64: 645.5479452 | NA64: 645.5479452 | NB64: 645.5479452 | NC64: 177 | ND64: 258.2191781 | NE64: 118 | NF64: 118 | NG64: 177 | NH64: 295 | NI64: 35.99 | NJ64: 53.985 | NK64: 89.975 | NL64: 350.5479452 | NM64: 0 | NN64: 121.2375 | NO64: 196.8921233 | NP64: 106.9171233 | NQ64: 318.1296233 | NR64: 0 | NS64: 53.985 | NT64: 1043.047945 | NU64: 53.985 | NV64: 53.985
A65: 95.47945205 | B65: 19.5 | C65: 19.5 | D65: 64114.6 | E65: 403.236478 | F65: 132.3 | G65: 159 | H65: 0.1323 | I65: 238.5 | J65: 21 | K65: 19.5 | L65: 19.5 | M65: 19.5 | N65: 19.5 | O65: 19.5 | P65: 19.5 | Q65: 20.61320755 | R65: 28.143 | S65: 102.6421233 | T65: 33.40012492 | U65: 29.65012492 | V65: 0 | W65: 0.4685479452 | X65: 0.6455479452 | Y65: 0.8840479452 | Z65: 0.1062 | AA65: 0.2385 | AB65: 0.6455479452 | AC65: 0.6455479452 | AD65: 0.0708 | AE65: 0.1062 | AF65: 0.177 | AG65: 0 | AH65: 0.177 | AI65: 0.5873287671 | AJ65: 0.05821917808 | AK65: 0 | AL65: 587.3287671 | AM65: 58.21917808 | AN65: 0 | AP65: 0.6455479452 | AQ65: 0.6455479452 | AR65: 0.177 | BO65: 93.38527397 | BP65: 9.256849315 | BQ65: 0 | CB65: 369.7684549 | CC65: 0 | CD65: 432.1900058 | CE65: 0 | CF65: 1437.649886 | CG65: 0 | CH65: 432.75496 | CI65: 0 | CJ65: 2672.363307 | CK65: 2672.363307 | CL65: 529.2 | CM65: 3201.563307 | CN65: 424.9057658 | CO65: 3201.563307 | FT65: 2.5 | FU65: 350 | FV65: 525 | FW65: 875 | FX65: 306 | FY65: 2.5 | FZ65: 70.8 | GA65: 106.2 | GB65: 177 | GC65: 0.5678571429 | GD65: 21 | GE65: 19.5 | GF65: 19.5 | GG65: 19.5 | GH65: 19.5 | GI65: 22.28301887 | GJ65: 22.28301887 | GK65: 19.5 | GL65: 0 | GM65: 106.2 | GN65: 0 | GO65: 106.2 | GP65: 132.3 | GQ65: 3201.563307 | GR65: 238.5 | GS65: 0.07449485677 | GT65: 238.5 | GU65: 645.5479452 | GV65: 645.5479452 | GW65: 645.5479452 | GX65: 106.2 | GY65: 258.2191781 | GZ65: 70.8 | HA65: 70.8 | HB65: 106.2 | HC65: 177 | HD65: 21.6648 | HE65: 32.4972 | HF65: 54.162 | HG65: 468.5479452 | HH65: 0 | HI65: 72.981 | HJ65: 197.5376712 | HK65: 143.3756712 | HL65: 270.5186712 | HM65: 177 | HN65: 32.4972 | HP65: 32.4972 | HQ65: 32.4972 | HU65: =HU64 -> 2.5 | HV65: 350 | HW65: 525 | HX65: 875 | HY65: 306 | HZ65: 2.5 | IA65: 30.59571429 | IB65: 45.89357143 | IC65: 76.48928571 | ID65: =ID64 -> 0.5678571429 | IE65: 21 | IF65: 19.5 | IG65: 20.14821429 | IH65: 20.44821429 | II65: 19.5 | IJ65: 21.65087601 | IK65: 21.65087601 | IL65: 0 | IM65: 19.5 | IN65: 60.30642857 | IO65: 106.2 | IP65: 0 | IQ65: 45.89357143 | IR65: 132.3 | IS65: 3201.563307 | IT65: 178.1935714 | IU65: 0.05565830013 | IV65: 178.1935714 | IW65: 645.5479452 | IX65: 645.5479452 | IY65: 645.5479452 | IZ65: 45.89357143 | JA65: 258.2191781 | JB65: 30.59571429 | JC65: 30.59571429 | JD65: 45.89357143 | JE65: 76.48928571 | JF65: 9.362288571 | JG65: 14.04343286 | JH65: 23.40572143 | JI65: 569.0586595 | JJ65: 0 | JK65: 54.52723286 | JL65: 197.5376712 | JM65: 174.1319498 | JN65: 270.5186712 | JO65: 0 | JP65: 14.04343286 | JR65: 32.4972 | JS65: 14.04343286 | JW65: =JW64 -> 2.5 | JX65: 350 | JY65: 525 | JZ65: 875 | KA65: 306 | KB65: 2.5 | KC65: 30.59571429 | KD65: 45.89357143 | KE65: 76.48928571 | KF65: =KF64 -> 0.5678571429 | KG65: 21 | KH65: 19.5 | KI65: 20.14821429 | KJ65: 20.44821429 | KK65: 19.5 | KL65: 20.44821429 | KM65: 20.44821429 | KN65: 0 | KO65: 19.5 | KP65: 60.30642857 | KQ65: 106.2 | KR65: 0 | KS65: 45.89357143 | KT65: 132.3 | KU65: 3201.563307 | KV65: 178.1935714 | KW65: 0.05565830013 | KX65: 178.1935714 | KY65: 645.5479452 | KZ65: 645.5479452 | LA65: 645.5479452 | LB65: 45.89357143 | LC65: 258.2191781 | LD65: 30.59571429 | LE65: 30.59571429 | LF65: 45.89357143 | LG65: 76.48928571 | LH65: 9.362288571 | LI65: 14.04343286 | LJ65: 23.40572143 | LK65: 569.0586595 | LL65: 0 | LM65: 54.52723286 | LN65: 197.5376712 | LO65: 174.1319498 | LP65: 270.5186712 | LQ65: 0 | LR65: 14.04343286 | LT65: 32.4972 | LU65: 14.04343286 | LY65: =LY64 -> 2.5 | LZ65: 350 | MA65: 525 | MB65: 875 | MC65: 306 | MD65: 2.5 | ME65: 70.8 | MF65: 106.2 | MG65: 177 | MH65: =MH64 -> 0.5678571429 | MI65: 21 | MJ65: 19.5 | MK65: 19.5 | ML65: 19.5 | MM65: 19.5 | MN65: 19.5 | MO65: 19.5 | MP65: 19.5 | MQ65: 0 | MR65: 106.2 | MS65: 0 | MT65: 106.2 | MU65: 132.3 | MV65: 3201.563307 | MW65: 238.5 | MX65: 0.07449485677 | MY65: 238.5 | MZ65: 645.5479452 | NA65: 645.5479452 | NB65: 645.5479452 | NC65: 106.2 | ND65: 258.2191781 | NE65: 70.8 | NF65: 70.8 | NG65: 106.2 | NH65: 177 | NI65: 21.6648 | NJ65: 32.4972 | NK65: 54.162 | NL65: 468.5479452 | NM65: 0 | NN65: 72.981 | NO65: 197.5376712 | NP65: 143.3756712 | NQ65: 270.5186712 | NR65: 0 | NS65: 32.4972 | NT65: 884.0479452 | NU65: 32.4972 | NV65: 32.4972
A66: 97.10045662 | B66: 20.5 | C66: 20.5 | D66: 68164.4 | E66: 480.0309859 | F66: 44.1 | G66: 142 | H66: 0.0441 | I66: 71 | J66: 21 | K66: 20.5 | L66: 20.5 | M66: 20.5 | N66: 20.5 | O66: 20.5 | P66: 20.5 | Q66: 20.87106918 | R66: 8.378 | S66: 91.66780822 | T66: 31.90012492 | U66: 30.65012492 | V66: 0 | W66: 0.5865479452 | X66: 0.6455479452 | Y66: 0.7250479452 | Z66: 0.0354 | AA66: 0.0795 | AB66: 0.6455479452 | AC66: 0.6455479452 | AD66: 0.0236 | AE66: 0.0354 | AF66: 0.059 | AG66: 0 | AH66: 0.059 | AI66: 0.5873287671 | AJ66: 0.05821917808 | AK66: 0 | AL66: 587.3287671 | AM66: 58.21917808 | AN66: 0 | AP66: 0.6455479452 | AQ66: 0.6455479452 | AR66: 0.059 | BO66: 83.40068493 | BP66: 8.267123288 | BQ66: 0 | CB66: 440.1891338 | CC66: 0 | CD66: 514.4985781 | CE66: 0 | CF66: 1711.443607 | CG66: 0 | CH66: 515.1711253 | CI66: 0 | CJ66: 3181.302444 | CK66: 3181.302444 | CL66: 529.2 | CM66: 3710.502444 | CN66: 451.744947 | CO66: 3710.502444 | FT66: 2.5 | FU66: 350 | FV66: 525 | FW66: 875 | FX66: 307 | FY66: 2.5 | FZ66: 23.6 | GA66: 35.4 | GB66: 59.00000001 | GC66: 0.5678571429 | GD66: 21 | GE66: 20.5 | GF66: 20.5 | GG66: 20.5 | GH66: 20.5 | GI66: 21.42767296 | GJ66: 21.42767296 | GK66: 20.5 | GL66: 0 | GM66: 35.4 | GN66: 0 | GO66: 35.4 | GP66: 44.1 | GQ66: 3710.502444 | GR66: 79.5 | GS66: 0.02142566976 | GT66: 79.5 | GU66: 645.5479452 | GV66: 645.5479452 | GW66: 645.5479452 | GX66: 35.4 | GY66: 258.2191781 | GZ66: 23.6 | HA66: 23.6 | HB66: 35.4 | HC66: 59 | HD66: 7.2452 | HE66: 10.8678 | HF66: 18.113 | HG66: 586.5479452 | HH66: 0 | HI66: 24.4065 | HJ66: 198.1832192 | HK66: 180.0702192 | HL66: 222.5897192 | HM66: 59.00000001 | HN66: 10.8678 | HP66: 10.8678 | HQ66: 10.8678 | HU66: =HU65 -> 2.5 | HV66: 350 | HW66: 525 | HX66: 875 | HY66: 307 | HZ66: 2.5 | IA66: 10.19857143 | IB66: 15.29785714 | IC66: 25.49642857 | ID66: =ID65 -> 0.5678571429 | IE66: 21 | IF66: 20.5 | IG66: 20.71607143 | IH66: 20.81607143 | II66: 20.5 | IJ66: 21.21695867 | IK66: 21.21695867 | IL66: 0 | IM66: 20.5 | IN66: 20.10214286 | IO66: 35.4 | IP66: 0 | IQ66: 15.29785714 | IR66: 44.1 | IS66: 3710.502444 | IT66: 59.39785714 | IU66: 0.01600803612 | IV66: 59.39785714 | IW66: 645.5479452 | IX66: 645.5479452 | IY66: 645.5479452 | IZ66: 15.29785714 | JA66: 258.2191781 | JB66: 10.19857143 | JC66: 10.19857143 | JD66: 15.29785714 | JE66: 25.49642857 | JF66: 3.130961429 | JG66: 4.696442143 | JH66: 7.827403571 | JI66: 620.0515166 | JJ66: 0 | JK66: 18.23514214 | JL66: 198.1832192 | JM66: 190.3558156 | JN66: 222.5897192 | JO66: 0 | JP66: 4.696442143 | JR66: 10.8678 | JS66: 4.696442143 | JW66: =JW65 -> 2.5 | JX66: 350 | JY66: 525 | JZ66: 875 | KA66: 307 | KB66: 2.5 | KC66: 10.19857143 | KD66: 15.29785714 | KE66: 25.49642857 | KF66: =KF65 -> 0.5678571429 | KG66: 21 | KH66: 20.5 | KI66: 20.71607143 | KJ66: 20.81607143 | KK66: 20.5 | KL66: 20.81607143 | KM66: 20.81607143 | KN66: 0 | KO66: 20.5 | KP66: 20.10214286 | KQ66: 35.4 | KR66: 0 | KS66: 15.29785714 | KT66: 44.1 | KU66: 3710.502444 | KV66: 59.39785714 | KW66: 0.01600803612 | KX66: 59.39785714 | KY66: 645.5479452 | KZ66: 645.5479452 | LA66: 645.5479452 | LB66: 15.29785714 | LC66: 258.2191781 | LD66: 10.19857143 | LE66: 10.19857143 | LF66: 15.29785714 | LG66: 25.49642857 | LH66: 3.130961429 | LI66: 4.696442143 | LJ66: 7.827403571 | LK66: 620.0515166 | LL66: 0 | LM66: 18.23514214 | LN66: 198.1832192 | LO66: 190.3558156 | LP66: 222.5897192 | LQ66: 0 | LR66: 4.696442143 | LT66: 10.8678 | LU66: 4.696442143 | LY66: =LY65 -> 2.5 | LZ66: 350 | MA66: 525 | MB66: 875 | MC66: 307 | MD66: 2.5 | ME66: 23.6 | MF66: 35.4 | MG66: 59 | MH66: =MH65 -> 0.5678571429 | MI66: 21 | MJ66: 20.5 | MK66: 20.5 | ML66: 20.5 | MM66: 20.5 | MN66: 20.5 | MO66: 20.5 | MP66: 20.5 | MQ66: 0 | MR66: 35.4 | MS66: 0 | MT66: 35.4 | MU66: 44.1 | MV66: 3710.502444 | MW66: 79.5 | MX66: 0.02142566976 | MY66: 79.5 | MZ66: 645.5479452 | NA66: 645.5479452 | NB66: 645.5479452 | NC66: 35.4 | ND66: 258.2191781 | NE66: 23.6 | NF66: 23.6 | NG66: 35.4 | NH66: 59 | NI66: 7.2452 | NJ66: 10.8678 | NK66: 18.113 | NL66: 586.5479452 | NM66: 0 | NN66: 24.4065 | NO66: 198.1832192 | NP66: 180.0702192 | NQ66: 222.5897192 | NR66: 0 | NS66: 10.8678 | NT66: 725.0479452 | NU66: 10.8678 | NV66: 10.8678
A67: 98.13926941 | B67: 21.5 | C67: 21.5 | D67: 44863.8 | E67: 493.0087912 | F67: 0 | G67: 91 | H67: 0 | I67: 0 | J67: 21.5 | K67: 21.5 | L67: 21.5 | M67: 21.5 | N67: 21.5 | O67: 21.5 | P67: 21.5 | Q67: 21.5 | R67: 0 | S67: 58.74486301 | T67: 31.65012492 | U67: 31.65012492 | V67: 0 | W67: 0.6455479452 | X67: 0.6455479452 | Y67: 0.6455479452 | Z67: 0 | AA67: 1e-53 | AB67: 0.6455479452 | AC67: 0.6455479452 | AD67: 0 | AE67: 0 | AF67: 0 | AG67: 0 | AH67: 0 | AI67: 0.5873287671 | AJ67: 0.05821917808 | AK67: 0 | AL67: 587.3287671 | AM67: 58.21917808 | AN67: 0 | AP67: 0.6455479452 | AQ67: 0.6455479452 | AR67: 0 | BO67: 53.44691781 | BP67: 5.297945205 | BQ67: 0 | CB67: 452.0898007 | CC67: 0 | CD67: 528.4082268 | CE67: 0 | CF67: 1757.713082 | CG67: 0 | CH67: 529.0989565 | CI67: 0 | CJ67: 3267.310066 | CK67: 3267.310066 | CL67: 529.2 | CM67: 3796.510066 | CN67: 297.325216 | CO67: 3796.510066 | FT67: 2.5 | FU67: 350 | FV67: 525 | FW67: 875 | FX67: 308 | FY67: 2.5 | FZ67: 3.5e-09 | GA67: 5.25e-09 | GB67: 8.75e-09 | GC67: 0.5678571429 | GD67: 21.5 | GE67: 21.5 | GF67: 21.5 | GG67: 21.5 | GH67: 21.5 | GI67: 21.5 | GJ67: 21.5 | GK67: 21.5 | GL67: 0 | GM67: 0 | GN67: 0 | GO67: 0 | GP67: 0 | GQ67: 3796.510066 | GR67: 0 | GS67: 2.633998021e-54 | GT67: 1e-50 | GU67: 645.5479452 | GV67: 645.5479452 | GW67: 645.5479452 | GX67: 0 | GY67: 258.2191781 | GZ67: 0 | HA67: 3.5e-10 | HB67: 5.25e-10 | HC67: 8.75e-10 | HD67: 1.078e-10 | HE67: 1.617e-10 | HF67: 2.695e-10 | HG67: 645.5479452 | HH67: 0 | HI67: 3.08e-51 | HJ67: 198.8287671 | HK67: 198.8287671 | HL67: 198.8287671 | HM67: 8.750014047e-09 | HN67: 1.617e-10 | HP67: 0 | HQ67: 0 | HU67: =HU66 -> 2.5 | HV67: 350 | HW67: 525 | HX67: 875 | HY67: 308 | HZ67: 2.5 | IA67: 0 | IB67: 0 | IC67: 0 | ID67: =ID66 -> 0.5678571429 | IE67: 21.5 | IF67: 21.5 | IG67: 21.5 | IH67: 21.5 | II67: 21.5 | IJ67: 21.5 | IK67: 21.5 | IL67: 0 | IM67: 21.5 | IN67: 0 | IO67: 0 | IP67: 0 | IQ67: 0 | IR67: 0 | IS67: 3796.510066 | IT67: 0 | IU67: 2.633998021e-54 | IV67: 1e-50 | IW67: 645.5479452 | IX67: 645.5479452 | IY67: 645.5479452 | IZ67: 0 | JA67: 258.2191781 | JB67: 0 | JC67: 0 | JD67: 0 | JE67: 0 | JF67: 0 | JG67: 0 | JH67: 0 | JI67: 645.5479452 | JJ67: 0 | JK67: 3.08e-51 | JL67: 198.8287671 | JM67: 198.8287671 | JN67: 198.8287671 | JO67: 0 | JP67: 0 | JR67: 0 | JS67: 0 | JW67: =JW66 -> 2.5 | JX67: 350 | JY67: 525 | JZ67: 875 | KA67: 308 | KB67: 2.5 | KC67: 0 | KD67: 0 | KE67: 0 | KF67: =KF66 -> 0.5678571429 | KG67: 21.5 | KH67: 21.5 | KI67: 21.5 | KJ67: 21.5 | KK67: 21.5 | KL67: 21.5 | KM67: 21.5 | KN67: 0 | KO67: 21.5 | KP67: 0 | KQ67: 0 | KR67: 0 | KS67: 0 | KT67: 0 | KU67: 3796.510066 | KV67: 0 | KW67: 2.633998021e-54 | KX67: 1e-50 | KY67: 645.5479452 | KZ67: 645.5479452 | LA67: 645.5479452 | LB67: 0 | LC67: 258.2191781 | LD67: 0 | LE67: 0 | LF67: 0 | LG67: 0 | LH67: 0 | LI67: 0 | LJ67: 0 | LK67: 645.5479452 | LL67: 0 | LM67: 3.08e-51 | LN67: 198.8287671 | LO67: 198.8287671 | LP67: 198.8287671 | LQ67: 0 | LR67: 0 | LT67: 0 | LU67: 0 | LY67: =LY66 -> 2.5 | LZ67: 350 | MA67: 525 | MB67: 875 | MC67: 308 | MD67: 2.5 | ME67: 0 | MF67: 0 | MG67: 0 | MH67: =MH66 -> 0.5678571429 | MI67: 21.5 | MJ67: 21.5 | MK67: 21.5 | ML67: 21.5 | MM67: 21.5 | MN67: 21.5 | MO67: 21.5 | MP67: 21.5 | MQ67: 0 | MR67: 0 | MS67: 0 | MT67: 0 | MU67: 0 | MV67: 3796.510066 | MW67: 0 | MX67: 2.633998021e-54 | MY67: 1e-50 | MZ67: 645.5479452 | NA67: 645.5479452 | NB67: 645.5479452 | NC67: 0 | ND67: 258.2191781 | NE67: 0 | NF67: 0 | NG67: 0 | NH67: 0 | NI67: 0 | NJ67: 0 | NK67: 0 | NL67: 645.5479452 | NM67: 0 | NN67: 3.08e-51 | NO67: 198.8287671 | NP67: 198.8287671 | NQ67: 198.8287671 | NR67: 0 | NS67: 0 | NT67: 645.5479452 | NU67: 0 | NV67: 0
A68: 98.69863014 | B68: 22.5 | C68: 22.5 | D68: 22372 | E68: 456.5714286 | F68: 0 | G68: 49 | H68: 0 | I68: 0 | J68: 22.5 | K68: 22.5 | L68: 22.5 | M68: 22.5 | N68: 22.5 | O68: 22.5 | P68: 22.5 | Q68: 22.5 | R68: 0 | S68: 31.63184932 | T68: 32.65012492 | U68: 32.65012492 | V68: 0 | W68: 0.6455479452 | X68: 0.6455479452 | Y68: 0.6455479452 | Z68: 0 | AA68: 1e-53 | AB68: 0.6455479452 | AC68: 0.6455479452 | AD68: 0 | AE68: 0 | AF68: 0 | AG68: 0 | AH68: 0 | AI68: 0.5873287671 | AJ68: 0.05821917808 | AK68: 0 | AL68: 587.3287671 | AM68: 58.21917808 | AN68: 0 | AP68: 0.6455479452 | AQ68: 0.6455479452 | AR68: 0 | BO68: 28.77910959 | BP68: 2.852739726 | BQ68: 0 | CB68: 418.6766845 | CC68: 0 | CD68: 489.3545577 | CE68: 0 | CF68: 1627.803778 | CG68: 0 | CH68: 489.9942369 | CI68: 0 | CJ68: 3025.829257 | CK68: 3025.829257 | CL68: 529.2 | CM68: 3555.029257 | CN68: 148.2656336 | CO68: 3555.029257 | FT68: 2.5 | FU68: 350 | FV68: 525 | FW68: 875 | FX68: 309 | FY68: 2.5 | FZ68: 3.5e-09 | GA68: 5.25e-09 | GB68: 8.75e-09 | GC68: 0.5678571429 | GD68: 22.5 | GE68: 22.5 | GF68: 22.5 | GG68: 22.5 | GH68: 22.5 | GI68: 22.5 | GJ68: 22.5 | GK68: 22.5 | GL68: 0 | GM68: 0 | GN68: 0 | GO68: 0 | GP68: 0 | GQ68: 3555.029257 | GR68: 0 | GS68: 2.812916372e-54 | GT68: 1e-50 | GU68: 645.5479452 | GV68: 645.5479452 | GW68: 645.5479452 | GX68: 0 | GY68: 258.2191781 | GZ68: 0 | HA68: 3.5e-10 | HB68: 5.25e-10 | HC68: 8.75e-10 | HD68: 1.0815e-10 | HE68: 1.62225e-10 | HF68: 2.70375e-10 | HG68: 645.5479452 | HH68: 0 | HI68: 3.09e-51 | HJ68: 199.4743151 | HK68: 199.4743151 | HL68: 199.4743151 | HM68: 8.750014047e-09 | HN68: 1.62225e-10 | HP68: 0 | HQ68: 0 | HU68: =HU67 -> 2.5 | HV68: 350 | HW68: 525 | HX68: 875 | HY68: 309 | HZ68: 2.5 | IA68: 0 | IB68: 0 | IC68: 0 | ID68: =ID67 -> 0.5678571429 | IE68: 22.5 | IF68: 22.5 | IG68: 22.5 | IH68: 22.5 | II68: 22.5 | IJ68: 22.5 | IK68: 22.5 | IL68: 0 | IM68: 22.5 | IN68: 0 | IO68: 0 | IP68: 0 | IQ68: 0 | IR68: 0 | IS68: 3555.029257 | IT68: 0 | IU68: 2.812916372e-54 | IV68: 1e-50 | IW68: 645.5479452 | IX68: 645.5479452 | IY68: 645.5479452 | IZ68: 0 | JA68: 258.2191781 | JB68: 0 | JC68: 0 | JD68: 0 | JE68: 0 | JF68: 0 | JG68: 0 | JH68: 0 | JI68: 645.5479452 | JJ68: 0 | JK68: 3.09e-51 | JL68: 199.4743151 | JM68: 199.4743151 | JN68: 199.4743151 | JO68: 0 | JP68: 0 | JR68: 0 | JS68: 0 | JW68: =JW67 -> 2.5 | JX68: 350 | JY68: 525 | JZ68: 875 | KA68: 309 | KB68: 2.5 | KC68: 0 | KD68: 0 | KE68: 0 | KF68: =KF67 -> 0.5678571429 | KG68: 22.5 | KH68: 22.5 | KI68: 22.5 | KJ68: 22.5 | KK68: 22.5 | KL68: 22.5 | KM68: 22.5 | KN68: 0 | KO68: 22.5 | KP68: 0 | KQ68: 0 | KR68: 0 | KS68: 0 | KT68: 0 | KU68: 3555.029257 | KV68: 0 | KW68: 2.812916372e-54 | KX68: 1e-50 | KY68: 645.5479452 | KZ68: 645.5479452 | LA68: 645.5479452 | LB68: 0 | LC68: 258.2191781 | LD68: 0 | LE68: 0 | LF68: 0 | LG68: 0 | LH68: 0 | LI68: 0 | LJ68: 0 | LK68: 645.5479452 | LL68: 0 | LM68: 3.09e-51 | LN68: 199.4743151 | LO68: 199.4743151 | LP68: 199.4743151 | LQ68: 0 | LR68: 0 | LT68: 0 | LU68: 0 | LY68: =LY67 -> 2.5 | LZ68: 350 | MA68: 525 | MB68: 875 | MC68: 309 | MD68: 2.5 | ME68: 0 | MF68: 0 | MG68: 0 | MH68: =MH67 -> 0.5678571429 | MI68: 22.5 | MJ68: 22.5 | MK68: 22.5 | ML68: 22.5 | MM68: 22.5 | MN68: 22.5 | MO68: 22.5 | MP68: 22.5 | MQ68: 0 | MR68: 0 | MS68: 0 | MT68: 0 | MU68: 0 | MV68: 3555.029257 | MW68: 0 | MX68: 2.812916372e-54 | MY68: 1e-50 | MZ68: 645.5479452 | NA68: 645.5479452 | NB68: 645.5479452 | NC68: 0 | ND68: 258.2191781 | NE68: 0 | NF68: 0 | NG68: 0 | NH68: 0 | NI68: 0 | NJ68: 0 | NK68: 0 | NL68: 645.5479452 | NM68: 0 | NN68: 3.09e-51 | NO68: 199.4743151 | NP68: 199.4743151 | NQ68: 199.4743151 | NR68: 0 | NS68: 0 | NT68: 645.5479452 | NU68: 0 | NV68: 0
A69: 99.16666667 | B69: 23.5 | C69: 23.5 | D69: 18615.2 | E69: 454.0292683 | F69: 0 | G69: 41 | H69: 0 | I69: 0 | J69: 23.5 | K69: 23.5 | L69: 23.5 | M69: 23.5 | N69: 23.5 | O69: 23.5 | P69: 23.5 | Q69: 23.5 | R69: 0 | S69: 26.46746575 | T69: 33.65012492 | U69: 33.65012492 | V69: 0 | W69: 0.6455479452 | X69: 0.6455479452 | Y69: 0.6455479452 | Z69: 0 | AA69: 1e-53 | AB69: 0.6455479452 | AC69: 0.6455479452 | AD69: 0 | AE69: 0 | AF69: 0 | AG69: 0 | AH69: 0 | AI69: 0.5873287671 | AJ69: 0.05821917808 | AK69: 0 | AL69: 587.3287671 | AM69: 58.21917808 | AN69: 0 | AP69: 0.6455479452 | AQ69: 0.6455479452 | AR69: 0 | BO69: 24.08047945 | BP69: 2.386986301 | BQ69: 0 | CB69: 416.3455197 | CC69: 0 | CD69: 486.6298631 | CE69: 0 | CF69: 1618.740272 | CG69: 0 | CH69: 487.2659806 | CI69: 0 | CJ69: 3008.981635 | CK69: 3008.981635 | CL69: 529.2 | CM69: 3538.181635 | CN69: 123.368247 | CO69: 3538.181635 | FT69: 2.5 | FU69: 350 | FV69: 525 | FW69: 875 | FX69: 310 | FY69: 2.5 | FZ69: 3.5e-09 | GA69: 5.25e-09 | GB69: 8.75e-09 | GC69: 0.5678571429 | GD69: 23.5 | GE69: 23.5 | GF69: 23.5 | GG69: 23.5 | GH69: 23.5 | GI69: 23.5 | GJ69: 23.5 | GK69: 23.5 | GL69: 0 | GM69: 0 | GN69: 0 | GO69: 0 | GP69: 0 | GQ69: 3538.181635 | GR69: 0 | GS69: 2.826310527e-54 | GT69: 1e-50 | GU69: 645.5479452 | GV69: 645.5479452 | GW69: 645.5479452 | GX69: 0 | GY69: 258.2191781 | GZ69: 0 | HA69: 3.5e-10 | HB69: 5.25e-10 | HC69: 8.75e-10 | HD69: 1.085e-10 | HE69: 1.6275e-10 | HF69: 2.7125e-10 | HG69: 645.5479452 | HH69: 0 | HI69: 3.1e-51 | HJ69: 200.119863 | HK69: 200.119863 | HL69: 200.119863 | HM69: 8.750014047e-09 | HN69: 1.6275e-10 | HP69: 0 | HQ69: 0 | HU69: =HU68 -> 2.5 | HV69: 350 | HW69: 525 | HX69: 875 | HY69: 310 | HZ69: 2.5 | IA69: 0 | IB69: 0 | IC69: 0 | ID69: =ID68 -> 0.5678571429 | IE69: 23.5 | IF69: 23.5 | IG69: 23.5 | IH69: 23.5 | II69: 23.5 | IJ69: 23.5 | IK69: 23.5 | IL69: 0 | IM69: 23.5 | IN69: 0 | IO69: 0 | IP69: 0 | IQ69: 0 | IR69: 0 | IS69: 3538.181635 | IT69: 0 | IU69: 2.826310527e-54 | IV69: 1e-50 | IW69: 645.5479452 | IX69: 645.5479452 | IY69: 645.5479452 | IZ69: 0 | JA69: 258.2191781 | JB69: 0 | JC69: 0 | JD69: 0 | JE69: 0 | JF69: 0 | JG69: 0 | JH69: 0 | JI69: 645.5479452 | JJ69: 0 | JK69: 3.1e-51 | JL69: 200.119863 | JM69: 200.119863 | JN69: 200.119863 | JO69: 0 | JP69: 0 | JR69: 0 | JS69: 0 | JW69: =JW68 -> 2.5 | JX69: 350 | JY69: 525 | JZ69: 875 | KA69: 310 | KB69: 2.5 | KC69: 0 | KD69: 0 | KE69: 0 | KF69: =KF68 -> 0.5678571429 | KG69: 23.5 | KH69: 23.5 | KI69: 23.5 | KJ69: 23.5 | KK69: 23.5 | KL69: 23.5 | KM69: 23.5 | KN69: 0 | KO69: 23.5 | KP69: 0 | KQ69: 0 | KR69: 0 | KS69: 0 | KT69: 0 | KU69: 3538.181635 | KV69: 0 | KW69: 2.826310527e-54 | KX69: 1e-50 | KY69: 645.5479452 | KZ69: 645.5479452 | LA69: 645.5479452 | LB69: 0 | LC69: 258.2191781 | LD69: 0 | LE69: 0 | LF69: 0 | LG69: 0 | LH69: 0 | LI69: 0 | LJ69: 0 | LK69: 645.5479452 | LL69: 0 | LM69: 3.1e-51 | LN69: 200.119863 | LO69: 200.119863 | LP69: 200.119863 | LQ69: 0 | LR69: 0 | LT69: 0 | LU69: 0 | LY69: =LY68 -> 2.5 | LZ69: 350 | MA69: 525 | MB69: 875 | MC69: 310 | MD69: 2.5 | ME69: 0 | MF69: 0 | MG69: 0 | MH69: =MH68 -> 0.5678571429 | MI69: 23.5 | MJ69: 23.5 | MK69: 23.5 | ML69: 23.5 | MM69: 23.5 | MN69: 23.5 | MO69: 23.5 | MP69: 23.5 | MQ69: 0 | MR69: 0 | MS69: 0 | MT69: 0 | MU69: 0 | MV69: 3538.181635 | MW69: 0 | MX69: 2.826310527e-54 | MY69: 1e-50 | MZ69: 645.5479452 | NA69: 645.5479452 | NB69: 645.5479452 | NC69: 0 | ND69: 258.2191781 | NE69: 0 | NF69: 0 | NG69: 0 | NH69: 0 | NI69: 0 | NJ69: 0 | NK69: 0 | NL69: 645.5479452 | NM69: 0 | NN69: 3.1e-51 | NO69: 200.119863 | NP69: 200.119863 | NQ69: 200.119863 | NR69: 0 | NS69: 0 | NT69: 645.5479452 | NU69: 0 | NV69: 0
A70: 99.49771689 | B70: 24.5 | C70: 24.5 | D70: 15177.8 | E70: 523.3724138 | F70: 0 | G70: 29 | H70: 0 | I70: 0 | J70: 24.5 | K70: 24.5 | L70: 24.5 | M70: 24.5 | N70: 24.5 | O70: 24.5 | P70: 24.5 | Q70: 24.5 | R70: 0 | S70: 18.72089041 | T70: 34.65012492 | U70: 34.65012492 | V70: 0 | W70: 0.6455479452 | X70: 0.6455479452 | Y70: 0.6455479452 | Z70: 0 | AA70: 1e-53 | AB70: 0.6455479452 | AC70: 0.6455479452 | AD70: 0 | AE70: 0 | AF70: 0 | AG70: 0 | AH70: 0 | AI70: 0.5873287671 | AJ70: 0.05821917808 | AK70: 0 | AL70: 587.3287671 | AM70: 58.21917808 | AN70: 0 | AP70: 0.6455479452 | AQ70: 0.6455479452 | AR70: 0 | BO70: 17.03253425 | BP70: 1.688356164 | BQ70: 0 | CB70: 479.9332881 | CC70: 0 | CD70: 560.952044 | CE70: 0 | CF70: 1865.967818 | CG70: 0 | CH70: 561.6853146 | CI70: 0 | CJ70: 3468.538465 | CK70: 3468.538465 | CL70: 529.2 | CM70: 3997.738465 | CN70: 100.5876155 | CO70: 3997.738465 | FT70: 2.5 | FU70: 350 | FV70: 525 | FW70: 875 | FX70: 311 | FY70: 2.5 | FZ70: 3.5e-09 | GA70: 5.25e-09 | GB70: 8.75e-09 | GC70: 0.5678571429 | GD70: 24.5 | GE70: 24.5 | GF70: 24.5 | GG70: 24.5 | GH70: 24.5 | GI70: 24.5 | GJ70: 24.5 | GK70: 24.5 | GL70: 0 | GM70: 0 | GN70: 0 | GO70: 0 | GP70: 0 | GQ70: 3997.738465 | GR70: 0 | GS70: 2.501414259e-54 | GT70: 1e-50 | GU70: 645.5479452 | GV70: 645.5479452 | GW70: 645.5479452 | GX70: 0 | GY70: 258.2191781 | GZ70: 0 | HA70: 3.5e-10 | HB70: 5.25e-10 | HC70: 8.75e-10 | HD70: 1.0885e-10 | HE70: 1.63275e-10 | HF70: 2.72125e-10 | HG70: 645.5479452 | HH70: 0 | HI70: 3.11e-51 | HJ70: 200.765411 | HK70: 200.765411 | HL70: 200.765411 | HM70: 8.750014047e-09 | HN70: 1.63275e-10 | HP70: 0 | HQ70: 0 | HU70: =HU69 -> 2.5 | HV70: 350 | HW70: 525 | HX70: 875 | HY70: 311 | HZ70: 2.5 | IA70: 0 | IB70: 0 | IC70: 0 | ID70: =ID69 -> 0.5678571429 | IE70: 24.5 | IF70: 24.5 | IG70: 24.5 | IH70: 24.5 | II70: 24.5 | IJ70: 24.5 | IK70: 24.5 | IL70: 0 | IM70: 24.5 | IN70: 0 | IO70: 0 | IP70: 0 | IQ70: 0 | IR70: 0 | IS70: 3997.738465 | IT70: 0 | IU70: 2.501414259e-54 | IV70: 1e-50 | IW70: 645.5479452 | IX70: 645.5479452 | IY70: 645.5479452 | IZ70: 0 | JA70: 258.2191781 | JB70: 0 | JC70: 0 | JD70: 0 | JE70: 0 | JF70: 0 | JG70: 0 | JH70: 0 | JI70: 645.5479452 | JJ70: 0 | JK70: 3.11e-51 | JL70: 200.765411 | JM70: 200.765411 | JN70: 200.765411 | JO70: 0 | JP70: 0 | JR70: 0 | JS70: 0 | JW70: =JW69 -> 2.5 | JX70: 350 | JY70: 525 | JZ70: 875 | KA70: 311 | KB70: 2.5 | KC70: 0 | KD70: 0 | KE70: 0 | KF70: =KF69 -> 0.5678571429 | KG70: 24.5 | KH70: 24.5 | KI70: 24.5 | KJ70: 24.5 | KK70: 24.5 | KL70: 24.5 | KM70: 24.5 | KN70: 0 | KO70: 24.5 | KP70: 0 | KQ70: 0 | KR70: 0 | KS70: 0 | KT70: 0 | KU70: 3997.738465 | KV70: 0 | KW70: 2.501414259e-54 | KX70: 1e-50 | KY70: 645.5479452 | KZ70: 645.5479452 | LA70: 645.5479452 | LB70: 0 | LC70: 258.2191781 | LD70: 0 | LE70: 0 | LF70: 0 | LG70: 0 | LH70: 0 | LI70: 0 | LJ70: 0 | LK70: 645.5479452 | LL70: 0 | LM70: 3.11e-51 | LN70: 200.765411 | LO70: 200.765411 | LP70: 200.765411 | LQ70: 0 | LR70: 0 | LT70: 0 | LU70: 0 | LY70: =LY69 -> 2.5 | LZ70: 350 | MA70: 525 | MB70: 875 | MC70: 311 | MD70: 2.5 | ME70: 0 | MF70: 0 | MG70: 0 | MH70: =MH69 -> 0.5678571429 | MI70: 24.5 | MJ70: 24.5 | MK70: 24.5 | ML70: 24.5 | MM70: 24.5 | MN70: 24.5 | MO70: 24.5 | MP70: 24.5 | MQ70: 0 | MR70: 0 | MS70: 0 | MT70: 0 | MU70: 0 | MV70: 3997.738465 | MW70: 0 | MX70: 2.501414259e-54 | MY70: 1e-50 | MZ70: 645.5479452 | NA70: 645.5479452 | NB70: 645.5479452 | NC70: 0 | ND70: 258.2191781 | NE70: 0 | NF70: 0 | NG70: 0 | NH70: 0 | NI70: 0 | NJ70: 0 | NK70: 0 | NL70: 645.5479452 | NM70: 0 | NN70: 3.11e-51 | NO70: 200.765411 | NP70: 200.765411 | NQ70: 200.765411 | NR70: 0 | NS70: 0 | NT70: 645.5479452 | NU70: 0 | NV70: 0
A71: 99.85159817 | B71: 25.5 | C71: 25.5 | D71: 17592.1 | E71: 567.4870968 | F71: 0 | G71: 31 | H71: 0 | I71: 0 | J71: 25.5 | K71: 25.5 | L71: 25.5 | M71: 25.5 | N71: 25.5 | O71: 25.5 | P71: 25.5 | Q71: 25.5 | R71: 0 | S71: 20.0119863 | T71: 35.65012492 | U71: 35.65012492 | V71: 0 | W71: 0.6455479452 | X71: 0.6455479452 | Y71: 0.6455479452 | Z71: 0 | AA71: 1e-53 | AB71: 0.6455479452 | AC71: 0.6455479452 | AD71: 0 | AE71: 0 | AF71: 0 | AG71: 0 | AH71: 0 | AI71: 0.5873287671 | AJ71: 0.05821917808 | AK71: 0 | AL71: 587.3287671 | AM71: 58.21917808 | AN71: 0 | AP71: 0.6455479452 | AQ71: 0.6455479452 | AR71: 0 | BO71: 18.20719178 | BP71: 1.804794521 | BQ71: 0 | CB71: 520.3865185 | CC71: 0 | CD71: 608.2342869 | CE71: 0 | CF71: 2023.248899 | CG71: 0 | CH71: 609.0293644 | CI71: 0 | CJ71: 3760.899069 | CK71: 3760.899069 | CL71: 529.2 | CM71: 4290.099069 | CN71: 116.5878711 | CO71: 4290.099069 | FT71: 2.5 | FU71: 350 | FV71: 525 | FW71: 875 | FX71: 312 | FY71: 2.5 | FZ71: 3.5e-09 | GA71: 5.25e-09 | GB71: 8.75e-09 | GC71: 0.5678571429 | GD71: 25.5 | GE71: 25.5 | GF71: 25.5 | GG71: 25.5 | GH71: 25.5 | GI71: 25.5 | GJ71: 25.5 | GK71: 25.5 | GL71: 0 | GM71: 0 | GN71: 0 | GO71: 0 | GP71: 0 | GQ71: 4290.099069 | GR71: 0 | GS71: 2.330948503e-54 | GT71: 1e-50 | GU71: 645.5479452 | GV71: 645.5479452 | GW71: 645.5479452 | GX71: 0 | GY71: 258.2191781 | GZ71: 0 | HA71: 3.5e-10 | HB71: 5.25e-10 | HC71: 8.75e-10 | HD71: 1.092e-10 | HE71: 1.638e-10 | HF71: 2.73e-10 | HG71: 645.5479452 | HH71: 0 | HI71: 3.12e-51 | HJ71: 201.4109589 | HK71: 201.4109589 | HL71: 201.4109589 | HM71: 8.750014047e-09 | HN71: 1.638e-10 | HP71: 0 | HQ71: 0 | HU71: =HU70 -> 2.5 | HV71: 350 | HW71: 525 | HX71: 875 | HY71: 312 | HZ71: 2.5 | IA71: 0 | IB71: 0 | IC71: 0 | ID71: =ID70 -> 0.5678571429 | IE71: 25.5 | IF71: 25.5 | IG71: 25.5 | IH71: 25.5 | II71: 25.5 | IJ71: 25.5 | IK71: 25.5 | IL71: 0 | IM71: 25.5 | IN71: 0 | IO71: 0 | IP71: 0 | IQ71: 0 | IR71: 0 | IS71: 4290.099069 | IT71: 0 | IU71: 2.330948503e-54 | IV71: 1e-50 | IW71: 645.5479452 | IX71: 645.5479452 | IY71: 645.5479452 | IZ71: 0 | JA71: 258.2191781 | JB71: 0 | JC71: 0 | JD71: 0 | JE71: 0 | JF71: 0 | JG71: 0 | JH71: 0 | JI71: 645.5479452 | JJ71: 0 | JK71: 3.12e-51 | JL71: 201.4109589 | JM71: 201.4109589 | JN71: 201.4109589 | JO71: 0 | JP71: 0 | JR71: 0 | JS71: 0 | JW71: =JW70 -> 2.5 | JX71: 350 | JY71: 525 | JZ71: 875 | KA71: 312 | KB71: 2.5 | KC71: 0 | KD71: 0 | KE71: 0 | KF71: =KF70 -> 0.5678571429 | KG71: 25.5 | KH71: 25.5 | KI71: 25.5 | KJ71: 25.5 | KK71: 25.5 | KL71: 25.5 | KM71: 25.5 | KN71: 0 | KO71: 25.5 | KP71: 0 | KQ71: 0 | KR71: 0 | KS71: 0 | KT71: 0 | KU71: 4290.099069 | KV71: 0 | KW71: 2.330948503e-54 | KX71: 1e-50 | KY71: 645.5479452 | KZ71: 645.5479452 | LA71: 645.5479452 | LB71: 0 | LC71: 258.2191781 | LD71: 0 | LE71: 0 | LF71: 0 | LG71: 0 | LH71: 0 | LI71: 0 | LJ71: 0 | LK71: 645.5479452 | LL71: 0 | LM71: 3.12e-51 | LN71: 201.4109589 | LO71: 201.4109589 | LP71: 201.4109589 | LQ71: 0 | LR71: 0 | LT71: 0 | LU71: 0 | LY71: =LY70 -> 2.5 | LZ71: 350 | MA71: 525 | MB71: 875 | MC71: 312 | MD71: 2.5 | ME71: 0 | MF71: 0 | MG71: 0 | MH71: =MH70 -> 0.5678571429 | MI71: 25.5 | MJ71: 25.5 | MK71: 25.5 | ML71: 25.5 | MM71: 25.5 | MN71: 25.5 | MO71: 25.5 | MP71: 25.5 | MQ71: 0 | MR71: 0 | MS71: 0 | MT71: 0 | MU71: 0 | MV71: 4290.099069 | MW71: 0 | MX71: 2.330948503e-54 | MY71: 1e-50 | MZ71: 645.5479452 | NA71: 645.5479452 | NB71: 645.5479452 | NC71: 0 | ND71: 258.2191781 | NE71: 0 | NF71: 0 | NG71: 0 | NH71: 0 | NI71: 0 | NJ71: 0 | NK71: 0 | NL71: 645.5479452 | NM71: 0 | NN71: 3.12e-51 | NO71: 201.4109589 | NP71: 201.4109589 | NQ71: 201.4109589 | NR71: 0 | NS71: 0 | NT71: 645.5479452 | NU71: 0 | NV71: 0
A72: 99.9086758 | B72: 26.5 | C72: 26.5 | D72: 2258 | E72: 451.6 | F72: 0 | G72: 5 | H72: 0 | I72: 0 | J72: 26.5 | K72: 26.5 | L72: 26.5 | M72: 26.5 | N72: 26.5 | O72: 26.5 | P72: 26.5 | Q72: 26.5 | R72: 0 | S72: 3.227739726 | T72: 36.65012492 | U72: 36.65012492 | V72: 0 | W72: 0.6455479452 | X72: 0.6455479452 | Y72: 0.6455479452 | Z72: 0 | AA72: 1e-53 | AB72: 0.6455479452 | AC72: 0.6455479452 | AD72: 0 | AE72: 0 | AF72: 0 | AG72: 0 | AH72: 0 | AI72: 0.5873287671 | AJ72: 0.05821917808 | AK72: 0 | AL72: 587.3287671 | AM72: 58.21917808 | AN72: 0 | AP72: 0.6455479452 | AQ72: 0.6455479452 | AR72: 0 | BO72: 2.936643836 | BP72: 0.2910958904 | BQ72: 0 | CB72: 414.1178771 | CC72: 0 | CD72: 484.0261664 | CE72: 0 | CF72: 1610.079256 | CG72: 0 | CH72: 484.6588804 | CI72: 0 | CJ72: 2992.88218 | CK72: 2992.88218 | CL72: 529.2 | CM72: 3522.08218 | CN72: 14.9644109 | CO72: 3522.08218 | FT72: 2.5 | FU72: 350 | FV72: 525 | FW72: 875 | FX72: 313 | FY72: 2.5 | FZ72: 3.5e-09 | GA72: 5.25e-09 | GB72: 8.75e-09 | GC72: 0.5678571429 | GD72: 26.5 | GE72: 26.5 | GF72: 26.5 | GG72: 26.5 | GH72: 26.5 | GI72: 26.5 | GJ72: 26.5 | GK72: 26.5 | GL72: 0 | GM72: 0 | GN72: 0 | GO72: 0 | GP72: 0 | GQ72: 3522.08218 | GR72: 0 | GS72: 2.839229606e-54 | GT72: 1e-50 | GU72: 645.5479452 | GV72: 645.5479452 | GW72: 645.5479452 | GX72: 0 | GY72: 258.2191781 | GZ72: 0 | HA72: 3.5e-10 | HB72: 5.25e-10 | HC72: 8.75e-10 | HD72: 1.0955e-10 | HE72: 1.64325e-10 | HF72: 2.73875e-10 | HG72: 645.5479452 | HH72: 0 | HI72: 3.13e-51 | HJ72: 202.0565068 | HK72: 202.0565068 | HL72: 202.0565068 | HM72: 8.750014047e-09 | HN72: 1.64325e-10 | HP72: 0 | HQ72: 0 | HU72: =HU71 -> 2.5 | HV72: 350 | HW72: 525 | HX72: 875 | HY72: 313 | HZ72: 2.5 | IA72: 0 | IB72: 0 | IC72: 0 | ID72: =ID71 -> 0.5678571429 | IE72: 26.5 | IF72: 26.5 | IG72: 26.5 | IH72: 26.5 | II72: 26.5 | IJ72: 26.5 | IK72: 26.5 | IL72: 0 | IM72: 26.5 | IN72: 0 | IO72: 0 | IP72: 0 | IQ72: 0 | IR72: 0 | IS72: 3522.08218 | IT72: 0 | IU72: 2.839229606e-54 | IV72: 1e-50 | IW72: 645.5479452 | IX72: 645.5479452 | IY72: 645.5479452 | IZ72: 0 | JA72: 258.2191781 | JB72: 0 | JC72: 0 | JD72: 0 | JE72: 0 | JF72: 0 | JG72: 0 | JH72: 0 | JI72: 645.5479452 | JJ72: 0 | JK72: 3.13e-51 | JL72: 202.0565068 | JM72: 202.0565068 | JN72: 202.0565068 | JO72: 0 | JP72: 0 | JR72: 0 | JS72: 0 | JW72: =JW71 -> 2.5 | JX72: 350 | JY72: 525 | JZ72: 875 | KA72: 313 | KB72: 2.5 | KC72: 0 | KD72: 0 | KE72: 0 | KF72: =KF71 -> 0.5678571429 | KG72: 26.5 | KH72: 26.5 | KI72: 26.5 | KJ72: 26.5 | KK72: 26.5 | KL72: 26.5 | KM72: 26.5 | KN72: 0 | KO72: 26.5 | KP72: 0 | KQ72: 0 | KR72: 0 | KS72: 0 | KT72: 0 | KU72: 3522.08218 | KV72: 0 | KW72: 2.839229606e-54 | KX72: 1e-50 | KY72: 645.5479452 | KZ72: 645.5479452 | LA72: 645.5479452 | LB72: 0 | LC72: 258.2191781 | LD72: 0 | LE72: 0 | LF72: 0 | LG72: 0 | LH72: 0 | LI72: 0 | LJ72: 0 | LK72: 645.5479452 | LL72: 0 | LM72: 3.13e-51 | LN72: 202.0565068 | LO72: 202.0565068 | LP72: 202.0565068 | LQ72: 0 | LR72: 0 | LT72: 0 | LU72: 0 | LY72: =LY71 -> 2.5 | LZ72: 350 | MA72: 525 | MB72: 875 | MC72: 313 | MD72: 2.5 | ME72: 0 | MF72: 0 | MG72: 0 | MH72: =MH71 -> 0.5678571429 | MI72: 26.5 | MJ72: 26.5 | MK72: 26.5 | ML72: 26.5 | MM72: 26.5 | MN72: 26.5 | MO72: 26.5 | MP72: 26.5 | MQ72: 0 | MR72: 0 | MS72: 0 | MT72: 0 | MU72: 0 | MV72: 3522.08218 | MW72: 0 | MX72: 2.839229606e-54 | MY72: 1e-50 | MZ72: 645.5479452 | NA72: 645.5479452 | NB72: 645.5479452 | NC72: 0 | ND72: 258.2191781 | NE72: 0 | NF72: 0 | NG72: 0 | NH72: 0 | NI72: 0 | NJ72: 0 | NK72: 0 | NL72: 645.5479452 | NM72: 0 | NN72: 3.13e-51 | NO72: 202.0565068 | NP72: 202.0565068 | NQ72: 202.0565068 | NR72: 0 | NS72: 0 | NT72: 645.5479452 | NU72: 0 | NV72: 0
A73: 99.94292237 | B73: 27.5 | C73: 27.5 | D73: 1634.5 | E73: 544.8333333 | F73: 0 | G73: 3 | H73: 0 | I73: 0 | J73: 27.5 | K73: 27.5 | L73: 27.5 | M73: 27.5 | N73: 27.5 | O73: 27.5 | P73: 27.5 | Q73: 27.5 | R73: 0 | S73: 1.936643836 | T73: 37.65012492 | U73: 37.65012492 | V73: 0 | W73: 0.6455479452 | X73: 0.6455479452 | Y73: 0.6455479452 | Z73: 0 | AA73: 1e-53 | AB73: 0.6455479452 | AC73: 0.6455479452 | AD73: 0 | AE73: 0 | AF73: 0 | AG73: 0 | AH73: 0 | AI73: 0.5873287671 | AJ73: 0.05821917808 | AK73: 0 | AL73: 587.3287671 | AM73: 58.21917808 | AN73: 0 | AP73: 0.6455479452 | AQ73: 0.6455479452 | AR73: 0 | BO73: 1.761986301 | BP73: 0.1746575342 | BQ73: 0 | CB73: 499.6129835 | CC73: 0 | CD73: 583.9539187 | CE73: 0 | CF73: 1942.481949 | CG73: 0 | CH73: 584.7172571 | CI73: 0 | CJ73: 3610.766108 | CK73: 3610.766108 | CL73: 529.2 | CM73: 4139.966108 | CN73: 10.83229832 | CO73: 4139.966108 | FT73: 2.5 | FU73: 350 | FV73: 525 | FW73: 875 | FX73: 314 | FY73: 2.5 | FZ73: 3.5e-09 | GA73: 5.25e-09 | GB73: 8.75e-09 | GC73: 0.5678571429 | GD73: 27.5 | GE73: 27.5 | GF73: 27.5 | GG73: 27.5 | GH73: 27.5 | GI73: 27.5 | GJ73: 27.5 | GK73: 27.5 | GL73: 0 | GM73: 0 | GN73: 0 | GO73: 0 | GP73: 0 | GQ73: 4139.966108 | GR73: 0 | GS73: 2.415478711e-54 | GT73: 1e-50 | GU73: 645.5479452 | GV73: 645.5479452 | GW73: 645.5479452 | GX73: 0 | GY73: 258.2191781 | GZ73: 0 | HA73: 3.5e-10 | HB73: 5.25e-10 | HC73: 8.75e-10 | HD73: 1.099e-10 | HE73: 1.6485e-10 | HF73: 2.7475e-10 | HG73: 645.5479452 | HH73: 0 | HI73: 3.14e-51 | HJ73: 202.7020548 | HK73: 202.7020548 | HL73: 202.7020548 | HM73: 8.750014047e-09 | HN73: 1.6485e-10 | HP73: 0 | HQ73: 0 | HU73: =HU72 -> 2.5 | HV73: 350 | HW73: 525 | HX73: 875 | HY73: 314 | HZ73: 2.5 | IA73: 0 | IB73: 0 | IC73: 0 | ID73: =ID72 -> 0.5678571429 | IE73: 27.5 | IF73: 27.5 | IG73: 27.5 | IH73: 27.5 | II73: 27.5 | IJ73: 27.5 | IK73: 27.5 | IL73: 0 | IM73: 27.5 | IN73: 0 | IO73: 0 | IP73: 0 | IQ73: 0 | IR73: 0 | IS73: 4139.966108 | IT73: 0 | IU73: 2.415478711e-54 | IV73: 1e-50 | IW73: 645.5479452 | IX73: 645.5479452 | IY73: 645.5479452 | IZ73: 0 | JA73: 258.2191781 | JB73: 0 | JC73: 0 | JD73: 0 | JE73: 0 | JF73: 0 | JG73: 0 | JH73: 0 | JI73: 645.5479452 | JJ73: 0 | JK73: 3.14e-51 | JL73: 202.7020548 | JM73: 202.7020548 | JN73: 202.7020548 | JO73: 0 | JP73: 0 | JR73: 0 | JS73: 0 | JW73: =JW72 -> 2.5 | JX73: 350 | JY73: 525 | JZ73: 875 | KA73: 314 | KB73: 2.5 | KC73: 0 | KD73: 0 | KE73: 0 | KF73: =KF72 -> 0.5678571429 | KG73: 27.5 | KH73: 27.5 | KI73: 27.5 | KJ73: 27.5 | KK73: 27.5 | KL73: 27.5 | KM73: 27.5 | KN73: 0 | KO73: 27.5 | KP73: 0 | KQ73: 0 | KR73: 0 | KS73: 0 | KT73: 0 | KU73: 4139.966108 | KV73: 0 | KW73: 2.415478711e-54 | KX73: 1e-50 | KY73: 645.5479452 | KZ73: 645.5479452 | LA73: 645.5479452 | LB73: 0 | LC73: 258.2191781 | LD73: 0 | LE73: 0 | LF73: 0 | LG73: 0 | LH73: 0 | LI73: 0 | LJ73: 0 | LK73: 645.5479452 | LL73: 0 | LM73: 3.14e-51 | LN73: 202.7020548 | LO73: 202.7020548 | LP73: 202.7020548 | LQ73: 0 | LR73: 0 | LT73: 0 | LU73: 0 | LY73: =LY72 -> 2.5 | LZ73: 350 | MA73: 525 | MB73: 875 | MC73: 314 | MD73: 2.5 | ME73: 0 | MF73: 0 | MG73: 0 | MH73: =MH72 -> 0.5678571429 | MI73: 27.5 | MJ73: 27.5 | MK73: 27.5 | ML73: 27.5 | MM73: 27.5 | MN73: 27.5 | MO73: 27.5 | MP73: 27.5 | MQ73: 0 | MR73: 0 | MS73: 0 | MT73: 0 | MU73: 0 | MV73: 4139.966108 | MW73: 0 | MX73: 2.415478711e-54 | MY73: 1e-50 | MZ73: 645.5479452 | NA73: 645.5479452 | NB73: 645.5479452 | NC73: 0 | ND73: 258.2191781 | NE73: 0 | NF73: 0 | NG73: 0 | NH73: 0 | NI73: 0 | NJ73: 0 | NK73: 0 | NL73: 645.5479452 | NM73: 0 | NN73: 3.14e-51 | NO73: 202.7020548 | NP73: 202.7020548 | NQ73: 202.7020548 | NR73: 0 | NS73: 0 | NT73: 645.5479452 | NU73: 0 | NV73: 0
A74: 100 | B74: 28.5 | C74: 28.5 | D74: 3244.9 | E74: 648.98 | F74: 0 | G74: 5 | H74: 0 | I74: 0 | J74: 28.5 | K74: 28.5 | L74: 28.5 | M74: 28.5 | N74: 28.5 | O74: 28.5 | P74: 28.5 | Q74: 28.5 | R74: 0 | S74: 3.227739726 | T74: 38.65012492 | U74: 38.65012492 | V74: 0 | W74: 0.6455479452 | X74: 0.6455479452 | Y74: 0.6455479452 | Z74: 0 | AA74: 1e-53 | AB74: 0.6455479452 | AC74: 0.6455479452 | AD74: 0 | AE74: 0 | AF74: 0 | AG74: 0 | AH74: 0 | AI74: 0.5873287671 | AJ74: 0.05821917808 | AK74: 0 | AL74: 587.3287671 | AM74: 58.21917808 | AN74: 0 | AP74: 0.6455479452 | AQ74: 0.6455479452 | AR74: 0 | BO74: 2.936643836 | BP74: 0.2910958904 | BQ74: 0 | CB74: 595.115633 | CC74: 0 | CD74: 695.5786127 | CE74: 0 | CF74: 2313.793702 | CG74: 0 | CH74: 696.4878658 | CI74: 0 | CJ74: 4300.975813 | CK74: 4300.975813 | CL74: 529.2 | CM74: 4830.175813 | CN74: 21.50487907 | CO74: 4830.175813 | FT74: 2.5 | FU74: 350 | FV74: 525 | FW74: 875 | FX74: 315 | FY74: 2.5 | FZ74: 3.5e-09 | GA74: 5.25e-09 | GB74: 8.75e-09 | GC74: 0.5678571429 | GD74: 28.5 | GE74: 28.5 | GF74: 28.5 | GG74: 28.5 | GH74: 28.5 | GI74: 28.5 | GJ74: 28.5 | GK74: 28.5 | GL74: 0 | GM74: 0 | GN74: 0 | GO74: 0 | GP74: 0 | GQ74: 4830.175813 | GR74: 0 | GS74: 2.070318015e-54 | GT74: 1e-50 | GU74: 645.5479452 | GV74: 645.5479452 | GW74: 645.5479452 | GX74: 0 | GY74: 258.2191781 | GZ74: 0 | HA74: 3.5e-10 | HB74: 5.25e-10 | HC74: 8.75e-10 | HD74: 1.1025e-10 | HE74: 1.65375e-10 | HF74: 2.75625e-10 | HG74: 645.5479452 | HH74: 0 | HI74: 3.15e-51 | HJ74: 203.3476027 | HK74: 203.3476027 | HL74: 203.3476027 | HM74: 8.750014047e-09 | HN74: 1.65375e-10 | HP74: 0 | HQ74: 0 | HU74: =HU73 -> 2.5 | HV74: 350 | HW74: 525 | HX74: 875 | HY74: 315 | HZ74: 2.5 | IA74: 0 | IB74: 0 | IC74: 0 | ID74: =ID73 -> 0.5678571429 | IE74: 28.5 | IF74: 28.5 | IG74: 28.5 | IH74: 28.5 | II74: 28.5 | IJ74: 28.5 | IK74: 28.5 | IL74: 0 | IM74: 28.5 | IN74: 0 | IO74: 0 | IP74: 0 | IQ74: 0 | IR74: 0 | IS74: 4830.175813 | IT74: 0 | IU74: 2.070318015e-54 | IV74: 1e-50 | IW74: 645.5479452 | IX74: 645.5479452 | IY74: 645.5479452 | IZ74: 0 | JA74: 258.2191781 | JB74: 0 | JC74: 0 | JD74: 0 | JE74: 0 | JF74: 0 | JG74: 0 | JH74: 0 | JI74: 645.5479452 | JJ74: 0 | JK74: 3.15e-51 | JL74: 203.3476027 | JM74: 203.3476027 | JN74: 203.3476027 | JO74: 0 | JP74: 0 | JR74: 0 | JS74: 0 | JW74: =JW73 -> 2.5 | JX74: 350 | JY74: 525 | JZ74: 875 | KA74: 315 | KB74: 2.5 | KC74: 0 | KD74: 0 | KE74: 0 | KF74: =KF73 -> 0.5678571429 | KG74: 28.5 | KH74: 28.5 | KI74: 28.5 | KJ74: 28.5 | KK74: 28.5 | KL74: 28.5 | KM74: 28.5 | KN74: 0 | KO74: 28.5 | KP74: 0 | KQ74: 0 | KR74: 0 | KS74: 0 | KT74: 0 | KU74: 4830.175813 | KV74: 0 | KW74: 2.070318015e-54 | KX74: 1e-50 | KY74: 645.5479452 | KZ74: 645.5479452 | LA74: 645.5479452 | LB74: 0 | LC74: 258.2191781 | LD74: 0 | LE74: 0 | LF74: 0 | LG74: 0 | LH74: 0 | LI74: 0 | LJ74: 0 | LK74: 645.5479452 | LL74: 0 | LM74: 3.15e-51 | LN74: 203.3476027 | LO74: 203.3476027 | LP74: 203.3476027 | LQ74: 0 | LR74: 0 | LT74: 0 | LU74: 0 | LY74: =LY73 -> 2.5 | LZ74: 350 | MA74: 525 | MB74: 875 | MC74: 315 | MD74: 2.5 | ME74: 0 | MF74: 0 | MG74: 0 | MH74: =MH73 -> 0.5678571429 | MI74: 28.5 | MJ74: 28.5 | MK74: 28.5 | ML74: 28.5 | MM74: 28.5 | MN74: 28.5 | MO74: 28.5 | MP74: 28.5 | MQ74: 0 | MR74: 0 | MS74: 0 | MT74: 0 | MU74: 0 | MV74: 4830.175813 | MW74: 0 | MX74: 2.070318015e-54 | MY74: 1e-50 | MZ74: 645.5479452 | NA74: 645.5479452 | NB74: 645.5479452 | NC74: 0 | ND74: 258.2191781 | NE74: 0 | NF74: 0 | NG74: 0 | NH74: 0 | NI74: 0 | NJ74: 0 | NK74: 0 | NL74: 645.5479452 | NM74: 0 | NN74: 3.15e-51 | NO74: 203.3476027 | NP74: 203.3476027 | NQ74: 203.3476027 | NR74: 0 | NS74: 0 | NT74: 645.5479452 | NU74: 0 | NV74: 0
D75: 0
B76: Lämmitysraja, ulkolämpötila on 12 °C
A77: 72.20319635 | B77: -50 | C77: 0
A78: 72.20319635 | B78: =MAX(INT((MAX(J24:Q74,T24:U74)+10)/10)*10,50) -> 100 | C78: =INT(MAX(X24:AF74)+1) -> 8
A79: ="A"&$FT$7 -> A57
A80: =8760*A81/100 -> 6325 | B80: h
A81: =MAX(A24:INDIRECT(A79)) -> 72.20319635
F82: IV käyntiaikakerroin | G82: =$CB$10/24*$CC$10/7 -> 1
D84: =F84&G84&" kWh" -> A: 8806 kWh | F84: A: | G84: =INT('Hki-2012'!$HP$8*$G$82+0.5) -> 8806
D85: =F85&G85&" %" -> LTO:n vuosihyötysuhde: 72 % | F85: LTO:n vuosihyötysuhde: | G85: =INT('Hki-2012'!$HB$10*$G$82*100+0.5) -> 72
D87: =F87&G87&" kWh" -> LTO: 3053 kWh | F87: LTO: | G87: =INT('Hki-2012'!$HR$8*$G$82+0.5) -> 3053
D88: =F88&G88&" kWh" -> PILP: 3296 kWh | F88: PILP: | G88: =INT('Hki-2012'!$HE$8*$G$82+0.5) -> 3296 | I88: Höyrystin
D89: =F89&G89&" kWh" -> B: 2456 kWh | F89: B: | G89: =INT('Hki-2012'!$HO$8*$G$82+0.5) -> 2456
D90: =F90&G90&" kWh" -> PILP:n lauhdutin: 5493 kWh | F90: PILP:n lauhdutin: | G90: =INT('Hki-2012'!$HF$8*$G$82+0.5) -> 5493 | I90: Lauhdutin
D91: =F91&G91&" kWh" -> Hyödynnetyt lämpökuormat: 5473 kWh | F91: Hyödynnetyt lämpökuormat: | G91: =INT('Hki-2012'!$HI$8*$G$82+0.5) -> 5473
D92: =F92&G92&" kWh" -> Muu lämmitys: 9838 kWh | F92: Muu lämmitys: | G92: =INT('Hki-2012'!$HK$8*$G$82+0.5) -> 9838
D93: PILPtilat: 0 kWh | F93: PILPtilat: | G93: =INT('Hki-2012'!$K$100*$G$82+0.5) -> 0
D94: PILP yhteensä: 0 kWh | F94: PILP yhteensä: | G94: =INT('Hki-2012'!$K$102*$G$82+0.5) -> 0
D95: PILPilmanvaihto: 0 kWh | F95: PILPilmanvaihto: | G95: =INT('Hki-2012'!$K$99*$G$82+0.5) -> 0
D96: Kompressorin sähkö: 2197 kWh | F96: Kompressorin sähkö: | G96: =INT('Hki-2012'!$HD$8*$G$82+0.5) -> 2197 | I96: Kompura
D97: =F97&G97&" kWh" -> Muu lämpöhäviö: 0 kWh | F97: Muu lämpöhäviö: | G97: =INT('Hki-2012'!$BQ$8*$G$82+0.5) -> 0
D98: Tuloilman jälkilämmitys: 2443 kWh | F98: Tuloilman jälkilämmitys: | G98: =INT('Hki-2012'!$HH$8*$G$82+0.5) -> 2443
D99: UILP: 0 kWh | F99: UILP: | G99: =INT('Hki-2012'!$K$106*$G$82+0.5) -> 0
D100: Käyttöveden lämmitys: 3715 kWh | F100: Käyttöveden lämmitys: | G100: =INT('Hki-2012'!$BO$8*$G$82+0.5) -> 3715
D101: Käyttöveden lämpöhäviö: 368 kWh | F101: Käyttöveden lämpöhäviö: | G101: =INT('Hki-2012'!$BP$8*$G$82+0.5) -> 368
D102: Tuloilman lämmitys: 2443 kWh | F102: Tuloilman lämmitys: | G102: =INT('Hki-2012'!$HH$8*$G$82+0.5) -> 2443
D103: Tilojen lämmitys: 0 kWh | F103: Tilojen lämmitys: | G103: =INT('Hki-2012'!$FN$21*$G$82+0.5) -> 0
D104: Bruttolämmöntarve: 23858 kWh | F104: Bruttolämmöntarve: | G104: =INT('Hki-2012'!$HL$8*$G$82+0.5) -> 23858
